Workbook

Sheet Readme
A1: WRAP Region 2014 O&G Activity Summary Compiled from IHS Enerdeq
A3: Tab Name | B3: Description
A4: AllBasinSpudsSummary | B4: High-level summary of O&G activity by basin and spud type (vertical/horizontal/directional)
A5: SelectableSummaryBasin | B5: Basin-level summary of O&G activity by well type, spud type, and play type
A6: SelectableSummaryState | B6: State-level summary of O&G activity by well type, spud type, and play type
A9: *All data in this workbook compiled from IHS Enerdeq

Sheet AllBasinStateSummary
A1: O&G Activity Summary By Basin, Well Type and Spud Type
C3: 2014 Spud Count (no. of spud) | O3: counted_spud | P3: Y
D4: By Spud Type | O4: SpudYear | P4: 2014
C5: Basin | D5: Directional | E5: Horizontal | F5: Vertical | G5: Not Available | H5: Total
C6: =O8 -> San Joaquin Basin (CA) | D6: =P8 -> 1345 | E6: =Q8 -> 271 | F6: =R8 -> 1592 | G6: =S8 -> 10 | H6: =SUM(D6:G6) -> 3218 | O6: Sum of CountOfAPI_number | P6: Column Labels
C7: =O9 -> Williston Basin (ND) | D7: 0 | E7: 2604 | F7: 19 | G7: 0 | H7: =SUM(D7:G7) -> 2623 | O7: Row Labels | P7: D | Q7: H | R7: V | T7: Grand Total
C8: =O10 -> Denver Basin (CO) | D8: 19 | E8: 1469 | F8: 80 | G8: 0 | H8: 1568 | O8: San Joaquin Basin (CA) | P8: 1345 | Q8: 271 | R8: 1592 | S8: 10 | T8: 3218
C9: =O11 -> Permian Basin (NM) | D9: 84 | E9: 779 | F9: 315 | G9: 0 | H9: 1178 | O9: Williston Basin (ND) | Q9: 2604 | R9: 19 | T9: 2623
C10: =O12 -> Uinta Basin (UT) | D10: 603 | E10: 24 | F10: 199 | G10: 0 | H10: 826 | O10: Denver Basin (CO) | P10: 19 | Q10: 1469 | R10: 80 | T10: 1568
C11: =O13 -> Green River Basin (WY) | D11: 375 | E11: 5 | F11: 84 | G11: 0 | H11: 464 | O11: Permian Basin (NM) | P11: 84 | Q11: 779 | R11: 315 | T11: 1178
C12: =O14 -> Powder River Basin (WY) | D12: 6 | E12: 340 | F12: 69 | G12: 0 | H12: 415 | O12: Uinta Basin (UT) | P12: 603 | Q12: 24 | R12: 199 | T12: 826
C13: =O15 -> Piceance Basin (CO) | D13: 367 | E13: 14 | F13: 14 | G13: 0 | H13: 395 | O13: Green River Basin (WY) | P13: 375 | Q13: 5 | R13: 84 | T13: 464
C14: =O16 -> San Juan Basin (NM) | D14: 12 | E14: 114 | F14: 20 | G14: 0 | H14: 146 | O14: Powder River Basin (WY) | P14: 6 | Q14: 340 | R14: 69 | T14: 415
C15: =O17 -> Williston Basin (MT) | D15: 0 | E15: 122 | F15: 6 | G15: 0 | H15: 128 | O15: Piceance Basin (CO) | P15: 367 | Q15: 14 | R15: 14 | T15: 395
C16: =O18 -> Los Angeles Basin (CA) | D16: 61 | E16: 39 | F16: 13 | G16: 0 | H16: 113 | O16: San Juan Basin (NM) | P16: 12 | Q16: 114 | R16: 20 | T16: 146
C17: =O19 -> Denver Basin (WY) | D17: 1 | E17: 88 | F17: 3 | G17: 0 | H17: 92 | O17: Williston Basin (MT) | Q17: 122 | R17: 6 | T17: 128
C18: =O20 -> Coastal Basins (CA) | D18: 69 | E18: 11 | F18: 8 | G18: 1 | H18: 89 | O18: Los Angeles Basin (CA) | P18: 61 | Q18: 39 | R18: 13 | T18: 113
C19: =O21 -> Arctic Coastal Plains Province (AK) | D19: 11 | E19: 78 | F19: 0 | G19: 0 | H19: 89 | O19: Denver Basin (WY) | P19: 1 | Q19: 88 | R19: 3 | T19: 92
C20: =O22 -> Wind River Basin (WY) | D20: 27 | E20: 1 | F20: 14 | G20: 0 | H20: 42 | O20: Coastal Basins (CA) | P20: 69 | Q20: 11 | R20: 8 | S20: 1 | T20: 89
C21: =O23 -> Sierra Grande Uplift (NM) | D21: 0 | E21: 0 | F21: 34 | G21: 0 | H21: 34 | O21: Arctic Coastal Plains Province (AK) | P21: 11 | Q21: 78 | T21: 89
C22: =O24 -> Big Horn Basin (WY) | D22: 11 | E22: 8 | F22: 12 | G22: 0 | H22: 31 | O22: Wind River Basin (WY) | P22: 27 | Q22: 1 | R22: 14 | T22: 42
C23: =O25 -> AK Cook Inlet Basin (AK) | D23: 23 | E23: 3 | F23: 0 | G23: 0 | H23: 26 | O23: Sierra Grande Uplift (NM) | R23: 34 | T23: 34
C24: =O26 -> Ventura Basin (CA) | D24: 11 | E24: 6 | F24: 7 | G24: 2 | H24: 26 | O24: Big Horn Basin (WY) | P24: 11 | Q24: 8 | R24: 12 | T24: 31
C25: =O27 -> San Juan Basin (CO) | D25: 15 | E25: 6 | F25: 2 | G25: 0 | H25: 23 | O25: AK Cook Inlet Basin (AK) | P25: 23 | Q25: 3 | T25: 26
C26: =O28 -> Sweetgrass Arch (MT) | D26: 0 | E26: 0 | F26: 22 | G26: 0 | H26: 22 | O26: Ventura Basin (CA) | P26: 11 | Q26: 6 | R26: 7 | S26: 2 | T26: 26
C27: =O29 -> Powder River Basin (MT) | D27: 0 | E27: 0 | F27: 17 | G27: 0 | H27: 17 | O27: San Juan Basin (CO) | P27: 15 | Q27: 6 | R27: 2 | T27: 23
C28: =O30 -> Santa Maria Basin (CA) | D28: 12 | E28: 1 | F28: 2 | G28: 0 | H28: 15 | O28: Sweetgrass Arch (MT) | R28: 22 | T28: 22
C29: =O31 -> Paradox Basin (UT) | D29: 2 | E29: 9 | F29: 1 | G29: 0 | H29: 12 | O29: Powder River Basin (MT) | R29: 17 | T29: 17
C30: =O32 -> Las Animas Arch (CO) | D30: 0 | E30: 1 | F30: 9 | G30: 0 | H30: 10 | O30: Santa Maria Basin (CA) | P30: 12 | Q30: 1 | R30: 2 | T30: 15
C31: =O33 -> Paradox Basin (CO) | D31: 0 | E31: 5 | F31: 4 | G31: 0 | H31: 9 | O31: Paradox Basin (UT) | P31: 2 | Q31: 9 | R31: 1 | T31: 12
C32: =O34 -> Williston Basin (SD) | D32: 0 | E32: 6 | F32: 1 | G32: 0 | H32: 7 | O32: Las Animas Arch (CO) | Q32: 1 | R32: 9 | T32: 10
C33: =O35 -> Green River Basin (CO) | D33: 1 | E33: 1 | F33: 3 | G33: 0 | H33: 5 | O33: Paradox Basin (CO) | Q33: 5 | R33: 4 | T33: 9
C34: =O36 -> Sacramento Basin (CA) | D34: 3 | E34: 0 | F34: 2 | G34: 0 | H34: 5 | O34: Williston Basin (SD) | Q34: 6 | R34: 1 | T34: 7
C35: =O37 -> Central Montana Uplift (MT) | D35: 0 | E35: 2 | F35: 3 | G35: 0 | H35: 5 | O35: Green River Basin (CO) | P35: 1 | Q35: 1 | R35: 3 | T35: 5
C36: =O38 -> North Park Basin (CO) | D36: 0 | E36: 4 | F36: 0 | G36: 0 | H36: 4 | O36: Sacramento Basin (CA) | P36: 3 | R36: 2 | T36: 5
C37: =O39 -> Snake River Basin (ID) | D37: 1 | E37: 0 | F37: 2 | G37: 0 | H37: 3 | O37: Central Montana Uplift (MT) | Q37: 2 | R37: 3 | T37: 5
C38: =O40 -> Las Vegas-Raton Basin (CO) | D38: 2 | E38: 0 | F38: 1 | G38: 0 | H38: 3 | O38: North Park Basin (CO) | Q38: 4 | T38: 4
C39: =O41 -> Montana Folded Belt (MT) | D39: 0 | E39: 0 | F39: 2 | G39: 0 | H39: 2 | O39: Snake River Basin (ID) | P39: 1 | R39: 2 | T39: 3
C40: =O42 -> Great Basin Province (NV) | D40: 0 | E40: 0 | F40: 2 | G40: 0 | H40: 2 | O40: Las Vegas-Raton Basin (CO) | P40: 2 | R40: 1 | T40: 3
C41: =O43 -> Overthrust&Wasatch Uplift (UT) | D41: 0 | E41: 1 | F41: 0 | G41: 0 | H41: 1 | O41: Montana Folded Belt (MT) | R41: 2 | T41: 2
O42: Great Basin Province (NV) | R42: 2 | T42: 2
O43: Overthrust&Wasatch Uplift (UT) | Q43: 1 | T43: 1
O44: Grand Total | P44: 3061 | Q44: 6012 | R44: 2562 | S44: 13 | T44: 11648
C47: 2014 Well Count (no. of wells) | O47: Final Well Type | P47: (Multiple Items)
D48: by Spud Type | I48: by Well Type
C49: Basin (States) | D49: Directional | E49: Horizontal | F49: Vertical | G49: Not Available | H49: Total | I49: =X50 -> Gas | J49: =Y50 -> Oil | K49: =Z50 -> CBM | L49: Total | O49: Sum of Final Well Count | P49: Column Labels | W49: Sum of Final Well Count | X49: Column Labels
C50: =O51 -> San Joaquin Basin (CA) | D50: =P51 -> 11757 | E50: =Q51 -> 2336 | F50: =R51 -> 32210 | G50: =S51+T51 -> 14 | H50: =SUM(D50:G50) -> 46317 | I50: 173 | J50: 46144 | K50: 0 | L50: =SUM(I50:K50) -> 46317 | M50: =IF(L50=H50,0,1) -> 0 | O50: Row Labels | P50: D | Q50: H | R50: V | T50: M | U50: Grand Total | W50: Row Labels | X50: Gas | Y50: Oil | Z50: CBM | AA50: Grand Total
C51: Permian Basin (NM) | D51: 849 | E51: 2916 | F51: 24839 | G51: 11 | H51: =SUM(D51:G51) -> 28615 | I51: 5947 | J51: 22668 | K51: 0 | L51: =SUM(I51:K51) -> 28615 | M51: =IF(L51=H51,0,1) -> 0 | O51: San Joaquin Basin (CA) | P51: 11757 | Q51: 2336 | R51: 32210 | S51: 14 | U51: 46317 | W51: San Joaquin Basin (CA) | X51: 173 | Y51: 46144 | AA51: 46317
C52: Denver Basin (CO) | D52: 5239 | E52: 2597 | F52: 19092 | G52: 21 | H52: 26949 | I52: 19658 | J52: 7291 | K52: 0 | L52: 26949 | M52: 0 | O52: Permian Basin (NM) | P52: 849 | Q52: 2916 | R52: 24839 | S52: 11 | U52: 28615 | W52: Permian Basin (NM) | X52: 5947 | Y52: 22668 | AA52: 28615
C53: San Juan Basin (NM) | D53: 1192 | E53: 357 | F53: 20136 | G53: 2 | H53: 21687 | I53: 15172 | J53: 1667 | K53: 4848 | L53: 21687 | M53: 0 | O53: Denver Basin (CO) | P53: 5239 | Q53: 2597 | R53: 19092 | S53: 21 | U53: 26949 | W53: Denver Basin (CO) | X53: 19658 | Y53: 7291 | AA53: 26949
C54: Powder River Basin (WY) | D54: 101 | E54: 863 | F54: 14443 | G54: 1 | H54: 15408 | I54: 314 | J54: 5883 | K54: 9211 | L54: 15408 | M54: 0 | O54: San Juan Basin (NM) | P54: 1192 | Q54: 357 | R54: 20136 | S54: 2 | U54: 21687 | W54: San Juan Basin (NM) | X54: 15172 | Y54: 1667 | Z54: 4848 | AA54: 21687
C55: Green River Basin (WY) | D55: 5373 | E55: 89 | F55: 8552 | G55: 15 | H55: 14029 | I55: 12608 | J55: 1069 | K55: 352 | L55: 14029 | M55: 0 | O55: Powder River Basin (WY) | P55: 101 | Q55: 863 | R55: 14443 | S55: 1 | U55: 15408 | W55: Powder River Basin (WY) | X55: 314 | Y55: 5883 | Z55: 9211 | AA55: 15408
C56: Piceance Basin (CO) | D56: 10640 | E56: 63 | F56: 2778 | G56: 5 | H56: 13486 | I56: 12878 | J56: 568 | K56: 40 | L56: 13486 | M56: 0 | O56: Green River Basin (WY) | P56: 5373 | Q56: 89 | R56: 8552 | S56: 15 | U56: 14029 | W56: Green River Basin (WY) | X56: 12608 | Y56: 1069 | Z56: 352 | AA56: 14029
C57: Williston Basin (ND) | D57: 71 | E57: 10345 | F57: 2282 | G57: 8 | H57: 12706 | I57: 304 | J57: 12402 | K57: 0 | L57: 12706 | M57: 0 | O57: Piceance Basin (CO) | P57: 10640 | Q57: 63 | R57: 2778 | S57: 5 | U57: 13486 | W57: Piceance Basin (CO) | X57: 12878 | Y57: 568 | Z57: 40 | AA57: 13486
C58: Uinta Basin (UT) | D58: 3653 | E58: 141 | F58: 7888 | G58: 7 | H58: 11689 | I58: 6189 | J58: 4833 | K58: 667 | L58: 11689 | M58: 0 | O58: Williston Basin (ND) | P58: 71 | Q58: 10345 | R58: 2282 | S58: 8 | U58: 12706 | W58: Williston Basin (ND) | X58: 304 | Y58: 12402 | AA58: 12706
C59: Williston Basin (MT) | D59: 22 | E59: 1558 | F59: 3496 | G59: 38 | H59: 5114 | I59: 2654 | J59: 2458 | K59: 2 | L59: 5114 | M59: 0 | O59: Uinta Basin (UT) | P59: 3653 | Q59: 141 | R59: 7888 | S59: 7 | U59: 11689 | W59: Uinta Basin (UT) | X59: 6189 | Y59: 4833 | Z59: 667 | AA59: 11689
C60: Sweetgrass Arch (MT) | D60: 44 | E60: 13 | F60: 3915 | G60: 9 | H60: 3981 | I60: 1962 | J60: 2019 | K60: 0 | L60: 3981 | M60: 0 | O60: Williston Basin (MT) | P60: 22 | Q60: 1558 | R60: 3496 | S60: 38 | U60: 5114 | W60: Williston Basin (MT) | X60: 2654 | Y60: 2458 | Z60: 2 | AA60: 5114
C61: Los Angeles Basin (CA) | D61: 1365 | E61: 163 | F61: 2096 | G61: 9 | H61: 3633 | I61: 131 | J61: 3502 | K61: 0 | L61: 3633 | M61: 0 | O61: Sweetgrass Arch (MT) | P61: 44 | Q61: 13 | R61: 3915 | S61: 9 | U61: 3981 | W61: Sweetgrass Arch (MT) | X61: 1962 | Y61: 2019 | AA61: 3981
C62: San Juan Basin (CO) | D62: 727 | E62: 93 | F62: 2367 | G62: 3 | H62: 3190 | I62: 864 | J62: 87 | K62: 2239 | L62: 3190 | M62: 0 | O62: Los Angeles Basin (CA) | P62: 1365 | Q62: 163 | R62: 2096 | S62: 9 | U62: 3633 | W62: Los Angeles Basin (CA) | X62: 131 | Y62: 3502 | AA62: 3633
C63: Wind River Basin (WY) | D63: 305 | E63: 31 | F63: 2743 | G63: 4 | H63: 3083 | I63: 996 | J63: 2068 | K63: 19 | L63: 3083 | M63: 0 | O63: San Juan Basin (CO) | P63: 727 | Q63: 93 | R63: 2367 | S63: 3 | U63: 3190 | W63: San Juan Basin (CO) | X63: 864 | Y63: 87 | Z63: 2239 | AA63: 3190
C64: Big Horn Basin (WY) | D64: 402 | E64: 72 | F64: 2357 | G64: 14 | H64: 2845 | I64: 292 | J64: 2553 | K64: 0 | L64: 2845 | M64: 0 | O64: Wind River Basin (WY) | P64: 305 | Q64: 31 | R64: 2743 | S64: 4 | U64: 3083 | W64: Wind River Basin (WY) | X64: 996 | Y64: 2068 | Z64: 19 | AA64: 3083
C65: Las Vegas-Raton Basin (CO) | D65: 4 | E65: 18 | F65: 2752 | G65: 3 | H65: 2777 | I65: 54 | J65: 0 | K65: 2723 | L65: 2777 | M65: 0 | O65: Big Horn Basin (WY) | P65: 402 | Q65: 72 | R65: 2357 | S65: 12 | T65: 2 | U65: 2845 | W65: Big Horn Basin (WY) | X65: 292 | Y65: 2553 | AA65: 2845
C66: Arctic Coastal Plains Province (AK) | D66: 1002 | E66: 867 | F66: 17 | G66: 0 | H66: 1886 | I66: 30 | J66: 1856 | K66: 0 | L66: 1886 | M66: 0 | O66: Las Vegas-Raton Basin (CO) | P66: 4 | Q66: 18 | R66: 2752 | S66: 3 | U66: 2777 | W66: Las Vegas-Raton Basin (CO) | X66: 54 | Z66: 2723 | AA66: 2777
C67: Ventura Basin (CA) | D67: 769 | E67: 29 | F67: 907 | G67: 5 | H67: 1710 | I67: 0 | J67: 1710 | K67: 0 | L67: 1710 | M67: 0 | O67: Arctic Coastal Plains Province (AK) | P67: 1002 | Q67: 867 | R67: 17 | U67: 1886 | W67: Arctic Coastal Plains Province (AK) | X67: 30 | Y67: 1856 | AA67: 1886
C68: Paradox Basin (UT) | D68: 71 | E68: 81 | F68: 1115 | G68: 5 | H68: 1272 | I68: 396 | J68: 678 | K68: 198 | L68: 1272 | M68: 0 | O68: Ventura Basin (CA) | P68: 769 | Q68: 29 | R68: 907 | S68: 5 | U68: 1710 | W68: Ventura Basin (CA) | Y68: 1710 | AA68: 1710
C69: Santa Maria Basin (CA) | D69: 328 | E69: 32 | F69: 808 | G69: 0 | H69: 1168 | I69: 15 | J69: 1153 | K69: 0 | L69: 1168 | M69: 0 | O69: Paradox Basin (UT) | P69: 71 | Q69: 81 | R69: 1115 | S69: 5 | U69: 1272 | W69: Paradox Basin (UT) | X69: 396 | Y69: 678 | Z69: 198 | AA69: 1272
C70: Sacramento Basin (CA) | D70: 399 | E70: 1 | F70: 629 | G70: 0 | H70: 1029 | I70: 1029 | J70: 0 | K70: 0 | L70: 1029 | M70: 0 | O70: Santa Maria Basin (CA) | P70: 328 | Q70: 32 | R70: 808 | U70: 1168 | W70: Santa Maria Basin (CA) | X70: 15 | Y70: 1153 | AA70: 1168
C71: Central Montana Uplift (MT) | D71: 49 | E71: 32 | F71: 916 | G71: 5 | H71: 1002 | I71: 740 | J71: 262 | K71: 0 | L71: 1002 | M71: 0 | O71: Sacramento Basin (CA) | P71: 399 | Q71: 1 | R71: 629 | U71: 1029 | W71: Sacramento Basin (CA) | X71: 1029 | AA71: 1029
C72: Coastal Basins (CA) | D72: 453 | E72: 102 | F72: 409 | G72: 1 | H72: 965 | I72: 0 | J72: 965 | K72: 0 | L72: 965 | M72: 0 | O72: Central Montana Uplift (MT) | P72: 49 | Q72: 32 | R72: 916 | S72: 5 | U72: 1002 | W72: Central Montana Uplift (MT) | X72: 740 | Y72: 262 | AA72: 1002
C73: Las Vegas-Raton Basin (NM) | D73: 1 | E73: 15 | F73: 819 | G73: 0 | H73: 835 | I73: 228 | J73: 0 | K73: 607 | L73: 835 | M73: 0 | O73: Coastal Basins (CA) | P73: 453 | Q73: 102 | R73: 409 | S73: 1 | U73: 965 | W73: Coastal Basins (CA) | Y73: 965 | AA73: 965
C74: Green River Basin (CO) | D74: 72 | E74: 25 | F74: 397 | G74: 1 | H74: 495 | I74: 357 | J74: 135 | K74: 3 | L74: 495 | M74: 0 | O74: Las Vegas-Raton Basin (NM) | P74: 1 | Q74: 15 | R74: 819 | U74: 835 | W74: Las Vegas-Raton Basin (NM) | X74: 228 | Z74: 607 | AA74: 835
C75: Las Animas Arch (CO) | D75: 0 | E75: 3 | F75: 458 | G75: 0 | H75: 461 | I75: 92 | J75: 369 | K75: 0 | L75: 461 | M75: 0 | O75: Green River Basin (CO) | P75: 72 | Q75: 25 | R75: 397 | S75: 1 | U75: 495 | W75: Green River Basin (CO) | X75: 357 | Y75: 135 | Z75: 3 | AA75: 495
C76: Powder River Basin (MT) | D76: 2 | E76: 1 | F76: 285 | G76: 0 | H76: 288 | I76: 100 | J76: 110 | K76: 78 | L76: 288 | M76: 0 | O76: Las Animas Arch (CO) | Q76: 3 | R76: 458 | U76: 461 | W76: Las Animas Arch (CO) | X76: 92 | Y76: 369 | AA76: 461
C77: Denver Basin (WY) | D77: 3 | E77: 156 | F77: 91 | G77: 0 | H77: 250 | I77: 0 | J77: 250 | K77: 0 | L77: 250 | O77: Powder River Basin (MT) | P77: 2 | Q77: 1 | R77: 285 | U77: 288 | W77: Powder River Basin (MT) | X77: 100 | Y77: 110 | Z77: 78 | AA77: 288
C78: Williston Basin (SD) | D78: 0 | E78: 135 | F78: 95 | G78: 0 | H78: 230 | I78: 66 | J78: 164 | K78: 0 | L78: 230 | M78: 0 | O78: Denver Basin (WY) | P78: 3 | Q78: 156 | R78: 91 | U78: 250 | W78: Denver Basin (WY) | Y78: 250 | AA78: 250
C79: AK Cook Inlet Basin (AK) | D79: 160 | E79: 7 | F79: 25 | G79: 1 | H79: 193 | I79: 148 | J79: 45 | K79: 0 | L79: 193 | M79: 0 | O79: Williston Basin (SD) | Q79: 135 | R79: 95 | U79: 230 | W79: Williston Basin (SD) | X79: 66 | Y79: 164 | AA79: 230
C80: Paradox Basin (CO) | D80: 90 | E80: 0 | F80: 69 | G80: 0 | H80: 159 | I80: 121 | J80: 38 | K80: 0 | L80: 159 | M80: 0 | O80: AK Cook Inlet Basin (AK) | P80: 160 | Q80: 7 | R80: 25 | S80: 1 | U80: 193 | W80: AK Cook Inlet Basin (AK) | X80: 148 | Y80: 45 | AA80: 193
C81: Anadarko Basin (CO) | D81: 0 | E81: 0 | F81: 137 | G81: 0 | H81: 137 | I81: 111 | J81: =Y82 -> 26 | K81: =Z82 -> 0 | L81: 137 | M81: 0 | O81: Paradox Basin (CO) | P81: 90 | R81: 69 | U81: 159 | W81: Paradox Basin (CO) | X81: 121 | Y81: 38 | AA81: 159
C82: Big Horn Basin (MT) | D82: 16 | E82: 2 | F82: 84 | G82: 1 | H82: 103 | I82: =X83 -> 29 | J82: 74 | K82: 0 | L82: 103 | M82: 0 | O82: Anadarko Basin (CO) | R82: 137 | U82: 137 | W82: Anadarko Basin (CO) | X82: 111 | Y82: 26 | AA82: 137
C83: North Park Basin (CO) | D83: 2 | E83: 20 | F83: 80 | G83: 0 | H83: 102 | I83: 2 | J83: 100 | K83: 0 | L83: 102 | M83: 0 | O83: Big Horn Basin (MT) | P83: 16 | Q83: 2 | R83: 84 | S83: 1 | U83: 103 | W83: Big Horn Basin (MT) | X83: 29 | Y83: 74 | AA83: 103
C84: Great Basin Province (NV) | D84: 4 | E84: 1 | F84: 68 | G84: 0 | H84: 73 | I84: 0 | J84: 73 | K84: 0 | L84: 73 | M84: 0 | O84: North Park Basin (CO) | P84: 2 | Q84: 20 | R84: 80 | U84: 102 | W84: North Park Basin (CO) | X84: 2 | Y84: 100 | AA84: 102
C85: Black Mesa Basin (AZ) | D85: 0 | E85: 0 | F85: 64 | G85: 0 | H85: 64 | I85: 8 | J85: 56 | K85: 0 | L85: 64 | M85: 0 | O85: Great Basin Province (NV) | P85: 4 | Q85: 1 | R85: 68 | U85: 73 | W85: Great Basin Province (NV) | Y85: 73 | AA85: 73
C86: Central Western Overthrust (UT) | D86: 16 | E86: 2 | F86: 18 | G86: 1 | H86: 37 | I86: 24 | J86: 13 | K86: 0 | L86: 37 | M86: 0 | O86: Black Mesa Basin (AZ) | R86: 64 | U86: 64 | W86: Black Mesa Basin (AZ) | X86: 8 | Y86: 56 | AA86: 64
C87: Mojave Basin (CA) | D87: 3 | E87: 0 | F87: 24 | G87: 0 | H87: 27 | I87: 0 | J87: 27 | K87: 0 | L87: 27 | M87: 0 | O87: Central Western Overthrust (UT) | P87: 16 | Q87: 2 | R87: 18 | S87: 1 | U87: 37 | W87: Central Western Overthrust (UT) | X87: 24 | Y87: 13 | AA87: 37
C88: Montana Folded Belt (MT) | D88: 0 | E88: 0 | F88: 27 | G88: 0 | H88: 27 | I88: 0 | J88: 27 | K88: 0 | L88: 27 | M88: 0 | O88: Mojave Basin (CA) | P88: 3 | R88: 24 | U88: 27 | W88: Mojave Basin (CA) | Y88: 27 | AA88: 27
C89: Eel River Basin (CA) | D89: 10 | E89: 0 | F89: 14 | G89: 0 | H89: 24 | I89: 24 | J89: 0 | K89: 0 | L89: 24 | M89: 0 | O89: Montana Folded Belt (MT) | R89: 27 | U89: 27 | W89: Montana Folded Belt (MT) | Y89: 27 | AA89: 27
C90: Overthrust&Wasatch Uplift (UT) | D90: 22 | E90: 0 | F90: 1 | G90: 0 | H90: 23 | I90: 0 | J90: 23 | K90: 0 | L90: 23 | M90: 0 | O90: Eel River Basin (CA) | P90: 10 | R90: 14 | U90: 24 | W90: Eel River Basin (CA) | X90: 24 | AA90: 24
C91: Northern Coast Range Prov (CA) | D91: 9 | E91: 0 | F91: 10 | G91: 0 | H91: 19 | I91: 0 | J91: 19 | K91: 0 | L91: 19 | M91: 0 | O91: Overthrust&Wasatch Uplift (UT) | P91: 22 | R91: 1 | U91: 23 | W91: Overthrust&Wasatch Uplift (UT) | Y91: 23 | AA91: 23
C92: Western Columbia Basin (OR) | D92: 3 | E92: 0 | F92: 13 | G92: 0 | H92: 16 | I92: 16 | J92: 0 | K92: 0 | L92: 16 | M92: 0 | O92: Northern Coast Range Prov (CA) | P92: 9 | R92: 10 | U92: 19 | W92: Northern Coast Range Prov (CA) | Y92: 19 | AA92: 19
C93: Powder River Basin (SD) | D93: 0 | E93: 0 | F93: 14 | G93: 0 | H93: 14 | I93: 1 | J93: 13 | K93: 0 | L93: 14 | M93: 0 | O93: Western Columbia Basin (OR) | P93: 3 | R93: 13 | U93: 16 | W93: Western Columbia Basin (OR) | X93: 16 | AA93: 16
C94: Santa Cruz Basin (CA) | D94: 0 | E94: 0 | F94: 10 | G94: 0 | H94: 10 | I94: 0 | J94: 10 | K94: 0 | L94: 10 | M94: 0 | O94: Powder River Basin (SD) | R94: 14 | U94: 14 | W94: Powder River Basin (SD) | X94: 1 | Y94: 13 | AA94: 14
C95: Orogrande Basin (NM) | D95: 0 | E95: 0 | F95: 2 | G95: 0 | H95: 2 | I95: 1 | J95: 1 | K95: 0 | L95: 2 | M95: 0 | O95: Santa Cruz Basin (CA) | R95: 10 | U95: 10 | W95: Santa Cruz Basin (CA) | Y95: 10 | AA95: 10
C96: Sierra Nevada Province (CA) | D96: 0 | E96: 0 | F96: 1 | G96: 0 | H96: 1 | I96: 1 | J96: 0 | K96: 0 | L96: 1 | M96: 0 | O96: Orogrande Basin (NM) | R96: 2 | U96: 2 | W96: Orogrande Basin (NM) | X96: 1 | Y96: 1 | AA96: 2
C97: =O98 -> Snake River Basin (ID) | D97: =P98 -> 0 | E97: =Q98 -> 0 | F97: =R98 -> 1 | G97: =S98+T98 -> 0 | H97: =SUM(D97:G97) -> 1 | I97: =X98 -> 1 | J97: =Y98 -> 0 | K97: =Z98 -> 0 | L97: =SUM(I97:K97) -> 1 | M97: =IF(L97=H97,0,1) -> 0 | O97: Sierra Nevada Province (CA) | R97: 1 | U97: 1 | W97: Sierra Nevada Province (CA) | X97: 1 | AA97: 1
C98: Sierra Grande Uplift (NM) | D98: 0 | E98: 0 | F98: 1 | G98: 0 | H98: 1 | I98: 1 | J98: 0 | K98: 0 | L98: 1 | M98: 0 | O98: Snake River Basin (ID) | R98: 1 | U98: 1 | W98: Snake River Basin (ID) | X98: 1 | AA98: 1
M99: 0 | O99: Sierra Grande Uplift (NM) | R99: 1 | U99: 1 | W99: Sierra Grande Uplift (NM) | X99: 1 | AA99: 1
O100: Grand Total | P100: 45228 | Q100: 23166 | R100: 159555 | S100: 182 | T100: 2 | U100: 228133 | W100: Grand Total | X100: 83737 | Y100: 123409 | Z100: 20987 | AA100: 228133
C102: 2014 Gas Production (MMCF/yr) | O102: Final Well Type | P102: (Multiple Items)
D103: by Spud Type | I103: by Well Type
C104: Basin | D104: Directional | E104: Horizontal | F104: Vertical | G104: Not Available | H104: Total | I104: =X105 -> Gas | J104: =Y105 -> Oil | K104: =Z105 -> CBM | L104: Total | O104: Sum of SumOfGas mcf/year | P104: Column Labels | W104: Sum of SumOfGas mcf/year | X104: Column Labels
C105: =O106 -> Arctic Coastal Plains Province (AK) | D105: =P106/1000 -> 1275147.543 | E105: =Q106/1000 -> 1791101.759 | F105: =R106/1000 -> 6334.499 | G105: =S106/1000 -> 0 | H105: =SUM(D105:G105) -> 3072583.801 | I105: =X106/1000 -> 17829.7 | J105: =Y106/1000 -> 3054754.101 | K105: =Z106/1000 -> 0 | L105: =SUM(I105:K105) -> 3072583.801 | M105: =IF(L105=H105,0,1) -> 0 | O105: Row Labels | P105: D | Q105: H | R105: V | T105: M | U105: Grand Total | W105: Row Labels | X105: Gas | Y105: Oil | Z105: CBM | AA105: Grand Total
C106: =O107 -> Green River Basin (WY) | D106: =P107/1000 -> 713203.071 | E106: =Q107/1000 -> 72279.568 | F106: =R107/1000 -> 715264.118 | G106: =S107/1000 -> 293.488 | H106: =SUM(D106:G106) -> 1501040.245 | I106: =X107/1000 -> 1373613.088 | J106: =Y107/1000 -> 111195.045 | K106: =Z107/1000 -> 16232.112 | L106: =SUM(I106:K106) -> 1501040.245 | M106: 0 | O106: Arctic Coastal Plains Province (AK) | P106: 1275147543 | Q106: 1791101759 | R106: 6334499 | U106: 3072583801 | W106: Arctic Coastal Plains Province (AK) | X106: 17829700 | Y106: 3054754101 | AA106: 3072583801
C107: Piceance Basin (CO) | D107: 644117.73 | E107: 21080.048 | F107: 70146.851 | G107: 31.89 | H107: 735376.519 | I107: 732869.018 | J107: 1178.683 | K107: 1328.818 | L107: 735376.519 | M107: 0 | O107: Green River Basin (WY) | P107: 713203071 | Q107: 72279568 | R107: 715264118 | S107: 293488 | U107: 1501040245 | W107: Green River Basin (WY) | X107: 1373613088 | Y107: 111195045 | Z107: 16232112 | AA107: 1501040245
C108: San Juan Basin (NM) | D108: 59864.912 | E108: 43736.44 | F108: 608909.312 | G108: 74.754 | H108: 712585.418 | I108: 403496.111 | J108: 25421.765 | K108: 283667.542 | L108: 712585.418 | M108: 0 | O108: Piceance Basin (CO) | P108: 644117730 | Q108: 21080048 | R108: 70146851 | S108: 31890 | U108: 735376519 | W108: Piceance Basin (CO) | X108: 732869018 | Y108: 1178683 | Z108: 1328818 | AA108: 735376519
C109: Permian Basin (NM) | D109: 18862.412 | E109: 229575.52 | F109: 259213.69 | G109: 170.641 | H109: 507822.263 | I109: 122352.367 | J109: 385469.896 | K109: 0 | L109: 507822.263 | M109: 0 | O109: San Juan Basin (NM) | P109: 59864912 | Q109: 43736440 | R109: 608909312 | S109: 74754 | U109: 712585418 | W109: San Juan Basin (NM) | X109: 403496111 | Y109: 25421765 | Z109: 283667542 | AA109: 712585418
C110: Williston Basin (ND) | D110: 524.071 | E110: 448630.815 | F110: 14377.324 | G110: 194.49 | H110: 463726.7 | I110: 10135.209 | J110: 453591.491 | K110: 0 | L110: 463726.7 | M110: 0 | O110: Permian Basin (NM) | P110: 18862412 | Q110: 229575520 | R110: 259213690 | S110: 170641 | U110: 507822263 | W110: Permian Basin (NM) | X110: 122352367 | Y110: 385469896 | AA110: 507822263
C111: Denver Basin (CO) | D111: 55025.073 | E111: 271497.204 | F111: 109101.125 | G111: 72.297 | H111: 435695.699 | I111: 194452.623 | J111: 241243.076 | K111: 0 | L111: 435695.699 | M111: 0 | O111: Williston Basin (ND) | P111: 524071 | Q111: 448630815 | R111: 14377324 | S111: 194490 | U111: 463726700 | W111: Williston Basin (ND) | X111: 10135209 | Y111: 453591491 | AA111: 463726700
C112: Uinta Basin (UT) | D112: 201963.567 | E112: 7630.878 | F112: 212187.38 | G112: 144.532 | H112: 421926.357 | I112: 324514.569 | J112: 63570.801 | K112: 33840.987 | L112: 421926.357 | M112: 0 | O112: Denver Basin (CO) | P112: 55025073 | Q112: 271497204 | R112: 109101125 | S112: 72297 | U112: 435695699 | W112: Denver Basin (CO) | X112: 194452623 | Y112: 241243076 | AA112: 435695699
C113: San Juan Basin (CO) | D113: 104662.703 | E113: 25563.17 | F113: 218985.144 | G113: 546.69 | H113: 349757.707 | I113: 25389.333 | J113: 39.882 | K113: 324328.492 | L113: 349757.707 | M113: 0 | O113: Uinta Basin (UT) | P113: 201963567 | Q113: 7630878 | R113: 212187380 | S113: 144532 | U113: 421926357 | W113: Uinta Basin (UT) | X113: 324514569 | Y113: 63570801 | Z113: 33840987 | AA113: 421926357
C114: Powder River Basin (WY) | D114: 879.864 | E114: 59771.338 | F114: 260048.089 | G114: 0 | H114: 320699.291 | I114: 14586.563 | J114: 65726.149 | K114: 240386.579 | L114: 320699.291 | M114: 0 | O114: San Juan Basin (CO) | P114: 104662703 | Q114: 25563170 | R114: 218985144 | S114: 546690 | U114: 349757707 | W114: San Juan Basin (CO) | X114: 25389333 | Y114: 39882 | Z114: 324328492 | AA114: 349757707
C115: San Joaquin Basin (CA) | D115: 87818.783 | E115: 9786.034 | F115: 63175.731 | G115: 804.62 | H115: 161585.168 | I115: 3213.319 | J115: 158371.849 | K115: 0 | L115: 161585.168 | M115: 0 | O115: Powder River Basin (WY) | P115: 879864 | Q115: 59771338 | R115: 260048089 | S115: 0 | U115: 320699291 | W115: Powder River Basin (WY) | X115: 14586563 | Y115: 65726149 | Z115: 240386579 | AA115: 320699291
C116: Wind River Basin (WY) | D116: 20079.825 | E116: 1879.753 | F116: 138248.327 | G116: 20.151 | H116: 160228.056 | I116: 141514.513 | J116: 17331.644 | K116: 1381.899 | L116: 160228.056 | M116: 0 | O116: San Joaquin Basin (CA) | P116: 87818783 | Q116: 9786034 | R116: 63175731 | S116: 804620 | U116: 161585168 | W116: San Joaquin Basin (CA) | X116: 3213319 | Y116: 158371849 | AA116: 161585168
C117: Las Vegas-Raton Basin (CO) | D117: 3321.419 | E117: 559.244 | F117: 87257.547 | G117: 97.556 | H117: 91235.766 | I117: 4708.758 | J117: 0 | K117: 86527.008 | L117: 91235.766 | M117: 0 | O117: Wind River Basin (WY) | P117: 20079825 | Q117: 1879753 | R117: 138248327 | S117: 20151 | U117: 160228056 | W117: Wind River Basin (WY) | X117: 141514513 | Y117: 17331644 | Z117: 1381899 | AA117: 160228056
C118: AK Cook Inlet Basin (AK) | D118: 74860.024 | E118: 2598.069 | F118: 7008.46 | G118: 439.548 | H118: 84906.101 | I118: 82358.956 | J118: 2547.145 | K118: 0 | L118: 84906.101 | M118: 0 | O118: Las Vegas-Raton Basin (CO) | P118: 3321419 | Q118: 559244 | R118: 87257547 | S118: 97556 | U118: 91235766 | W118: Las Vegas-Raton Basin (CO) | X118: 4708758 | Z118: 86527008 | AA118: 91235766
C119: Williston Basin (MT) | D119: 81.841 | E119: 20601.425 | F119: 20952.377 | G119: 238.123 | H119: 41873.766 | I119: 18985.917 | J119: 22871.419 | K119: 16.43 | L119: 41873.766 | M119: 0 | O119: AK Cook Inlet Basin (AK) | P119: 74860024 | Q119: 2598069 | R119: 7008460 | S119: 439548 | U119: 84906101 | W119: AK Cook Inlet Basin (AK) | X119: 82358956 | Y119: 2547145 | AA119: 84906101
C120: Sacramento Basin (CA) | D120: 15393.685 | E120: 28.914 | F120: 15282.122 | G120: 0 | H120: 30704.721 | I120: 30704.721 | J120: 0 | K120: 0 | L120: 30704.721 | M120: 0 | O120: Williston Basin (MT) | P120: 81841 | Q120: 20601425 | R120: 20952377 | S120: 238123 | U120: 41873766 | W120: Williston Basin (MT) | X120: 18985917 | Y120: 22871419 | Z120: 16430 | AA120: 41873766
C121: Paradox Basin (UT) | D121: 2991.678 | E121: 1220.232 | F121: 20129.405 | G121: 152.615 | H121: 24493.93 | I121: 8930.851 | J121: 8338.789 | K121: 7224.29 | L121: 24493.93 | M121: 0 | O121: Sacramento Basin (CA) | P121: 15393685 | Q121: 28914 | R121: 15282122 | U121: 30704721 | W121: Sacramento Basin (CA) | X121: 30704721 | AA121: 30704721
C122: Las Vegas-Raton Basin (NM) | D122: 6.097 | E122: 333.232 | F122: 23447.879 | G122: 0 | H122: 23787.208 | I122: 9052.661 | J122: 0 | K122: 14734.547 | L122: 23787.208 | M122: 0 | O122: Paradox Basin (UT) | P122: 2991678 | Q122: 1220232 | R122: 20129405 | S122: 152615 | U122: 24493930 | W122: Paradox Basin (UT) | X122: 8930851 | Y122: 8338789 | Z122: 7224290 | AA122: 24493930
C123: Green River Basin (CO) | D123: 2886.154 | E123: 2227.108 | F123: 11531.428 | G123: 27.862 | H123: 16672.552 | I123: 15874.029 | J123: 798.309 | K123: 0.214 | L123: 16672.552 | M123: 0 | O123: Las Vegas-Raton Basin (NM) | P123: 6097 | Q123: 333232 | R123: 23447879 | U123: 23787208 | W123: Las Vegas-Raton Basin (NM) | X123: 9052661 | Z123: 14734547 | AA123: 23787208
C124: Williston Basin (SD) | D124: 0 | E124: 14257.935 | F124: 1129.931 | G124: 0 | H124: 15387.866 | I124: 263.002 | J124: 15124.864 | K124: 0 | L124: 15387.866 | M124: 0 | O124: Green River Basin (CO) | P124: 2886154 | Q124: 2227108 | R124: 11531428 | S124: 27862 | U124: 16672552 | W124: Green River Basin (CO) | X124: 15874029 | Y124: 798309 | Z124: 214 | AA124: 16672552
C125: Big Horn Basin (WY) | D125: 1912.231 | E125: 152.504 | F125: 11289.976 | G125: 143.292 | H125: 13498.003 | I125: 4603.623 | J125: 8894.38 | K125: 0 | L125: 13498.003 | M125: 0 | O125: Williston Basin (SD) | Q125: 14257935 | R125: 1129931 | U125: 15387866 | W125: Williston Basin (SD) | X125: 263002 | Y125: 15124864 | AA125: 15387866
C126: Los Angeles Basin (CA) | D126: 5629.873 | E126: 269.299 | F126: 7122.236 | G126: 25.508 | H126: 13046.916 | I126: 18.369 | J126: 13028.547 | K126: 0 | L126: 13046.916 | M126: 0 | O126: Big Horn Basin (WY) | P126: 1912231 | Q126: 152504 | R126: 11289976 | S126: 143292 | T126: 0 | U126: 13498003 | W126: Big Horn Basin (WY) | X126: 4603623 | Y126: 8894380 | AA126: 13498003
C127: Sweetgrass Arch (MT) | D127: 451.951 | E127: 7.775 | F127: 9668.219 | G127: 22.505 | H127: 10150.45 | I127: 9806.993 | J127: 343.457 | K127: 0 | L127: 10150.45 | M127: 0 | O127: Los Angeles Basin (CA) | P127: 5629873 | Q127: 269299 | R127: 7122236 | S127: 25508 | U127: 13046916 | W127: Los Angeles Basin (CA) | X127: 18369 | Y127: 13028547 | AA127: 13046916
C128: Ventura Basin (CA) | D128: 4861.763 | E128: 56.324 | F128: 3510.305 | G128: 24.487 | H128: 8452.879 | I128: 0 | J128: 8452.879 | K128: 0 | L128: 8452.879 | M128: 0 | O128: Sweetgrass Arch (MT) | P128: 451951 | Q128: 7775 | R128: 9668219 | S128: 22505 | U128: 10150450 | W128: Sweetgrass Arch (MT) | X128: 9806993 | Y128: 343457 | AA128: 10150450
C129: Powder River Basin (MT) | D129: 0 | E129: 3.186 | F129: 7693.192 | G129: 0 | H129: 7696.378 | I129: 260.474 | J129: 6960.972 | K129: 474.932 | L129: 7696.378 | M129: 0 | O129: Ventura Basin (CA) | P129: 4861763 | Q129: 56324 | R129: 3510305 | S129: 24487 | U129: 8452879 | W129: Ventura Basin (CA) | Y129: 8452879 | AA129: 8452879
C130: Las Animas Arch (CO) | D130: 0 | E130: 0.265 | F130: 6031.093 | G130: 0 | H130: 6031.358 | I130: 1274.52 | J130: 4756.838 | K130: 0 | L130: 6031.358 | M130: 0 | O130: Powder River Basin (MT) | P130: 0 | Q130: 3186 | R130: 7693192 | U130: 7696378 | W130: Powder River Basin (MT) | X130: 260474 | Y130: 6960972 | Z130: 474932 | AA130: 7696378
C131: Paradox Basin (CO) | D131: 3744.712 | E131: 0 | F131: 1501.927 | G131: 0 | H131: 5246.639 | I131: 4915.618 | J131: 331.021 | K131: 0 | L131: 5246.639 | M131: 0 | O131: Las Animas Arch (CO) | Q131: 265 | R131: 6031093 | U131: 6031358 | W131: Las Animas Arch (CO) | X131: 1274520 | Y131: 4756838 | AA131: 6031358
C132: Central Montana Uplift (MT) | D132: 427.939 | E132: 22.04 | F132: 4770.794 | G132: 17.101 | H132: 5237.874 | I132: 5162.9 | J132: 74.974 | K132: 0 | L132: 5237.874 | M132: 0 | O132: Paradox Basin (CO) | P132: 3744712 | R132: 1501927 | U132: 5246639 | W132: Paradox Basin (CO) | X132: 4915618 | Y132: 331021 | AA132: 5246639
C133: Central Western Overthrust (UT) | D133: 2454.761 | E133: 6.635 | F133: 1012.854 | G133: 133.161 | H133: 3607.411 | I133: 3181.846 | J133: 425.565 | K133: 0 | L133: 3607.411 | M133: 0 | O133: Central Montana Uplift (MT) | P133: 427939 | Q133: 22040 | R133: 4770794 | S133: 17101 | U133: 5237874 | W133: Central Montana Uplift (MT) | X133: 5162900 | Y133: 74974 | AA133: 5237874
C134: Santa Maria Basin (CA) | D134: 1120.926 | E134: 248.58 | F134: 1903.634 | G134: 0 | H134: 3273.14 | I134: 0 | J134: 3273.14 | K134: 0 | L134: 3273.14 | M134: 0 | O134: Central Western Overthrust (UT) | P134: 2454761 | Q134: 6635 | R134: 1012854 | S134: 133161 | U134: 3607411 | W134: Central Western Overthrust (UT) | X134: 3181846 | Y134: 425565 | AA134: 3607411
C135: Denver Basin (WY) | D135: 0 | E135: 2549.883 | F135: 68.393 | G135: 0 | H135: 2618.276 | I135: 0 | J135: 2618.276 | K135: 0 | L135: 2618.276 | M135: 0 | O135: Santa Maria Basin (CA) | P135: 1120926 | Q135: 248580 | R135: 1903634 | U135: 3273140 | W135: Santa Maria Basin (CA) | X135: 0 | Y135: 3273140 | AA135: 3273140
C136: Coastal Basins (CA) | D136: 1057.93 | E136: 188.013 | F136: 599.179 | G136: 0.127 | H136: 1845.249 | I136: 0 | J136: 1845.249 | K136: 0 | L136: 1845.249 | M136: 0 | O136: Denver Basin (WY) | P136: 0 | Q136: 2549883 | R136: 68393 | U136: 2618276 | W136: Denver Basin (WY) | Y136: 2618276 | AA136: 2618276
C137: Anadarko Basin (CO) | D137: 0 | E137: 0 | F137: 1264.918 | G137: 0 | H137: 1264.918 | I137: 1238.879 | J137: =Y138/1000 -> 26.039 | K137: 0 | L137: 1264.918 | M137: 0 | O137: Coastal Basins (CA) | P137: 1057930 | Q137: 188013 | R137: 599179 | S137: 127 | U137: 1845249 | W137: Coastal Basins (CA) | Y137: 1845249 | AA137: 1845249
C138: Big Horn Basin (MT) | D138: 269.926 | E138: 0 | F138: 882.973 | G138: 14.289 | H138: 1167.188 | I138: 450.111 | J138: 717.077 | K138: 0 | L138: 1167.188 | M138: 0 | O138: Anadarko Basin (CO) | R138: 1264918 | U138: 1264918 | W138: Anadarko Basin (CO) | X138: 1238879 | Y138: 26039 | AA138: 1264918
C139: Western Columbia Basin (OR) | D139: 35.719 | E139: 0 | F139: 1106.292 | G139: 0 | H139: 1142.011 | I139: 1142.011 | J139: 0 | K139: 0 | L139: 1142.011 | M139: 0 | O139: Big Horn Basin (MT) | P139: 269926 | Q139: 0 | R139: 882973 | S139: 14289 | U139: 1167188 | W139: Big Horn Basin (MT) | X139: 450111 | Y139: 717077 | AA139: 1167188
C140: Eel River Basin (CA) | D140: 221.119 | E140: 0 | F140: 310.938 | G140: 0 | H140: 532.057 | I140: 532.057 | J140: 0 | K140: 0 | L140: 532.057 | M140: 0 | O140: Western Columbia Basin (OR) | P140: 35719 | R140: 1106292 | U140: 1142011 | W140: Western Columbia Basin (OR) | X140: 1142011 | AA140: 1142011
C141: North Park Basin (CO) | D141: 0 | E141: 263.588 | F141: 3.718 | G141: 0 | H141: 267.306 | I141: 4.784 | J141: 262.522 | K141: 0 | L141: 267.306 | M141: 0 | O141: Eel River Basin (CA) | P141: 221119 | R141: 310938 | U141: 532057 | W141: Eel River Basin (CA) | X141: 532057 | AA141: 532057
C142: Black Mesa Basin (AZ) | D142: 0 | E142: 0 | F142: 211.304 | G142: 0 | H142: 211.304 | I142: 179.94 | J142: 31.364 | K142: 0 | L142: 211.304 | M142: 0 | O142: North Park Basin (CO) | P142: 0 | Q142: 263588 | R142: 3718 | U142: 267306 | W142: North Park Basin (CO) | X142: 4784 | Y142: 262522 | AA142: 267306
C143: Northern Coast Range Prov (CA) | D143: 23.856 | E143: 0 | F143: 6.856 | G143: 0 | H143: 30.712 | I143: 0 | J143: 30.712 | K143: 0 | L143: 30.712 | M143: 0 | O143: Black Mesa Basin (AZ) | R143: 211304 | U143: 211304 | W143: Black Mesa Basin (AZ) | X143: 179940 | Y143: 31364 | AA143: 211304
C144: Sierra Grande Uplift (NM) | D144: 0 | E144: 0 | F144: 22.258 | G144: 0 | H144: 22.258 | I144: 22.258 | J144: 0 | K144: 0 | L144: 22.258 | M144: 0 | O144: Northern Coast Range Prov (CA) | P144: 23856 | R144: 6856 | U144: 30712 | W144: Northern Coast Range Prov (CA) | Y144: 30712 | AA144: 30712
C145: Orogrande Basin (NM) | D145: 0 | E145: 0 | F145: 15.131 | G145: 0 | H145: 15.131 | I145: 4.012 | J145: 11.119 | K145: 0 | L145: 15.131 | M145: 0 | O145: Sierra Grande Uplift (NM) | R145: 22258 | U145: 22258 | W145: Sierra Grande Uplift (NM) | X145: 22258 | AA145: 22258
C146: Snake River Basin (ID) | D146: 0 | E146: 0 | F146: 13.385 | G146: 0 | H146: 13.385 | I146: 13.385 | J146: 0 | K146: 0 | L146: 13.385 | M146: 0 | O146: Orogrande Basin (NM) | R146: 15131 | U146: 15131 | W146: Orogrande Basin (NM) | X146: 4012 | Y146: 11119 | AA146: 15131
C147: Great Basin Province (NV) | D147: 0 | E147: 0 | F147: 3.172 | G147: 0 | H147: 3.172 | I147: 0 | J147: 3.172 | K147: 0 | L147: 3.172 | M147: 0 | O147: Snake River Basin (ID) | R147: 13385 | U147: 13385 | W147: Snake River Basin (ID) | X147: 13385 | AA147: 13385
C148: Sierra Nevada Province (CA) | D148: 0 | E148: 0 | F148: 0.735 | G148: 0 | H148: 0.735 | I148: 0.735 | J148: 0 | K148: 0 | L148: 0.735 | M148: 0 | O148: Great Basin Province (NV) | P148: 0 | Q148: 0 | R148: 3172 | U148: 3172 | W148: Great Basin Province (NV) | Y148: 3172 | AA148: 3172
C149: Mojave Basin (CA) | D149: 0.055 | E149: 0 | F149: 0.445 | G149: 0 | H149: 0.5 | I149: 0 | J149: 0.5 | K149: 0 | L149: 0.5 | M149: 0 | O149: Sierra Nevada Province (CA) | R149: 735 | U149: 735 | W149: Sierra Nevada Province (CA) | X149: 735 | AA149: 735
C150: Powder River Basin (SD) | D150: 0 | E150: 0 | F150: 0.473 | G150: 0 | H150: 0.473 | I150: 0 | J150: 0.473 | K150: 0 | L150: 0.473 | M150: 0 | O150: Mojave Basin (CA) | P150: 55 | R150: 445 | U150: 500 | W150: Mojave Basin (CA) | Y150: 500 | AA150: 500
C151: Santa Cruz Basin (CA) | D151: 0 | E151: 0 | F151: 0.343 | G151: 0 | H151: 0.343 | I151: 0 | J151: 0.343 | K151: 0 | L151: 0.343 | M151: 0 | O151: Powder River Basin (SD) | R151: 473 | U151: 473 | W151: Powder River Basin (SD) | X151: 0 | Y151: 473 | AA151: 473
C152: Montana Folded Belt (MT) | D152: 0 | E152: 0 | F152: 0.22 | G152: 0 | H152: 0.22 | I152: 0 | J152: 0.22 | K152: 0 | L152: 0.22 | M152: 0 | O152: Santa Cruz Basin (CA) | R152: 343 | U152: 343 | W152: Santa Cruz Basin (CA) | Y152: 343 | AA152: 343
C153: =O154 -> Overthrust&Wasatch Uplift (UT) | D153: =P154/1000 -> 0 | E153: =Q154/1000 -> 0 | F153: =R154/1000 -> 0 | G153: =S154/1000 -> 0 | H153: =SUM(D153:G153) -> 0 | I153: =X154/1000 -> 0 | J153: =Y154/1000 -> 0 | K153: =Z154/1000 -> 0 | L153: =SUM(I153:K153) -> 0 | M153: 0 | O153: Montana Folded Belt (MT) | R153: 220 | U153: 220 | W153: Montana Folded Belt (MT) | Y153: 220 | AA153: 220
M154: 0 | O154: Overthrust&Wasatch Uplift (UT) | P154: 0 | R154: 0 | U154: 0 | W154: Overthrust&Wasatch Uplift (UT) | Y154: 0 | AA154: 0
O155: Grand Total | P155: 3303903213 | Q155: 3028126778 | R155: 2921745702 | S155: 3689727 | T155: 0 | U155: 9257465420 | W155: Grand Total | X155: 3567657823 | Y155: 4679663747 | Z155: 1010143850 | AA155: 9257465420
C157: 2014 Oil and Condensate Production (MBbbl/yr) | O157: Final Well Type | P157: (Multiple Items)
D158: by Spud Type | I158: by Well Type
C159: Basin | D159: Directional | E159: Horizontal | F159: Vertical | G159: Not Available | H159: Total | I159: =X160 -> Gas | J159: =Y160 -> Oil | K159: =Z160 -> CBM | L159: Total | O159: Sum of SumOfOil bbl/year | P159: Column Labels | W159: Sum of SumOfOil bbl/year | X159: Column Labels
C160: =O161 -> Williston Basin (ND) | D160: =P161/1000 -> 657.417 | E160: =Q161/1000 -> 386272.438 | F160: =R161/1000 -> 7634.869 | G160: =(S161+T161)/1000 -> 80.1 | H160: =SUM(D160:G160) -> 394644.824 | I160: =X161/1000 -> 3231.849 | J160: =Y161/1000 -> 391412.975 | K160: =Z161/1000 -> 0 | L160: =SUM(I160:K160) -> 394644.824 | O160: Row Labels | P160: D | Q160: H | R160: V | T160: M | U160: Grand Total | W160: Row Labels | X160: Gas | Y160: Oil | Z160: CBM | AA160: Grand Total
C161: =O162 -> Arctic Coastal Plains Province (AK) | D161: =P162/1000 -> 74829.63 | E161: =Q162/1000 -> 91200.034 | F161: =R162/1000 -> 447.156 | G161: =(S162+T162)/1000 -> 0 | H161: =SUM(D161:G161) -> 166476.82 | I161: =X162/1000 -> 763.604 | J161: =Y162/1000 -> 165713.216 | K161: =Z162/1000 -> 0 | L161: =SUM(I161:K161) -> 166476.82 | O161: Williston Basin (ND) | P161: 657417 | Q161: 386272438 | R161: 7634869 | S161: 80100 | U161: 394644824 | W161: Williston Basin (ND) | X161: 3231849 | Y161: 391412975 | AA161: 394644824
C162: San Joaquin Basin (CA) | D162: 52382.395 | E162: 17380.513 | F162: 82117.494 | G162: 23.333 | H162: 151903.735 | I162: 35.03 | J162: 151868.705 | K162: 0 | L162: 151903.735 | O162: Arctic Coastal Plains Province (AK) | P162: 74829630 | Q162: 91200034 | R162: 447156 | U162: 166476820 | W162: Arctic Coastal Plains Province (AK) | X162: 763604 | Y162: 165713216 | AA162: 166476820
C163: Permian Basin (NM) | D163: 3835.775 | E163: 70635.994 | F163: 44163.631 | G163: 14.244 | H163: 118649.644 | I163: 2887.715 | J163: 115761.929 | K163: 0 | L163: 118649.644 | O163: San Joaquin Basin (CA) | P163: 52382395 | Q163: 17380513 | R163: 82117494 | S163: 23333 | U163: 151903735 | W163: San Joaquin Basin (CA) | X163: 35030 | Y163: 151868705 | AA163: 151903735
C164: Denver Basin (CO) | D164: 5294.471 | E164: 72057.886 | F164: 8515.34 | G164: 13.055 | H164: 85880.752 | I164: 20443.391 | J164: 65437.361 | K164: 0 | L164: 85880.752 | O164: Permian Basin (NM) | P164: 3835775 | Q164: 70635994 | R164: 44163631 | S164: 14244 | U164: 118649644 | W164: Permian Basin (NM) | X164: 2887715 | Y164: 115761929 | AA164: 118649644
C165: Powder River Basin (WY) | D165: 677.844 | E165: 25867.1 | F165: 10036.659 | G165: 1.93 | H165: 36583.533 | I165: 987.892 | J165: 35591.992 | K165: 3.649 | L165: 36583.533 | O165: Denver Basin (CO) | P165: 5294471 | Q165: 72057886 | R165: 8515340 | S165: 13055 | U165: 85880752 | W165: Denver Basin (CO) | X165: 20443391 | Y165: 65437361 | AA165: 85880752
C166: Uinta Basin (UT) | D166: 13846.065 | E166: 2805.947 | F166: 16358.138 | G166: 1.068 | H166: 33011.218 | I166: 2180.42 | J166: 30830.439 | K166: 0.359 | L166: 33011.218 | O166: Powder River Basin (WY) | P166: 677844 | Q166: 25867100 | R166: 10036659 | S166: 1930 | U166: 36583533 | W166: Powder River Basin (WY) | X166: 987892 | Y166: 35591992 | Z166: 3649 | AA166: 36583533
C167: Williston Basin (MT) | D167: 134.054 | E167: 22321.451 | F167: 4445.539 | G167: 31.914 | H167: 26932.958 | I167: 71.372 | J167: 26859.394 | K167: 2.192 | L167: 26932.958 | O167: Uinta Basin (UT) | P167: 13846065 | Q167: 2805947 | R167: 16358138 | S167: 1068 | U167: 33011218 | W167: Uinta Basin (UT) | X167: 2180420 | Y167: 30830439 | Z167: 359 | AA167: 33011218
C168: Los Angeles Basin (CA) | D168: 7480.567 | E168: 1504.425 | F168: 7889.134 | G168: 40.719 | H168: 16914.845 | I168: 91.091 | J168: 16823.754 | K168: 0 | L168: 16914.845 | O168: Williston Basin (MT) | P168: 134054 | Q168: 22321451 | R168: 4445539 | S168: 31914 | U168: 26932958 | W168: Williston Basin (MT) | X168: 71372 | Y168: 26859394 | Z168: 2192 | AA168: 26932958
C169: Green River Basin (WY) | D169: 7121.296 | E169: 726.562 | F169: 6920.887 | G169: 30.043 | H169: 14798.788 | I169: 9801.313 | J169: 4981.567 | K169: 15.908 | L169: 14798.788 | O169: Los Angeles Basin (CA) | P169: 7480567 | Q169: 1504425 | R169: 7889134 | S169: 40719 | U169: 16914845 | W169: Los Angeles Basin (CA) | X169: 91091 | Y169: 16823754 | AA169: 16914845
C170: Big Horn Basin (WY) | D170: 2127.439 | E170: 615.98 | F170: 8721.557 | G170: 34.86 | H170: 11499.836 | I170: 99.872 | J170: 11399.964 | K170: 0 | L170: 11499.836 | O170: Green River Basin (WY) | P170: 7121296 | Q170: 726562 | R170: 6920887 | S170: 30043 | U170: 14798788 | W170: Green River Basin (WY) | X170: 9801313 | Y170: 4981567 | Z170: 15908 | AA170: 14798788
C171: Wind River Basin (WY) | D171: 1073.761 | E171: 164.408 | F171: 8209.915 | G171: 17.082 | H171: 9465.166 | I171: 499.081 | J171: 8957.229 | K171: 8.856 | L171: 9465.166 | O171: Big Horn Basin (WY) | P171: 2127439 | Q171: 615980 | R171: 8721557 | S171: 34081 | T171: 779 | U171: 11499836 | W171: Big Horn Basin (WY) | X171: 99872 | Y171: 11399964 | AA171: 11499836
C172: Ventura Basin (CA) | D172: 3902.869 | E172: 303.903 | F172: 4487.813 | G172: 59.936 | H172: 8754.521 | I172: 0 | J172: 8754.521 | K172: 0 | L172: 8754.521 | O172: Wind River Basin (WY) | P172: 1073761 | Q172: 164408 | R172: 8209915 | S172: 17082 | U172: 9465166 | W172: Wind River Basin (WY) | X172: 499081 | Y172: 8957229 | Z172: 8856 | AA172: 9465166
C173: Coastal Basins (CA) | D173: 3550.539 | E173: 1727.371 | F173: 3198.312 | G173: 0.738 | H173: 8476.96 | I173: 0 | J173: 8476.96 | K173: 0 | L173: 8476.96 | O173: Ventura Basin (CA) | P173: 3902869 | Q173: 303903 | R173: 4487813 | S173: 59936 | U173: 8754521 | W173: Ventura Basin (CA) | Y173: 8754521 | AA173: 8754521
C174: Piceance Basin (CO) | D174: 3265.824 | E174: 151.337 | F174: 3488.192 | G174: 0.104 | H174: 6905.457 | I174: 2603.814 | J174: 4298.985 | K174: 2.658 | L174: 6905.457 | O174: Coastal Basins (CA) | P174: 3550539 | Q174: 1727371 | R174: 3198312 | S174: 738 | U174: 8476960 | W174: Coastal Basins (CA) | Y174: 8476960 | AA174: 8476960
C175: San Juan Basin (NM) | D175: 144.416 | E175: 4148.213 | F175: 2163.205 | G175: 0.275 | H175: 6456.109 | I175: 1642.777 | J175: 4810.926 | K175: 2.406 | L175: 6456.109 | O175: Piceance Basin (CO) | P175: 3265824 | Q175: 151337 | R175: 3488192 | S175: 104 | U175: 6905457 | W175: Piceance Basin (CO) | X175: 2603814 | Y175: 4298985 | Z175: 2658 | AA175: 6905457
C176: Paradox Basin (UT) | D176: 103.63 | E176: 1861.061 | F176: 4101.244 | G176: 5.783 | H176: 6071.718 | I176: 62.568 | J176: 6007.945 | K176: 1.205 | L176: 6071.718 | O176: San Juan Basin (NM) | P176: 144416 | Q176: 4148213 | R176: 2163205 | S176: 275 | U176: 6456109 | W176: San Juan Basin (NM) | X176: 1642777 | Y176: 4810926 | Z176: 2406 | AA176: 6456109
C177: Santa Maria Basin (CA) | D177: 1757.706 | E177: 200.053 | F177: 2427.033 | G177: 0 | H177: 4384.792 | I177: 2.476 | J177: 4382.316 | K177: 0 | L177: 4384.792 | O177: Paradox Basin (UT) | P177: 103630 | Q177: 1861061 | R177: 4101244 | S177: 5783 | U177: 6071718 | W177: Paradox Basin (UT) | X177: 62568 | Y177: 6007945 | Z177: 1205 | AA177: 6071718
C178: Denver Basin (WY) | D178: 2.02 | E178: 3455.651 | F178: 347.356 | G178: 0 | H178: 3805.027 | I178: 0 | J178: 3805.027 | K178: 0 | L178: 3805.027 | O178: Santa Maria Basin (CA) | P178: 1757706 | Q178: 200053 | R178: 2427033 | U178: 4384792 | W178: Santa Maria Basin (CA) | X178: 2476 | Y178: 4382316 | AA178: 4384792
C179: Williston Basin (SD) | D179: 0 | E179: 1670.924 | F179: 105.747 | G179: 0 | H179: 1776.671 | I179: 0.901 | J179: 1775.77 | K179: 0 | L179: 1776.671 | O179: Denver Basin (WY) | P179: 2020 | Q179: 3455651 | R179: 347356 | U179: 3805027 | W179: Denver Basin (WY) | Y179: 3805027 | AA179: 3805027
C180: Overthrust&Wasatch Uplift (UT) | D180: 1584.694 | E180: 0 | F180: 24.898 | G180: 0 | H180: 1609.592 | I180: 0 | J180: 1609.592 | K180: 0 | L180: 1609.592 | O180: Williston Basin (SD) | Q180: 1670924 | R180: 105747 | U180: 1776671 | W180: Williston Basin (SD) | X180: 901 | Y180: 1775770 | AA180: 1776671
C181: Las Animas Arch (CO) | D181: 0 | E181: 1.67 | F181: 1557.336 | G181: 0 | H181: 1559.006 | I181: 22.159 | J181: 1536.847 | K181: 0 | L181: 1559.006 | O181: Overthrust&Wasatch Uplift (UT) | P181: 1584694 | R181: 24898 | U181: 1609592 | W181: Overthrust&Wasatch Uplift (UT) | Y181: 1609592 | AA181: 1609592
C182: AK Cook Inlet Basin (AK) | D182: 1333.168 | E182: 6.973 | F182: 91.302 | G182: 0 | H182: 1431.443 | I182: 6.025 | J182: 1425.418 | K182: 0 | L182: 1431.443 | O182: Las Animas Arch (CO) | Q182: 1670 | R182: 1557336 | U182: 1559006 | W182: Las Animas Arch (CO) | X182: 22159 | Y182: 1536847 | AA182: 1559006
C183: Sweetgrass Arch (MT) | D183: 4.504 | E183: 14.136 | F183: 967.743 | G183: 1.836 | H183: 988.219 | I183: 11.5 | J183: 976.719 | K183: 0 | L183: 988.219 | O183: AK Cook Inlet Basin (AK) | P183: 1333168 | Q183: 6973 | R183: 91302 | S183: 0 | U183: 1431443 | W183: AK Cook Inlet Basin (AK) | X183: 6025 | Y183: 1425418 | AA183: 1431443
C184: Central Montana Uplift (MT) | D184: 11.134 | E184: 272.539 | F184: 512.084 | G184: 0 | H184: 795.757 | I184: 6.582 | J184: 789.175 | K184: 0 | L184: 795.757 | O184: Sweetgrass Arch (MT) | P184: 4504 | Q184: 14136 | R184: 967743 | S184: 1836 | U184: 988219 | W184: Sweetgrass Arch (MT) | X184: 11500 | Y184: 976719 | AA184: 988219
C185: Powder River Basin (MT) | D185: 23.193 | E185: 0 | F185: 759.215 | G185: 0 | H185: 782.408 | I185: 0 | J185: 782.408 | K185: 0 | L185: 782.408 | O185: Central Montana Uplift (MT) | P185: 11134 | Q185: 272539 | R185: 512084 | S185: 0 | U185: 795757 | W185: Central Montana Uplift (MT) | X185: 6582 | Y185: 789175 | AA185: 795757
C186: Green River Basin (CO) | D186: 70.532 | E186: 122.184 | F186: 271.108 | G186: 0 | H186: 463.824 | I186: 115.372 | J186: 348.452 | K186: 0 | L186: 463.824 | O186: Powder River Basin (MT) | P186: 23193 | Q186: 0 | R186: 759215 | U186: 782408 | W186: Powder River Basin (MT) | X186: 0 | Y186: 782408 | Z186: 0 | AA186: 782408
C187: Big Horn Basin (MT) | D187: 105.481 | E187: 8.73 | F187: 262.235 | G187: 0 | H187: 376.446 | I187: 0.171 | J187: 376.275 | K187: 0 | L187: 376.446 | O187: Green River Basin (CO) | P187: 70532 | Q187: 122184 | R187: 271108 | S187: 0 | U187: 463824 | W187: Green River Basin (CO) | X187: 115372 | Y187: 348452 | Z187: 0 | AA187: 463824
C188: Great Basin Province (NV) | D188: 8.721 | E188: 5.437 | F188: 302.297 | G188: 0 | H188: 316.455 | I188: 0 | J188: 316.455 | K188: 0 | L188: 316.455 | O188: Big Horn Basin (MT) | P188: 105481 | Q188: 8730 | R188: 262235 | S188: 0 | U188: 376446 | W188: Big Horn Basin (MT) | X188: 171 | Y188: 376275 | AA188: 376446
C189: North Park Basin (CO) | D189: 3.279 | E189: 269.85 | F189: 42.518 | G189: 0 | H189: 315.647 | I189: 2.368 | J189: 313.279 | K189: 0 | L189: 315.647 | O189: Great Basin Province (NV) | P189: 8721 | Q189: 5437 | R189: 302297 | U189: 316455 | W189: Great Basin Province (NV) | Y189: 316455 | AA189: 316455
C190: Central Western Overthrust (UT) | D190: 36.988 | E190: 7.891 | F190: 123.676 | G190: 49.633 | H190: 218.188 | I190: 23.382 | J190: 194.806 | K190: 0 | L190: 218.188 | O190: North Park Basin (CO) | P190: 3279 | Q190: 269850 | R190: 42518 | U190: 315647 | W190: North Park Basin (CO) | X190: 2368 | Y190: 313279 | AA190: 315647
C191: Paradox Basin (CO) | D191: 42.6 | E191: 0 | F191: 88.758 | G191: 0 | H191: 131.358 | I191: 20.766 | J191: 110.592 | K191: 0 | L191: 131.358 | O191: Central Western Overthrust (UT) | P191: 36988 | Q191: 7891 | R191: 123676 | S191: 49633 | U191: 218188 | W191: Central Western Overthrust (UT) | X191: 23382 | Y191: 194806 | AA191: 218188
C192: Black Mesa Basin (AZ) | D192: 0 | E192: 0 | F192: 112.478 | G192: 0 | H192: 112.478 | I192: 1.718 | J192: 110.76 | K192: 0 | L192: 112.478 | O192: Paradox Basin (CO) | P192: 42600 | R192: 88758 | U192: 131358 | W192: Paradox Basin (CO) | X192: 20766 | Y192: 110592 | AA192: 131358
C193: Anadarko Basin (CO) | D193: 0 | E193: 0 | F193: 57.208 | G193: 0 | H193: 57.208 | I193: 3.692 | J193: 53.516 | K193: 0 | L193: 57.208 | O193: Black Mesa Basin (AZ) | R193: 112478 | U193: 112478 | W193: Black Mesa Basin (AZ) | X193: 1718 | Y193: 110760 | AA193: 112478
C194: Northern Coast Range Prov (CA) | D194: 24.139 | E194: 0 | F194: 20.683 | G194: 0 | H194: 44.822 | I194: 0 | J194: 44.822 | K194: 0 | L194: 44.822 | O194: Anadarko Basin (CO) | R194: 57208 | U194: 57208 | W194: Anadarko Basin (CO) | X194: 3692 | Y194: 53516 | AA194: 57208
C195: San Juan Basin (CO) | D195: 0.583 | E195: 0 | F195: 31.697 | G195: 0 | H195: 32.28 | I195: 6.655 | J195: 25.621 | K195: 0.004 | L195: 32.28 | O195: Northern Coast Range Prov (CA) | P195: 24139 | R195: 20683 | U195: 44822 | W195: Northern Coast Range Prov (CA) | Y195: 44822 | AA195: 44822
C196: Sacramento Basin (CA) | D196: 15.474 | E196: 0.045 | F196: 8.993 | G196: 0 | H196: 24.512 | I196: 24.512 | J196: 0 | K196: 0 | L196: 24.512 | O196: San Juan Basin (CO) | P196: 583 | Q196: 0 | R196: 31697 | S196: 0 | U196: 32280 | W196: San Juan Basin (CO) | X196: 6655 | Y196: 25621 | Z196: 4 | AA196: 32280
C197: Powder River Basin (SD) | D197: 0 | E197: 0 | F197: 21.41 | G197: 0 | H197: 21.41 | I197: 4.863 | J197: 16.547 | K197: 0 | L197: 21.41 | O197: Sacramento Basin (CA) | P197: 15474 | Q197: 45 | R197: 8993 | U197: 24512 | W197: Sacramento Basin (CA) | X197: 24512 | AA197: 24512
C198: Montana Folded Belt (MT) | D198: 0 | E198: 0 | F198: 19.868 | G198: 0 | H198: 19.868 | I198: 0 | J198: 19.868 | K198: 0 | L198: 19.868 | O198: Powder River Basin (SD) | R198: 21410 | U198: 21410 | W198: Powder River Basin (SD) | X198: 4863 | Y198: 16547 | AA198: 21410
C199: Mojave Basin (CA) | D199: 0.53 | E199: 0 | F199: 11.125 | G199: 0 | H199: 11.655 | I199: 0 | J199: 11.655 | K199: 0 | L199: 11.655 | O199: Montana Folded Belt (MT) | R199: 19868 | U199: 19868 | W199: Montana Folded Belt (MT) | Y199: 19868 | AA199: 19868
C200: Las Vegas-Raton Basin (CO) | D200: 0 | E200: 0 | F200: 0.848 | G200: 0 | H200: 0.848 | I200: 0.848 | J200: 0 | K200: 0 | L200: 0.848 | O200: Mojave Basin (CA) | P200: 530 | R200: 11125 | U200: 11655 | W200: Mojave Basin (CA) | Y200: 11655 | AA200: 11655
C201: Santa Cruz Basin (CA) | D201: 0 | E201: 0 | F201: 0.621 | G201: 0 | H201: 0.621 | I201: 0 | J201: 0.621 | K201: 0 | L201: 0.621 | O201: Las Vegas-Raton Basin (CO) | P201: 0 | Q201: 0 | R201: 848 | S201: 0 | U201: 848 | W201: Las Vegas-Raton Basin (CO) | X201: 848 | Z201: 0 | AA201: 848
C202: Orogrande Basin (NM) | D202: 0 | E202: 0 | F202: 0 | G202: 0 | H202: 0 | I202: 0 | J202: 0 | K202: 0 | L202: 0 | O202: Santa Cruz Basin (CA) | R202: 621 | U202: 621 | W202: Santa Cruz Basin (CA) | Y202: 621 | AA202: 621
C203: Las Vegas-Raton Basin (NM) | D203: 0 | E203: 0 | F203: 0 | G203: 0 | H203: 0 | I203: 0 | J203: 0 | K203: 0 | L203: 0 | O203: Orogrande Basin (NM) | R203: 0 | U203: 0 | W203: Orogrande Basin (NM) | X203: 0 | Y203: 0 | AA203: 0
C204: Snake River Basin (ID) | D204: 0 | E204: 0 | F204: 0 | G204: 0 | H204: 0 | I204: 0 | J204: 0 | K204: 0 | L204: 0 | O204: Las Vegas-Raton Basin (NM) | P204: 0 | Q204: 0 | R204: 0 | U204: 0 | W204: Las Vegas-Raton Basin (NM) | X204: 0 | Z204: 0 | AA204: 0
C205: Sierra Nevada Province (CA) | D205: 0 | E205: 0 | F205: 0 | G205: 0 | H205: 0 | I205: 0 | J205: 0 | K205: 0 | L205: 0 | O205: Snake River Basin (ID) | R205: 0 | U205: 0 | W205: Snake River Basin (ID) | X205: 0 | AA205: 0
... 5 more rows

Sheet ForEIfile_bystate (hidden)
A1: counted_spud | B1: Y | D1: DirectionalDrillFlag | E1: (All) | G1: DirectionalDrillFlag | H1: (All)
A2: SpudYear | B2: 2014 | D2: Final Well Type | E2: (Multiple Items) | G2: Final Well Type | H2: (Multiple Items)
A3: directional_indicator | B3: (All) | D3: BASIN (State) | E3: (Multiple Items) | G3: BASIN (State) | H3: (Multiple Items)
A4: Basin (State) | B4: (Multiple Items)
D5: Row Labels | E5: Sum of Final Well Count | G5: Row Labels | H5: Sum of SumOfOil bbl/year | I5: Sum of SumOfGas mcf/year
A6: Row Labels | B6: Sum of CountOfAPI_number | D6: AK | E6: 2079 | G6: AK | H6: 167908263 | I6: 3157489902
A7: AK | B7: 115 | D7: AZ | E7: 64 | G7: AZ | H7: 112478 | I7: 211304
A8: CA | B8: 3466 | D8: CA | E8: 54903 | G8: CA | H8: 190516463 | I8: 219472420
A9: CO | B9: 2017 | D9: CO | E9: 47756 | G9: CO | H9: 95346380 | I9: 1641548464
A10: ID | B10: 3 | D10: ID | E10: 1 | G10: ID | H10: 0 | I10: 13385
A11: MT | B11: 174 | D11: MT | E11: 10515 | G11: MT | H11: 29895656 | I11: 66125876
A12: ND | B12: 2623 | D12: ND | E12: 12706 | G12: ND | H12: 394644824 | I12: 463726700
A13: NM | B13: 1358 | D13: NM | E13: 51140 | G13: NM | H13: 125105753 | I13: 1244232278
A14: NV | B14: 2 | D14: NV | E14: 73 | G14: NV | H14: 316455 | I14: 3172
A15: SD | B15: 7 | D15: OR | E15: 16 | G15: OR | H15: 0 | I15: 1142011
A16: UT | B16: 839 | D16: SD | E16: 244 | G16: SD | H16: 1798081 | I16: 15388339
A17: WY | B17: 1044 | D17: UT | E17: 13021 | G17: UT | H17: 40910716 | I17: 450027698
A18: Grand Total | B18: 11648 | D18: WY | E18: 35615 | G18: WY | H18: 76152350 | I18: 1998083871
D19: Grand Total | E19: 228133 | G19: Grand Total | H19: 1122707419 | I19: 9257465420

Sheet ForEIfile_bybasin (hidden)
A1: Spuds
A2: counted_spud | B2: Y
A3: SpudYear | B3: 2014 | D3: DirectionalDrillFlag | E3: (All) | G3: DirectionalDrillFlag | H3: (All)
A4: directional_indicator | B4: (All) | D4: Final Well Type | E4: (Multiple Items) | G4: Final Well Type | H4: (Multiple Items)
A6: Row Labels | B6: Sum of CountOfAPI_number | D6: Row Labels | E6: Sum of Final Well Count | G6: Row Labels | H6: Sum of SumOfOil bbl/year | I6: Sum of SumOfGas mcf/year
A7: San Joaquin Basin (CA) | B7: 3218 | D7: San Joaquin Basin (CA) | E7: 46317 | G7: Arctic Coastal Plains Province (AK) | H7: 166476820 | I7: 3072583801
A8: Williston Basin (ND) | B8: 2623 | D8: Permian Basin (NM) | E8: 28615 | G8: Green River Basin (WY) | H8: 14798788 | I8: 1501040245
A9: Denver Basin (CO) | B9: 1568 | D9: Denver Basin (CO) | E9: 26949 | G9: Piceance Basin (CO) | H9: 6905457 | I9: 735376519
A10: Permian Basin (NM) | B10: 1178 | D10: San Juan Basin (NM) | E10: 21687 | G10: San Juan Basin (NM) | H10: 6456109 | I10: 712585418
A11: Uinta Basin (UT) | B11: 826 | D11: Powder River Basin (WY) | E11: 15408 | G11: Permian Basin (NM) | H11: 118649644 | I11: 507822263
A12: Green River Basin (WY) | B12: 464 | D12: Green River Basin (WY) | E12: 14029 | G12: Williston Basin (ND) | H12: 394644824 | I12: 463726700
A13: Powder River Basin (WY) | B13: 415 | D13: Piceance Basin (CO) | E13: 13486 | G13: Denver Basin (CO) | H13: 85880752 | I13: 435695699
A14: Piceance Basin (CO) | B14: 395 | D14: Williston Basin (ND) | E14: 12706 | G14: Uinta Basin (UT) | H14: 33011218 | I14: 421926357
A15: San Juan Basin (NM) | B15: 146 | D15: Uinta Basin (UT) | E15: 11689 | G15: San Juan Basin (CO) | H15: 32280 | I15: 349757707
A16: Williston Basin (MT) | B16: 128 | D16: Williston Basin (MT) | E16: 5114 | G16: Powder River Basin (WY) | H16: 36583533 | I16: 320699291
A17: Los Angeles Basin (CA) | B17: 113 | D17: Sweetgrass Arch (MT) | E17: 3981 | G17: San Joaquin Basin (CA) | H17: 151903735 | I17: 161585168
A18: Denver Basin (WY) | B18: 92 | D18: Los Angeles Basin (CA) | E18: 3633 | G18: Wind River Basin (WY) | H18: 9465166 | I18: 160228056
A19: Coastal Basins (CA) | B19: 89 | D19: San Juan Basin (CO) | E19: 3190 | G19: Las Vegas-Raton Basin (CO) | H19: 848 | I19: 91235766
A20: Arctic Coastal Plains Province (AK) | B20: 89 | D20: Wind River Basin (WY) | E20: 3083 | G20: AK Cook Inlet Basin (AK) | H20: 1431443 | I20: 84906101
A21: Wind River Basin (WY) | B21: 42 | D21: Big Horn Basin (WY) | E21: 2845 | G21: Williston Basin (MT) | H21: 26932958 | I21: 41873766
A22: Sierra Grande Uplift (NM) | B22: 34 | D22: Las Vegas-Raton Basin (CO) | E22: 2777 | G22: Sacramento Basin (CA) | H22: 24512 | I22: 30704721
A23: Big Horn Basin (WY) | B23: 31 | D23: Arctic Coastal Plains Province (AK) | E23: 1886 | G23: Paradox Basin (UT) | H23: 6071718 | I23: 24493930
A24: AK Cook Inlet Basin (AK) | B24: 26 | D24: Ventura Basin (CA) | E24: 1710 | G24: Las Vegas-Raton Basin (NM) | H24: 0 | I24: 23787208
A25: Ventura Basin (CA) | B25: 26 | D25: Paradox Basin (UT) | E25: 1272 | G25: Green River Basin (CO) | H25: 463824 | I25: 16672552
A26: San Juan Basin (CO) | B26: 23 | D26: Santa Maria Basin (CA) | E26: 1168 | G26: Williston Basin (SD) | H26: 1776671 | I26: 15387866
A27: Sweetgrass Arch (MT) | B27: 22 | D27: Sacramento Basin (CA) | E27: 1029 | G27: Big Horn Basin (WY) | H27: 11499836 | I27: 13498003
A28: Powder River Basin (MT) | B28: 17 | D28: Central Montana Uplift (MT) | E28: 1002 | G28: Los Angeles Basin (CA) | H28: 16914845 | I28: 13046916
A29: Santa Maria Basin (CA) | B29: 15 | D29: Coastal Basins (CA) | E29: 965 | G29: Sweetgrass Arch (MT) | H29: 988219 | I29: 10150450
A30: Paradox Basin (UT) | B30: 12 | D30: Las Vegas-Raton Basin (NM) | E30: 835 | G30: Ventura Basin (CA) | H30: 8754521 | I30: 8452879
A31: Las Animas Arch (CO) | B31: 10 | D31: Green River Basin (CO) | E31: 495 | G31: Powder River Basin (MT) | H31: 782408 | I31: 7696378
A32: Paradox Basin (CO) | B32: 9 | D32: Las Animas Arch (CO) | E32: 461 | G32: Las Animas Arch (CO) | H32: 1559006 | I32: 6031358
A33: Williston Basin (SD) | B33: 7 | D33: Powder River Basin (MT) | E33: 288 | G33: Paradox Basin (CO) | H33: 131358 | I33: 5246639
A34: Green River Basin (CO) | B34: 5 | D34: Denver Basin (WY) | E34: 250 | G34: Central Montana Uplift (MT) | H34: 795757 | I34: 5237874
A35: Sacramento Basin (CA) | B35: 5 | D35: Williston Basin (SD) | E35: 230 | G35: Central Western Overthrust (UT) | H35: 218188 | I35: 3607411
A36: Central Montana Uplift (MT) | B36: 5 | D36: AK Cook Inlet Basin (AK) | E36: 193 | G36: Santa Maria Basin (CA) | H36: 4384792 | I36: 3273140
A37: North Park Basin (CO) | B37: 4 | D37: Paradox Basin (CO) | E37: 159 | G37: Denver Basin (WY) | H37: 3805027 | I37: 2618276
A38: Snake River Basin (ID) | B38: 3 | D38: Anadarko Basin (CO) | E38: 137 | G38: Coastal Basins (CA) | H38: 8476960 | I38: 1845249
A39: Las Vegas-Raton Basin (CO) | B39: 3 | D39: Big Horn Basin (MT) | E39: 103 | G39: Anadarko Basin (CO) | H39: 57208 | I39: 1264918
A40: Montana Folded Belt (MT) | B40: 2 | D40: North Park Basin (CO) | E40: 102 | G40: Big Horn Basin (MT) | H40: 376446 | I40: 1167188
A41: Great Basin Province (NV) | B41: 2 | D41: Great Basin Province (NV) | E41: 73 | G41: Western Columbia Basin (OR) | H41: 0 | I41: 1142011
A42: Overthrust&Wasatch Uplift (UT) | B42: 1 | D42: Black Mesa Basin (AZ) | E42: 64 | G42: Eel River Basin (CA) | H42: 0 | I42: 532057
A43: Grand Total | B43: 11648 | D43: Central Western Overthrust (UT) | E43: 37 | G43: North Park Basin (CO) | H43: 315647 | I43: 267306
D44: Mojave Basin (CA) | E44: 27 | G44: Black Mesa Basin (AZ) | H44: 112478 | I44: 211304
D45: Montana Folded Belt (MT) | E45: 27 | G45: Northern Coast Range Prov (CA) | H45: 44822 | I45: 30712
D46: Eel River Basin (CA) | E46: 24 | G46: Sierra Grande Uplift (NM) | H46: 0 | I46: 22258
D47: Overthrust&Wasatch Uplift (UT) | E47: 23 | G47: Orogrande Basin (NM) | H47: 0 | I47: 15131
D48: Northern Coast Range Prov (CA) | E48: 19 | G48: Snake River Basin (ID) | H48: 0 | I48: 13385
D49: Western Columbia Basin (OR) | E49: 16 | G49: Great Basin Province (NV) | H49: 316455 | I49: 3172
D50: Powder River Basin (SD) | E50: 14 | G50: Sierra Nevada Province (CA) | H50: 0 | I50: 735
D51: Santa Cruz Basin (CA) | E51: 10 | G51: Mojave Basin (CA) | H51: 11655 | I51: 500
D52: Orogrande Basin (NM) | E52: 2 | G52: Powder River Basin (SD) | H52: 21410 | I52: 473
D53: Sierra Nevada Province (CA) | E53: 1 | G53: Santa Cruz Basin (CA) | H53: 621 | I53: 343
D54: Snake River Basin (ID) | E54: 1 | G54: Montana Folded Belt (MT) | H54: 19868 | I54: 220
D55: Sierra Grande Uplift (NM) | E55: 1 | G55: Overthrust&Wasatch Uplift (UT) | H55: 1609592 | I55: 0
D56: Grand Total | E56: 228133 | G56: Grand Total | H56: 1122707419 | I56: 9257465420

Sheet SelectableSummaryState
A1: 2014 O&G Activity Summary for a State
A2: *Macros must be enabled to get O&G activity estimates for a chosen state
A3: State - level | C3: <==choose from drop-down menu
A5: 2014 Summary Table
A6: Parameter | B6: Directional | C6: Horizontal | D6: Vertical | E6: Not Available | F6: Totals
A7: Spud Count | B7: =B16 -> 420 | C7: =C16 -> 442 | D7: =D16 -> 182 | E7: 0 | F7: =E16 -> 1044
A8: Well Count | B8: =SUM(B25:B26) -> 5866 | C8: =SUM(C25:C26) -> 1180 | D8: =SUM(D25:D26) -> 15893 | E8: =SUM(E25:E26) -> 28 | F8: =SUM(F25:F26) -> 22967
A9: Oil Production (MBbl/yr) | B9: =SUM(B29:B30) -> 9922.193 | C9: =SUM(C29:C30) -> 30665.293 | D9: =SUM(D29:D30) -> 26013.308 | E9: =SUM(E29:E30) -> 66.054 | F9: =SUM(F29:F30) -> 66666.848 | O9: State | P9: WY | V9: State | W9: WY
A10: Gas Production (MMCF/yr) | B10: =SUM(B33:B34) -> 715059.519 | C10: =SUM(C33:C34) -> 134753.293 | D10: =SUM(D33:D34) -> 730987.532 | E10: =SUM(E33:E34) -> 436.78 | F10: =SUM(F33:F34) -> 1581237.124 | O10: Basin | P10: (Multiple Items) | V10: Basin | W10: (Multiple Items)
O11: counted_spud | P11: Y | V11: recompletion | W11: Y
O12: SpudYear | P12: 2014 | V12: SpudYear | W12: 2014
A13: Spuds Data File Summary - BY SPUD TYPE | B13: D | C13: H | D13: V
B14: 2014 Spud Count | P14: Column Labels | W14: Column Labels
A15: Parameter | B15: Directional | C15: Horizontal | D15: Vertical | E15: Totals | O15: Values | P15: D | Q15: H | R15: V | W15: D | X15: H | Y15: V | Z15: Grand Total
A16: Count | B16: =IF(ISNA(HLOOKUP(B$13,$P$15:$S$16,2,FALSE))=TRUE,0,HLOOKUP(B$13,$P$15:$S$16,2,FALSE)) -> 420 | C16: =IF(ISNA(HLOOKUP(C$13,$P$15:$S$16,2,FALSE))=TRUE,0,HLOOKUP(C$13,$P$15:$S$16,2,FALSE)) -> 442 | D16: =IF(ISNA(HLOOKUP(D$13,$P$15:$S$16,2,FALSE))=TRUE,0,HLOOKUP(D$13,$P$15:$S$16,2,FALSE)) -> 182 | E16: =SUM(B16:D16) -> 1044 | O16: Sum of CountOfAPI_number | P16: 420 | Q16: 442 | R16: 182 | V16: Sum of CountOfAPI_number | W16: 7 | X16: 3 | Y16: 81 | Z16: 91
A17: Average Depth (ft) | B17: =IF(ISNA(HLOOKUP(B$13,$P$15:$S$17,3,FALSE))=TRUE,0,HLOOKUP(B$13,$P$15:$S$17,3,FALSE)/B16) -> 12188.33095 | C17: =IF(ISNA(HLOOKUP(C$13,$P$15:$S$17,3,FALSE))=TRUE,0,HLOOKUP(C$13,$P$15:$S$17,3,FALSE)/C16) -> 15370.52941 | D17: =IF(ISNA(HLOOKUP(D$13,$P$15:$S$17,3,FALSE))=TRUE,0,HLOOKUP(D$13,$P$15:$S$17,3,FALSE)/D16) -> 6269.203297 | E17: =SUMPRODUCT(B16:D16,B17:D17)/E16 -> 12503.70498 | O17: Sum of SumOftotal_depth | P17: 5119099 | Q17: 6793774 | R17: 1140995 | X17: =X23 -> D | Y17: =Y23 -> H | Z17: V | AA17: 0
A18: Recompletions | B18: =IF(ISNA(HLOOKUP(B$13,$W$15:$Z$16,2,FALSE))=TRUE,0,HLOOKUP(B$13,$W$15:$Z$16,2,FALSE)) -> 7 | C18: =IF(ISNA(HLOOKUP(C$13,$W$15:$Z$16,2,FALSE))=TRUE,0,HLOOKUP(C$13,$W$15:$Z$16,2,FALSE)) -> 3 | D18: =IF(ISNA(HLOOKUP(D$13,$W$15:$Z$16,2,FALSE))=TRUE,0,HLOOKUP(D$13,$W$15:$Z$16,2,FALSE)) -> 81 | E18: =SUM(B18:D18) -> 91 | X18: 2 | Y18: 3 | Z18: 4 | AA18: 5
O19: State | P19: WY | W19: State | X19: WY
O20: BASIN | P20: (Multiple Items) | Q20: =Q23 -> D | R20: =R23 -> H | S20: V | T20: 0 | W20: BASIN | X20: (Multiple Items)
A21: Production File Summary - BY SPUD TYPE | B21: D | C21: H | D21: V | E21: 0 | Q21: 5 | R21: 6 | S21: 7 | T21: 8
B22: Spud Type | Q22: DirectionalDrillFlag | W22: Sum of Final Well Count | X22: Column Labels
A23: Well Type | B23: Directional | C23: Horizontal | D23: Vertical | E23: Not Available | F23: Totals | O23: Values | P23: Final Well Type | Q23: D | R23: H | S23: V | U23: Grand Total | W23: Row Labels | X23: D | Y23: H | Z23: V | AB23: Grand Total
A24: 2014 Well Count (no. of wells) | M24: =P24&N24 -> GasSum of SumOfOil bbl/year | N24: =IF(O24="",N23,O24) -> Sum of SumOfOil bbl/year | O24: Sum of SumOfOil bbl/year | P24: Gas | Q24: 6360187 | R24: 1134768 | S24: 3391633 | T24: 2489 | U24: 10889077 | W24: Gas | X24: 5260 | Y24: 95 | Z24: 7841 | AA24: 18 | AB24: 13214
A25: Gas | B25: =IF(ISNA(VLOOKUP($A25,$W$24:$AA$26,HLOOKUP(B$21,$X$17:$AA$18,2,FALSE),FALSE))=TRUE,0,VLOOKUP($A25,$W$24:$AA$26,HLOOKUP(B$21,$X$17:$AA$18,2,FALSE),FALSE)) -> 5260 | C25: =IF(ISNA(VLOOKUP($A25,$W$24:$AA$26,HLOOKUP(C$21,$X$17:$AA$18,2,FALSE),FALSE))=TRUE,0,VLOOKUP($A25,$W$24:$AA$26,HLOOKUP(C$21,$X$17:$AA$18,2,FALSE),FALSE)) -> 95 | D25: 7841 | E25: 18 | F25: =AB24 -> 13214 | L25: =SUM(F25:F27) -> 32530 | M25: OilSum of SumOfOil bbl/year | N25: Sum of SumOfOil bbl/year | P25: Oil | Q25: 3562006 | R25: 29530525 | S25: 22621675 | T25: 63565 | U25: 55777771 | W25: Oil | X25: 606 | Y25: 1085 | Z25: 8052 | AA25: 10 | AB25: 9753
A26: Oil | B26: =IF(ISNA(VLOOKUP($A26,$W$24:$AA$26,HLOOKUP(B$21,$X$17:$AA$18,2,FALSE),FALSE))=TRUE,0,VLOOKUP($A26,$W$24:$AA$26,HLOOKUP(B$21,$X$17:$AA$18,2,FALSE),FALSE)) -> 606 | C26: 1085 | D26: 8052 | E26: 10 | F26: =AB25 -> 9753 | M26: CBMSum of SumOfOil bbl/year | N26: Sum of SumOfOil bbl/year | P26: CBM | Q26: 6406 | S26: 13151 | U26: 19557 | W26: CBM | X26: 13 | Z26: 9550 | AB26: 9563
A27: CBM | B27: 13 | C27: 0 | D27: 9550 | E27: 0 | F27: =AB26 -> 9563 | M27: GasSum of SumOfGas mcf/year | N27: Sum of SumOfGas mcf/year | O27: Sum of SumOfGas mcf/year | P27: Gas | Q27: 698090290 | R27: 35516016 | S27: 658804266 | T27: 392702 | U27: 1392803274
A28: 2014 Oil and Condensate Production (MBbl/yr) | M28: OilSum of SumOfGas mcf/year | N28: Sum of SumOfGas mcf/year | P28: Oil | Q28: 16969229 | R28: 99237277 | S28: 72183266 | T28: 44078 | U28: 188433850
A29: Gas | B29: =IF(ISNA(VLOOKUP($A29&"Sum of SumOfOil bbl/year",$M$24:$U$32,HLOOKUP(B$21,$Q$20:$T$21,2,FALSE),FALSE))=TRUE,0,VLOOKUP($A29&"Sum of SumOfOil bbl/year",$M$24:$U$32,HLOOKUP(B$21,$Q$20:$T$21,2,FALSE),FALSE)/1000) -> 6360.187 | C29: 1134.768 | D29: 3391.633 | E29: 2.489 | F29: =SUM(B29:E29) -> 10889.077 | L29: =SUM(F29:F31) -> 66686.405 | M29: CBMSum of SumOfGas mcf/year | N29: Sum of SumOfGas mcf/year | P29: CBM | Q29: 935647 | S29: 255683044 | U29: 256618691
A30: Oil | B30: 3562.006 | C30: 29530.525 | D30: 22621.675 | E30: 63.565 | F30: =SUM(B30:E30) -> 55777.771 | M30: GasSum of SumOfWater bbl/year | N30: Sum of SumOfWater bbl/year | O30: Sum of SumOfWater bbl/year | P30: Gas | Q30: 23531898 | R30: 833446 | S30: 14419713 | T30: 6813 | U30: 38791870
A31: CBM | B31: 6.406 | C31: 0 | D31: 13.151 | E31: 0 | F31: 19.557 | M31: OilSum of SumOfWater bbl/year | N31: Sum of SumOfWater bbl/year | P31: Oil | Q31: 208053161 | R31: 72802454 | S31: 984497733 | T31: 3040732 | U31: 1268394080
A32: 2014 Gas Production (MMCF/yr) | M32: CBMSum of SumOfWater bbl/year | N32: Sum of SumOfWater bbl/year | P32: CBM | Q32: 115547 | S32: 302033259 | U32: 302148806
A33: Gas | B33: =IF(ISNA(VLOOKUP($A33&"Sum of SumOfGas mcf/year",$M$24:$U$32,HLOOKUP(B$21,$Q$20:$T$21,2,FALSE),FALSE))=TRUE,0,VLOOKUP($A33&"Sum of SumOfGas mcf/year",$M$24:$U$32,HLOOKUP(B$21,$Q$20:$T$21,2,FALSE),FALSE)/1000) -> 698090.29 | C33: 35516.016 | D33: 658804.266 | E33: 392.702 | F33: =SUM(B33:E33) -> 1392803.274 | L33: =SUM(F33:F35) -> 1837855.815
A34: Oil | B34: 16969.229 | C34: 99237.277 | D34: 72183.266 | E34: 44.078 | F34: =SUM(B34:E34) -> 188433.85
A35: CBM | B35: 935.647 | C35: 0 | D35: 255683.044 | E35: 0 | F35: 256618.691
A36: 2014 Water Production (MBbl/yr)
A37: Gas | B37: =IF(ISNA(VLOOKUP($A37&"Sum of SumOfWater bbl/year",$M$24:$U$32,HLOOKUP(B$21,$Q$20:$T$21,2,FALSE),FALSE))=TRUE,0,VLOOKUP($A37&"Sum of SumOfWater bbl/year",$M$24:$U$32,HLOOKUP(B$21,$Q$20:$T$21,2,FALSE),FALSE)/1000) -> 23531.898 | C37: 833.446 | D37: 14419.713 | E37: 6.813 | F37: =SUM(B37:E37) -> 38791.87 | L37: =SUM(F37:F39) -> 1609334.756
A38: Oil | B38: 208053.161 | C38: 72802.454 | D38: 984497.733 | E38: 3040.732 | F38: =SUM(B38:E38) -> 1268394.08
A39: CBM | B39: 115.547 | C39: 0 | D39: 302033.259 | E39: 0 | F39: 302148.806
A43: Production File Summary - BY COUNTY | G43: Production File Summary - BY PLAY NAME | H43: Note: "Play name" is a field that was recently added to the IHS database. Play name information is not comprehensive. | N43: State | O43: WY | Y43: State | Z43: WY | AF43: State | AG43: WY
A44: County | B44: 2014 O&G Activity Parameter | G44: PlayName (PlayType) | H44: 2014 O&G Activity Parameter | N44: BASIN | O44: (Multiple Items) | S44: State | T44: WY | Y44: BASIN | Z44: (Multiple Items) | AF44: BASIN | AG44: (Multiple Items)
B45: Well Count | C45: Oil and Condensate (MBbl/yr) | D45: Gas (MMCF/yr) | E45: Water (Mbbl/yr) | H45: Well Count | I45: Oil and Condensate (MBbl/yr) | J45: Gas (MMCF/yr) | K45: Water (Mbbl/yr) | S45: BASIN | T45: (Multiple Items)
A46: =PROPER(Z48) -> Albany | B46: =AH48 -> 34 | C46: =AA48/1000 -> 66.905 | D46: =AB48/1000 -> 5.208 | E46: =AC48/1000 -> 7276.872 | G46: =N48 -> BAXTER/HILLIARD SHALE (SHALE GAS (G)) | H46: =T48 -> 182 | I46: =O48/1000 -> 25.733 | J46: =P48/1000 -> 5247.799 | K46: =Q48/1000 -> 93.361 | O46: Values | AA46: Values | AF46: Sum of Final Well Count
A47: Big Horn | B47: 468 | C47: 1583.318 | D47: 1713.661 | E47: 176577.164 | G47: =N49 -> BLANK (unknown | H47: =T49 -> 452 | I47: =O49/1000 -> 120.601 | J47: 8815.321 | K47: 514.18 | N47: PlayName (PlayType) | O47: Sum of SumOfOil bbl/year | P47: Sum of SumOfGas mcf/year | Q47: Sum of SumOfWater bbl/year | S47: Row Labels | T47: Sum of Final Well Count | Y47: IHS_FIPS | Z47: County | AA47: Sum of SumOfOil bbl/year | AB47: Sum of SumOfGas mcf/year | AC47: Sum of SumOfWater bbl/year | AF47: IHS_FIPS | AG47: County | AH47: Total
A48: Campbell | B48: 6663 | C48: 18827.245 | D48: 101629.383 | E48: 211290.783 | G48: FORT UNION CBM (COALBED METHANE (C)) | H48: 9207 | I48: =O50/1000 -> 0.005 | J48: 245910.804 | K48: 230087.69 | N48: BAXTER/HILLIARD SHALE (SHALE GAS (G)) | O48: 25733 | P48: 5247799 | Q48: 93361 | S48: BAXTER/HILLIARD SHALE (SHALE GAS (G)) | T48: 182 | Y48: 49001 | Z48: ALBANY | AA48: 66905 | AB48: 5208 | AC48: 7276872 | AF48: 49001 | AG48: Albany | AH48: 34
A49: Carbon | B49: 2068 | C49: 1359.67 | D49: 103240.817 | E49: 95963.913 | G49: MOWRY SHALE (TIGHT OIL (L)) | H49: 51 | I49: =O51/1000 -> 258.165 | J49: 2536.68 | K49: 299.817 | N49: BLANK (unknown | O49: 120601 | P49: 8815321 | Q49: 514180 | S49: BLANK (unknown | T49: 452 | Y49: 49003 | Z49: BIG HORN | AA49: 1583318 | AB49: 1713661 | AC49: 176577164 | AF49: 49003 | AG49: Big Horn | AH49: 468
A50: Converse | B50: 1374 | C50: 12820.727 | D50: 36392.513 | E50: 11782.186 | G50: MOXA ARCH (TIGHT GAS (T)) | H50: 4823 | I50: =O52/1000 -> 4201.102 | J50: 252316.701 | K50: 74136.856 | N50: FORT UNION CBM (COALBED METHANE (C)) | O50: 5 | P50: 245910804 | Q50: 230087690 | S50: FORT UNION CBM (COALBED METHANE (C)) | T50: 9207 | Y50: 49005 | Z50: CAMPBELL | AA50: 18827245 | AB50: 101629383 | AC50: 211290783 | AF50: 49005 | AG50: Campbell | AH50: 6663
A51: Crook | B51: 592 | C51: 1350.765 | D51: 31.321 | E51: 32729.196 | G51: NIOBRARA - POWDER RIVER BASIN (TIGHT OIL (L)) | H51: 179 | I51: =O53/1000 -> 4016.764 | J51: 21323.324 | K51: 1694.069 | N51: MOWRY SHALE (TIGHT OIL (L)) | O51: 258165 | P51: 2536680 | Q51: 299817 | S51: MOWRY SHALE (TIGHT OIL (L)) | T51: 51 | Y51: 49007 | Z51: CARBON | AA51: 1359670 | AB51: 103240817 | AC51: 95963913 | AF51: 49007 | AG51: Carbon | AH51: 2068
A52: Goshen | B52: 7 | C52: 3.019 | D52: 17.579 | E52: 0.832 | G52: NIOBRARA - SAND WASH BASIN (TIGHT OIL (L)) | H52: 16 | I52: =O54/1000 -> 20.935 | J52: 117.287 | K52: 13.052 | N52: MOXA ARCH (TIGHT GAS (T)) | O52: 4201102 | P52: 252316701 | Q52: 74136856 | S52: MOXA ARCH (TIGHT GAS (T)) | T52: 4823 | Y52: 49009 | Z52: CONVERSE | AA52: 12820727 | AB52: 36392513 | AC52: 11782186 | AF52: 49009 | AG52: Converse | AH52: 1374
A53: Hot Sprs | B53: 710 | C53: 2503.869 | D53: 454.993 | E53: 239433.959 | G53: NIOBRARA OIL - DENVER BASIN (TIGHT OIL (L)) | H53: 97 | I53: =O55/1000 -> 996.825 | J53: 860.946 | K53: 847.769 | N53: NIOBRARA - POWDER RIVER BASIN (TIGHT OIL (L)) | O53: 4016764 | P53: 21323324 | Q53: 1694069 | S53: NIOBRARA - POWDER RIVER BASIN (TIGHT OIL (L)) | T53: 179 | Y53: 49011 | Z53: CROOK | AA53: 1350765 | AB53: 31321 | AC53: 32729196 | AF53: 49011 | AG53: Crook | AH53: 592
A54: Johnson | B54: 4082 | C54: 1732.833 | D54: 169065.353 | E54: 101025.9 | G54: PARKMAN/TURNER/SHANNON SAND HORIZONTAL (REJUVENATED HORIZONTAL (R)) | H54: 384 | I54: =O56/1000 -> 13877.373 | J54: 26222.855 | K54: 9197.864 | N54: NIOBRARA - SAND WASH BASIN (TIGHT OIL (L)) | O54: 20935 | P54: 117287 | Q54: 13052 | S54: NIOBRARA - SAND WASH BASIN (TIGHT OIL (L)) | T54: 16 | Y54: 49015 | Z54: GOSHEN | AA54: 3019 | AB54: 17579 | AC54: 832 | AF54: 49015 | AG54: Goshen | AH54: 7
A55: Laramie | B55: 241 | C55: 3801.816 | D55: 2599.771 | E55: 4129.692 | G55: PINEDALE/JONAH FIELDS (TIGHT GAS (T)) | H55: 4360 | I55: =O57/1000 -> 5623.522 | J55: 679244.697 | K55: 21880.421 | N55: NIOBRARA OIL - DENVER BASIN (TIGHT OIL (L)) | O55: 996825 | P55: 860946 | Q55: 847769 | S55: NIOBRARA OIL - DENVER BASIN (TIGHT OIL (L)) | T55: 97 | Y55: 49017 | Z55: HOT SPRS | AA55: 2503869 | AB55: 454993 | AC55: 239433959 | AF55: 49017 | AG55: Hot Springs | AH55: 710
A56: Lincoln | B56: 1398 | C56: 387.732 | D56: 52451.538 | E56: 656.88 | G56: UNK (unknown) | H56: 12781 | I56: =O58/1000 -> 37546.159 | J56: 595259.401 | K56: 1270579.995 | N56: PARKMAN/TURNER/SHANNON SAND HORIZONTAL (REJUVENATED HORIZONTAL (R)) | O56: 13877373 | P56: 26222855 | Q56: 9197864 | S56: PARKMAN/TURNER/SHANNON SAND HORIZONTAL (REJUVENATED HORIZONTAL (R)) | T56: 384 | Y56: 49019 | Z56: JOHNSON | AA56: 1732833 | AB56: 169065353 | AC56: 101025900 | AF56: 49019 | AG56: Johnson | AH56: 4082
A57: Niobrara | B57: 303 | C57: 1064.284 | D57: 750.852 | E57: 14482.054 | G57: 0 | H57: 0 | I57: =O59/1000 -> 0 | J57: 0 | K57: 0 | N57: PINEDALE/JONAH FIELDS (TIGHT GAS (T)) | O57: 5623522 | P57: 679244697 | Q57: 21880421 | S57: PINEDALE/JONAH FIELDS (TIGHT GAS (T)) | T57: 4360 | Y57: 49021 | Z57: LARAMIE | AA57: 3801816 | AB57: 2599771 | AC57: 4129692 | AF57: 49021 | AG57: Laramie | AH57: 241
A58: Park | B58: 1307 | C58: 6676.77 | D58: 9608.743 | E58: 581816.059 | G58: 0 | H58: 0 | I58: =O60/1000 -> 0 | J58: 0 | K58: 0 | N58: UNK (unknown) | O58: 37546159 | P58: 595259401 | Q58: 1270579995 | S58: UNK (unknown) | T58: 12781 | Y58: 49023 | Z58: LINCOLN | AA58: 387732 | AB58: 52451538 | AC58: 656880 | AF58: 49023 | AG58: Lincoln | AH58: 1398
A59: Platte | B59: 2 | C59: 0.192 | D59: 0.926 | E59: 0.495 | G59: 0 | H59: 0 | I59: =O61/1000 -> 0 | J59: 0 | K59: 0 | Y59: 49027 | Z59: NIOBRARA | AA59: 1064284 | AB59: 750852 | AC59: 14482054 | AF59: 49027 | AG59: Niobrara | AH59: 303
A60: Sheridan | B60: 1097 | C60: 31.781 | D60: 11116.701 | E60: 46155.609 | G60: 0 | H60: 0 | I60: =O62/1000 -> 0 | J60: 0 | K60: 0 | Y60: 49029 | Z60: PARK | AA60: 6676770 | AB60: 9608743 | AC60: 581816059 | AF60: 49029 | AG60: Park | AH60: 1307
A61: Sublette | B61: 6074 | C61: 6291.65 | D61: 997396.286 | E61: 26473.614 | G61: 0 | H61: 0 | I61: =O63/1000 -> 0 | J61: 0 | K61: 0 | Y61: 49031 | Z61: PLATTE | AA61: 192 | AB61: 926 | AC61: 495 | AF61: 49031 | AG61: Platte | AH61: 2
A62: Sweetwtr | B62: 4000 | C62: 5888.779 | D62: 251137.611 | E62: 40409.802 | G62: 0 | H62: 0 | I62: =O64/1000 -> 0 | J62: 0 | K62: 0 | Y62: 49033 | Z62: SHERIDAN | AA62: 31781 | AB62: 11116701 | AC62: 46155609 | AF62: 49033 | AG62: Sheridan | AH62: 1097
A63: Uinta | B63: 455 | C63: 804.052 | D63: 96808.785 | E63: 1693.168 | G63: 0 | H63: 0 | I63: =O65/1000 -> 0 | J63: 0 | K63: 0 | Y63: 49035 | Z63: SUBLETTE | AA63: 6291650 | AB63: 997396286 | AC63: 26473614 | AF63: 49035 | AG63: Sublette | AH63: 6074
A64: Washakie | B64: 360 | C64: 735.879 | D64: 1720.606 | E64: 11232.237 | G64: 0 | H64: 0 | I64: =O66/1000 -> 0 | J64: 0 | K64: 0 | Y64: 49037 | Z64: SWEETWTR | AA64: 5888779 | AB64: 251137611 | AC64: 40409802 | AF64: 49037 | AG64: Sweetwater | AH64: 4000
A65: Weston | B65: 1297 | C65: 755.898 | D65: 1713.168 | E65: 6214.659 | G65: 0 | H65: 0 | I65: =O67/1000 -> 0 | J65: 0 | K65: 0 | Y65: 49041 | Z65: UINTA | AA65: 804052 | AB65: 96808785 | AC65: 1693168 | AF65: 49041 | AG65: Uinta | AH65: 455
B66: 0 | C66: 0 | D66: 0 | E66: 0 | G66: 0 | H66: 0 | I66: =O68/1000 -> 0 | J66: 0 | K66: 0 | Y66: 49043 | Z66: WASHAKIE | AA66: 735879 | AB66: 1720606 | AC66: 11232237 | AF66: 49043 | AG66: Washakie | AH66: 360
B67: 0 | C67: 0 | D67: 0 | E67: 0 | G67: 0 | H67: 0 | I67: =O69/1000 -> 0 | J67: 0 | K67: 0 | Y67: 49045 | Z67: WESTON | AA67: 755898 | AB67: 1713168 | AC67: 6214659 | AF67: 49045 | AG67: Weston | AH67: 1297
B68: 0 | C68: 0 | D68: 0 | E68: 0 | G68: 0 | H68: 0 | I68: =O70/1000 -> 0 | J68: 0 | K68: 0
B69: 0 | C69: 0 | D69: 0 | E69: 0 | G69: 0 | H69: 0 | I69: =O71/1000 -> 0 | J69: 0 | K69: 0
B70: 0 | C70: 0 | D70: 0 | E70: 0 | G70: 0 | H70: 0 | I70: =O72/1000 -> 0 | J70: 0 | K70: 0
B71: 0 | C71: 0 | D71: 0 | E71: 0 | G71: 0 | H71: 0 | I71: =O73/1000 -> 0 | J71: 0 | K71: 0
B72: 0 | C72: 0 | D72: 0 | E72: 0 | G72: 0 | H72: 0 | I72: =O74/1000 -> 0 | J72: 0 | K72: 0
B73: 0 | C73: 0 | D73: 0 | E73: 0 | G73: 0 | H73: 0 | I73: =O75/1000 -> 0 | J73: 0 | K73: 0
B74: 0 | C74: 0 | D74: 0 | E74: 0 | G74: 0 | H74: 0 | I74: =O76/1000 -> 0 | J74: 0 | K74: 0
B75: 0 | C75: 0 | D75: 0 | E75: 0 | G75: 0 | H75: 0 | I75: =O77/1000 -> 0 | J75: 0 | K75: 0
B76: 0 | C76: 0 | D76: 0 | E76: 0 | G76: 0 | H76: 0 | I76: =O78/1000 -> 0 | J76: 0 | K76: 0
B77: 0 | C77: 0 | D77: 0 | E77: 0 | G77: 0 | H77: 0 | I77: =O79/1000 -> 0 | J77: 0 | K77: 0
A78: =PROPER(Z80) ->  | B78: =AH80 -> 0 | C78: =AA80/1000 -> 0 | D78: =AB80/1000 -> 0 | E78: =AC80/1000 -> 0 | G78: 0 | H78: 0 | I78: =O80/1000 -> 0 | J78: 0 | K78: 0
B79: 0 | C79: 0 | D79: 0 | E79: 0 | G79: 0 | H79: 0 | I79: =O81/1000 -> 0 | J79: 0 | K79: 0
B80: 0 | C80: 0 | D80: 0 | E80: 0 | G80: 0 | H80: 0 | I80: =O82/1000 -> 0 | J80: 0 | K80: 0
B81: 0 | C81: 0 | D81: 0 | E81: 0 | G81: 0 | H81: 0 | I81: =O83/1000 -> 0 | J81: 0 | K81: 0
B82: 0 | C82: 0 | D82: 0 | E82: 0 | G82: 0 | H82: 0 | I82: =O84/1000 -> 0 | J82: 0 | K82: 0
B83: 0 | C83: 0 | D83: 0 | E83: 0 | G83: 0 | H83: 0 | I83: =O85/1000 -> 0 | J83: 0 | K83: 0
B84: 0 | C84: 0 | D84: 0 | E84: 0 | G84: 0 | H84: 0 | I84: =O86/1000 -> 0 | J84: 0 | K84: 0
B85: 0 | C85: 0 | D85: 0 | E85: 0 | G85: 0 | H85: 0 | I85: =O87/1000 -> 0 | J85: 0 | K85: 0
B86: 0 | C86: 0 | D86: 0 | E86: 0 | G86: 0 | H86: 0 | I86: =O88/1000 -> 0 | J86: 0 | K86: 0
B87: 0 | C87: 0 | D87: 0 | E87: 0 | G87: 0 | H87: 0 | I87: =O89/1000 -> 0 | J87: 0 | K87: 0
B88: 0 | C88: 0 | D88: 0 | E88: 0 | G88: 0 | H88: 0 | I88: =O90/1000 -> 0 | J88: 0 | K88: 0
B89: 0 | C89: 0 | D89: 0 | E89: 0 | G89: 0 | H89: 0 | I89: =O91/1000 -> 0 | J89: 0 | K89: 0
B90: 0 | C90: 0 | D90: 0 | E90: 0 | G90: 0 | H90: 0 | I90: =O92/1000 -> 0 | J90: 0 | K90: 0
B91: 0 | C91: 0 | D91: 0 | E91: 0 | G91: 0 | H91: 0 | I91: =O93/1000 -> 0 | J91: 0 | K91: 0
B92: 0 | C92: 0 | D92: 0 | E92: 0 | G92: 0 | H92: 0 | I92: =O94/1000 -> 0 | J92: 0 | K92: 0
B93: 0 | C93: 0 | D93: 0 | E93: 0 | G93: 0 | H93: 0 | I93: =O95/1000 -> 0 | J93: 0 | K93: 0
B94: 0 | C94: 0 | D94: 0 | E94: 0 | G94: 0 | H94: 0 | I94: =O96/1000 -> 0 | J94: 0 | K94: 0
B95: 0 | C95: 0 | D95: 0 | E95: 0 | G95: 0 | H95: 0 | I95: =O97/1000 -> 0 | J95: 0 | K95: 0
B96: 0 | C96: 0 | D96: 0 | E96: 0 | G96: 0 | H96: 0 | I96: =O98/1000 -> 0 | J96: 0 | K96: 0
B97: 0 | C97: 0 | D97: 0 | E97: 0 | G97: 0 | H97: 0 | I97: =O99/1000 -> 0 | J97: 0 | K97: 0
B98: 0 | C98: 0 | D98: 0 | E98: 0 | G98: 0 | H98: 0 | I98: =O100/1000 -> 0 | J98: 0 | K98: 0
B99: 0 | C99: 0 | D99: 0 | E99: 0 | G99: 0 | H99: 0 | I99: =O101/1000 -> 0 | J99: 0 | K99: 0
B100: 0 | C100: 0 | D100: 0 | E100: 0 | G100: 0 | H100: 0 | I100: =O102/1000 -> 0 | J100: 0 | K100: 0
B101: 0 | C101: 0 | D101: 0 | E101: 0 | G101: 0 | H101: 0 | I101: =O103/1000 -> 0 | J101: 0 | K101: 0
B102: 0 | C102: 0 | D102: 0 | E102: 0 | G102: 0 | H102: 0 | I102: =O104/1000 -> 0 | J102: 0 | K102: 0
B103: 0 | C103: 0 | D103: 0 | E103: 0 | G103: 0 | H103: 0 | I103: =O105/1000 -> 0 | J103: 0 | K103: 0
B104: 0 | C104: 0 | D104: 0 | E104: 0 | G104: 0 | H104: 0 | I104: =O106/1000 -> 0 | J104: 0 | K104: 0
B105: 0 | C105: 0 | D105: 0 | E105: 0 | G105: 0 | H105: 0 | I105: =O107/1000 -> 0 | J105: 0 | K105: 0
B106: 0 | C106: 0 | D106: 0 | E106: 0 | G106: 0 | H106: 0 | I106: =O108/1000 -> 0 | J106: 0 | K106: 0
B107: 0 | C107: 0 | D107: 0 | E107: 0 | G107: 0 | H107: 0 | I107: =O109/1000 -> 0 | J107: 0 | K107: 0
B108: 0 | C108: 0 | D108: 0 | E108: 0 | G108: 0 | H108: 0 | I108: =O110/1000 -> 0 | J108: 0 | K108: 0
B109: 0 | C109: 0 | D109: 0 | E109: 0 | G109: 0 | H109: 0 | I109: =O111/1000 -> 0 | J109: 0 | K109: 0
A110: =PROPER(Z112) ->  | B110: =AH112 -> 0 | C110: =AA112/1000 -> 0 | D110: =AB112/1000 -> 0 | E110: =AC112/1000 -> 0 | G110: 0 | H110: 0 | I110: =O112/1000 -> 0 | J110: 0 | K110: 0
B111: 0 | C111: 0 | D111: 0 | E111: 0 | G111: =N113 -> 0 | H111: =T113 -> 0 | I111: =O113/1000 -> 0 | J111: 0 | K111: 0
B112: 0 | C112: 0 | D112: 0 | E112: 0 | G112: 0 | H112: 0 | I112: =O114/1000 -> 0 | J112: 0 | K112: 0
B113: 0 | C113: 0 | D113: 0 | E113: 0 | G113: 0 | H113: 0 | I113: =O115/1000 -> 0 | J113: 0 | K113: 0
B114: 0 | C114: 0 | D114: 0 | E114: 0 | G114: 0 | H114: 0 | I114: =O116/1000 -> 0 | J114: 0 | K114: 0
B115: 0 | C115: 0 | D115: 0 | E115: 0 | G115: 0 | H115: 0 | I115: =O117/1000 -> 0 | J115: 0 | K115: 0
B116: 0 | C116: 0 | D116: 0 | E116: 0 | G116: 0 | H116: 0 | I116: =O118/1000 -> 0 | J116: 0 | K116: 0
B117: 0 | C117: 0 | D117: 0 | E117: 0 | G117: 0 | H117: 0 | I117: =O119/1000 -> 0 | J117: 0 | K117: 0
B118: 0 | C118: 0 | D118: 0 | E118: 0 | G118: 0 | H118: 0 | I118: =O120/1000 -> 0 | J118: 0 | K118: 0
B119: 0 | C119: 0 | D119: 0 | E119: 0 | G119: 0 | H119: 0 | I119: =O121/1000 -> 0 | J119: 0 | K119: 0
B120: 0 | C120: 0 | D120: 0 | E120: 0 | G120: 0 | H120: 0 | I120: =O122/1000 -> 0 | J120: 0 | K120: 0
B121: 0 | C121: 0 | D121: 0 | E121: 0 | G121: 0 | H121: 0 | I121: =O123/1000 -> 0 | J121: 0 | K121: 0
B122: 0 | C122: 0 | D122: 0 | E122: 0 | G122: 0 | H122: 0 | I122: =O124/1000 -> 0 | J122: 0 | K122: 0
B123: 0 | C123: 0 | D123: 0 | E123: 0 | G123: 0 | H123: 0 | I123: =O125/1000 -> 0 | J123: 0 | K123: 0
B124: 0 | C124: 0 | D124: 0 | E124: 0 | G124: 0 | H124: 0 | I124: =O126/1000 -> 0 | J124: 0 | K124: 0
B125: 0 | C125: 0 | D125: 0 | E125: 0 | G125: 0 | H125: 0 | I125: =O127/1000 -> 0 | J125: 0 | K125: 0
B126: 0 | C126: 0 | D126: 0 | E126: 0 | G126: 0 | H126: 0 | I126: =O128/1000 -> 0 | J126: 0 | K126: 0
B127: 0 | C127: 0 | D127: 0 | E127: 0 | G127: 0 | H127: 0 | I127: =O129/1000 -> 0 | J127: 0 | K127: 0
B128: 0 | C128: 0 | D128: 0 | E128: 0 | G128: 0 | H128: 0 | I128: =O130/1000 -> 0 | J128: 0 | K128: 0
B129: 0 | C129: 0 | D129: 0 | E129: 0 | G129: 0 | H129: 0 | I129: =O131/1000 -> 0 | J129: 0 | K129: 0
B130: 0 | C130: 0 | D130: 0 | E130: 0 | G130: 0 | H130: 0 | I130: =O132/1000 -> 0 | J130: 0 | K130: 0
B131: 0 | C131: 0 | D131: 0 | E131: 0 | G131: 0 | H131: 0 | I131: =O133/1000 -> 0 | J131: 0 | K131: 0
B132: 0 | C132: 0 | D132: 0 | E132: 0 | G132: 0 | H132: 0 | I132: =O134/1000 -> 0 | J132: 0 | K132: 0
B133: 0 | C133: 0 | D133: 0 | E133: 0 | G133: 0 | H133: 0 | I133: =O135/1000 -> 0 | J133: 0 | K133: 0
B134: 0 | C134: 0 | D134: 0 | E134: 0 | G134: 0 | H134: 0 | I134: =O136/1000 -> 0 | J134: 0 | K134: 0
B135: 0 | C135: 0 | D135: 0 | E135: 0 | G135: 0 | H135: 0 | I135: =O137/1000 -> 0 | J135: 0 | K135: 0
B136: 0 | C136: 0 | D136: 0 | E136: 0 | G136: 0 | H136: 0 | I136: =O138/1000 -> 0 | J136: 0 | K136: 0
B137: 0 | C137: 0 | D137: 0 | E137: 0 | G137: 0 | H137: 0 | I137: =O139/1000 -> 0 | J137: 0 | K137: 0

Sheet SelectableSummaryBasin
A1: 2014 O&G Activity Summary for a Basin
A2: *Macros must be enabled to get O&G activity estimates for a chosen basin
A3: Basin | C3: <==choose from drop-down menu
A5: 2014 Summary Table
A6: Parameter | B6: Directional | C6: Horizontal | D6: Vertical | E6: Not Available | F6: Totals
A7: Spud Count | B7: =B16 -> 0 | C7: =C16 -> 2604 | D7: =D16 -> 19 | E7: 0 | F7: =E16 -> 2623
A8: Well Count | B8: =SUM(B25:B26) -> 71 | C8: =SUM(C25:C26) -> 10345 | D8: =SUM(D25:D26) -> 2282 | E8: =SUM(E25:E26) -> 8 | F8: =SUM(F25:F26) -> 12706
A9: Oil Production (MBbl/yr) | B9: =SUM(B29:B30) -> 657.417 | C9: =SUM(C29:C30) -> 386272.438 | D9: =SUM(D29:D30) -> 7634.869 | E9: =SUM(E29:E30) -> 80.1 | F9: =SUM(F29:F30) -> 394644.824 | O9: Basin (State) | P9: Williston Basin (ND) | V9: State | W9: (All)
A10: Gas Production (MMCF/yr) | B10: =SUM(B33:B34) -> 524.071 | C10: =SUM(C33:C34) -> 448630.815 | D10: =SUM(D33:D34) -> 14377.324 | E10: =SUM(E33:E34) -> 194.49 | F10: =SUM(F33:F34) -> 463726.7 | O10: State | P10: (All) | V10: Basin (State) | W10: Williston Basin (ND)
O11: counted_spud | P11: Y | V11: recompletion | W11: Y
O12: SpudYear | P12: 2014 | V12: SpudYear | W12: 2014
A13: Spuds Data File Summary - BY SPUD TYPE | B13: D | C13: H | D13: V
B14: 2014 Spud Count | P14: Column Labels | W14: Column Labels
A15: Parameter | B15: Directional | C15: Horizontal | D15: Vertical | E15: Totals | O15: Values | P15: H | Q15: V | W15: H | X15: V | Y15: Grand Total
A16: Count | B16: =IF(ISNA(HLOOKUP(B$13,$P$15:$S$16,2,FALSE))=TRUE,0,HLOOKUP(B$13,$P$15:$S$16,2,FALSE)) -> 0 | C16: =IF(ISNA(HLOOKUP(C$13,$P$15:$S$16,2,FALSE))=TRUE,0,HLOOKUP(C$13,$P$15:$S$16,2,FALSE)) -> 2604 | D16: =IF(ISNA(HLOOKUP(D$13,$P$15:$S$16,2,FALSE))=TRUE,0,HLOOKUP(D$13,$P$15:$S$16,2,FALSE)) -> 19 | E16: =SUM(B16:D16) -> 2623 | O16: Sum of CountOfAPI_number | P16: 2604 | Q16: 19 | V16: Sum of CountOfAPI_number | W16: 1 | X16: 4 | Y16: 5
A17: Average Depth (ft) | B17: =IF(ISNA(HLOOKUP(B$13,$P$15:$S$17,3,FALSE))=TRUE,0,HLOOKUP(B$13,$P$15:$S$17,3,FALSE)/B16) -> 0 | C17: =IF(ISNA(HLOOKUP(C$13,$P$15:$S$17,3,FALSE))=TRUE,0,HLOOKUP(C$13,$P$15:$S$17,3,FALSE)/C16) -> 19719.40783 | D17: =IF(ISNA(HLOOKUP(D$13,$P$15:$S$17,3,FALSE))=TRUE,0,HLOOKUP(D$13,$P$15:$S$17,3,FALSE)/D16) -> 6323.157895 | E17: =IF(E16>0,SUMPRODUCT(B16:D16,B17:D17)/E16,0) -> 19622.37057 | O17: Sum of SumOftotal_depth | P17: 51349338 | Q17: 120140 | X17: =X23 -> D | Y17: =Y23 -> H | Z17: V | AA17: 0
A18: Recompletions | B18: =IF(ISNA(HLOOKUP(B$13,$W$15:$Z$16,2,FALSE))=TRUE,0,HLOOKUP(B$13,$W$15:$Z$16,2,FALSE)) -> 0 | C18: =IF(ISNA(HLOOKUP(C$13,$W$15:$Z$16,2,FALSE))=TRUE,0,HLOOKUP(C$13,$W$15:$Z$16,2,FALSE)) -> 1 | D18: =IF(ISNA(HLOOKUP(D$13,$W$15:$Z$16,2,FALSE))=TRUE,0,HLOOKUP(D$13,$W$15:$Z$16,2,FALSE)) -> 4 | E18: =SUM(B18:D18) -> 5 | X18: 2 | Y18: 3 | Z18: 4 | AA18: 5
O19: State | P19: (All) | W19: State | X19: (All)
O20: BASIN (State) | P20: Williston Basin (ND) | Q20: =Q23 -> D | R20: =R23 -> H | S20: V | T20: =T23 -> 0 | W20: BASIN (State) | X20: Williston Basin (ND)
A21: Production File Summary - BY SPUD TYPE | B21: D | C21: H | D21: V | E21: 0 | Q21: 5 | R21: 6 | S21: 7 | T21: 8
B22: Spud Type | Q22: DirectionalDrillFlag | W22: Sum of Final Well Count | X22: Column Labels
A23: Well Type | B23: Directional | C23: Horizontal | D23: Vertical | E23: Not Available | F23: Totals | O23: Values | P23: Final Well Type | Q23: D | R23: H | S23: V | U23: Grand Total | W23: Row Labels | X23: D | Y23: H | Z23: V | AB23: Grand Total
A24: 2014 Well Count (no. of wells) | M24: =P24&N24 -> GasSum of SumOfOil bbl/year | N24: =IF(O24="",N23,O24) -> Sum of SumOfOil bbl/year | O24: Sum of SumOfOil bbl/year | P24: Gas | Q24: 642 | R24: 3156207 | S24: 75000 | U24: 3231849 | W24: Gas | X24: 1 | Y24: 124 | Z24: 179 | AB24: 304
A25: Gas | B25: =IF(ISNA(VLOOKUP($A25,$W$24:$AA$26,HLOOKUP(B$21,$X$17:$AA$18,2,FALSE),FALSE))=TRUE,0,VLOOKUP($A25,$W$24:$AA$26,HLOOKUP(B$21,$X$17:$AA$18,2,FALSE),FALSE)) -> 1 | C25: =IF(ISNA(VLOOKUP($A25,$W$24:$AA$26,HLOOKUP(C$21,$X$17:$AA$18,2,FALSE),FALSE))=TRUE,0,VLOOKUP($A25,$W$24:$AA$26,HLOOKUP(C$21,$X$17:$AA$18,2,FALSE),FALSE)) -> 124 | D25: 179 | E25: 0 | F25: =AB24 -> 304 | L25: =SUM(F25:F27) -> 12706 | M25: OilSum of SumOfOil bbl/year | N25: Sum of SumOfOil bbl/year | P25: Oil | Q25: 656775 | R25: 383116231 | S25: 7559869 | T25: 80100 | U25: 391412975 | W25: Oil | X25: 70 | Y25: 10221 | Z25: 2103 | AA25: 8 | AB25: 12402
A26: Oil | B26: =IF(ISNA(VLOOKUP($A26,$W$24:$AA$26,HLOOKUP(B$21,$X$17:$AA$18,2,FALSE),FALSE))=TRUE,0,VLOOKUP($A26,$W$24:$AA$26,HLOOKUP(B$21,$X$17:$AA$18,2,FALSE),FALSE)) -> 70 | C26: 10221 | D26: =IF(ISNA(VLOOKUP($A26,$W$24:$AA$26,HLOOKUP(D$21,$X$17:$AA$18,2,FALSE),FALSE))=TRUE,0,VLOOKUP($A26,$W$24:$AA$26,HLOOKUP(D$21,$X$17:$AA$18,2,FALSE),FALSE)) -> 2103 | E26: 8 | F26: =AB25 -> 12402 | M26: GasSum of SumOfGas mcf/year | N26: Sum of SumOfGas mcf/year | O26: Sum of SumOfGas mcf/year | P26: Gas | Q26: 0 | R26: 4531744 | S26: 5603465 | U26: 10135209
A27: CBM | B27: 0 | C27: 0 | D27: 0 | E27: 0 | F27: =AB26 -> 0 | M27: OilSum of SumOfGas mcf/year | N27: Sum of SumOfGas mcf/year | P27: Oil | Q27: 524071 | R27: 444099071 | S27: 8773859 | T27: 194490 | U27: 453591491
A28: 2014 Oil and Condensate Production (MBbl/yr) | M28: GasSum of SumOfWater bbl/year | N28: Sum of SumOfWater bbl/year | O28: Sum of SumOfWater bbl/year | P28: Gas | Q28: 0 | R28: 5087777 | S28: 982118 | U28: 6069895
A29: Gas | B29: =IF(ISNA(VLOOKUP($A29&"Sum of SumOfOil bbl/year",$M$24:$U$32,HLOOKUP(B$21,$Q$20:$T$21,2,FALSE),FALSE))=TRUE,0,VLOOKUP($A29&"Sum of SumOfOil bbl/year",$M$24:$U$32,HLOOKUP(B$21,$Q$20:$T$21,2,FALSE),FALSE)/1000) -> 0.642 | C29: 3156.207 | D29: 75 | E29: 0 | F29: =SUM(B29:E29) -> 3231.849 | L29: =SUM(F29:F31) -> 394644.824 | M29: OilSum of SumOfWater bbl/year | N29: Sum of SumOfWater bbl/year | P29: Oil | Q29: 5065449 | R29: 370121369 | S29: 60460999 | T29: 458525 | U29: 436106342
A30: Oil | B30: 656.775 | C30: =IF(ISNA(VLOOKUP($A30&"Sum of SumOfOil bbl/year",$M$24:$U$32,HLOOKUP(C$21,$Q$20:$T$21,2,FALSE),FALSE))=TRUE,0,VLOOKUP($A30&"Sum of SumOfOil bbl/year",$M$24:$U$32,HLOOKUP(C$21,$Q$20:$T$21,2,FALSE),FALSE)/1000) -> 383116.231 | D30: 7559.869 | E30: 80.1 | F30: =SUM(B30:E30) -> 391412.975 | M30: Sum of SumOfWater bbl/year | N30: Sum of SumOfWater bbl/year
A31: CBM | B31: 0 | C31: 0 | D31: 0 | E31: 0 | F31: 0 | M31: Sum of SumOfWater bbl/year | N31: Sum of SumOfWater bbl/year
A32: 2014 Gas Production (MMCF/yr) | M32: Sum of SumOfWater bbl/year | N32: Sum of SumOfWater bbl/year
A33: Gas | B33: =IF(ISNA(VLOOKUP($A33&"Sum of SumOfGas mcf/year",$M$24:$U$32,HLOOKUP(B$21,$Q$20:$T$21,2,FALSE),FALSE))=TRUE,0,VLOOKUP($A33&"Sum of SumOfGas mcf/year",$M$24:$U$32,HLOOKUP(B$21,$Q$20:$T$21,2,FALSE),FALSE)/1000) -> 0 | C33: 4531.744 | D33: 5603.465 | E33: 0 | F33: =SUM(B33:E33) -> 10135.209 | L33: =SUM(F33:F35) -> 463726.7
A34: Oil | B34: 524.071 | C34: =IF(ISNA(VLOOKUP($A34&"Sum of SumOfGas mcf/year",$M$24:$U$32,HLOOKUP(C$21,$Q$20:$T$21,2,FALSE),FALSE))=TRUE,0,VLOOKUP($A34&"Sum of SumOfGas mcf/year",$M$24:$U$32,HLOOKUP(C$21,$Q$20:$T$21,2,FALSE),FALSE)/1000) -> 444099.071 | D34: 8773.859 | E34: 194.49 | F34: =SUM(B34:E34) -> 453591.491
A35: CBM | B35: 0 | C35: 0 | D35: 0 | E35: 0 | F35: 0
A36: 2014 Water Production (MBbl/yr)
A37: Gas | B37: =IF(ISNA(VLOOKUP($A37&"Sum of SumOfWater bbl/year",$M$24:$U$32,HLOOKUP(B$21,$Q$20:$T$21,2,FALSE),FALSE))=TRUE,0,VLOOKUP($A37&"Sum of SumOfWater bbl/year",$M$24:$U$32,HLOOKUP(B$21,$Q$20:$T$21,2,FALSE),FALSE)/1000) -> 0 | C37: 5087.777 | D37: 982.118 | E37: 0 | F37: =SUM(B37:E37) -> 6069.895 | L37: =SUM(F37:F39) -> 442176.237
A38: Oil | B38: 5065.449 | C38: 370121.369 | D38: 60460.999 | E38: 458.525 | F38: =SUM(B38:E38) -> 436106.342
A39: CBM | B39: 0 | C39: 0 | D39: 0 | E39: 0 | F39: 0
N42: State | O42: (All) | Y42: State | Z42: (All) | AF42: State | AG42: (All)
A43: Production File Summary - BY COUNTY | G43: Production File Summary - BY PLAY NAME | H43: Note: "Play name" is a field that was recently added to the IHS database. Play name information is not comprehensive. | N43: Final Well Type | O43: (Multiple Items) | S43: State | T43: (All) | Y43: BASIN (State) | Z43: Williston Basin (ND) | AF43: BASIN (State) | AG43: Williston Basin (ND)
A44: County | B44: 2014 O&G Activity Parameter | G44: PlayName (PlayType) | H44: 2014 O&G Activity Parameter | N44: BASIN (State) | O44: Williston Basin (ND) | S44: BASIN (State) | T44: Williston Basin (ND) | Y44: Final Well Type | Z44: (Multiple Items) | AF44: Final Well Type | AG44: (Multiple Items)
B45: Well Count | C45: Oil and Condensate (MBbl/yr) | D45: Gas (MMCF/yr) | E45: Water (Mbbl/yr) | H45: Well Count | I45: Oil and Condensate (MBbl/yr) | J45: Gas (MMCF/yr) | K45: Water (Mbbl/yr) | S45: Final Well Type | T45: (Multiple Items)
A46: =PROPER(Z48) -> Billings | B46: =AH48 -> 537 | C46: =AA48/1000 -> 5362.028 | D46: =AB48/1000 -> 6248.77 | E46: =AC48/1000 -> 26165.253 | G46: =N48 -> BAKKEN/THREE FORKS (TIGHT OIL (L)) | H46: =T48 -> 9258 | I46: =O48/1000 -> 370979.284 | J46: =P48/1000 -> 429893.238 | K46: =Q48/1000 -> 283538 | O46: Values | AA46: Values | AF46: Sum of Final Well Count
A47: =PROPER(Z49) -> Bottneau | B47: 652 | C47: 2657.499 | D47: 359.562 | E47: 38931.319 | G47: =N49 -> LODGEPOLE/MADISON LIME (TIGHT OIL (L)) | H47: =T49 -> 360 | I47: =O49/1000 -> 2192.16 | J47: 2328.119 | K47: 26586.942 | N47: PlayName (PlayType) | O47: Sum of SumOfOil bbl/year | P47: Sum of SumOfGas mcf/year | Q47: Sum of SumOfWater bbl/year | S47: Row Labels | T47: Sum of Final Well Count | Y47: IHS_FIPS | Z47: County | AA47: Sum of SumOfOil bbl/year | AB47: Sum of SumOfGas mcf/year | AC47: Sum of SumOfWater bbl/year | AF47: IHS_FIPS | AG47: County | AH47: Total
A48: Bowman | B48: 541 | C48: 8107.287 | D48: 11680.557 | E48: 47414.048 | G48: RED RIVER (TIGHT OIL (L)) | H48: 425 | I48: 8745.97 | J48: 10888.835 | K48: 48089.938 | N48: BAKKEN/THREE FORKS (TIGHT OIL (L)) | O48: 370979284 | P48: 429893238 | Q48: 283538000 | S48: BAKKEN/THREE FORKS (TIGHT OIL (L)) | T48: 9258 | Y48: 33007 | Z48: BILLINGS | AA48: 5362028 | AB48: 6248770 | AC48: 26165253 | AF48: 33007 | AG48: Billings | AH48: 537
A49: Burke | B49: 573 | C49: 6490.41 | D49: 7832.623 | E49: 15002.249 | G49: UNK (unknown) | H49: 2663 | I49: 12727.41 | J49: 20616.508 | K49: 83961.357 | N49: LODGEPOLE/MADISON LIME (TIGHT OIL (L)) | O49: 2192160 | P49: 2328119 | Q49: 26586942 | S49: LODGEPOLE/MADISON LIME (TIGHT OIL (L)) | T49: 360 | Y49: 33009 | Z49: BOTTNEAU | AA49: 2657499 | AB49: 359562 | AC49: 38931319 | AF49: 33009 | AG49: Bottineau | AH49: 652
A50: Divide | B50: 706 | C50: 14923.553 | D50: 16453.799 | E50: 26145.048 | G50: 0 | H50: 0 | I50: 0 | J50: 0 | K50: 0 | N50: RED RIVER (TIGHT OIL (L)) | O50: 8745970 | P50: 10888835 | Q50: 48089938 | S50: RED RIVER (TIGHT OIL (L)) | T50: 425 | Y50: 33011 | Z50: BOWMAN | AA50: 8107287 | AB50: 11680557 | AC50: 47414048 | AF50: 33011 | AG50: Bowman | AH50: 541
A51: Dunn | B51: 1596 | C51: 63830.187 | D51: 51686.086 | E51: 44536.629 | G51: 0 | H51: 0 | I51: 0 | J51: 0 | K51: 0 | N51: UNK (unknown) | O51: 12727410 | P51: 20616508 | Q51: 83961357 | S51: UNK (unknown) | T51: 2663 | Y51: 33013 | Z51: BURKE | AA51: 6490410 | AB51: 7832623 | AC51: 15002249 | AF51: 33013 | AG51: Burke | AH51: 573
A52: Gldn Val | B52: 91 | C52: 1027.659 | D52: 869.098 | E52: 2806.666 | G52: 0 | H52: 0 | I52: 0 | J52: 0 | K52: 0 | Y52: 33023 | Z52: DIVIDE | AA52: 14923553 | AB52: 16453799 | AC52: 26145048 | AF52: 33023 | AG52: Divide | AH52: 706
A53: Mc Henry | B53: 18 | C53: 25.47 | D53: 0 | E53: 488.732 | G53: 0 | H53: 0 | I53: 0 | J53: 0 | K53: 0 | Y53: 33025 | Z53: DUNN | AA53: 63830187 | AB53: 51686086 | AC53: 44536629 | AF53: 33025 | AG53: Dunn | AH53: 1596
A54: Mckenzie | B54: 3112 | C54: 131320.864 | D54: 198590.623 | E54: 88402.405 | G54: 0 | H54: 0 | I54: 0 | J54: 0 | K54: 0 | Y54: 33033 | Z54: GLDN VAL | AA54: 1027659 | AB54: 869098 | AC54: 2806666 | AF54: 33033 | AG54: Golden Valley | AH54: 91
A55: Mclean | B55: 49 | C55: 1028.136 | D55: 720.371 | E55: 619.956 | G55: 0 | H55: 0 | I55: 0 | J55: 0 | K55: 0 | Y55: 33049 | Z55: MC HENRY | AA55: 25470 | AB55: 0 | AC55: 488732 | AF55: 33049 | AG55: McHenry | AH55: 18
A56: Muntrail | B56: 2309 | C56: 95404.207 | D56: 80642.88 | E56: 54722.085 | G56: 0 | H56: 0 | I56: 0 | J56: 0 | K56: 0 | Y56: 33053 | Z56: MCKENZIE | AA56: 131320864 | AB56: 198590623 | AC56: 88402405 | AF56: 33053 | AG56: McKenzie | AH56: 3112
A57: Renville | B57: 300 | C57: 894.984 | D57: 100.071 | E57: 10938.58 | G57: 0 | H57: 0 | I57: 0 | J57: 0 | K57: 0 | Y57: 33055 | Z57: MCLEAN | AA57: 1028136 | AB57: 720371 | AC57: 619956 | AF57: 33055 | AG57: McLean | AH57: 49
A58: Slope | B58: 21 | C58: 456.924 | D58: 139.285 | E58: 1729.015 | G58: 0 | H58: 0 | I58: 0 | J58: 0 | K58: 0 | Y58: 33061 | Z58: MUNTRAIL | AA58: 95404207 | AB58: 80642880 | AC58: 54722085 | AF58: 33061 | AG58: Mountrail | AH58: 2309
A59: Stark | B59: 256 | C59: 7249.815 | D59: 9201.319 | E59: 13267.606 | G59: 0 | H59: 0 | I59: 0 | J59: 0 | K59: 0 | Y59: 33075 | Z59: RENVILLE | AA59: 894984 | AB59: 100071 | AC59: 10938580 | AF59: 33075 | AG59: Renville | AH59: 300
A60: Ward | B60: 12 | C60: 34.026 | D60: 9.787 | E60: 430.762 | G60: 0 | H60: 0 | I60: 0 | J60: 0 | K60: 0 | Y60: 33087 | Z60: SLOPE | AA60: 456924 | AB60: 139285 | AC60: 1729015 | AF60: 33087 | AG60: Slope | AH60: 21
A61: Williams | B61: 1933 | C61: 55831.775 | D61: 79191.869 | E61: 70575.884 | G61: 0 | H61: 0 | I61: 0 | J61: 0 | K61: 0 | Y61: 33089 | Z61: STARK | AA61: 7249815 | AB61: 9201319 | AC61: 13267606 | AF61: 33089 | AG61: Stark | AH61: 256
B62: 0 | C62: 0 | D62: 0 | E62: 0 | G62: 0 | H62: 0 | I62: 0 | J62: 0 | K62: 0 | Y62: 33101 | Z62: WARD | AA62: 34026 | AB62: 9787 | AC62: 430762 | AF62: 33101 | AG62: Ward | AH62: 12
B63: 0 | C63: 0 | D63: 0 | E63: 0 | G63: 0 | H63: 0 | I63: =O65/1000 -> 0 | J63: 0 | K63: 0 | Y63: 33105 | Z63: WILLIAMS | AA63: 55831775 | AB63: 79191869 | AC63: 70575884 | AF63: 33105 | AG63: Williams | AH63: 1933
B64: 0 | C64: 0 | D64: 0 | E64: 0 | G64: 0 | H64: 0 | I64: 0 | J64: 0 | K64: 0
B65: 0 | C65: 0 | D65: 0 | E65: 0 | G65: 0 | H65: 0 | I65: 0 | J65: 0 | K65: 0
B66: 0 | C66: 0 | D66: 0 | E66: 0 | G66: 0 | H66: 0 | I66: 0 | J66: 0 | K66: 0
B67: 0 | C67: 0 | D67: 0 | E67: 0 | G67: 0 | H67: 0 | I67: 0 | J67: 0 | K67: 0
B68: 0 | C68: 0 | D68: 0 | E68: 0 | G68: 0 | H68: 0 | I68: 0 | J68: 0 | K68: 0
B69: 0 | C69: 0 | D69: 0 | E69: 0 | G69: 0 | H69: 0 | I69: 0 | J69: 0 | K69: 0
B70: 0 | C70: 0 | D70: 0 | E70: 0 | G70: 0 | H70: 0 | I70: 0 | J70: 0 | K70: 0
B71: 0 | C71: 0 | D71: 0 | E71: 0 | G71: 0 | H71: 0 | I71: 0 | J71: 0 | K71: 0
B72: 0 | C72: 0 | D72: 0 | E72: 0 | G72: 0 | H72: 0 | I72: 0 | J72: 0 | K72: 0
B73: 0 | C73: 0 | D73: 0 | E73: 0 | G73: 0 | H73: 0 | I73: 0 | J73: 0 | K73: 0
B74: 0 | C74: 0 | D74: 0 | E74: 0 | G74: 0 | H74: 0 | I74: 0 | J74: 0 | K74: 0
B75: 0 | C75: 0 | D75: 0 | E75: 0 | G75: 0 | H75: 0 | I75: 0 | J75: 0 | K75: 0
B76: 0 | C76: 0 | D76: 0 | E76: 0 | G76: 0 | H76: 0 | I76: 0 | J76: 0 | K76: 0
B77: 0 | C77: 0 | D77: 0 | E77: 0 | G77: 0 | H77: 0 | I77: 0 | J77: 0 | K77: 0
A78: =PROPER(Z80) ->  | B78: =AH80 -> 0 | C78: =AA80/1000 -> 0 | D78: =AB80/1000 -> 0 | E78: =AC80/1000 -> 0 | G78: 0 | H78: 0 | I78: 0 | J78: 0 | K78: 0
B79: 0 | C79: 0 | D79: 0 | E79: 0 | G79: 0 | H79: 0 | I79: =O81/1000 -> 0 | J79: 0 | K79: 0
B80: 0 | C80: 0 | D80: 0 | E80: 0 | G80: 0 | H80: 0 | I80: 0 | J80: 0 | K80: 0
B81: 0 | C81: 0 | D81: 0 | E81: 0 | G81: 0 | H81: 0 | I81: 0 | J81: 0 | K81: 0
B82: 0 | C82: 0 | D82: 0 | E82: 0 | G82: 0 | H82: 0 | I82: 0 | J82: 0 | K82: 0
B83: 0 | C83: 0 | D83: 0 | E83: 0 | G83: 0 | H83: 0 | I83: 0 | J83: 0 | K83: 0
B84: 0 | C84: 0 | D84: 0 | E84: 0 | G84: 0 | H84: 0 | I84: 0 | J84: 0 | K84: 0
B85: 0 | C85: 0 | D85: 0 | E85: 0 | G85: 0 | H85: 0 | I85: 0 | J85: 0 | K85: 0
B86: 0 | C86: 0 | D86: 0 | E86: 0 | G86: 0 | H86: 0 | I86: 0 | J86: 0 | K86: 0
B87: 0 | C87: 0 | D87: 0 | E87: 0 | G87: 0 | H87: 0 | I87: 0 | J87: 0 | K87: 0
B88: 0 | C88: 0 | D88: 0 | E88: 0 | G88: 0 | H88: 0 | I88: 0 | J88: 0 | K88: 0
B89: 0 | C89: 0 | D89: 0 | E89: 0 | G89: 0 | H89: 0 | I89: 0 | J89: 0 | K89: 0
B90: 0 | C90: 0 | D90: 0 | E90: 0 | G90: 0 | H90: 0 | I90: 0 | J90: 0 | K90: 0
B91: 0 | C91: 0 | D91: 0 | E91: 0 | G91: 0 | H91: 0 | I91: 0 | J91: 0 | K91: 0
B92: 0 | C92: 0 | D92: 0 | E92: 0 | G92: 0 | H92: 0 | I92: 0 | J92: 0 | K92: 0
B93: 0 | C93: 0 | D93: 0 | E93: 0 | G93: 0 | H93: 0 | I93: 0 | J93: 0 | K93: 0
B94: 0 | C94: 0 | D94: 0 | E94: 0 | G94: 0 | H94: 0 | I94: 0 | J94: 0 | K94: 0
B95: 0 | C95: 0 | D95: 0 | E95: 0 | G95: 0 | H95: 0 | I95: =O97/1000 -> 0 | J95: 0 | K95: 0
B96: 0 | C96: 0 | D96: 0 | E96: 0 | G96: 0 | H96: 0 | I96: 0 | J96: 0 | K96: 0
B97: 0 | C97: 0 | D97: 0 | E97: 0 | G97: 0 | H97: 0 | I97: 0 | J97: 0 | K97: 0
B98: 0 | C98: 0 | D98: 0 | E98: 0 | G98: 0 | H98: 0 | I98: 0 | J98: 0 | K98: 0
B99: 0 | C99: 0 | D99: 0 | E99: 0 | G99: 0 | H99: 0 | I99: 0 | J99: 0 | K99: 0
B100: 0 | C100: 0 | D100: 0 | E100: 0 | G100: 0 | H100: 0 | I100: 0 | J100: 0 | K100: 0
B101: 0 | C101: 0 | D101: 0 | E101: 0 | G101: 0 | H101: 0 | I101: 0 | J101: 0 | K101: 0
B102: 0 | C102: 0 | D102: 0 | E102: 0 | G102: 0 | H102: 0 | I102: 0 | J102: 0 | K102: 0
B103: 0 | C103: 0 | D103: 0 | E103: 0 | G103: 0 | H103: 0 | I103: 0 | J103: 0 | K103: 0
B104: 0 | C104: 0 | D104: 0 | E104: 0 | G104: 0 | H104: 0 | I104: 0 | J104: 0 | K104: 0
B105: 0 | C105: 0 | D105: 0 | E105: 0 | G105: 0 | H105: 0 | I105: 0 | J105: 0 | K105: 0
B106: 0 | C106: 0 | D106: 0 | E106: 0 | G106: 0 | H106: 0 | I106: 0 | J106: 0 | K106: 0
B107: 0 | C107: 0 | D107: 0 | E107: 0 | G107: 0 | H107: 0 | I107: 0 | J107: 0 | K107: 0
B108: 0 | C108: 0 | D108: 0 | E108: 0 | G108: 0 | H108: 0 | I108: 0 | J108: 0 | K108: 0
B109: 0 | C109: 0 | D109: 0 | E109: 0 | G109: 0 | H109: 0 | I109: 0 | J109: 0 | K109: 0
A110: =PROPER(Z112) ->  | B110: =AH112 -> 0 | C110: =AA112/1000 -> 0 | D110: =AB112/1000 -> 0 | E110: =AC112/1000 -> 0 | G110: 0 | H110: 0 | I110: 0 | J110: 0 | K110: 0
B111: 0 | C111: 0 | D111: 0 | E111: 0 | G111: =N113 -> 0 | H111: =T113 -> 0 | I111: =O113/1000 -> 0 | J111: 0 | K111: 0
B112: 0 | C112: 0 | D112: 0 | E112: 0 | G112: 0 | H112: 0 | I112: 0 | J112: 0 | K112: 0
B113: 0 | C113: 0 | D113: 0 | E113: 0 | G113: 0 | H113: 0 | I113: 0 | J113: 0 | K113: 0
B114: 0 | C114: 0 | D114: 0 | E114: 0 | G114: 0 | H114: 0 | I114: 0 | J114: 0 | K114: 0
B115: 0 | C115: 0 | D115: 0 | E115: 0 | G115: 0 | H115: 0 | I115: 0 | J115: 0 | K115: 0
B116: 0 | C116: 0 | D116: 0 | E116: 0 | G116: 0 | H116: 0 | I116: 0 | J116: 0 | K116: 0
B117: 0 | C117: 0 | D117: 0 | E117: 0 | G117: 0 | H117: 0 | I117: 0 | J117: 0 | K117: 0
B118: 0 | C118: 0 | D118: 0 | E118: 0 | G118: 0 | H118: 0 | I118: 0 | J118: 0 | K118: 0
B119: 0 | C119: 0 | D119: 0 | E119: 0 | G119: 0 | H119: 0 | I119: 0 | J119: 0 | K119: 0
B120: 0 | C120: 0 | D120: 0 | E120: 0 | G120: 0 | H120: 0 | I120: 0 | J120: 0 | K120: 0
B121: 0 | C121: 0 | D121: 0 | E121: 0 | G121: 0 | H121: 0 | I121: 0 | J121: 0 | K121: 0
B122: 0 | C122: 0 | D122: 0 | E122: 0 | G122: 0 | H122: 0 | I122: 0 | J122: 0 | K122: 0
B123: 0 | C123: 0 | D123: 0 | E123: 0 | G123: 0 | H123: 0 | I123: 0 | J123: 0 | K123: 0
B124: 0 | C124: 0 | D124: 0 | E124: 0 | G124: 0 | H124: 0 | I124: 0 | J124: 0 | K124: 0
B125: 0 | C125: 0 | D125: 0 | E125: 0 | G125: 0 | H125: 0 | I125: 0 | J125: 0 | K125: 0
B126: 0 | C126: 0 | D126: 0 | E126: 0 | G126: 0 | H126: 0 | I126: 0 | J126: 0 | K126: 0
B127: 0 | C127: 0 | D127: 0 | E127: 0 | G127: 0 | H127: 0 | I127: =O129/1000 -> 0 | J127: 0 | K127: 0
B128: 0 | C128: 0 | D128: 0 | E128: 0 | G128: 0 | H128: 0 | I128: 0 | J128: 0 | K128: 0
B129: 0 | C129: 0 | D129: 0 | E129: 0 | G129: 0 | H129: 0 | I129: 0 | J129: 0 | K129: 0
B130: 0 | C130: 0 | D130: 0 | E130: 0 | G130: 0 | H130: 0 | I130: 0 | J130: 0 | K130: 0
B131: 0 | C131: 0 | D131: 0 | E131: 0 | G131: 0 | H131: 0 | I131: 0 | J131: 0 | K131: 0
B132: 0 | C132: 0 | D132: 0 | E132: 0 | G132: 0 | H132: 0 | I132: 0 | J132: 0 | K132: 0
B133: 0 | C133: 0 | D133: 0 | E133: 0 | G133: 0 | H133: 0 | I133: 0 | J133: 0 | K133: 0
B134: 0 | C134: 0 | D134: 0 | E134: 0 | G134: 0 | H134: 0 | I134: 0 | J134: 0 | K134: 0
B135: 0 | C135: 0 | D135: 0 | E135: 0 | G135: 0 | H135: 0 | I135: 0 | J135: 0 | K135: 0
B136: 0 | C136: 0 | D136: 0 | E136: 0 | G136: 0 | H136: 0 | I136: 0 | J136: 0 | K136: 0
B137: 0 | C137: 0 | D137: 0 | E137: 0 | G137: 0 | H137: 0 | I137: 0 | J137: 0 | K137: 0

Sheet Prod.298 (hidden)
A1: BASIN | B1: IHS_FIPS | C1: State | D1: County | E1: LeaseType | F1: CBMstatus | G1: PlayType | H1: PlayName | I1: DirectionalDrillFlag | J1: SumOfOil bbl/year | K1: SumOfGas mcf/year | L1: SumOfWater bbl/year | M1: =H1&" ("&IF(G1="BLANK","unknown",IF(G1="UNK","unknown",G1)&")") -> PlayName (PlayType) | N1: Final Well Type | O1: =A1&" ("&C1&")" -> BASIN (State)
A2: AK Off-shore | B2: 50629 | C2: AK | D2: BCHY P O | E2: Oil | F2: conventional | G2: UNK | H2: UNK | I2: H | J2: 4520178 | K2: 469364 | L2: 718514 | M2: =H2&" ("&IF(G2="BLANK","unknown",IF(G2="UNK","unknown",G2)&")") -> UNK (unknown) | N2: =IF(F2="coalbed methane","CBM",E2) -> Oil | O2: =A2&" ("&C2&")" -> AK Off-shore (AK)
A3: AK Off-shore | B3: 50703 | C3: AK | D3: HRSN B O | E3: Oil | F3: conventional | G3: UNK | H3: UNK | I3: H | J3: 4140038 | K3: 3158745 | L3: 304563 | M3: =H3&" ("&IF(G3="BLANK","unknown",IF(G3="UNK","unknown",G3)&")") -> UNK (unknown) | N3: =IF(F3="coalbed methane","CBM",E3) -> Oil | O3: AK Off-shore (AK)
A4: AK Off-shore | B4: 50733 | C4: AK | D4: KENAI O | E4: Gas | F4: conventional | G4: UNK | H4: UNK | J4: 0 | K4: 94239 | L4: 0 | M4: UNK (unknown) | N4: Gas | O4: AK Off-shore (AK)
A5: AK Off-shore | B5: 50733 | C5: AK | D5: KENAI O | E5: Gas | F5: conventional | G5: UNK | H5: UNK | I5: D | J5: 3054 | K5: 10359148 | L5: 24646 | M5: UNK (unknown) | N5: Gas | O5: AK Off-shore (AK)
A6: AK Off-shore | B6: 50733 | C6: AK | D6: KENAI O | E6: Gas | F6: conventional | G6: UNK | H6: UNK | I6: H | J6: 0 | K6: 2138385 | L6: 205 | M6: UNK (unknown) | N6: Gas | O6: AK Off-shore (AK)
A7: AK Off-shore | B7: 50733 | C7: AK | D7: KENAI O | E7: Oil | F7: conventional | G7: UNK | H7: UNK | J7: 18795 | K7: 38751 | L7: 13660 | M7: UNK (unknown) | N7: Oil | O7: AK Off-shore (AK)
A8: AK Off-shore | B8: 50733 | C8: AK | D8: KENAI O | E8: Oil | F8: conventional | G8: UNK | H8: UNK | I8: D | J8: 4033596 | K8: 3525147 | L8: 32069899 | M8: UNK (unknown) | N8: Oil | O8: AK Off-shore (AK)
A9: AK Off-shore | B9: 50733 | C9: AK | D9: KENAI O | E9: Oil | F9: conventional | G9: UNK | H9: UNK | I9: H | J9: 834440 | K9: 527074 | L9: 10592993 | M9: UNK (unknown) | N9: Oil | O9: AK Off-shore (AK)
A10: AK Off-shore | B10: 50883 | C10: AK | D10: TYONEK O | E10: Gas | F10: conventional | G10: UNK | H10: UNK | I10: D | J10: 0 | K10: 10022058 | L10: 69861 | M10: UNK (unknown) | N10: Gas | O10: AK Off-shore (AK)
A11: AK Off-shore | B11: 50883 | C11: AK | D11: TYONEK O | E11: Oil | F11: conventional | G11: UNK | H11: UNK | I11: D | J11: 0 | K11: 211029 | L11: 2721 | M11: UNK (unknown) | N11: Oil | O11: AK Off-shore (AK)
A12: Anadarko Basin | B12: 5009 | C12: CO | D12: BACA | E12: Gas | F12: conventional | G12: UNK | H12: UNK | I12: V | J12: 3511 | K12: 703083 | L12: 38007 | M12: UNK (unknown) | N12: Gas | O12: Anadarko Basin (CO)
A13: Anadarko Basin | B13: 5009 | C13: CO | D13: BACA | E13: Oil | F13: conventional | G13: UNK | H13: UNK | I13: V | J13: 47537 | K13: 14482 | L13: 2702683 | M13: UNK (unknown) | N13: Oil | O13: Anadarko Basin (CO)
A14: Anadarko Basin | B14: 5099 | C14: CO | D14: PROWERS | E14: Gas | F14: conventional | G14: UNK | H14: UNK | I14: V | J14: 181 | K14: 535796 | L14: 7052 | M14: UNK (unknown) | N14: Gas | O14: Anadarko Basin (CO)
A15: Anadarko Basin | B15: 5099 | C15: CO | D15: PROWERS | E15: Oil | F15: conventional | G15: UNK | H15: UNK | I15: V | J15: 5979 | K15: 11557 | L15: 4247 | M15: UNK (unknown) | N15: Oil | O15: Anadarko Basin (CO)
A16: Arctic Coastal Plains Province | B16: 50023 | C16: AK | D16: BARROW | E16: Gas | F16: conventional | G16: UNK | H16: UNK | I16: H | J16: 0 | K16: 549740 | L16: 0 | M16: UNK (unknown) | N16: Gas | O16: Arctic Coastal Plains Province (AK)
A17: Arctic Coastal Plains Province | B17: 50023 | C17: AK | D17: BARROW | E17: Gas | F17: conventional | G17: UNK | H17: UNK | I17: V | J17: 0 | K17: 977073 | L17: 0 | M17: UNK (unknown) | N17: Gas | O17: Arctic Coastal Plains Province (AK)
A18: Arctic Coastal Plains Province | B18: 50029 | C18: AK | D18: BECHY PT | E18: Gas | F18: conventional | G18: UNK | H18: UNK | I18: D | J18: 216367 | K18: 466479 | L18: 3159889 | M18: UNK (unknown) | N18: Gas | O18: Arctic Coastal Plains Province (AK)
A19: Arctic Coastal Plains Province | B19: 50029 | C19: AK | D19: BECHY PT | E19: Gas | F19: conventional | G19: UNK | H19: UNK | I19: H | J19: 243004 | K19: 15218004 | L19: 1282913 | M19: UNK (unknown) | N19: Gas | O19: Arctic Coastal Plains Province (AK)
A20: Arctic Coastal Plains Province | B20: 50029 | C20: AK | D20: BECHY PT | E20: Oil | F20: conventional | G20: UNK | H20: UNK | I20: D | J20: 65999625 | K20: 1250646327 | L20: 480382012 | M20: UNK (unknown) | N20: Oil | O20: Arctic Coastal Plains Province (AK)
A21: Arctic Coastal Plains Province | B21: 50029 | C21: AK | D21: BECHY PT | E21: Oil | F21: conventional | G21: UNK | H21: UNK | I21: H | J21: 70078029 | K21: 1751031510 | L21: 161733687 | M21: UNK (unknown) | N21: Oil | O21: Arctic Coastal Plains Province (AK)
A22: Arctic Coastal Plains Province | B22: 50029 | C22: AK | D22: BECHY PT | E22: Oil | F22: conventional | G22: UNK | H22: UNK | I22: V | J22: 447156 | K22: 5357426 | L22: 5786533 | M22: UNK (unknown) | N22: Oil | O22: Arctic Coastal Plains Province (AK)
A23: Arctic Coastal Plains Province | B23: 50103 | C23: AK | D23: HRRSN BY | E23: Gas | F23: conventional | G23: UNK | H23: UNK | I23: D | J23: 178815 | K23: 605478 | L23: 360593 | M23: UNK (unknown) | N23: Gas | O23: Arctic Coastal Plains Province (AK)
A24: Arctic Coastal Plains Province | B24: 50103 | C24: AK | D24: HRRSN BY | E24: Gas | F24: conventional | G24: UNK | H24: UNK | I24: H | J24: 125418 | K24: 12926 | L24: 99421 | M24: UNK (unknown) | N24: Gas | O24: Arctic Coastal Plains Province (AK)
A25: Arctic Coastal Plains Province | B25: 50103 | C25: AK | D25: HRRSN BY | E25: Oil | F25: conventional | G25: UNK | H25: UNK | I25: D | J25: 8434823 | K25: 23429259 | L25: 43581369 | M25: UNK (unknown) | N25: Oil | O25: Arctic Coastal Plains Province (AK)
A26: Arctic Coastal Plains Province | B26: 50103 | C26: AK | D26: HRRSN BY | E26: Oil | F26: conventional | G26: UNK | H26: UNK | I26: H | J26: 20753583 | K26: 24289579 | L26: 24476838 | M26: UNK (unknown) | N26: Oil | O26: Arctic Coastal Plains Province (AK)
A27: Big Horn Basin | B27: 25009 | C27: MT | D27: CARBON | E27: Gas | F27: conventional | G27: UNK | H27: UNK | J27: 0 | K27: 14289 | L27: 8407 | M27: UNK (unknown) | N27: Gas | O27: Big Horn Basin (MT)
A28: Big Horn Basin | B28: 25009 | C28: MT | D28: CARBON | E28: Gas | F28: conventional | G28: UNK | H28: UNK | I28: V | J28: 171 | K28: 435822 | L28: 4897 | M28: UNK (unknown) | N28: Gas | O28: Big Horn Basin (MT)
A29: Big Horn Basin | B29: 25009 | C29: MT | D29: CARBON | E29: Oil | F29: conventional | G29: UNK | H29: UNK | I29: D | J29: 105481 | K29: 269926 | L29: 181492 | M29: UNK (unknown) | N29: Oil | O29: Big Horn Basin (MT)
A30: Big Horn Basin | B30: 25009 | C30: MT | D30: CARBON | E30: Oil | F30: conventional | G30: UNK | H30: UNK | I30: H | J30: 8730 | K30: 0 | L30: 38042 | M30: UNK (unknown) | N30: Oil | O30: Big Horn Basin (MT)
A31: Big Horn Basin | B31: 25009 | C31: MT | D31: CARBON | E31: Oil | F31: conventional | G31: UNK | H31: UNK | I31: V | J31: 262064 | K31: 447151 | L31: 3947999 | M31: UNK (unknown) | N31: Oil | O31: Big Horn Basin (MT)
A32: Big Horn Basin | B32: 49003 | C32: WY | D32: BIG HORN | E32: Gas | F32: conventional | G32: UNK | H32: UNK | J32: 0 | K32: 7923 | L32: 0 | M32: UNK (unknown) | N32: Gas | O32: Big Horn Basin (WY)
A33: Big Horn Basin | B33: 49003 | C33: WY | D33: BIG HORN | E33: Gas | F33: conventional | G33: UNK | H33: UNK | I33: D | J33: 14 | K33: 29181 | L33: 335 | M33: UNK (unknown) | N33: Gas | O33: Big Horn Basin (WY)
A34: Big Horn Basin | B34: 49003 | C34: WY | D34: BIG HORN | E34: Gas | F34: conventional | G34: UNK | H34: UNK | I34: H | J34: 446 | K34: 6501 | L34: 630 | M34: UNK (unknown) | N34: Gas | O34: Big Horn Basin (WY)
A35: Big Horn Basin | B35: 49003 | C35: WY | D35: BIG HORN | E35: Gas | F35: conventional | G35: UNK | H35: UNK | I35: V | J35: 6277 | K35: 1038692 | L35: 11812 | M35: UNK (unknown) | N35: Gas | O35: Big Horn Basin (WY)
A36: Big Horn Basin | B36: 49003 | C36: WY | D36: BIG HORN | E36: Oil | F36: conventional | G36: UNK | H36: UNK | J36: 180 | K36: 0 | L36: 388168 | M36: UNK (unknown) | N36: Oil | O36: Big Horn Basin (WY)
A37: Big Horn Basin | B37: 49003 | C37: WY | D37: BIG HORN | E37: Oil | F37: conventional | G37: UNK | H37: UNK | I37: D | J37: 291454 | K37: 136596 | L37: 39092785 | M37: UNK (unknown) | N37: Oil | O37: Big Horn Basin (WY)
A38: Big Horn Basin | B38: 49003 | C38: WY | D38: BIG HORN | E38: Oil | F38: conventional | G38: UNK | H38: UNK | I38: H | J38: 37464 | K38: 301 | L38: 1526068 | M38: UNK (unknown) | N38: Oil | O38: Big Horn Basin (WY)
A39: Big Horn Basin | B39: 49003 | C39: WY | D39: BIG HORN | E39: Oil | F39: conventional | G39: UNK | H39: UNK | I39: M | J39: 779 | K39: 0 | L39: 10318 | M39: UNK (unknown) | N39: Oil | O39: Big Horn Basin (WY)
A40: Big Horn Basin | B40: 49003 | C40: WY | D40: BIG HORN | E40: Oil | F40: conventional | G40: UNK | H40: UNK | I40: V | J40: 1246704 | K40: 494467 | L40: 135547048 | M40: UNK (unknown) | N40: Oil | O40: Big Horn Basin (WY)
A41: Big Horn Basin | B41: 49017 | C41: WY | D41: HOT SPRS | E41: Gas | F41: conventional | G41: UNK | H41: UNK | I41: D | J41: 387 | K41: 1444 | L41: 20896 | M41: UNK (unknown) | N41: Gas | O41: Big Horn Basin (WY)
A42: Big Horn Basin | B42: 49017 | C42: WY | D42: HOT SPRS | E42: Gas | F42: conventional | G42: UNK | H42: UNK | I42: V | J42: 4841 | K42: 73409 | L42: 580719 | M42: UNK (unknown) | N42: Gas | O42: Big Horn Basin (WY)
A43: Big Horn Basin | B43: 49017 | C43: WY | D43: HOT SPRS | E43: Oil | F43: conventional | G43: UNK | H43: UNK | I43: D | J43: 223431 | K43: 62599 | L43: 20524201 | M43: UNK (unknown) | N43: Oil | O43: Big Horn Basin (WY)
A44: Big Horn Basin | B44: 49017 | C44: WY | D44: HOT SPRS | E44: Oil | F44: conventional | G44: UNK | H44: UNK | I44: H | J44: 37216 | K44: 5173 | L44: 2542718 | M44: UNK (unknown) | N44: Oil | O44: Big Horn Basin (WY)
A45: Big Horn Basin | B45: 49017 | C45: WY | D45: HOT SPRS | E45: Oil | F45: conventional | G45: UNK | H45: UNK | I45: V | J45: 2237994 | K45: 312368 | L45: 215765425 | M45: UNK (unknown) | N45: Oil | O45: Big Horn Basin (WY)
A46: Big Horn Basin | B46: 49029 | C46: WY | D46: PARK | E46: Gas | F46: conventional | G46: TIGHT OIL (L) | H46: MOWRY SHALE | I46: D | J46: 6251 | K46: 45826 | L46: 3708 | M46: MOWRY SHALE (TIGHT OIL (L)) | N46: Gas | O46: Big Horn Basin (WY)
A47: Big Horn Basin | B47: 49029 | C47: WY | D47: PARK | E47: Gas | F47: conventional | G47: TIGHT OIL (L) | H47: MOWRY SHALE | I47: V | J47: 1574 | K47: 24659 | L47: 13265 | M47: MOWRY SHALE (TIGHT OIL (L)) | N47: Gas | O47: Big Horn Basin (WY)
A48: Big Horn Basin | B48: 49029 | C48: WY | D48: PARK | E48: Gas | F48: conventional | G48: UNK | H48: UNK | J48: 21 | K48: 44295 | L48: 70 | M48: UNK (unknown) | N48: Gas | O48: Big Horn Basin (WY)
A49: Big Horn Basin | B49: 49029 | C49: WY | D49: PARK | E49: Gas | F49: conventional | G49: UNK | H49: UNK | I49: D | J49: 17301 | K49: 259068 | L49: 181100 | M49: UNK (unknown) | N49: Gas | O49: Big Horn Basin (WY)
A50: Big Horn Basin | B50: 49029 | C50: WY | D50: PARK | E50: Gas | F50: conventional | G50: UNK | H50: UNK | I50: V | J50: 31527 | K50: 1952314 | L50: 835442 | M50: UNK (unknown) | N50: Gas | O50: Big Horn Basin (WY)
A51: Big Horn Basin | B51: 49029 | C51: WY | D51: PARK | E51: Oil | F51: conventional | G51: UNK | H51: UNK | J51: 28837 | K51: 44075 | L51: 2421137 | M51: UNK (unknown) | N51: Oil | O51: Big Horn Basin (WY)
A52: Big Horn Basin | B52: 49029 | C52: WY | D52: PARK | E52: Oil | F52: conventional | G52: UNK | H52: UNK | I52: D | J52: 1499444 | K52: 1234168 | L52: 125777065 | M52: UNK (unknown) | N52: Oil | O52: Big Horn Basin (WY)
A53: Big Horn Basin | B53: 49029 | C53: WY | D53: PARK | E53: Oil | F53: conventional | G53: UNK | H53: UNK | I53: H | J53: 533510 | K53: 139680 | L53: 44292740 | M53: UNK (unknown) | N53: Oil | O53: Big Horn Basin (WY)
A54: Big Horn Basin | B54: 49029 | C54: WY | D54: PARK | E54: Oil | F54: conventional | G54: UNK | H54: UNK | I54: V | J54: 4558305 | K54: 5864658 | L54: 408291532 | M54: UNK (unknown) | N54: Oil | O54: Big Horn Basin (WY)
A55: Big Horn Basin | B55: 49043 | C55: WY | D55: WASHAKIE | E55: Gas | F55: conventional | G55: UNK | H55: UNK | J55: 724 | K55: 46999 | L55: 220 | M55: UNK (unknown) | N55: Gas | O55: Big Horn Basin (WY)
A56: Big Horn Basin | B56: 49043 | C56: WY | D56: WASHAKIE | E56: Gas | F56: conventional | G56: UNK | H56: UNK | I56: D | J56: 6042 | K56: 0 | L56: 535648 | M56: UNK (unknown) | N56: Gas | O56: Big Horn Basin (WY)
A57: Big Horn Basin | B57: 49043 | C57: WY | D57: WASHAKIE | E57: Gas | F57: conventional | G57: UNK | H57: UNK | I57: V | J57: 24467 | K57: 1073312 | L57: 8827 | M57: UNK (unknown) | N57: Gas | O57: Big Horn Basin (WY)
A58: Big Horn Basin | B58: 49043 | C58: WY | D58: WASHAKIE | E58: Oil | F58: conventional | G58: UNK | H58: UNK | J58: 4319 | K58: 0 | L58: 150004 | M58: UNK (unknown) | N58: Oil | O58: Big Horn Basin (WY)
A59: Big Horn Basin | B59: 49043 | C59: WY | D59: WASHAKIE | E59: Oil | F59: conventional | G59: UNK | H59: UNK | I59: D | J59: 83115 | K59: 143349 | L59: 1224941 | M59: UNK (unknown) | N59: Oil | O59: Big Horn Basin (WY)
A60: Big Horn Basin | B60: 49043 | C60: WY | D60: WASHAKIE | E60: Oil | F60: conventional | G60: UNK | H60: UNK | I60: H | J60: 7344 | K60: 849 | L60: 138 | M60: UNK (unknown) | N60: Oil | O60: Big Horn Basin (WY)
A61: Big Horn Basin | B61: 49043 | C61: WY | D61: WASHAKIE | E61: Oil | F61: conventional | G61: UNK | H61: UNK | I61: V | J61: 609868 | K61: 456097 | L61: 9312459 | M61: UNK (unknown) | N61: Oil | O61: Big Horn Basin (WY)
A62: Black Mesa Basin | B62: 2001 | C62: AZ | D62: APACHE | E62: Gas | F62: conventional | G62: UNK | H62: UNK | I62: V | J62: 1718 | K62: 179940 | L62: 20592 | M62: UNK (unknown) | N62: Gas | O62: Black Mesa Basin (AZ)
A63: Black Mesa Basin | B63: 2001 | C63: AZ | D63: APACHE | E63: Oil | F63: conventional | G63: UNK | H63: UNK | I63: V | J63: 110760 | K63: 31364 | L63: 310618 | M63: UNK (unknown) | N63: Oil | O63: Black Mesa Basin (AZ)
A64: AK Cook Inlet Basin | B64: 50133 | C64: AK | D64: KENAI | E64: Gas | F64: conventional | G64: UNK | H64: UNK | J64: 0 | K64: 439548 | L64: 0 | M64: UNK (unknown) | N64: Gas | O64: AK Cook Inlet Basin (AK)
A65: AK Cook Inlet Basin | B65: 50133 | C65: AK | D65: KENAI | E65: Gas | F65: conventional | G65: UNK | H65: UNK | I65: D | J65: 338 | K65: 45079097 | L65: 943552 | M65: UNK (unknown) | N65: Gas | O65: AK Cook Inlet Basin (AK)
A66: AK Cook Inlet Basin | B66: 50133 | C66: AK | D66: KENAI | E66: Gas | F66: conventional | G66: UNK | H66: UNK | I66: H | J66: 5687 | K66: 2596377 | L66: 7208 | M66: UNK (unknown) | N66: Gas | O66: =A66&" ("&C66&")" -> AK Cook Inlet Basin (AK)
A67: AK Cook Inlet Basin | B67: 50133 | C67: AK | D67: KENAI | E67: Gas | F67: conventional | G67: UNK | H67: UNK | I67: V | J67: 0 | K67: 317338 | L67: 958 | M67: =H67&" ("&IF(G67="BLANK","unknown",IF(G67="UNK","unknown",G67)&")") -> UNK (unknown) | N67: =IF(F67="coalbed methane","CBM",E67) -> Gas | O67: AK Cook Inlet Basin (AK)
A68: AK Cook Inlet Basin | B68: 50133 | C68: AK | D68: KENAI | E68: Oil | F68: conventional | G68: UNK | H68: UNK | I68: D | J68: 1332830 | K68: 2205602 | L68: 4724736 | M68: UNK (unknown) | N68: Oil | O68: AK Cook Inlet Basin (AK)
A69: AK Cook Inlet Basin | B69: 50133 | C69: AK | D69: KENAI | E69: Oil | F69: conventional | G69: UNK | H69: UNK | I69: H | J69: 1286 | K69: 1692 | L69: 5202 | M69: UNK (unknown) | N69: Oil | O69: AK Cook Inlet Basin (AK)
A70: AK Cook Inlet Basin | B70: 50133 | C70: AK | D70: KENAI | E70: Oil | F70: conventional | G70: UNK | H70: UNK | I70: V | J70: 91302 | K70: 339851 | L70: 1037587 | M70: UNK (unknown) | N70: Oil | O70: AK Cook Inlet Basin (AK)
A71: AK Cook Inlet Basin | B71: 50231 | C71: AK | D71: SELDOVIA | E71: Gas | F71: conventional | G71: UNK | H71: UNK | I71: D | J71: 0 | K71: 5589297 | L71: 13406 | M71: UNK (unknown) | N71: Gas | O71: AK Cook Inlet Basin (AK)
A72: AK Cook Inlet Basin | B72: 50231 | C72: AK | D72: SELDOVIA | E72: Gas | F72: conventional | G72: UNK | H72: UNK | I72: V | J72: 0 | K72: 1060658 | L72: 85974 | M72: UNK (unknown) | N72: Gas | O72: AK Cook Inlet Basin (AK)
A73: AK Cook Inlet Basin | B73: 50283 | C73: AK | D73: TYONEK | E73: Gas | F73: conventional | G73: UNK | H73: UNK | I73: D | J73: 0 | K73: 21986028 | L73: 573538 | M73: UNK (unknown) | N73: Gas | O73: AK Cook Inlet Basin (AK)
A74: AK Cook Inlet Basin | B74: 50283 | C74: AK | D74: TYONEK | E74: Gas | F74: conventional | G74: UNK | H74: UNK | I74: V | J74: 0 | K74: 5290613 | L74: 18698 | M74: UNK (unknown) | N74: Gas | O74: AK Cook Inlet Basin (AK)
A75: CA Off-shore | B75: 4211 | C75: CA | D75: VENTRA O | E75: Oil | F75: conventional | G75: UNK | H75: UNK | J75: 0 | K75: 14 | L75: 0 | M75: UNK (unknown) | N75: Oil | O75: CA Off-shore (CA)
A76: CA Off-shore | B76: 4211 | C76: CA | D76: VENTRA O | E76: Oil | F76: conventional | G76: UNK | H76: UNK | I76: D | J76: 139826 | K76: 15108 | L76: 206761 | M76: UNK (unknown) | N76: Oil | O76: CA Off-shore (CA)
A77: CA Off-shore | B77: 4211 | C77: CA | D77: VENTRA O | E77: Oil | F77: conventional | G77: UNK | H77: UNK | I77: V | J77: 220506 | K77: 103361 | L77: 185209 | M77: UNK (unknown) | N77: Oil | O77: CA Off-shore (CA)
A78: CA Off-shore | B78: 4237 | C78: CA | D78: LS ANG O | E78: Gas | F78: conventional | G78: UNK | H78: UNK | I78: D | J78: 0 | K78: 14406 | L78: 0 | M78: UNK (unknown) | N78: Gas | O78: CA Off-shore (CA)
A79: CA Off-shore | B79: 4237 | C79: CA | D79: LS ANG O | E79: Oil | F79: conventional | G79: UNK | H79: UNK | J79: 63883 | K79: 20443 | L79: 3350636 | M79: UNK (unknown) | N79: Oil | O79: CA Off-shore (CA)
A80: CA Off-shore | B80: 4237 | C80: CA | D80: LS ANG O | E80: Oil | F80: conventional | G80: UNK | H80: UNK | I80: D | J80: 6651486 | K80: 2417259 | L80: 268167578 | M80: UNK (unknown) | N80: Oil | O80: CA Off-shore (CA)
A81: CA Off-shore | B81: 4237 | C81: CA | D81: LS ANG O | E81: Oil | F81: conventional | G81: UNK | H81: UNK | I81: H | J81: 1993260 | K81: 677472 | L81: 81466447 | M81: UNK (unknown) | N81: Oil | O81: CA Off-shore (CA)
A82: CA Off-shore | B82: 4237 | C82: CA | D82: LS ANG O | E82: Oil | F82: conventional | G82: UNK | H82: UNK | I82: V | J82: 1744030 | K82: 551650 | L82: 61191235 | M82: UNK (unknown) | N82: Oil | O82: CA Off-shore (CA)
A83: CA Off-shore | B83: 4259 | C83: CA | D83: ORANGE O | E83: Oil | F83: conventional | G83: UNK | H83: UNK | J83: 144395 | K83: 32206 | L83: 6034015 | M83: UNK (unknown) | N83: Oil | O83: CA Off-shore (CA)
A84: CA Off-shore | B84: 4259 | C84: CA | D84: ORANGE O | E84: Oil | F84: conventional | G84: UNK | H84: UNK | I84: D | J84: 933098 | K84: 287823 | L84: 21541579 | M84: UNK (unknown) | N84: Oil | O84: CA Off-shore (CA)
A85: CA Off-shore | B85: 4259 | C85: CA | D85: ORANGE O | E85: Oil | F85: conventional | G85: UNK | H85: UNK | I85: H | J85: 226225 | K85: 65064 | L85: 3264261 | M85: UNK (unknown) | N85: Oil | O85: CA Off-shore (CA)
A86: CA Off-shore | B86: 4259 | C86: CA | D86: ORANGE O | E86: Oil | F86: conventional | G86: UNK | H86: UNK | I86: V | J86: 869440 | K86: 392894 | L86: 31009333 | M86: UNK (unknown) | N86: Oil | O86: CA Off-shore (CA)
A87: CA Off-shore | B87: 4283 | C87: CA | D87: SNT BR O | E87: Oil | F87: conventional | G87: UNK | H87: UNK | I87: D | J87: 846277 | K87: 607517 | L87: 4294721 | M87: UNK (unknown) | N87: Oil | O87: CA Off-shore (CA)
A88: CA Off-shore | B88: 4283 | C88: CA | D88: SNT BR O | E88: Oil | F88: conventional | G88: UNK | H88: UNK | I88: V | J88: 520594 | K88: 548111 | L88: 1349448 | M88: UNK (unknown) | N88: Oil | O88: CA Off-shore (CA)
A89: CA Off-shore | B89: 4311 | C89: CA | D89: SNT CZ O | E89: Gas | F89: conventional | G89: UNK | H89: UNK | I89: D | J89: 0 | K89: 3640 | L89: 0 | M89: UNK (unknown) | N89: Gas | O89: CA Off-shore (CA)
A90: CA Off-shore | B90: 4311 | C90: CA | D90: SNT CZ O | E90: Gas | F90: conventional | G90: UNK | H90: UNK | I90: V | J90: 5543 | K90: 49049 | L90: 233237 | M90: UNK (unknown) | N90: Gas | O90: CA Off-shore (CA)
A91: CA Off-shore | B91: 4311 | C91: CA | D91: SNT CZ O | E91: Oil | F91: conventional | G91: UNK | H91: UNK | J91: 3074 | K91: 7680 | L91: 61837 | M91: UNK (unknown) | N91: Oil | O91: CA Off-shore (CA)
A92: CA Off-shore | B92: 4311 | C92: CA | D92: SNT CZ O | E92: Oil | F92: conventional | G92: UNK | H92: UNK | I92: D | J92: 13016090 | K92: 23691266 | L92: 71023893 | M92: UNK (unknown) | N92: Oil | O92: CA Off-shore (CA)
A93: CA Off-shore | B93: 4311 | C93: CA | D93: SNT CZ O | E93: Oil | F93: conventional | G93: UNK | H93: UNK | I93: H | J93: 46121 | K93: 19429 | L93: 462553 | M93: UNK (unknown) | N93: Oil | O93: CA Off-shore (CA)
A94: CA Off-shore | B94: 4311 | C94: CA | D94: SNT CZ O | E94: Oil | F94: conventional | G94: UNK | H94: UNK | I94: V | J94: 1639442 | K94: 2507613 | L94: 22492111 | M94: UNK (unknown) | N94: Oil | O94: CA Off-shore (CA)
A95: CA Off-shore | B95: 4312 | C95: CA | D95: SNT CT O | E95: Oil | F95: conventional | G95: UNK | H95: UNK | I95: D | J95: 455281 | K95: 114979 | L95: 1594537 | M95: UNK (unknown) | N95: Oil | O95: CA Off-shore (CA)
A96: CA Off-shore | B96: 4312 | C96: CA | D96: SNT CT O | E96: Oil | F96: conventional | G96: UNK | H96: UNK | I96: V | J96: 1276961 | K96: 335390 | L96: 3924218 | M96: UNK (unknown) | N96: Oil | O96: CA Off-shore (CA)
A97: Central Montana Uplift | B97: 25005 | C97: MT | D97: BLAINE | E97: Gas | F97: conventional | G97: UNK | H97: UNK | J97: 0 | K97: 12812 | L97: 42 | M97: UNK (unknown) | N97: Gas | O97: Central Montana Uplift (MT)
A98: Central Montana Uplift | B98: 25005 | C98: MT | D98: BLAINE | E98: Gas | F98: conventional | G98: UNK | H98: UNK | I98: D | J98: 0 | K98: 427939 | L98: 18330 | M98: UNK (unknown) | N98: Gas | O98: Central Montana Uplift (MT)
A99: Central Montana Uplift | B99: 25005 | C99: MT | D99: BLAINE | E99: Gas | F99: conventional | G99: UNK | H99: UNK | I99: V | J99: 0 | K99: 4453200 | L99: 541482 | M99: UNK (unknown) | N99: Gas | O99: Central Montana Uplift (MT)
A100: Central Montana Uplift | B100: 25005 | C100: MT | D100: BLAINE | E100: Oil | F100: conventional | G100: UNK | H100: UNK | I100: D | J100: 11134 | K100: 0 | L100: 37476 | M100: UNK (unknown) | N100: Oil | O100: Central Montana Uplift (MT)
A101: Central Montana Uplift | B101: 25005 | C101: MT | D101: BLAINE | E101: Oil | F101: conventional | G101: UNK | H101: UNK | I101: H | J101: 161889 | K101: 0 | L101: 1217793 | M101: UNK (unknown) | N101: Oil | O101: Central Montana Uplift (MT)
A102: Central Montana Uplift | B102: 25005 | C102: MT | D102: BLAINE | E102: Oil | F102: conventional | G102: UNK | H102: UNK | I102: V | J102: 111047 | K102: 23500 | L102: 855653 | M102: UNK (unknown) | N102: Oil | O102: Central Montana Uplift (MT)
A103: Central Montana Uplift | B103: 25027 | C103: MT | D103: FERGUS | E103: Gas | F103: conventional | G103: UNK | H103: UNK | I103: V | J103: 0 | K103: 16773 | L103: 534 | M103: UNK (unknown) | N103: Gas | O103: Central Montana Uplift (MT)
A104: Central Montana Uplift | B104: 25037 | C104: MT | D104: GLDN VAL | E104: Gas | F104: conventional | G104: UNK | H104: UNK | I104: V | J104: 0 | K104: 119720 | L104: 0 | M104: UNK (unknown) | N104: Gas | O104: Central Montana Uplift (MT)
A105: Central Montana Uplift | B105: 25065 | C105: MT | D105: MSSLSHEL | E105: Oil | F105: conventional | G105: TIGHT OIL (L) | H105: HEATH SHALE | I105: H | J105: 7133 | K105: 1373 | L105: 22438 | M105: HEATH SHALE (TIGHT OIL (L)) | N105: Oil | O105: Central Montana Uplift (MT)
A106: Central Montana Uplift | B106: 25065 | C106: MT | D106: MSSLSHEL | E106: Oil | F106: conventional | G106: UNK | H106: UNK | I106: H | J106: 4326 | K106: 0 | L106: 1133253 | M106: UNK (unknown) | N106: Oil | O106: Central Montana Uplift (MT)
A107: Central Montana Uplift | B107: 25065 | C107: MT | D107: MSSLSHEL | E107: Oil | F107: conventional | G107: UNK | H107: UNK | I107: V | J107: 162837 | K107: 5817 | L107: 7281570 | M107: UNK (unknown) | N107: Oil | O107: Central Montana Uplift (MT)
A108: Central Montana Uplift | B108: 25069 | C108: MT | D108: PETROLEM | E108: Oil | F108: conventional | G108: UNK | H108: UNK | I108: V | J108: 21787 | K108: 4368 | L108: 1430750 | M108: UNK (unknown) | N108: Oil | O108: Central Montana Uplift (MT)
A109: Central Montana Uplift | B109: 25087 | C109: MT | D109: ROSEBUD | E109: Gas | F109: conventional | G109: UNK | H109: UNK | I109: V | J109: 6582 | K109: 0 | L109: 0 | M109: UNK (unknown) | N109: Gas | O109: Central Montana Uplift (MT)
A110: Central Montana Uplift | B110: 25087 | C110: MT | D110: ROSEBUD | E110: Oil | F110: conventional | G110: TIGHT OIL (L) | H110: HEATH SHALE | I110: H | J110: 44057 | K110: 16242 | L110: 9014 | M110: HEATH SHALE (TIGHT OIL (L)) | N110: Oil | O110: Central Montana Uplift (MT)
A111: Central Montana Uplift | B111: 25087 | C111: MT | D111: ROSEBUD | E111: Oil | F111: conventional | G111: UNK | H111: UNK | I111: H | J111: 9654 | K111: 4425 | L111: 1647 | M111: UNK (unknown) | N111: Oil | O111: Central Montana Uplift (MT)
A112: Central Montana Uplift | B112: 25087 | C112: MT | D112: ROSEBUD | E112: Oil | F112: conventional | G112: UNK | H112: UNK | I112: V | J112: 209831 | K112: 8580 | L112: 10027329 | M112: UNK (unknown) | N112: Oil | O112: Central Montana Uplift (MT)
A113: Central Montana Uplift | B113: 25095 | C113: MT | D113: STILLWTR | E113: Gas | F113: conventional | G113: UNK | H113: UNK | I113: V | J113: 0 | K113: 110958 | L113: 0 | M113: UNK (unknown) | N113: Gas | O113: Central Montana Uplift (MT)
A114: Central Montana Uplift | B114: 25095 | C114: MT | D114: STILLWTR | E114: Oil | F114: conventional | G114: UNK | H114: UNK | I114: H | J114: 45480 | K114: 0 | L114: 302912 | M114: UNK (unknown) | N114: Oil | O114: Central Montana Uplift (MT)
A115: Central Montana Uplift | B115: 25095 | C115: MT | D115: STILLWTR | E115: Oil | F115: conventional | G115: UNK | H115: UNK | I115: V | J115: 0 | K115: 10669 | L115: 0 | M115: UNK (unknown) | N115: Oil | O115: Central Montana Uplift (MT)
A116: Central Montana Uplift | B116: 25097 | C116: MT | D116: SWEET GR | E116: Gas | F116: conventional | G116: UNK | H116: UNK | J116: 0 | K116: 4289 | L116: 0 | M116: UNK (unknown) | N116: Gas | O116: Central Montana Uplift (MT)
A117: Central Montana Uplift | B117: 25097 | C117: MT | D117: SWEET GR | E117: Gas | F117: conventional | G117: UNK | H117: UNK | I117: V | J117: 0 | K117: 17209 | L117: 0 | M117: UNK (unknown) | N117: Gas | O117: Central Montana Uplift (MT)
A118: Central Western Overthrust | B118: 43043 | C118: UT | D118: SUMMIT | E118: Gas | F118: conventional | G118: UNK | H118: UNK | I118: D | J118: 20356 | K118: 2411530 | L118: 704493 | M118: UNK (unknown) | N118: Gas | O118: Central Western Overthrust (UT)
A119: Central Western Overthrust | B119: 43043 | C119: UT | D119: SUMMIT | E119: Gas | F119: conventional | G119: UNK | H119: UNK | I119: V | J119: 3026 | K119: 770316 | L119: 151200 | M119: UNK (unknown) | N119: Gas | O119: Central Western Overthrust (UT)
A120: Central Western Overthrust | B120: 43043 | C120: UT | D120: SUMMIT | E120: Oil | F120: conventional | G120: UNK | H120: UNK | J120: 49633 | K120: 133161 | L120: 2505525 | M120: UNK (unknown) | N120: Oil | O120: Central Western Overthrust (UT)
A121: Central Western Overthrust | B121: 43043 | C121: UT | D121: SUMMIT | E121: Oil | F121: conventional | G121: UNK | H121: UNK | I121: D | J121: 16632 | K121: 43231 | L121: 399007 | M121: UNK (unknown) | N121: Oil | O121: Central Western Overthrust (UT)
A122: Central Western Overthrust | B122: 43043 | C122: UT | D122: SUMMIT | E122: Oil | F122: conventional | G122: UNK | H122: UNK | I122: H | J122: 7891 | K122: 6635 | L122: 2720 | M122: UNK (unknown) | N122: Oil | O122: Central Western Overthrust (UT)
A123: Central Western Overthrust | B123: 43043 | C123: UT | D123: SUMMIT | E123: Oil | F123: conventional | G123: UNK | H123: UNK | I123: V | J123: 120650 | K123: 242538 | L123: 2165432 | M123: UNK (unknown) | N123: Oil | O123: Central Western Overthrust (UT)
A124: Green River Basin | B124: 49023 | C124: WY | D124: LINCOLN | E124: Gas | F124: conventional | G124: BLANK | H124: BLANK | I124: D | J124: 932 | K124: 431022 | L124: 3130 | M124: BLANK (unknown | N124: Gas | O124: Green River Basin (WY)
A125: Green River Basin | B125: 49023 | C125: WY | D125: LINCOLN | E125: Gas | F125: conventional | G125: BLANK | H125: BLANK | I125: V | J125: 5054 | K125: 1326680 | L125: 13533 | M125: BLANK (unknown | N125: Gas | O125: Green River Basin (WY)
A126: Green River Basin | B126: 49023 | C126: WY | D126: LINCOLN | E126: Gas | F126: conventional | G126: SHALE GAS (G) | H126: BAXTER/HILLIARD SHALE | I126: D | J126: 1717 | K126: 496761 | L126: 3925 | M126: BAXTER/HILLIARD SHALE (SHALE GAS (G)) | N126: Gas | O126: Green River Basin (WY)
A127: Green River Basin | B127: 49023 | C127: WY | D127: LINCOLN | E127: Gas | F127: conventional | G127: SHALE GAS (G) | H127: BAXTER/HILLIARD SHALE | I127: V | J127: 4655 | K127: 1008044 | L127: 11457 | M127: BAXTER/HILLIARD SHALE (SHALE GAS (G)) | N127: Gas | O127: Green River Basin (WY)
A128: Green River Basin | B128: 49023 | C128: WY | D128: LINCOLN | E128: Gas | F128: conventional | G128: UNK | H128: UNK | J128: 22 | K128: 14250 | L128: 3 | M128: UNK (unknown) | N128: Gas | O128: Green River Basin (WY)
A129: Green River Basin | B129: 49023 | C129: WY | D129: LINCOLN | E129: Gas | F129: conventional | G129: UNK | H129: UNK | I129: D | J129: 16954 | K129: 6779439 | L129: 47935 | M129: UNK (unknown) | N129: Gas | O129: Green River Basin (WY)
A130: Green River Basin | B130: 49023 | C130: WY | D130: LINCOLN | E130: Gas | F130: conventional | G130: UNK | H130: UNK | I130: H | J130: 5275 | K130: 1838507 | L130: 15748 | M130: UNK (unknown) | N130: Gas | O130: =A130&" ("&C130&")" -> Green River Basin (WY)
A131: Green River Basin | B131: 49023 | C131: WY | D131: LINCOLN | E131: Gas | F131: conventional | G131: UNK | H131: UNK | I131: V | J131: 254194 | K131: 39673551 | L131: 323499 | M131: =H131&" ("&IF(G131="BLANK","unknown",IF(G131="UNK","unknown",G131)&")") -> UNK (unknown) | N131: =IF(F131="coalbed methane","CBM",E131) -> Gas | O131: Green River Basin (WY)
A132: Green River Basin | B132: 49023 | C132: WY | D132: LINCOLN | E132: Oil | F132: conventional | G132: BLANK | H132: BLANK | I132: V | J132: 5364 | K132: 16428 | L132: 20387 | M132: BLANK (unknown | N132: Oil | O132: Green River Basin (WY)
A133: Green River Basin | B133: 49023 | C133: WY | D133: LINCOLN | E133: Oil | F133: conventional | G133: SHALE GAS (G) | H133: BAXTER/HILLIARD SHALE | I133: D | J133: 44 | K133: 32852 | L133: 338 | M133: BAXTER/HILLIARD SHALE (SHALE GAS (G)) | N133: Oil | O133: Green River Basin (WY)
A134: Green River Basin | B134: 49023 | C134: WY | D134: LINCOLN | E134: Oil | F134: conventional | G134: UNK | H134: UNK | I134: D | J134: 7453 | K134: 61651 | L134: 5613 | M134: UNK (unknown) | N134: Oil | O134: Green River Basin (WY)
A135: Green River Basin | B135: 49023 | C135: WY | D135: LINCOLN | E135: Oil | F135: conventional | G135: UNK | H135: UNK | I135: V | J135: 86068 | K135: 772353 | L135: 211312 | M135: UNK (unknown) | N135: Oil | O135: Green River Basin (WY)
A136: Green River Basin | B136: 49041 | C136: WY | D136: UINTA | E136: Gas | F136: coalbed methane | G136: TIGHT GAS (T) | H136: MOXA ARCH | I136: V | J136: 573 | K136: 57569 | L136: 318 | M136: MOXA ARCH (TIGHT GAS (T)) | N136: CBM | O136: Green River Basin (WY)
A137: Green River Basin | B137: 49041 | C137: WY | D137: UINTA | E137: Gas | F137: conventional | G137: TIGHT GAS (T) | H137: MOXA ARCH | I137: D | J137: 12266 | K137: 1460861 | L137: 8399 | M137: MOXA ARCH (TIGHT GAS (T)) | N137: Gas | O137: Green River Basin (WY)
A138: Green River Basin | B138: 49041 | C138: WY | D138: UINTA | E138: Gas | F138: conventional | G138: TIGHT GAS (T) | H138: MOXA ARCH | I138: V | J138: 80849 | K138: 13389873 | L138: 105203 | M138: MOXA ARCH (TIGHT GAS (T)) | N138: Gas | O138: Green River Basin (WY)
A139: Green River Basin | B139: 49041 | C139: WY | D139: UINTA | E139: Gas | F139: conventional | G139: UNK | H139: UNK | J139: 680 | K139: 44149 | L139: 521 | M139: UNK (unknown) | N139: Gas | O139: Green River Basin (WY)
A140: Green River Basin | B140: 49041 | C140: WY | D140: UINTA | E140: Gas | F140: conventional | G140: UNK | H140: UNK | I140: D | J140: 57750 | K140: 9539244 | L140: 299903 | M140: UNK (unknown) | N140: Gas | O140: Green River Basin (WY)
A141: Green River Basin | B141: 49041 | C141: WY | D141: UINTA | E141: Gas | F141: conventional | G141: UNK | H141: UNK | I141: H | J141: 67775 | K141: 13383901 | L141: 29990 | M141: UNK (unknown) | N141: Gas | O141: Green River Basin (WY)
A142: Green River Basin | B142: 49041 | C142: WY | D142: UINTA | E142: Gas | F142: conventional | G142: UNK | H142: UNK | I142: V | J142: 106976 | K142: 10154579 | L142: 271353 | M142: =H142&" ("&IF(G142="BLANK","unknown",IF(G142="UNK","unknown",G142)&")") -> UNK (unknown) | N142: Gas | O142: Green River Basin (WY)
A143: Green River Basin | B143: 49041 | C143: WY | D143: UINTA | E143: Oil | F143: conventional | G143: TIGHT GAS (T) | H143: MOXA ARCH | I143: V | J143: 1248 | K143: 79320 | L143: 550 | M143: MOXA ARCH (TIGHT GAS (T)) | N143: Oil | O143: Green River Basin (WY)
A144: Green River Basin | B144: 49041 | C144: WY | D144: UINTA | E144: Oil | F144: conventional | G144: UNK | H144: UNK | I144: D | J144: 6065 | K144: 1709995 | L144: 51463 | M144: UNK (unknown) | N144: Oil | O144: Green River Basin (WY)
A145: Green River Basin | B145: 49041 | C145: WY | D145: UINTA | E145: Oil | F145: conventional | G145: UNK | H145: UNK | I145: H | J145: 272459 | K145: 40777377 | L145: 218675 | M145: UNK (unknown) | N145: Oil | O145: Green River Basin (WY)
A146: Green River Basin | B146: 49041 | C146: WY | D146: UINTA | E146: Oil | F146: conventional | G146: UNK | H146: UNK | I146: V | J146: 197411 | K146: 6211917 | L146: 706793 | M146: UNK (unknown) | N146: Oil | O146: Green River Basin (WY)
A147: Coastal Basins | B147: 4053 | C147: CA | D147: MONTEREY | E147: Oil | F147: conventional | G147: UNK | H147: UNK | J147: 738 | K147: 127 | L147: 48417 | M147: UNK (unknown) | N147: Oil | O147: Coastal Basins (CA)
A148: Coastal Basins | B148: 4053 | C148: CA | D148: MONTEREY | E148: Oil | F148: conventional | G148: UNK | H148: UNK | I148: D | J148: 3208711 | K148: 431031 | L148: 47644715 | M148: UNK (unknown) | N148: Oil | O148: Coastal Basins (CA)
A149: Coastal Basins | B149: 4053 | C149: CA | D149: MONTEREY | E149: Oil | F149: conventional | G149: UNK | H149: UNK | I149: H | J149: 1727006 | K149: 187323 | L149: 19702647 | M149: UNK (unknown) | N149: Oil | O149: Coastal Basins (CA)
A150: Coastal Basins | B150: 4053 | C150: CA | D150: MONTEREY | E150: Oil | F150: conventional | G150: UNK | H150: UNK | I150: V | J150: 3068674 | K150: 397446 | L150: 52661123 | M150: UNK (unknown) | N150: Oil | O150: Coastal Basins (CA)
A151: Coastal Basins | B151: 4079 | C151: CA | D151: SAN LU O | E151: Oil | F151: conventional | G151: UNK | H151: UNK | I151: D | J151: 341828 | K151: 626899 | L151: 7883203 | M151: UNK (unknown) | N151: Oil | O151: Coastal Basins (CA)
A152: Coastal Basins | B152: 4079 | C152: CA | D152: SAN LU O | E152: Oil | F152: conventional | G152: UNK | H152: UNK | I152: H | J152: 365 | K152: 690 | L152: 188626 | M152: UNK (unknown) | N152: Oil | O152: Coastal Basins (CA)
A153: Coastal Basins | B153: 4079 | C153: CA | D153: SAN LU O | E153: Oil | F153: conventional | G153: UNK | H153: UNK | I153: V | J153: 129638 | K153: 201733 | L153: 2445750 | M153: UNK (unknown) | N153: Oil | O153: Coastal Basins (CA)
A154: Denver Basin | B154: 5001 | C154: CO | D154: ADAMS | E154: Gas | F154: conventional | G154: BLANK | H154: BLANK | I154: V | J154: 111 | K154: 6374 | L154: 0 | M154: BLANK (unknown | N154: Gas | O154: Denver Basin (CO)
A155: Denver Basin | B155: 5001 | C155: CO | D155: ADAMS | E155: Gas | F155: conventional | G155: TIGHT GAS (T) | H155: NIOBRARA - WATTENBERG | I155: D | J155: 14358 | K155: 75175 | L155: 2368 | M155: NIOBRARA - WATTENBERG (TIGHT GAS (T)) | N155: Gas | O155: Denver Basin (CO)
A156: Denver Basin | B156: 5001 | C156: CO | D156: ADAMS | E156: Gas | F156: conventional | G156: TIGHT GAS (T) | H156: NIOBRARA - WATTENBERG | I156: V | J156: 7076 | K156: 43906 | L156: 718 | M156: NIOBRARA - WATTENBERG (TIGHT GAS (T)) | N156: Gas | O156: Denver Basin (CO)
A157: Denver Basin | B157: 5001 | C157: CO | D157: ADAMS | E157: Gas | F157: conventional | G157: TIGHT GAS (T) | H157: WATTENBERG TIGHT GAS | I157: D | J157: 16345 | K157: 274323 | L157: 3569 | M157: WATTENBERG TIGHT GAS (TIGHT GAS (T)) | N157: Gas | O157: Denver Basin (CO)
A158: Denver Basin | B158: 5001 | C158: CO | D158: ADAMS | E158: Gas | F158: conventional | G158: TIGHT GAS (T) | H158: WATTENBERG TIGHT GAS | I158: V | J158: 62645 | K158: 1827627 | L158: 53775 | M158: WATTENBERG TIGHT GAS (TIGHT GAS (T)) | N158: Gas | O158: Denver Basin (CO)
A159: Denver Basin | B159: 5001 | C159: CO | D159: ADAMS | E159: Gas | F159: conventional | G159: TIGHT OIL (L) | H159: NIOBRARA OIL - DENVER BASIN | I159: D | J159: 813 | K159: 4073 | L159: 51 | M159: NIOBRARA OIL - DENVER BASIN (TIGHT OIL (L)) | N159: Gas | O159: Denver Basin (CO)
A160: Denver Basin | B160: 5001 | C160: CO | D160: ADAMS | E160: Gas | F160: conventional | G160: TIGHT OIL (L) | H160: NIOBRARA OIL - DENVER BASIN | I160: V | J160: 2164 | K160: 20737 | L160: 220 | M160: NIOBRARA OIL - DENVER BASIN (TIGHT OIL (L)) | N160: Gas | O160: Denver Basin (CO)
A161: Denver Basin | B161: 5001 | C161: CO | D161: ADAMS | E161: Gas | F161: conventional | G161: UNK | H161: UNK | I161: D | J161: 306 | K161: 13582 | L161: 0 | M161: UNK (unknown) | N161: Gas | O161: Denver Basin (CO)
A162: Denver Basin | B162: 5001 | C162: CO | D162: ADAMS | E162: Gas | F162: conventional | G162: UNK | H162: UNK | I162: V | J162: 8231 | K162: 120757 | L162: 3439 | M162: UNK (unknown) | N162: Gas | O162: Denver Basin (CO)
A163: Denver Basin | B163: 5001 | C163: CO | D163: ADAMS | E163: Gas | F163: tight gas | G163: TIGHT GAS (T) | H163: NIOBRARA - WATTENBERG | I163: V | J163: 60 | K163: 77 | L163: 140 | M163: NIOBRARA - WATTENBERG (TIGHT GAS (T)) | N163: Gas | O163: Denver Basin (CO)
A164: Denver Basin | B164: 5001 | C164: CO | D164: ADAMS | E164: Gas | F164: tight gas | G164: TIGHT GAS (T) | H164: WATTENBERG TIGHT GAS | I164: D | J164: 795 | K164: 53260 | L164: 978 | M164: WATTENBERG TIGHT GAS (TIGHT GAS (T)) | N164: Gas | O164: Denver Basin (CO)
A165: Denver Basin | B165: 5001 | C165: CO | D165: ADAMS | E165: Gas | F165: tight gas | G165: TIGHT GAS (T) | H165: WATTENBERG TIGHT GAS | I165: V | J165: 7778 | K165: 336285 | L165: 4812 | M165: WATTENBERG TIGHT GAS (TIGHT GAS (T)) | N165: Gas | O165: Denver Basin (CO)
A166: Denver Basin | B166: 5001 | C166: CO | D166: ADAMS | E166: Gas | F166: tight gas | G166: UNK | H166: UNK | I166: V | J166: 1002 | K166: 50115 | L166: 413 | M166: UNK (unknown) | N166: Gas | O166: Denver Basin (CO)
A167: Denver Basin | B167: 5001 | C167: CO | D167: ADAMS | E167: Oil | F167: conventional | G167: BLANK | H167: BLANK | I167: V | J167: 9301 | K167: 77384 | L167: 21345 | M167: BLANK (unknown | N167: Oil | O167: Denver Basin (CO)
A168: Denver Basin | B168: 5001 | C168: CO | D168: ADAMS | E168: Oil | F168: conventional | G168: TIGHT GAS (T) | H168: WATTENBERG TIGHT GAS | I168: V | J168: 8739 | K168: 124162 | L168: 3455 | M168: WATTENBERG TIGHT GAS (TIGHT GAS (T)) | N168: Oil | O168: Denver Basin (CO)
A169: Denver Basin | B169: 5001 | C169: CO | D169: ADAMS | E169: Oil | F169: conventional | G169: TIGHT OIL (L) | H169: NIOBRARA OIL - DENVER BASIN | I169: D | J169: 2976 | K169: 15694 | L169: 85 | M169: NIOBRARA OIL - DENVER BASIN (TIGHT OIL (L)) | N169: Oil | O169: Denver Basin (CO)
A170: Denver Basin | B170: 5001 | C170: CO | D170: ADAMS | E170: Oil | F170: conventional | G170: TIGHT OIL (L) | H170: NIOBRARA OIL - DENVER BASIN | I170: H | J170: 158716 | K170: 332003 | L170: 90494 | M170: NIOBRARA OIL - DENVER BASIN (TIGHT OIL (L)) | N170: Oil | O170: Denver Basin (CO)
A171: Denver Basin | B171: 5001 | C171: CO | D171: ADAMS | E171: Oil | F171: conventional | G171: TIGHT OIL (L) | H171: NIOBRARA OIL - DENVER BASIN | I171: V | J171: 1455 | K171: 4460 | L171: 377 | M171: NIOBRARA OIL - DENVER BASIN (TIGHT OIL (L)) | N171: Oil | O171: Denver Basin (CO)
A172: Denver Basin | B172: 5001 | C172: CO | D172: ADAMS | E172: Oil | F172: conventional | G172: UNK | H172: UNK | I172: D | J172: 6518 | K172: 75565 | L172: 1754 | M172: UNK (unknown) | N172: Oil | O172: Denver Basin (CO)
A173: Denver Basin | B173: 5001 | C173: CO | D173: ADAMS | E173: Oil | F173: conventional | G173: UNK | H173: UNK | I173: H | J173: 90930 | K173: 281908 | L173: 40501 | M173: UNK (unknown) | N173: Oil | O173: Denver Basin (CO)
A174: Denver Basin | B174: 5001 | C174: CO | D174: ADAMS | E174: Oil | F174: conventional | G174: UNK | H174: UNK | I174: V | J174: 128399 | K174: 829699 | L174: 732007 | M174: UNK (unknown) | N174: Oil | O174: Denver Basin (CO)
A175: Denver Basin | B175: 5001 | C175: CO | D175: ADAMS | E175: Oil | F175: tight gas | G175: BLANK | H175: BLANK | I175: V | J175: 69 | K175: 2249 | L175: 35 | M175: BLANK (unknown | N175: Oil | O175: Denver Basin (CO)
A176: Denver Basin | B176: 5001 | C176: CO | D176: ADAMS | E176: Oil | F176: tight gas | G176: TIGHT GAS (T) | H176: WATTENBERG TIGHT GAS | I176: V | J176: 477 | K176: 10986 | L176: 217 | M176: WATTENBERG TIGHT GAS (TIGHT GAS (T)) | N176: Oil | O176: Denver Basin (CO)
A177: Denver Basin | B177: 5001 | C177: CO | D177: ADAMS | E177: Oil | F177: tight gas | G177: UNK | H177: UNK | I177: V | J177: 9341 | K177: 110283 | L177: 5880 | M177: UNK (unknown) | N177: Oil | O177: Denver Basin (CO)
A178: Denver Basin | B178: 5005 | C178: CO | D178: ARAPAHOE | E178: Gas | F178: conventional | G178: TIGHT GAS (T) | H178: WATTENBERG TIGHT GAS | I178: V | J178: 2569 | K178: 82261 | L178: 3147 | M178: WATTENBERG TIGHT GAS (TIGHT GAS (T)) | N178: Gas | O178: Denver Basin (CO)
A179: Denver Basin | B179: 5005 | C179: CO | D179: ARAPAHOE | E179: Gas | F179: conventional | G179: TIGHT OIL (L) | H179: NIOBRARA OIL - DENVER BASIN | I179: H | J179: 50287 | K179: 105454 | L179: 37170 | M179: NIOBRARA OIL - DENVER BASIN (TIGHT OIL (L)) | N179: Gas | O179: Denver Basin (CO)
A180: Denver Basin | B180: 5005 | C180: CO | D180: ARAPAHOE | E180: Gas | F180: conventional | G180: UNK | H180: UNK | I180: V | J180: 153 | K180: 5313 | L180: 0 | M180: UNK (unknown) | N180: Gas | O180: Denver Basin (CO)
A181: Denver Basin | B181: 5005 | C181: CO | D181: ARAPAHOE | E181: Gas | F181: tight gas | G181: TIGHT GAS (T) | H181: WATTENBERG TIGHT GAS | I181: V | J181: 571 | K181: 24585 | L181: 229 | M181: WATTENBERG TIGHT GAS (TIGHT GAS (T)) | N181: Gas | O181: Denver Basin (CO)
A182: Denver Basin | B182: 5005 | C182: CO | D182: ARAPAHOE | E182: Oil | F182: conventional | G182: BLANK | H182: BLANK | I182: V | J182: 223 | K182: 724 | L182: 149 | M182: BLANK (unknown | N182: Oil | O182: Denver Basin (CO)
A183: Denver Basin | B183: 5005 | C183: CO | D183: ARAPAHOE | E183: Oil | F183: conventional | G183: TIGHT GAS (T) | H183: WATTENBERG TIGHT GAS | I183: V | J183: 4369 | K183: 13231 | L183: 1053 | M183: WATTENBERG TIGHT GAS (TIGHT GAS (T)) | N183: Oil | O183: Denver Basin (CO)
A184: Denver Basin | B184: 5005 | C184: CO | D184: ARAPAHOE | E184: Oil | F184: conventional | G184: TIGHT OIL (L) | H184: NIOBRARA OIL - DENVER BASIN | I184: H | J184: 912615 | K184: 1195023 | L184: 265283 | M184: NIOBRARA OIL - DENVER BASIN (TIGHT OIL (L)) | N184: Oil | O184: Denver Basin (CO)
A185: Denver Basin | B185: 5005 | C185: CO | D185: ARAPAHOE | E185: Oil | F185: conventional | G185: TIGHT OIL (L) | H185: NIOBRARA OIL - DENVER BASIN | I185: V | J185: 696 | K185: 1101 | L185: 1098 | M185: NIOBRARA OIL - DENVER BASIN (TIGHT OIL (L)) | N185: Oil | O185: Denver Basin (CO)
A186: Denver Basin | B186: 5005 | C186: CO | D186: ARAPAHOE | E186: Oil | F186: conventional | G186: UNK | H186: UNK | I186: D | J186: 684 | K186: 0 | L186: 405 | M186: UNK (unknown) | N186: Oil | O186: Denver Basin (CO)
A187: Denver Basin | B187: 5005 | C187: CO | D187: ARAPAHOE | E187: Oil | F187: conventional | G187: UNK | H187: UNK | I187: V | J187: 44937 | K187: 169752 | L187: 204604 | M187: UNK (unknown) | N187: Oil | O187: Denver Basin (CO)
A188: Denver Basin | B188: 5005 | C188: CO | D188: ARAPAHOE | E188: Oil | F188: tight gas | G188: UNK | H188: UNK | I188: V | J188: 1838 | K188: 20584 | L188: 145 | M188: UNK (unknown) | N188: Oil | O188: Denver Basin (CO)
A189: Denver Basin | B189: 5013 | C189: CO | D189: BOULDER | E189: Gas | F189: conventional | G189: BLANK | H189: BLANK | I189: D | J189: 1523 | K189: 11030 | L189: 198 | M189: BLANK (unknown | N189: Gas | O189: Denver Basin (CO)
A190: Denver Basin | B190: 5013 | C190: CO | D190: BOULDER | E190: Gas | F190: conventional | G190: TIGHT GAS (T) | H190: NIOBRARA - WATTENBERG | I190: D | J190: 4229 | K190: 55697 | L190: 1154 | M190: NIOBRARA - WATTENBERG (TIGHT GAS (T)) | N190: Gas | O190: Denver Basin (CO)
A191: Denver Basin | B191: 5013 | C191: CO | D191: BOULDER | E191: Gas | F191: conventional | G191: TIGHT GAS (T) | H191: NIOBRARA - WATTENBERG | I191: V | J191: 11060 | K191: 136221 | L191: 2634 | M191: NIOBRARA - WATTENBERG (TIGHT GAS (T)) | N191: Gas | O191: Denver Basin (CO)
A192: Denver Basin | B192: 5013 | C192: CO | D192: BOULDER | E192: Gas | F192: conventional | G192: TIGHT GAS (T) | H192: WATTENBERG TIGHT GAS | I192: D | J192: 51162 | K192: 736720 | L192: 9227 | M192: WATTENBERG TIGHT GAS (TIGHT GAS (T)) | N192: Gas | O192: Denver Basin (CO)
A193: Denver Basin | B193: 5013 | C193: CO | D193: BOULDER | E193: Gas | F193: conventional | G193: TIGHT GAS (T) | H193: WATTENBERG TIGHT GAS | I193: V | J193: 34752 | K193: 679108 | L193: 8279 | M193: WATTENBERG TIGHT GAS (TIGHT GAS (T)) | N193: Gas | O193: Denver Basin (CO)
A194: Denver Basin | B194: 5013 | C194: CO | D194: BOULDER | E194: Gas | F194: conventional | G194: TIGHT OIL (L) | H194: NIOBRARA OIL - DENVER BASIN | I194: D | J194: 1397 | K194: 19129 | L194: 344 | M194: NIOBRARA OIL - DENVER BASIN (TIGHT OIL (L)) | N194: Gas | O194: =A194&" ("&C194&")" -> Denver Basin (CO)
A195: Denver Basin | B195: 5013 | C195: CO | D195: BOULDER | E195: Gas | F195: conventional | G195: TIGHT OIL (L) | H195: NIOBRARA OIL - DENVER BASIN | I195: V | J195: 1071 | K195: 18517 | L195: 652 | M195: NIOBRARA OIL - DENVER BASIN (TIGHT OIL (L)) | N195: =IF(F195="coalbed methane","CBM",E195) -> Gas | O195: Denver Basin (CO)
A196: Denver Basin | B196: 5013 | C196: CO | D196: BOULDER | E196: Gas | F196: conventional | G196: UNK | H196: UNK | I196: V | J196: 1232 | K196: 34653 | L196: 347 | M196: UNK (unknown) | N196: Gas | O196: Denver Basin (CO)
A197: Denver Basin | B197: 5013 | C197: CO | D197: BOULDER | E197: Gas | F197: tight gas | G197: BLANK | H197: BLANK | I197: V | J197: 881 | K197: 23342 | L197: 384 | M197: BLANK (unknown | N197: Gas | O197: Denver Basin (CO)
A198: Denver Basin | B198: 5013 | C198: CO | D198: BOULDER | E198: Gas | F198: tight gas | G198: TIGHT GAS (T) | H198: NIOBRARA - WATTENBERG | I198: V | J198: 520 | K198: 9507 | L198: 96 | M198: NIOBRARA - WATTENBERG (TIGHT GAS (T)) | N198: Gas | O198: Denver Basin (CO)
A199: Denver Basin | B199: 5013 | C199: CO | D199: BOULDER | E199: Gas | F199: tight gas | G199: TIGHT GAS (T) | H199: WATTENBERG TIGHT GAS | I199: V | J199: 8109 | K199: 198918 | L199: 2058 | M199: WATTENBERG TIGHT GAS (TIGHT GAS (T)) | N199: Gas | O199: Denver Basin (CO)
A200: Denver Basin | B200: 5013 | C200: CO | D200: BOULDER | E200: Gas | F200: tight gas | G200: UNK | H200: UNK | I200: V | J200: 688 | K200: 9818 | L200: 53 | M200: UNK (unknown) | N200: Gas | O200: Denver Basin (CO)
... 1035 more rows

Sheet Wells.298 (hidden)
X1: Sum of CountOfIHS_FIPS
A2: BASIN | B2: IHS_FIPS | C2: LeaseType | D2: CBMstatus | E2: DirectionalDrillFlag | F2: PlayType | G2: PlayName | H2: CountOfIHS_FIPS | I2: Final Well Count | J2: =G2&" ("&IF(F2="BLANK","unknown",IF(F2="UNK","unknown",F2)&")") -> PlayName (PlayType) | K2: State | L2: County | M2: =A2&" ("&K2&")" -> BASIN (State) | N2: Final Well Type | R2: IHSFIPS | S2: Expr1 | T2: CountOfAPI_10 | X2: IHS_FIPS | Y2: Final Well Type | Z2: Total
A3: AK Off-shore | B3: 50629 | C3: Oil | D3: conventional | E3: H | F3: UNK | G3: UNK | H3: 14 | I3: =IF(ISNA(VLOOKUP(B3&N3,$V$3:$AA$329,6,FALSE))=TRUE,0,ROUND(H3*VLOOKUP(B3&N3,$V$3:$AA$329,6,FALSE),0)) -> 14 | J3: =G3&" ("&IF(F3="BLANK","unknown",IF(F3="UNK","unknown",F3)&")") -> UNK (unknown) | K3: =VLOOKUP(VALUE(LEFT(TEXT(B3,"00000"),2)),xref!$B$3:$E$4326,4,FALSE) -> AK | L3: =VLOOKUP(TEXT(B3,"00000"),xref!$L$2:$P$3244,5,FALSE) -> BCHY P O | M3: =A3&" ("&K3&")" -> AK Off-shore (AK) | N3: =IF(D3="coalbed methane","CBM",C3) -> Oil | Q3: =R3&S3 -> 11075Gas | R3: 11075 | S3: Gas | T3: 1 | V3: =W3&Y3 -> 5001Gas | W3: =IF(X3="",W2,X3) -> 5001 | X3: 5001 | Y3: Gas | Z3: 529 | AA3: =VLOOKUP(V3,$Q$3:$T$330,4,FALSE)/Z3 -> 0.8109640832
A4: AK Off-shore | B4: 50703 | C4: Oil | D4: conventional | E4: H | F4: UNK | G4: UNK | H4: 20 | I4: =IF(ISNA(VLOOKUP(B4&N4,$V$3:$AA$329,6,FALSE))=TRUE,0,ROUND(H4*VLOOKUP(B4&N4,$V$3:$AA$329,6,FALSE),0)) -> 20 | J4: UNK (unknown) | K4: =VLOOKUP(VALUE(LEFT(TEXT(B4,"00000"),2)),xref!$B$3:$E$4326,4,FALSE) -> AK | L4: =VLOOKUP(TEXT(B4,"00000"),xref!$L$2:$P$3244,5,FALSE) -> HRSN B O | M4: AK Off-shore (AK) | N4: =IF(D4="coalbed methane","CBM",C4) -> Oil | Q4: =R4&S4 -> 13002Oil | R4: 13002 | S4: Oil | T4: 1 | V4: =W4&Y4 -> 5001Oil | W4: =IF(X4="",W3,X4) -> 5001 | Y4: Oil | Z4: 491 | AA4: =VLOOKUP(V4,$Q$3:$T$330,4,FALSE)/Z4 -> 0.8696537678
A5: AK Off-shore | B5: 50733 | C5: Gas | D5: conventional | F5: UNK | G5: UNK | H5: 1 | I5: 1 | J5: UNK (unknown) | K5: =VLOOKUP(VALUE(LEFT(TEXT(B5,"00000"),2)),xref!$B$3:$E$4326,4,FALSE) -> AK | L5: =VLOOKUP(TEXT(B5,"00000"),xref!$L$2:$P$3244,5,FALSE) -> KENAI O | M5: AK Off-shore (AK) | N5: Gas | Q5: 2001Gas | R5: 2001 | S5: Gas | T5: 8 | V5: 5005Gas | W5: 5005 | X5: 5005 | Y5: Gas | Z5: 22 | AA5: 0.9090909091
A6: AK Off-shore | B6: 50733 | C6: Gas | D6: conventional | E6: D | F6: UNK | G6: UNK | H6: 24 | I6: 22 | J6: UNK (unknown) | K6: =VLOOKUP(VALUE(LEFT(TEXT(B6,"00000"),2)),xref!$B$3:$E$4326,4,FALSE) -> AK | L6: =VLOOKUP(TEXT(B6,"00000"),xref!$L$2:$P$3244,5,FALSE) -> KENAI O | M6: AK Off-shore (AK) | N6: Gas | Q6: 2001Oil | R6: 2001 | S6: Oil | T6: 56 | V6: 5005Oil | W6: 5005 | Y6: Oil | Z6: 119 | AA6: 0.9495798319
A7: AK Off-shore | B7: 50733 | C7: Gas | D7: conventional | E7: H | F7: UNK | G7: UNK | H7: 3 | I7: 3 | J7: UNK (unknown) | K7: =VLOOKUP(VALUE(LEFT(TEXT(B7,"00000"),2)),xref!$B$3:$E$4326,4,FALSE) -> AK | L7: =VLOOKUP(TEXT(B7,"00000"),xref!$L$2:$P$3244,5,FALSE) -> KENAI O | M7: AK Off-shore (AK) | N7: Gas | Q7: 25000Gas | R7: 25000 | S7: Gas | T7: 1 | V7: 5013Gas | W7: 5013 | X7: 5013 | Y7: Gas | Z7: 472 | AA7: 0.5847457627
A8: AK Off-shore | B8: 50733 | C8: Oil | D8: conventional | F8: UNK | G8: UNK | H8: 1 | I8: 1 | J8: UNK (unknown) | K8: =VLOOKUP(VALUE(LEFT(TEXT(B8,"00000"),2)),xref!$B$3:$E$4326,4,FALSE) -> AK | L8: =VLOOKUP(TEXT(B8,"00000"),xref!$L$2:$P$3244,5,FALSE) -> KENAI O | M8: AK Off-shore (AK) | N8: Oil | Q8: 25003CBM | R8: 25003 | S8: CBM | T8: 78 | V8: 5013Oil | W8: 5013 | Y8: Oil | Z8: 35 | AA8: 0.5428571429
A9: AK Off-shore | B9: 50733 | C9: Oil | D9: conventional | E9: D | F9: UNK | G9: UNK | H9: 169 | I9: 120 | J9: UNK (unknown) | K9: =VLOOKUP(VALUE(LEFT(TEXT(B9,"00000"),2)),xref!$B$3:$E$4326,4,FALSE) -> AK | L9: =VLOOKUP(TEXT(B9,"00000"),xref!$L$2:$P$3244,5,FALSE) -> KENAI O | M9: AK Off-shore (AK) | N9: Oil | Q9: 25003Gas | R9: 25003 | S9: Gas | T9: 94 | V9: 5031Gas | W9: 5031 | X9: 5031 | Y9: Gas | Z9: 29 | AA9: 0.9655172414
A10: AK Off-shore | B10: 50733 | C10: Oil | D10: conventional | E10: H | F10: UNK | G10: UNK | H10: 17 | I10: 12 | J10: UNK (unknown) | K10: =VLOOKUP(VALUE(LEFT(TEXT(B10,"00000"),2)),xref!$B$3:$E$4326,4,FALSE) -> AK | L10: =VLOOKUP(TEXT(B10,"00000"),xref!$L$2:$P$3244,5,FALSE) -> KENAI O | M10: AK Off-shore (AK) | N10: Oil | Q10: 25003Oil | R10: 25003 | S10: Oil | T10: 39 | V10: 5031Oil | W10: 5031 | Y10: Oil | Z10: 12 | AA10: 1
A11: AK Off-shore | B11: 50883 | C11: Gas | D11: conventional | E11: D | F11: UNK | G11: UNK | H11: 9 | I11: 9 | J11: UNK (unknown) | K11: =VLOOKUP(VALUE(LEFT(TEXT(B11,"00000"),2)),xref!$B$3:$E$4326,4,FALSE) -> AK | L11: =VLOOKUP(TEXT(B11,"00000"),xref!$L$2:$P$3244,5,FALSE) -> TYONEK O | M11: AK Off-shore (AK) | N11: Gas | Q11: 25005Gas | R11: 25005 | S11: Gas | T11: 708 | V11: 5039Gas | W11: 5039 | X11: 5039 | Y11: Gas | Z11: 4 | AA11: 1
A12: AK Off-shore | B12: 50883 | C12: Oil | D12: conventional | E12: D | F12: UNK | G12: UNK | H12: 1 | I12: 1 | J12: UNK (unknown) | K12: =VLOOKUP(VALUE(LEFT(TEXT(B12,"00000"),2)),xref!$B$3:$E$4326,4,FALSE) -> AK | L12: =VLOOKUP(TEXT(B12,"00000"),xref!$L$2:$P$3244,5,FALSE) -> TYONEK O | M12: AK Off-shore (AK) | N12: Oil | Q12: 25005Oil | R12: 25005 | S12: Oil | T12: 62 | V12: 5039Oil | W12: 5039 | Y12: Oil | Z12: 64 | AA12: 0.984375
A13: Anadarko Basin | B13: 5009 | C13: Gas | D13: conventional | E13: V | F13: UNK | G13: UNK | H13: 88 | I13: 88 | J13: UNK (unknown) | K13: =VLOOKUP(VALUE(LEFT(TEXT(B13,"00000"),2)),xref!$B$3:$E$4326,4,FALSE) -> CO | L13: =VLOOKUP(TEXT(B13,"00000"),xref!$L$2:$P$3244,5,FALSE) -> Baca | M13: Anadarko Basin (CO) | N13: Gas | Q13: 25009Gas | R13: 25009 | S13: Gas | T13: 29 | V13: 5043Oil | W13: 5043 | X13: 5043 | Y13: Oil | Z13: 61 | AA13: 1
A14: Anadarko Basin | B14: 5009 | C14: Oil | D14: conventional | E14: V | F14: UNK | G14: UNK | H14: 22 | I14: 22 | J14: UNK (unknown) | K14: =VLOOKUP(VALUE(LEFT(TEXT(B14,"00000"),2)),xref!$B$3:$E$4326,4,FALSE) -> CO | L14: =VLOOKUP(TEXT(B14,"00000"),xref!$L$2:$P$3244,5,FALSE) -> Baca | M14: Anadarko Basin (CO) | N14: Oil | Q14: 25009Oil | R14: 25009 | S14: Oil | T14: 74 | V14: 5059Oil | W14: 5059 | X14: 5059 | Y14: Oil | Z14: 1 | AA14: 1
A15: Anadarko Basin | B15: 5099 | C15: Gas | D15: conventional | E15: V | F15: UNK | G15: UNK | H15: 23 | I15: 23 | J15: UNK (unknown) | K15: =VLOOKUP(VALUE(LEFT(TEXT(B15,"00000"),2)),xref!$B$3:$E$4326,4,FALSE) -> CO | L15: =VLOOKUP(TEXT(B15,"00000"),xref!$L$2:$P$3244,5,FALSE) -> Prowers | M15: Anadarko Basin (CO) | N15: Gas | Q15: 25011Oil | R15: 25011 | S15: Oil | T15: 2 | V15: 5069Gas | W15: 5069 | X15: 5069 | Y15: Gas | Z15: 40 | AA15: 0.975
A16: Anadarko Basin | B16: 5099 | C16: Oil | D16: conventional | E16: V | F16: UNK | G16: UNK | H16: 4 | I16: 4 | J16: UNK (unknown) | K16: =VLOOKUP(VALUE(LEFT(TEXT(B16,"00000"),2)),xref!$B$3:$E$4326,4,FALSE) -> CO | L16: =VLOOKUP(TEXT(B16,"00000"),xref!$L$2:$P$3244,5,FALSE) -> Prowers | M16: Anadarko Basin (CO) | N16: Oil | Q16: 25015Gas | R16: 25015 | S16: Gas | T16: 108 | V16: 5069Oil | W16: 5069 | Y16: Oil | Z16: 156 | AA16: 0.9294871795
A17: Arctic Coastal Plains Province | B17: 50023 | C17: Gas | D17: conventional | E17: H | F17: UNK | G17: UNK | H17: 4 | I17: 4 | J17: UNK (unknown) | K17: =VLOOKUP(VALUE(LEFT(TEXT(B17,"00000"),2)),xref!$B$3:$E$4326,4,FALSE) -> AK | L17: =VLOOKUP(TEXT(B17,"00000"),xref!$L$2:$P$3244,5,FALSE) -> BARROW | M17: Arctic Coastal Plains Province (AK) | N17: Gas | Q17: 25015Oil | R17: 25015 | S17: Oil | T17: 1 | V17: 5073Gas | W17: 5073 | X17: 5073 | Y17: Gas | Z17: 2 | AA17: 1
A18: Arctic Coastal Plains Province | B18: 50023 | C18: Gas | D18: conventional | E18: V | F18: UNK | G18: UNK | H18: 11 | I18: 11 | J18: UNK (unknown) | K18: =VLOOKUP(VALUE(LEFT(TEXT(B18,"00000"),2)),xref!$B$3:$E$4326,4,FALSE) -> AK | L18: =VLOOKUP(TEXT(B18,"00000"),xref!$L$2:$P$3244,5,FALSE) -> BARROW | M18: Arctic Coastal Plains Province (AK) | N18: Gas | Q18: 25017Gas | R18: 25017 | S18: Gas | T18: 4 | V18: 5073Oil | W18: 5073 | Y18: Oil | Z18: 105 | AA18: 0.819047619
A19: Arctic Coastal Plains Province | B19: 50029 | C19: Gas | D19: conventional | E19: D | F19: UNK | G19: UNK | H19: 5 | I19: 5 | J19: UNK (unknown) | K19: =VLOOKUP(VALUE(LEFT(TEXT(B19,"00000"),2)),xref!$B$3:$E$4326,4,FALSE) -> AK | L19: =VLOOKUP(TEXT(B19,"00000"),xref!$L$2:$P$3244,5,FALSE) -> BECHY PT | M19: Arctic Coastal Plains Province (AK) | N19: Gas | Q19: 25019Oil | R19: 25019 | S19: Oil | T19: 1 | V19: 5075Gas | W19: 5075 | X19: 5075 | Y19: Gas | Z19: 15 | AA19: 0.9333333333
A20: Arctic Coastal Plains Province | B20: 50029 | C20: Gas | D20: conventional | E20: H | F20: UNK | G20: UNK | H20: 5 | I20: 5 | J20: UNK (unknown) | K20: =VLOOKUP(VALUE(LEFT(TEXT(B20,"00000"),2)),xref!$B$3:$E$4326,4,FALSE) -> AK | L20: =VLOOKUP(TEXT(B20,"00000"),xref!$L$2:$P$3244,5,FALSE) -> BECHY PT | M20: Arctic Coastal Plains Province (AK) | N20: Gas | Q20: 25021Gas | R20: 25021 | S20: Gas | T20: 1 | V20: 5075Oil | W20: 5075 | Y20: Oil | Z20: 100 | AA20: 0.98
A21: Arctic Coastal Plains Province | B21: 50029 | C21: Oil | D21: conventional | E21: D | F21: UNK | G21: UNK | H21: 874 | I21: 865 | J21: UNK (unknown) | K21: =VLOOKUP(VALUE(LEFT(TEXT(B21,"00000"),2)),xref!$B$3:$E$4326,4,FALSE) -> AK | L21: =VLOOKUP(TEXT(B21,"00000"),xref!$L$2:$P$3244,5,FALSE) -> BECHY PT | M21: Arctic Coastal Plains Province (AK) | N21: Oil | Q21: 25021Oil | R21: 25021 | S21: Oil | T21: 68 | V21: 5087Gas | W21: 5087 | X21: 5087 | Y21: Gas | Z21: 10 | AA21: 1
A22: Arctic Coastal Plains Province | B22: 50029 | C22: Oil | D22: conventional | E22: H | F22: UNK | G22: UNK | H22: 752 | I22: 744 | J22: UNK (unknown) | K22: =VLOOKUP(VALUE(LEFT(TEXT(B22,"00000"),2)),xref!$B$3:$E$4326,4,FALSE) -> AK | L22: =VLOOKUP(TEXT(B22,"00000"),xref!$L$2:$P$3244,5,FALSE) -> BECHY PT | M22: Arctic Coastal Plains Province (AK) | N22: Oil | Q22: 25025CBM | R22: 25025 | S22: CBM | T22: 1 | V22: 5087Oil | W22: 5087 | Y22: Oil | Z22: 66 | AA22: 1
A23: Arctic Coastal Plains Province | B23: 50029 | C23: Oil | D23: conventional | E23: V | F23: UNK | G23: UNK | H23: 6 | I23: 6 | J23: UNK (unknown) | K23: =VLOOKUP(VALUE(LEFT(TEXT(B23,"00000"),2)),xref!$B$3:$E$4326,4,FALSE) -> AK | L23: =VLOOKUP(TEXT(B23,"00000"),xref!$L$2:$P$3244,5,FALSE) -> BECHY PT | M23: Arctic Coastal Plains Province (AK) | N23: Oil | Q23: 25025Gas | R23: 25025 | S23: Gas | T23: 895 | V23: 5095Gas | W23: 5095 | X23: 5095 | Y23: Gas | Z23: 262 | AA23: 1
A24: Arctic Coastal Plains Province | B24: 50103 | C24: Gas | D24: conventional | E24: D | F24: UNK | G24: UNK | H24: 4 | I24: 4 | J24: UNK (unknown) | K24: =VLOOKUP(VALUE(LEFT(TEXT(B24,"00000"),2)),xref!$B$3:$E$4326,4,FALSE) -> AK | L24: =VLOOKUP(TEXT(B24,"00000"),xref!$L$2:$P$3244,5,FALSE) -> HRRSN BY | M24: Arctic Coastal Plains Province (AK) | N24: Gas | Q24: 25025Oil | R24: 25025 | S24: Oil | T24: 485 | V24: 5115Gas | W24: 5115 | X24: 5115 | Y24: Gas | Z24: 13 | AA24: 1
A25: Arctic Coastal Plains Province | B25: 50103 | C25: Gas | D25: conventional | E25: H | F25: UNK | G25: UNK | H25: 1 | I25: 1 | J25: UNK (unknown) | K25: =VLOOKUP(VALUE(LEFT(TEXT(B25,"00000"),2)),xref!$B$3:$E$4326,4,FALSE) -> AK | L25: =VLOOKUP(TEXT(B25,"00000"),xref!$L$2:$P$3244,5,FALSE) -> HRRSN BY | M25: Arctic Coastal Plains Province (AK) | N25: Gas | Q25: 25027Gas | R25: 25027 | S25: Gas | T25: 7 | V25: 5121Gas | W25: 5121 | X25: 5121 | Y25: Gas | Z25: 166 | AA25: 1
A26: Arctic Coastal Plains Province | B26: 50103 | C26: Oil | D26: conventional | E26: D | F26: UNK | G26: UNK | H26: 129 | I26: 128 | J26: UNK (unknown) | K26: =VLOOKUP(VALUE(LEFT(TEXT(B26,"00000"),2)),xref!$B$3:$E$4326,4,FALSE) -> AK | L26: =VLOOKUP(TEXT(B26,"00000"),xref!$L$2:$P$3244,5,FALSE) -> HRRSN BY | M26: Arctic Coastal Plains Province (AK) | N26: Oil | Q26: 25033Oil | R26: 25033 | S26: Oil | T26: 10 | V26: 5121Oil | W26: 5121 | Y26: Oil | Z26: 236 | AA26: 0.9872881356
A27: Arctic Coastal Plains Province | B27: 50103 | C27: Oil | D27: conventional | E27: H | F27: UNK | G27: UNK | H27: 113 | I27: 113 | J27: UNK (unknown) | K27: =VLOOKUP(VALUE(LEFT(TEXT(B27,"00000"),2)),xref!$B$3:$E$4326,4,FALSE) -> AK | L27: =VLOOKUP(TEXT(B27,"00000"),xref!$L$2:$P$3244,5,FALSE) -> HRRSN BY | M27: Arctic Coastal Plains Province (AK) | N27: Oil | Q27: 25035Gas | R27: 25035 | S27: Gas | T27: 226 | V27: 5123Gas | W27: 5123 | X27: 5123 | Y27: Gas | Z27: 17976 | AA27: 0.8077992879
A28: Big Horn Basin | B28: 25009 | C28: Gas | D28: conventional | F28: UNK | G28: UNK | H28: 1 | I28: 1 | J28: UNK (unknown) | K28: =VLOOKUP(VALUE(LEFT(TEXT(B28,"00000"),2)),xref!$B$3:$E$4326,4,FALSE) -> MT | L28: =VLOOKUP(TEXT(B28,"00000"),xref!$L$2:$P$3244,5,FALSE) -> Carbon | M28: Big Horn Basin (MT) | N28: Gas | Q28: 25035Oil | R28: 25035 | S28: Oil | T28: 541 | V28: 5123Oil | W28: 5123 | Y28: Oil | Z28: 6399 | AA28: 0.9295202375
A29: Big Horn Basin | B29: 25009 | C29: Gas | D29: conventional | E29: V | F29: UNK | G29: UNK | H29: 28 | I29: 28 | J29: UNK (unknown) | K29: =VLOOKUP(VALUE(LEFT(TEXT(B29,"00000"),2)),xref!$B$3:$E$4326,4,FALSE) -> MT | L29: =VLOOKUP(TEXT(B29,"00000"),xref!$L$2:$P$3244,5,FALSE) -> Carbon | M29: Big Horn Basin (MT) | N29: Gas | Q29: 25037Gas | R29: 25037 | S29: Gas | T29: 4 | V29: 5125Gas | W29: 5125 | X29: 5125 | Y29: Gas | Z29: 3791 | AA29: 1
A30: Big Horn Basin | B30: 25009 | C30: Oil | D30: conventional | E30: D | F30: UNK | G30: UNK | H30: 16 | I30: 16 | J30: UNK (unknown) | K30: =VLOOKUP(VALUE(LEFT(TEXT(B30,"00000"),2)),xref!$B$3:$E$4326,4,FALSE) -> MT | L30: =VLOOKUP(TEXT(B30,"00000"),xref!$L$2:$P$3244,5,FALSE) -> Carbon | M30: Big Horn Basin (MT) | N30: Oil | Q30: 25041Gas | R30: 25041 | S30: Gas | T30: 572 | V30: =W30&Y30 -> 5009Gas | W30: =IF(X30="",W29,X30) -> 5009 | X30: 5009 | Y30: Gas | Z30: 88 | AA30: 1
A31: Big Horn Basin | B31: 25009 | C31: Oil | D31: conventional | E31: H | F31: UNK | G31: UNK | H31: 2 | I31: 2 | J31: UNK (unknown) | K31: =VLOOKUP(VALUE(LEFT(TEXT(B31,"00000"),2)),xref!$B$3:$E$4326,4,FALSE) -> MT | L31: =VLOOKUP(TEXT(B31,"00000"),xref!$L$2:$P$3244,5,FALSE) -> Carbon | M31: Big Horn Basin (MT) | N31: Oil | Q31: 25041Oil | R31: 25041 | S31: Oil | T31: 2 | V31: 5009Oil | W31: 5009 | Y31: Oil | Z31: 22 | AA31: 1
A32: Big Horn Basin | B32: 25009 | C32: Oil | D32: conventional | E32: V | F32: UNK | G32: UNK | H32: 58 | I32: 56 | J32: UNK (unknown) | K32: =VLOOKUP(VALUE(LEFT(TEXT(B32,"00000"),2)),xref!$B$3:$E$4326,4,FALSE) -> MT | L32: =VLOOKUP(TEXT(B32,"00000"),xref!$L$2:$P$3244,5,FALSE) -> Carbon | M32: Big Horn Basin (MT) | N32: Oil | Q32: 25051Gas | R32: 25051 | S32: Gas | T32: 185 | V32: 5099Gas | W32: 5099 | X32: 5099 | Y32: Gas | Z32: 23 | AA32: 1
A33: Big Horn Basin | B33: 49003 | C33: Gas | D33: conventional | F33: UNK | G33: UNK | H33: 1 | I33: 1 | J33: UNK (unknown) | K33: =VLOOKUP(VALUE(LEFT(TEXT(B33,"00000"),2)),xref!$B$3:$E$4326,4,FALSE) -> WY | L33: =VLOOKUP(TEXT(B33,"00000"),xref!$L$2:$P$3244,5,FALSE) -> Big Horn | M33: Big Horn Basin (WY) | N33: Gas | Q33: 25051Oil | R33: 25051 | S33: Oil | T33: 111 | V33: 5099Oil | W33: 5099 | Y33: Oil | Z33: 4 | AA33: 1
A34: Big Horn Basin | B34: 49003 | C34: Gas | D34: conventional | E34: D | F34: UNK | G34: UNK | H34: 2 | I34: 2 | J34: UNK (unknown) | K34: =VLOOKUP(VALUE(LEFT(TEXT(B34,"00000"),2)),xref!$B$3:$E$4326,4,FALSE) -> WY | L34: =VLOOKUP(TEXT(B34,"00000"),xref!$L$2:$P$3244,5,FALSE) -> Big Horn | M34: Big Horn Basin (WY) | N34: Gas | Q34: 25055Oil | R34: 25055 | S34: Oil | T34: 6 | V34: 25009Gas | W34: 25009 | X34: 25009 | Y34: Gas | Z34: 29 | AA34: 1
A35: Big Horn Basin | B35: 49003 | C35: Gas | D35: conventional | E35: H | F35: UNK | G35: UNK | H35: 1 | I35: 1 | J35: UNK (unknown) | K35: =VLOOKUP(VALUE(LEFT(TEXT(B35,"00000"),2)),xref!$B$3:$E$4326,4,FALSE) -> WY | L35: =VLOOKUP(TEXT(B35,"00000"),xref!$L$2:$P$3244,5,FALSE) -> Big Horn | M35: Big Horn Basin (WY) | N35: Gas | Q35: 25065Oil | R35: 25065 | S35: Oil | T35: 74 | V35: 25009Oil | W35: 25009 | Y35: Oil | Z35: 76 | AA35: 0.9736842105
A36: Big Horn Basin | B36: 49003 | C36: Gas | D36: conventional | E36: V | F36: UNK | G36: UNK | H36: 59 | I36: 57 | J36: UNK (unknown) | K36: =VLOOKUP(VALUE(LEFT(TEXT(B36,"00000"),2)),xref!$B$3:$E$4326,4,FALSE) -> WY | L36: =VLOOKUP(TEXT(B36,"00000"),xref!$L$2:$P$3244,5,FALSE) -> Big Horn | M36: Big Horn Basin (WY) | N36: Gas | Q36: 25069Oil | R36: 25069 | S36: Oil | T36: 37 | V36: 49003Gas | W36: 49003 | X36: 49003 | Y36: Gas | Z36: 63 | AA36: 0.9682539683
A37: Big Horn Basin | B37: 49003 | C37: Oil | D37: conventional | F37: UNK | G37: UNK | H37: 1 | I37: 1 | J37: UNK (unknown) | K37: =VLOOKUP(VALUE(LEFT(TEXT(B37,"00000"),2)),xref!$B$3:$E$4326,4,FALSE) -> WY | L37: =VLOOKUP(TEXT(B37,"00000"),xref!$L$2:$P$3244,5,FALSE) -> Big Horn | M37: Big Horn Basin (WY) | N37: Oil | Q37: 25071Gas | R37: 25071 | S37: Gas | T37: 1579 | V37: 49003Oil | W37: 49003 | Y37: Oil | Z37: 471 | AA37: 0.8619957537
A38: Big Horn Basin | B38: 49003 | C38: Oil | D38: conventional | E38: D | F38: UNK | G38: UNK | H38: 53 | I38: 46 | J38: UNK (unknown) | K38: =VLOOKUP(VALUE(LEFT(TEXT(B38,"00000"),2)),xref!$B$3:$E$4326,4,FALSE) -> WY | L38: =VLOOKUP(TEXT(B38,"00000"),xref!$L$2:$P$3244,5,FALSE) -> Big Horn | M38: Big Horn Basin (WY) | N38: Oil | Q38: 25071Oil | R38: 25071 | S38: Oil | T38: 1 | V38: 49017Gas | W38: 49017 | X38: 49017 | Y38: Gas | Z38: 8 | AA38: 1
A39: Big Horn Basin | B39: 49003 | C39: Oil | D39: conventional | E39: H | F39: UNK | G39: UNK | H39: 7 | I39: 6 | J39: UNK (unknown) | K39: =VLOOKUP(VALUE(LEFT(TEXT(B39,"00000"),2)),xref!$B$3:$E$4326,4,FALSE) -> WY | L39: =VLOOKUP(TEXT(B39,"00000"),xref!$L$2:$P$3244,5,FALSE) -> Big Horn | M39: Big Horn Basin (WY) | N39: Oil | Q39: 25073Gas | R39: 25073 | S39: Gas | T39: 88 | V39: 49017Oil | W39: 49017 | Y39: Oil | Z39: 716 | AA39: 0.9804469274
A40: Big Horn Basin | B40: 49003 | C40: Oil | D40: conventional | E40: M | F40: UNK | G40: UNK | H40: 2 | I40: 2 | J40: UNK (unknown) | K40: =VLOOKUP(VALUE(LEFT(TEXT(B40,"00000"),2)),xref!$B$3:$E$4326,4,FALSE) -> WY | L40: =VLOOKUP(TEXT(B40,"00000"),xref!$L$2:$P$3244,5,FALSE) -> Big Horn | M40: Big Horn Basin (WY) | N40: Oil | Q40: 25073Oil | R40: 25073 | S40: Oil | T40: 224 | V40: 49029Gas | W40: 49029 | X40: 49029 | Y40: Gas | Z40: 203 | AA40: 0.9556650246
A41: Big Horn Basin | B41: 49003 | C41: Oil | D41: conventional | E41: V | F41: UNK | G41: UNK | H41: 408 | I41: 352 | J41: UNK (unknown) | K41: =VLOOKUP(VALUE(LEFT(TEXT(B41,"00000"),2)),xref!$B$3:$E$4326,4,FALSE) -> WY | L41: =VLOOKUP(TEXT(B41,"00000"),xref!$L$2:$P$3244,5,FALSE) -> Big Horn | M41: Big Horn Basin (WY) | N41: Oil | Q41: 25075Gas | R41: 25075 | S41: Gas | T41: 2 | V41: 49029Oil | W41: 49029 | Y41: Oil | Z41: 1387 | AA41: 0.8031723143
A42: Big Horn Basin | B42: 49017 | C42: Gas | D42: conventional | E42: D | F42: UNK | G42: UNK | H42: 2 | I42: 2 | J42: UNK (unknown) | K42: =VLOOKUP(VALUE(LEFT(TEXT(B42,"00000"),2)),xref!$B$3:$E$4326,4,FALSE) -> WY | L42: =VLOOKUP(TEXT(B42,"00000"),xref!$L$2:$P$3244,5,FALSE) -> Hot Springs | M42: Big Horn Basin (WY) | N42: Gas | Q42: 25075Oil | R42: 25075 | S42: Oil | T42: 69 | V42: 49043Gas | W42: 49043 | X42: 49043 | Y42: Gas | Z42: 40 | AA42: 0.725
A43: Big Horn Basin | B43: 49017 | C43: Gas | D43: conventional | E43: V | F43: UNK | G43: UNK | H43: 6 | I43: 6 | J43: UNK (unknown) | K43: =VLOOKUP(VALUE(LEFT(TEXT(B43,"00000"),2)),xref!$B$3:$E$4326,4,FALSE) -> WY | L43: =VLOOKUP(TEXT(B43,"00000"),xref!$L$2:$P$3244,5,FALSE) -> Hot Springs | M43: Big Horn Basin (WY) | N43: Gas | Q43: 25079Oil | R43: 25079 | S43: Oil | T43: 12 | V43: 49043Oil | W43: 49043 | Y43: Oil | Z43: 331 | AA43: 1
A44: Big Horn Basin | B44: 49017 | C44: Oil | D44: conventional | E44: D | F44: UNK | G44: UNK | H44: 42 | I44: 41 | J44: UNK (unknown) | K44: =VLOOKUP(VALUE(LEFT(TEXT(B44,"00000"),2)),xref!$B$3:$E$4326,4,FALSE) -> WY | L44: =VLOOKUP(TEXT(B44,"00000"),xref!$L$2:$P$3244,5,FALSE) -> Hot Springs | M44: Big Horn Basin (WY) | N44: Oil | Q44: 25083CBM | R44: 25083 | S44: CBM | T44: 1 | V44: 2001Gas | W44: 2001 | X44: 2001 | Y44: Gas | Z44: 8 | AA44: 1
A45: Big Horn Basin | B45: 49017 | C45: Oil | D45: conventional | E45: H | F45: UNK | G45: UNK | H45: 7 | I45: 7 | J45: UNK (unknown) | K45: =VLOOKUP(VALUE(LEFT(TEXT(B45,"00000"),2)),xref!$B$3:$E$4326,4,FALSE) -> WY | L45: =VLOOKUP(TEXT(B45,"00000"),xref!$L$2:$P$3244,5,FALSE) -> Hot Springs | M45: Big Horn Basin (WY) | N45: Oil | Q45: 25083Gas | R45: 25083 | S45: Gas | T45: 4 | V45: 2001Oil | W45: 2001 | Y45: Oil | Z45: 56 | AA45: 1
A46: Big Horn Basin | B46: 49017 | C46: Oil | D46: conventional | E46: V | F46: UNK | G46: UNK | H46: 667 | I46: 654 | J46: UNK (unknown) | K46: =VLOOKUP(VALUE(LEFT(TEXT(B46,"00000"),2)),xref!$B$3:$E$4326,4,FALSE) -> WY | L46: =VLOOKUP(TEXT(B46,"00000"),xref!$L$2:$P$3244,5,FALSE) -> Hot Springs | M46: Big Horn Basin (WY) | N46: Oil | Q46: 25083Oil | R46: 25083 | S46: Oil | T46: 1252 | V46: 25005Gas | W46: 25005 | X46: 25005 | Y46: Gas | Z46: 714 | AA46: 0.9915966387
A47: Big Horn Basin | B47: 49029 | C47: Gas | D47: conventional | F47: UNK | G47: UNK | H47: 2 | I47: 2 | J47: UNK (unknown) | K47: =VLOOKUP(VALUE(LEFT(TEXT(B47,"00000"),2)),xref!$B$3:$E$4326,4,FALSE) -> WY | L47: =VLOOKUP(TEXT(B47,"00000"),xref!$L$2:$P$3244,5,FALSE) -> Park | M47: Big Horn Basin (WY) | N47: Gas | Q47: 25085Oil | R47: 25085 | S47: Oil | T47: 289 | V47: 25005Oil | W47: 25005 | Y47: Oil | Z47: 62 | AA47: 1
A48: Big Horn Basin | B48: 49029 | C48: Gas | D48: conventional | E48: D | F48: TIGHT OIL (L) | G48: MOWRY SHALE | H48: 5 | I48: 5 | J48: MOWRY SHALE (TIGHT OIL (L)) | K48: =VLOOKUP(VALUE(LEFT(TEXT(B48,"00000"),2)),xref!$B$3:$E$4326,4,FALSE) -> WY | L48: =VLOOKUP(TEXT(B48,"00000"),xref!$L$2:$P$3244,5,FALSE) -> Park | M48: Big Horn Basin (WY) | N48: Gas | Q48: 25087Gas | R48: 25087 | S48: Gas | T48: 1 | V48: 25027Gas | W48: 25027 | X48: 25027 | Y48: Gas | Z48: 7 | AA48: 1
A49: Big Horn Basin | B49: 49029 | C49: Gas | D49: conventional | E49: D | F49: UNK | G49: UNK | H49: 18 | I49: 17 | J49: UNK (unknown) | K49: =VLOOKUP(VALUE(LEFT(TEXT(B49,"00000"),2)),xref!$B$3:$E$4326,4,FALSE) -> WY | L49: =VLOOKUP(TEXT(B49,"00000"),xref!$L$2:$P$3244,5,FALSE) -> Park | M49: Big Horn Basin (WY) | N49: Gas | Q49: 25087Oil | R49: 25087 | S49: Oil | T49: 85 | V49: 25037Gas | W49: 25037 | X49: 25037 | Y49: Gas | Z49: 4 | AA49: 1
A50: Big Horn Basin | B50: 49029 | C50: Gas | D50: conventional | E50: V | F50: TIGHT OIL (L) | G50: MOWRY SHALE | H50: 2 | I50: 2 | J50: MOWRY SHALE (TIGHT OIL (L)) | K50: =VLOOKUP(VALUE(LEFT(TEXT(B50,"00000"),2)),xref!$B$3:$E$4326,4,FALSE) -> WY | L50: =VLOOKUP(TEXT(B50,"00000"),xref!$L$2:$P$3244,5,FALSE) -> Park | M50: Big Horn Basin (WY) | N50: Gas | Q50: 25091Oil | R50: 25091 | S50: Oil | T50: 202 | V50: 25065Oil | W50: 25065 | X50: 25065 | Y50: Oil | Z50: 74 | AA50: 1
A51: Big Horn Basin | B51: 49029 | C51: Gas | D51: conventional | E51: V | F51: UNK | G51: UNK | H51: 176 | I51: 168 | J51: UNK (unknown) | K51: =VLOOKUP(VALUE(LEFT(TEXT(B51,"00000"),2)),xref!$B$3:$E$4326,4,FALSE) -> WY | L51: =VLOOKUP(TEXT(B51,"00000"),xref!$L$2:$P$3244,5,FALSE) -> Park | M51: Big Horn Basin (WY) | N51: Gas | Q51: 25095Gas | R51: 25095 | S51: Gas | T51: 17 | V51: 25069Oil | W51: 25069 | X51: 25069 | Y51: Oil | Z51: 37 | AA51: 1
A52: Big Horn Basin | B52: 49029 | C52: Oil | D52: conventional | F52: UNK | G52: UNK | H52: 8 | I52: 6 | J52: UNK (unknown) | K52: =VLOOKUP(VALUE(LEFT(TEXT(B52,"00000"),2)),xref!$B$3:$E$4326,4,FALSE) -> WY | L52: =VLOOKUP(TEXT(B52,"00000"),xref!$L$2:$P$3244,5,FALSE) -> Park | M52: Big Horn Basin (WY) | N52: Oil | Q52: 25095Oil | R52: 25095 | S52: Oil | T52: 4 | V52: 25087Gas | W52: 25087 | X52: 25087 | Y52: Gas | Z52: 1 | AA52: 1
A53: Big Horn Basin | B53: 49029 | C53: Oil | D53: conventional | E53: D | F53: UNK | G53: UNK | H53: 262 | I53: 210 | J53: UNK (unknown) | K53: =VLOOKUP(VALUE(LEFT(TEXT(B53,"00000"),2)),xref!$B$3:$E$4326,4,FALSE) -> WY | L53: =VLOOKUP(TEXT(B53,"00000"),xref!$L$2:$P$3244,5,FALSE) -> Park | M53: Big Horn Basin (WY) | N53: Oil | Q53: 25097Gas | R53: 25097 | S53: Gas | T53: 3 | V53: 25087Oil | W53: 25087 | Y53: Oil | Z53: 85 | AA53: 1
A54: Big Horn Basin | B54: 49029 | C54: Oil | D54: conventional | E54: H | F54: UNK | G54: UNK | H54: 67 | I54: 54 | J54: UNK (unknown) | K54: =VLOOKUP(VALUE(LEFT(TEXT(B54,"00000"),2)),xref!$B$3:$E$4326,4,FALSE) -> WY | L54: =VLOOKUP(TEXT(B54,"00000"),xref!$L$2:$P$3244,5,FALSE) -> Park | M54: Big Horn Basin (WY) | N54: Oil | Q54: 25099Gas | R54: 25099 | S54: Gas | T54: 2 | V54: 25095Gas | W54: 25095 | X54: 25095 | Y54: Gas | Z54: 18 | AA54: 0.9444444444
A55: Big Horn Basin | B55: 49029 | C55: Oil | D55: conventional | E55: V | F55: UNK | G55: UNK | H55: 1050 | I55: 843 | J55: UNK (unknown) | K55: =VLOOKUP(VALUE(LEFT(TEXT(B55,"00000"),2)),xref!$B$3:$E$4326,4,FALSE) -> WY | L55: =VLOOKUP(TEXT(B55,"00000"),xref!$L$2:$P$3244,5,FALSE) -> Park | M55: Big Horn Basin (WY) | N55: Oil | Q55: 25099Oil | R55: 25099 | S55: Oil | T55: 111 | V55: 25095Oil | W55: 25095 | Y55: Oil | Z55: 4 | AA55: 1
A56: Big Horn Basin | B56: 49043 | C56: Gas | D56: conventional | F56: UNK | G56: UNK | H56: 2 | I56: 1 | J56: UNK (unknown) | K56: =VLOOKUP(VALUE(LEFT(TEXT(B56,"00000"),2)),xref!$B$3:$E$4326,4,FALSE) -> WY | L56: =VLOOKUP(TEXT(B56,"00000"),xref!$L$2:$P$3244,5,FALSE) -> Washakie | M56: Big Horn Basin (WY) | N56: Gas | Q56: 25101Gas | R56: 25101 | S56: Gas | T56: 781 | V56: 25097Gas | W56: 25097 | X56: 25097 | Y56: Gas | Z56: 3 | AA56: 1
A57: Big Horn Basin | B57: 49043 | C57: Gas | D57: conventional | E57: D | F57: UNK | G57: UNK | H57: 1 | I57: 1 | J57: UNK (unknown) | K57: =VLOOKUP(VALUE(LEFT(TEXT(B57,"00000"),2)),xref!$B$3:$E$4326,4,FALSE) -> WY | L57: =VLOOKUP(TEXT(B57,"00000"),xref!$L$2:$P$3244,5,FALSE) -> Washakie | M57: Big Horn Basin (WY) | N57: Gas | Q57: 25101Oil | R57: 25101 | S57: Oil | T57: 1029 | V57: 43043Gas | W57: 43043 | X57: 43043 | Y57: Gas | Z57: 24 | AA57: 1
A58: Big Horn Basin | B58: 49043 | C58: Gas | D58: conventional | E58: V | F58: UNK | G58: UNK | H58: 37 | I58: 27 | J58: UNK (unknown) | K58: =VLOOKUP(VALUE(LEFT(TEXT(B58,"00000"),2)),xref!$B$3:$E$4326,4,FALSE) -> WY | L58: =VLOOKUP(TEXT(B58,"00000"),xref!$L$2:$P$3244,5,FALSE) -> Washakie | M58: Big Horn Basin (WY) | N58: Gas | Q58: 25105Gas | R58: 25105 | S58: Gas | T58: 147 | V58: 43043Oil | W58: 43043 | Y58: Oil | Z58: 13 | AA58: 1
A59: Big Horn Basin | B59: 49043 | C59: Oil | D59: conventional | F59: UNK | G59: UNK | H59: 1 | I59: 1 | J59: UNK (unknown) | K59: =VLOOKUP(VALUE(LEFT(TEXT(B59,"00000"),2)),xref!$B$3:$E$4326,4,FALSE) -> WY | L59: =VLOOKUP(TEXT(B59,"00000"),xref!$L$2:$P$3244,5,FALSE) -> Washakie | M59: Big Horn Basin (WY) | N59: Oil | Q59: 25105Oil | R59: 25105 | S59: Oil | T59: 41 | V59: 49023Gas | W59: 49023 | X59: 49023 | Y59: Gas | Z59: 1458 | AA59: 0.9087791495
A60: Big Horn Basin | B60: 49043 | C60: Oil | D60: conventional | E60: D | F60: UNK | G60: UNK | H60: 78 | I60: 78 | J60: UNK (unknown) | K60: =VLOOKUP(VALUE(LEFT(TEXT(B60,"00000"),2)),xref!$B$3:$E$4326,4,FALSE) -> WY | L60: =VLOOKUP(TEXT(B60,"00000"),xref!$L$2:$P$3244,5,FALSE) -> Washakie | M60: Big Horn Basin (WY) | N60: Oil | Q60: 25109Gas | R60: 25109 | S60: Gas | T60: 28 | V60: 49023Oil | W60: 49023 | Y60: Oil | Z60: 75 | AA60: 0.9733333333
A61: Big Horn Basin | B61: 49043 | C61: Oil | D61: conventional | E61: H | F61: UNK | G61: UNK | H61: 4 | I61: 4 | J61: UNK (unknown) | K61: =VLOOKUP(VALUE(LEFT(TEXT(B61,"00000"),2)),xref!$B$3:$E$4326,4,FALSE) -> WY | L61: =VLOOKUP(TEXT(B61,"00000"),xref!$L$2:$P$3244,5,FALSE) -> Washakie | M61: Big Horn Basin (WY) | N61: Oil | Q61: 25109Oil | R61: 25109 | S61: Oil | T61: 90 | V61: 49041Gas | W61: 49041 | X61: 49041 | Y61: Gas | Z61: 487 | AA61: 0.7843942505
A62: Big Horn Basin | B62: 49043 | C62: Oil | D62: conventional | E62: V | F62: UNK | G62: UNK | H62: 248 | I62: 248 | J62: UNK (unknown) | K62: =VLOOKUP(VALUE(LEFT(TEXT(B62,"00000"),2)),xref!$B$3:$E$4326,4,FALSE) -> WY | L62: =VLOOKUP(TEXT(B62,"00000"),xref!$L$2:$P$3244,5,FALSE) -> Washakie | M62: Big Horn Basin (WY) | N62: Oil | Q62: 25111Oil | R62: 25111 | S62: Oil | T62: 27 | V62: 49041Oil | W62: 49041 | Y62: Oil | Z62: 73 | AA62: 0.9863013699
A63: Black Mesa Basin | B63: 2001 | C63: Gas | D63: conventional | E63: V | F63: UNK | G63: UNK | H63: 8 | I63: 8 | J63: UNK (unknown) | K63: =VLOOKUP(VALUE(LEFT(TEXT(B63,"00000"),2)),xref!$B$3:$E$4326,4,FALSE) -> AZ | L63: =VLOOKUP(TEXT(B63,"00000"),xref!$L$2:$P$3244,5,FALSE) -> Apache | M63: Black Mesa Basin (AZ) | N63: Gas | Q63: 27007Oil | R63: 27007 | S63: Oil | T63: 2 | V63: 49041CBM | W63: 49041 | Y63: CBM | Z63: 1 | AA63: 1
A64: Black Mesa Basin | B64: 2001 | C64: Oil | D64: conventional | E64: V | F64: UNK | G64: UNK | H64: 56 | I64: 56 | J64: UNK (unknown) | K64: =VLOOKUP(VALUE(LEFT(TEXT(B64,"00000"),2)),xref!$B$3:$E$4326,4,FALSE) -> AZ | L64: =VLOOKUP(TEXT(B64,"00000"),xref!$L$2:$P$3244,5,FALSE) -> Apache | M64: Black Mesa Basin (AZ) | N64: Oil | Q64: 27011Oil | R64: 27011 | S64: Oil | T64: 8 | V64: 4053Oil | W64: 4053 | X64: 4053 | Y64: Oil | Z64: 735 | AA64: 1
A65: AK Cook Inlet Basin | B65: 50133 | C65: Gas | D65: conventional | F65: UNK | G65: UNK | H65: 1 | I65: 1 | J65: UNK (unknown) | K65: =VLOOKUP(VALUE(LEFT(TEXT(B65,"00000"),2)),xref!$B$3:$E$4326,4,FALSE) -> AK | L65: =VLOOKUP(TEXT(B65,"00000"),xref!$L$2:$P$3244,5,FALSE) -> KENAI | M65: AK Cook Inlet Basin (AK) | N65: Gas | Q65: 27023Oil | R65: 27023 | S65: Oil | T65: 63 | V65: 4079Oil | W65: 4079 | X65: 4079 | Y65: Oil | Z65: 230 | AA65: 1
A66: AK Cook Inlet Basin | B66: 50133 | C66: Gas | D66: conventional | E66: D | F66: UNK | G66: UNK | H66: 102 | I66: 90 | J66: UNK (unknown) | K66: =VLOOKUP(VALUE(LEFT(TEXT(B66,"00000"),2)),xref!$B$3:$E$4326,4,FALSE) -> AK | L66: =VLOOKUP(TEXT(B66,"00000"),xref!$L$2:$P$3244,5,FALSE) -> KENAI | M66: AK Cook Inlet Basin (AK) | N66: Gas | Q66: 30005Gas | R66: 30005 | S66: Gas | T66: 1215 | V66: 5014Gas | W66: 5014 | X66: 5014 | Y66: Gas | Z66: 146 | AA66: 0.5410958904
A67: AK Cook Inlet Basin | B67: 50133 | C67: Gas | D67: conventional | E67: H | F67: UNK | G67: UNK | H67: 7 | I67: 6 | J67: =G67&" ("&IF(F67="BLANK","unknown",IF(F67="UNK","unknown",F67)&")") -> UNK (unknown) | K67: =VLOOKUP(VALUE(LEFT(TEXT(B67,"00000"),2)),xref!$B$3:$E$4326,4,FALSE) -> AK | L67: =VLOOKUP(TEXT(B67,"00000"),xref!$L$2:$P$3244,5,FALSE) -> KENAI | M67: =A67&" ("&K67&")" -> AK Cook Inlet Basin (AK) | N67: Gas | Q67: 30005Oil | R67: 30005 | S67: Oil | T67: 710 | V67: 5014Oil | W67: 5014 | Y67: Oil | Z67: 26 | AA67: 0.5384615385
A68: AK Cook Inlet Basin | B68: 50133 | C68: Gas | D68: conventional | E68: V | F68: UNK | G68: UNK | H68: 3 | I68: =IF(ISNA(VLOOKUP(B68&N68,$V$3:$AA$329,6,FALSE))=TRUE,0,ROUND(H68*VLOOKUP(B68&N68,$V$3:$AA$329,6,FALSE),0)) -> 3 | J68: UNK (unknown) | K68: =VLOOKUP(VALUE(LEFT(TEXT(B68,"00000"),2)),xref!$B$3:$E$4326,4,FALSE) -> AK | L68: =VLOOKUP(TEXT(B68,"00000"),xref!$L$2:$P$3244,5,FALSE) -> KENAI | M68: AK Cook Inlet Basin (AK) | N68: =IF(D68="coalbed methane","CBM",C68) -> Gas | Q68: =R68&S68 -> 30007CBM | R68: 30007 | S68: CBM | T68: 607 | V68: 49015Oil | W68: 49015 | X68: 49015 | Y68: Oil | Z68: 7 | AA68: =VLOOKUP(V68,$Q$3:$T$330,4,FALSE)/Z68 -> 1
A69: AK Cook Inlet Basin | B69: 50133 | C69: Oil | D69: conventional | E69: D | F69: UNK | G69: UNK | H69: 40 | I69: 36 | J69: UNK (unknown) | K69: =VLOOKUP(VALUE(LEFT(TEXT(B69,"00000"),2)),xref!$B$3:$E$4326,4,FALSE) -> AK | L69: =VLOOKUP(TEXT(B69,"00000"),xref!$L$2:$P$3244,5,FALSE) -> KENAI | M69: AK Cook Inlet Basin (AK) | N69: Oil | Q69: 30007Gas | R69: 30007 | S69: Gas | T69: 228 | V69: 49021Oil | W69: 49021 | X69: 49021 | Y69: Oil | Z69: 241 | AA69: 0.9958506224
A70: AK Cook Inlet Basin | B70: 50133 | C70: Oil | D70: conventional | E70: H | F70: UNK | G70: UNK | H70: 1 | I70: 1 | J70: UNK (unknown) | K70: =VLOOKUP(VALUE(LEFT(TEXT(B70,"00000"),2)),xref!$B$3:$E$4326,4,FALSE) -> AK | L70: =VLOOKUP(TEXT(B70,"00000"),xref!$L$2:$P$3244,5,FALSE) -> KENAI | M70: AK Cook Inlet Basin (AK) | N70: Oil | Q70: 30015Gas | R70: 30015 | S70: Gas | T70: 2660 | V70: 49031Oil | W70: 49031 | X70: 49031 | Y70: Oil | Z70: 2 | AA70: 1
A71: AK Cook Inlet Basin | B71: 50133 | C71: Oil | D71: conventional | E71: V | F71: UNK | G71: UNK | H71: 9 | I71: 8 | J71: UNK (unknown) | K71: =VLOOKUP(VALUE(LEFT(TEXT(B71,"00000"),2)),xref!$B$3:$E$4326,4,FALSE) -> AK | L71: =VLOOKUP(TEXT(B71,"00000"),xref!$L$2:$P$3244,5,FALSE) -> KENAI | M71: AK Cook Inlet Basin (AK) | N71: Oil | Q71: 30015Oil | R71: 30015 | S71: Oil | T71: 10801 | V71: 4023Gas | W71: 4023 | X71: 4023 | Y71: Gas | Z71: 25 | AA71: 0.96
A72: AK Cook Inlet Basin | B72: 50231 | C72: Gas | D72: conventional | E72: D | F72: UNK | G72: UNK | H72: 12 | I72: 12 | J72: UNK (unknown) | K72: =VLOOKUP(VALUE(LEFT(TEXT(B72,"00000"),2)),xref!$B$3:$E$4326,4,FALSE) -> AK | L72: =VLOOKUP(TEXT(B72,"00000"),xref!$L$2:$P$3244,5,FALSE) -> SELDOVIA | M72: AK Cook Inlet Basin (AK) | N72: Gas | Q72: 30021Gas | R72: 30021 | S72: Gas | T72: 1 | V72: 27007Oil | W72: 27007 | X72: 27007 | Y72: Oil | Z72: 2 | AA72: 1
A73: AK Cook Inlet Basin | B73: 50231 | C73: Gas | D73: conventional | E73: V | F73: UNK | G73: UNK | H73: 3 | I73: 3 | J73: UNK (unknown) | K73: =VLOOKUP(VALUE(LEFT(TEXT(B73,"00000"),2)),xref!$B$3:$E$4326,4,FALSE) -> AK | L73: =VLOOKUP(TEXT(B73,"00000"),xref!$L$2:$P$3244,5,FALSE) -> SELDOVIA | M73: AK Cook Inlet Basin (AK) | N73: Gas | Q73: 30025Gas | R73: 30025 | S73: Gas | T73: 2037 | V73: 27011Oil | W73: 27011 | X73: 27011 | Y73: Oil | Z73: 8 | AA73: 1
A74: AK Cook Inlet Basin | B74: 50283 | C74: Gas | D74: conventional | E74: D | F74: UNK | G74: UNK | H74: 23 | I74: 22 | J74: UNK (unknown) | K74: =VLOOKUP(VALUE(LEFT(TEXT(B74,"00000"),2)),xref!$B$3:$E$4326,4,FALSE) -> AK | L74: =VLOOKUP(TEXT(B74,"00000"),xref!$L$2:$P$3244,5,FALSE) -> TYONEK | M74: AK Cook Inlet Basin (AK) | N74: Gas | Q74: 30025Oil | R74: 30025 | S74: Oil | T74: 11007 | V74: 27023Oil | W74: 27023 | X74: 27023 | Y74: Oil | Z74: 63 | AA74: 1
A75: AK Cook Inlet Basin | B75: 50283 | C75: Gas | D75: conventional | E75: V | F75: UNK | G75: UNK | H75: 12 | I75: 11 | J75: UNK (unknown) | K75: =VLOOKUP(VALUE(LEFT(TEXT(B75,"00000"),2)),xref!$B$3:$E$4326,4,FALSE) -> AK | L75: =VLOOKUP(TEXT(B75,"00000"),xref!$L$2:$P$3244,5,FALSE) -> TYONEK | M75: AK Cook Inlet Basin (AK) | N75: Gas | Q75: 30031CBM | R75: 30031 | S75: CBM | T75: 8 | V75: 5081Gas | W75: 5081 | X75: 5081 | Y75: Gas | Z75: 477 | AA75: 0.7400419287
A76: CA Off-shore | B76: 4211 | C76: Oil | D76: conventional | F76: UNK | G76: UNK | H76: 1 | I76: 1 | J76: UNK (unknown) | K76: =VLOOKUP(VALUE(LEFT(TEXT(B76,"00000"),2)),xref!$B$3:$E$4326,4,FALSE) -> CA | L76: =VLOOKUP(TEXT(B76,"00000"),xref!$L$2:$P$3244,5,FALSE) -> VENTRA O | M76: CA Off-shore (CA) | N76: Oil | Q76: 30031Oil | R76: 30031 | S76: Oil | T76: 114 | V76: 5081Oil | W76: 5081 | Y76: Oil | Z76: 111 | AA76: 0.972972973
A77: CA Off-shore | B77: 4211 | C77: Oil | D77: conventional | E77: D | F77: UNK | G77: UNK | H77: 16 | I77: 16 | J77: UNK (unknown) | K77: =VLOOKUP(VALUE(LEFT(TEXT(B77,"00000"),2)),xref!$B$3:$E$4326,4,FALSE) -> CA | L77: =VLOOKUP(TEXT(B77,"00000"),xref!$L$2:$P$3244,5,FALSE) -> VENTRA O | M77: CA Off-shore (CA) | N77: Oil | Q77: 30035Gas | R77: 30035 | S77: Gas | T77: 1 | V77: 5081CBM | W77: 5081 | Y77: CBM | Z77: 3 | AA77: 1
A78: CA Off-shore | B78: 4211 | C78: Oil | D78: conventional | E78: V | F78: UNK | G78: UNK | H78: 23 | I78: 23 | J78: UNK (unknown) | K78: =VLOOKUP(VALUE(LEFT(TEXT(B78,"00000"),2)),xref!$B$3:$E$4326,4,FALSE) -> CA | L78: =VLOOKUP(TEXT(B78,"00000"),xref!$L$2:$P$3244,5,FALSE) -> VENTRA O | M78: CA Off-shore (CA) | N78: Oil | Q78: 30035Oil | R78: 30035 | S78: Oil | T78: 1 | V78: 5107Gas | W78: 5107 | X78: 5107 | Y78: Gas | Z78: 3 | AA78: 1
A79: CA Off-shore | B79: 4237 | C79: Gas | D79: conventional | E79: D | F79: UNK | G79: UNK | H79: 1 | I79: 1 | J79: UNK (unknown) | K79: =VLOOKUP(VALUE(LEFT(TEXT(B79,"00000"),2)),xref!$B$3:$E$4326,4,FALSE) -> CA | L79: =VLOOKUP(TEXT(B79,"00000"),xref!$L$2:$P$3244,5,FALSE) -> LS ANG O | M79: CA Off-shore (CA) | N79: Gas | Q79: 30039CBM | R79: 30039 | S79: CBM | T79: 1057 | V79: 5107Oil | W79: 5107 | Y79: Oil | Z79: 27 | AA79: 0.962962963
A80: CA Off-shore | B80: 4237 | C80: Oil | D80: conventional | F80: UNK | G80: UNK | H80: 12 | I80: 10 | J80: UNK (unknown) | K80: =VLOOKUP(VALUE(LEFT(TEXT(B80,"00000"),2)),xref!$B$3:$E$4326,4,FALSE) -> CA | L80: =VLOOKUP(TEXT(B80,"00000"),xref!$L$2:$P$3244,5,FALSE) -> LS ANG O | M80: CA Off-shore (CA) | N80: Oil | Q80: 30039Gas | R80: 30039 | S80: Gas | T80: 6740 | V80: 49001Gas | W80: 49001 | X80: 49001 | Y80: Gas | Z80: 2 | AA80: 1
A81: CA Off-shore | B81: 4237 | C81: Oil | D81: conventional | E81: D | F81: UNK | G81: UNK | H81: 772 | I81: 671 | J81: UNK (unknown) | K81: =VLOOKUP(VALUE(LEFT(TEXT(B81,"00000"),2)),xref!$B$3:$E$4326,4,FALSE) -> CA | L81: =VLOOKUP(TEXT(B81,"00000"),xref!$L$2:$P$3244,5,FALSE) -> LS ANG O | M81: CA Off-shore (CA) | N81: Oil | Q81: 30039Oil | R81: 30039 | S81: Oil | T81: 746 | V81: 49001Oil | W81: 49001 | Y81: Oil | Z81: 33 | AA81: 0.9696969697
A82: CA Off-shore | B82: 4237 | C82: Oil | D82: conventional | E82: H | F82: UNK | G82: UNK | H82: 159 | I82: 138 | J82: UNK (unknown) | K82: =VLOOKUP(VALUE(LEFT(TEXT(B82,"00000"),2)),xref!$B$3:$E$4326,4,FALSE) -> CA | L82: =VLOOKUP(TEXT(B82,"00000"),xref!$L$2:$P$3244,5,FALSE) -> LS ANG O | M82: CA Off-shore (CA) | N82: Oil | Q82: 30041Gas | R82: 30041 | S82: Gas | T82: 36 | V82: 49007Gas | W82: 49007 | X82: 49007 | Y82: Gas | Z82: 1572 | AA82: 0.9917302799
A83: CA Off-shore | B83: 4237 | C83: Oil | D83: conventional | E83: V | F83: UNK | G83: UNK | H83: 192 | I83: 167 | J83: UNK (unknown) | K83: =VLOOKUP(VALUE(LEFT(TEXT(B83,"00000"),2)),xref!$B$3:$E$4326,4,FALSE) -> CA | L83: =VLOOKUP(TEXT(B83,"00000"),xref!$L$2:$P$3244,5,FALSE) -> LS ANG O | M83: CA Off-shore (CA) | N83: Oil | Q83: 30041Oil | R83: 30041 | S83: Oil | T83: 148 | V83: 49007Oil | W83: 49007 | Y83: Oil | Z83: 193 | AA83: 0.9533678756
A84: CA Off-shore | B84: 4259 | C84: Oil | D84: conventional | F84: UNK | G84: UNK | H84: 14 | I84: 14 | J84: UNK (unknown) | K84: =VLOOKUP(VALUE(LEFT(TEXT(B84,"00000"),2)),xref!$B$3:$E$4326,4,FALSE) -> CA | L84: =VLOOKUP(TEXT(B84,"00000"),xref!$L$2:$P$3244,5,FALSE) -> ORANGE O | M84: CA Off-shore (CA) | N84: Oil | Q84: 30043CBM | R84: 30043 | S84: CBM | T84: 33 | V84: 49007CBM | W84: 49007 | Y84: CBM | Z84: 324 | AA84: 1
A85: CA Off-shore | B85: 4259 | C85: Oil | D85: conventional | E85: D | F85: UNK | G85: UNK | H85: 66 | I85: 66 | J85: UNK (unknown) | K85: =VLOOKUP(VALUE(LEFT(TEXT(B85,"00000"),2)),xref!$B$3:$E$4326,4,FALSE) -> CA | L85: =VLOOKUP(TEXT(B85,"00000"),xref!$L$2:$P$3244,5,FALSE) -> ORANGE O | M85: CA Off-shore (CA) | N85: Oil | Q85: 30043Gas | R85: 30043 | S85: Gas | T85: 147 | V85: 49035Gas | W85: 49035 | X85: 49035 | Y85: Gas | Z85: 6028 | AA85: 0.9512276045
A86: CA Off-shore | B86: 4259 | C86: Oil | D86: conventional | E86: H | F86: UNK | G86: UNK | H86: 11 | I86: 11 | J86: UNK (unknown) | K86: =VLOOKUP(VALUE(LEFT(TEXT(B86,"00000"),2)),xref!$B$3:$E$4326,4,FALSE) -> CA | L86: =VLOOKUP(TEXT(B86,"00000"),xref!$L$2:$P$3244,5,FALSE) -> ORANGE O | M86: CA Off-shore (CA) | N86: Oil | Q86: 30043Oil | R86: 30043 | S86: Oil | T86: 205 | V86: 49035Oil | W86: 49035 | Y86: Oil | Z86: 342 | AA86: 0.9766081871
A87: CA Off-shore | B87: 4259 | C87: Oil | D87: conventional | E87: V | F87: UNK | G87: UNK | H87: 65 | I87: 65 | J87: UNK (unknown) | K87: =VLOOKUP(VALUE(LEFT(TEXT(B87,"00000"),2)),xref!$B$3:$E$4326,4,FALSE) -> CA | L87: =VLOOKUP(TEXT(B87,"00000"),xref!$L$2:$P$3244,5,FALSE) -> ORANGE O | M87: CA Off-shore (CA) | N87: Oil | Q87: 30045CBM | R87: 30045 | S87: CBM | T87: 3748 | V87: 49035CBM | W87: 49035 | Y87: CBM | Z87: 5 | AA87: 1
A88: CA Off-shore | B88: 4283 | C88: Oil | D88: conventional | E88: D | F88: UNK | G88: UNK | H88: 16 | I88: 15 | J88: UNK (unknown) | K88: =VLOOKUP(VALUE(LEFT(TEXT(B88,"00000"),2)),xref!$B$3:$E$4326,4,FALSE) -> CA | L88: =VLOOKUP(TEXT(B88,"00000"),xref!$L$2:$P$3244,5,FALSE) -> SNT BR O | M88: CA Off-shore (CA) | N88: Oil | Q88: 30045Gas | R88: 30045 | S88: Gas | T88: 8285 | V88: 49037Gas | W88: 49037 | X88: 49037 | Y88: Gas | Z88: 3879 | AA88: 0.9296210363
A89: CA Off-shore | B89: 4283 | C89: Oil | D89: conventional | E89: V | F89: UNK | G89: UNK | H89: 4 | I89: 4 | J89: UNK (unknown) | K89: =VLOOKUP(VALUE(LEFT(TEXT(B89,"00000"),2)),xref!$B$3:$E$4326,4,FALSE) -> CA | L89: =VLOOKUP(TEXT(B89,"00000"),xref!$L$2:$P$3244,5,FALSE) -> SNT BR O | M89: CA Off-shore (CA) | N89: Oil | Q89: 30045Oil | R89: 30045 | S89: Oil | T89: 600 | V89: 49037Oil | W89: 49037 | Y89: Oil | Z89: 376 | AA89: 0.9893617021
A90: CA Off-shore | B90: 4311 | C90: Gas | D90: conventional | E90: D | F90: UNK | G90: UNK | H90: 1 | I90: 1 | J90: UNK (unknown) | K90: =VLOOKUP(VALUE(LEFT(TEXT(B90,"00000"),2)),xref!$B$3:$E$4326,4,FALSE) -> CA | L90: =VLOOKUP(TEXT(B90,"00000"),xref!$L$2:$P$3244,5,FALSE) -> SNT CZ O | M90: CA Off-shore (CA) | N90: Gas | Q90: 33007Gas | R90: 33007 | S90: Gas | T90: 2 | V90: 49037CBM | W90: 49037 | Y90: CBM | Z90: 22 | AA90: 1
A91: CA Off-shore | B91: 4311 | C91: Gas | D91: conventional | E91: V | F91: UNK | G91: UNK | H91: 6 | I91: 6 | J91: UNK (unknown) | K91: =VLOOKUP(VALUE(LEFT(TEXT(B91,"00000"),2)),xref!$B$3:$E$4326,4,FALSE) -> CA | L91: =VLOOKUP(TEXT(B91,"00000"),xref!$L$2:$P$3244,5,FALSE) -> SNT CZ O | M91: CA Off-shore (CA) | N91: Gas | Q91: 33007Oil | R91: 33007 | S91: Oil | T91: 534 | V91: 5011Gas | W91: 5011 | X91: 5011 | Y91: Gas | Z91: 24 | AA91: 1
A92: CA Off-shore | B92: 4311 | C92: Oil | D92: conventional | F92: UNK | G92: UNK | H92: 1 | I92: 1 | J92: UNK (unknown) | K92: =VLOOKUP(VALUE(LEFT(TEXT(B92,"00000"),2)),xref!$B$3:$E$4326,4,FALSE) -> CA | L92: =VLOOKUP(TEXT(B92,"00000"),xref!$L$2:$P$3244,5,FALSE) -> SNT CZ O | M92: CA Off-shore (CA) | N92: Oil | Q92: 33009Gas | R92: 33009 | S92: Gas | T92: 2 | V92: 5011Oil | W92: 5011 | Y92: Oil | Z92: 1 | AA92: 1
A93: CA Off-shore | B93: 4311 | C93: Oil | D93: conventional | E93: D | F93: UNK | G93: UNK | H93: 185 | I93: 185 | J93: UNK (unknown) | K93: =VLOOKUP(VALUE(LEFT(TEXT(B93,"00000"),2)),xref!$B$3:$E$4326,4,FALSE) -> CA | L93: =VLOOKUP(TEXT(B93,"00000"),xref!$L$2:$P$3244,5,FALSE) -> SNT CZ O | M93: CA Off-shore (CA) | N93: Oil | Q93: 33009Oil | R93: 33009 | S93: Oil | T93: 650 | V93: 5017Gas | W93: 5017 | X93: 5017 | Y93: Gas | Z93: 23 | AA93: 1
A94: CA Off-shore | B94: 4311 | C94: Oil | D94: conventional | E94: H | F94: UNK | G94: UNK | H94: 5 | I94: 5 | J94: UNK (unknown) | K94: =VLOOKUP(VALUE(LEFT(TEXT(B94,"00000"),2)),xref!$B$3:$E$4326,4,FALSE) -> CA | L94: =VLOOKUP(TEXT(B94,"00000"),xref!$L$2:$P$3244,5,FALSE) -> SNT CZ O | M94: CA Off-shore (CA) | N94: Oil | Q94: 33011Gas | R94: 33011 | S94: Gas | T94: 204 | V94: =W94&Y94 -> 5017Oil | W94: =IF(X94="",W93,X94) -> 5017 | Y94: Oil | Z94: 310 | AA94: 0.9709677419
A95: CA Off-shore | B95: 4311 | C95: Oil | D95: conventional | E95: V | F95: UNK | G95: UNK | H95: 140 | I95: 140 | J95: UNK (unknown) | K95: =VLOOKUP(VALUE(LEFT(TEXT(B95,"00000"),2)),xref!$B$3:$E$4326,4,FALSE) -> CA | L95: =VLOOKUP(TEXT(B95,"00000"),xref!$L$2:$P$3244,5,FALSE) -> SNT CZ O | M95: CA Off-shore (CA) | N95: Oil | Q95: 33011Oil | R95: 33011 | S95: Oil | T95: 336 | V95: 5061Gas | W95: 5061 | X95: 5061 | Y95: Gas | Z95: 38 | AA95: 1
A96: CA Off-shore | B96: 4312 | C96: Oil | D96: conventional | E96: D | F96: UNK | G96: UNK | H96: 20 | I96: 20 | J96: UNK (unknown) | K96: =VLOOKUP(VALUE(LEFT(TEXT(B96,"00000"),2)),xref!$B$3:$E$4326,4,FALSE) -> CA | L96: =VLOOKUP(TEXT(B96,"00000"),xref!$L$2:$P$3244,5,FALSE) -> SNT CT O | M96: CA Off-shore (CA) | N96: Oil | Q96: 33013Gas | R96: 33013 | S96: Gas | T96: 3 | V96: 5061Oil | W96: 5061 | Y96: Oil | Z96: 63 | AA96: 1
A97: CA Off-shore | B97: 4312 | C97: Oil | D97: conventional | E97: V | F97: UNK | G97: UNK | H97: 52 | I97: 52 | J97: UNK (unknown) | K97: =VLOOKUP(VALUE(LEFT(TEXT(B97,"00000"),2)),xref!$B$3:$E$4326,4,FALSE) -> CA | L97: =VLOOKUP(TEXT(B97,"00000"),xref!$L$2:$P$3244,5,FALSE) -> SNT CT O | M97: CA Off-shore (CA) | N97: Oil | Q97: 33013Oil | R97: 33013 | S97: Oil | T97: 568 | V97: 5063Gas | W97: 5063 | X97: 5063 | Y97: Gas | Z97: 7 | AA97: 1
A98: Central Montana Uplift | B98: 25005 | C98: Gas | D98: conventional | F98: UNK | G98: UNK | H98: 3 | I98: 3 | J98: UNK (unknown) | K98: =VLOOKUP(VALUE(LEFT(TEXT(B98,"00000"),2)),xref!$B$3:$E$4326,4,FALSE) -> MT | L98: =VLOOKUP(TEXT(B98,"00000"),xref!$L$2:$P$3244,5,FALSE) -> Blaine | M98: Central Montana Uplift (MT) | N98: Gas | Q98: 33023Gas | R98: 33023 | S98: Gas | T98: 2 | V98: 5063Oil | W98: 5063 | Y98: Oil | Z98: 4 | AA98: 1
A99: Central Montana Uplift | B99: 25005 | C99: Gas | D99: conventional | E99: D | F99: UNK | G99: UNK | H99: 47 | I99: 47 | J99: UNK (unknown) | K99: =VLOOKUP(VALUE(LEFT(TEXT(B99,"00000"),2)),xref!$B$3:$E$4326,4,FALSE) -> MT | L99: =VLOOKUP(TEXT(B99,"00000"),xref!$L$2:$P$3244,5,FALSE) -> Blaine | M99: Central Montana Uplift (MT) | N99: Gas | Q99: 33023Oil | R99: 33023 | S99: Oil | T99: 703 | V99: 5055Gas | W99: 5055 | X99: 5055 | Y99: Gas | Z99: 6 | AA99: 1
A100: Central Montana Uplift | B100: 25005 | C100: Gas | D100: conventional | E100: V | F100: UNK | G100: UNK | H100: 664 | I100: 658 | J100: UNK (unknown) | K100: =VLOOKUP(VALUE(LEFT(TEXT(B100,"00000"),2)),xref!$B$3:$E$4326,4,FALSE) -> MT | L100: =VLOOKUP(TEXT(B100,"00000"),xref!$L$2:$P$3244,5,FALSE) -> Blaine | M100: Central Montana Uplift (MT) | N100: Gas | Q100: 33025Gas | R100: 33025 | S100: Gas | T100: 10 | V100: 5071Gas | W100: 5071 | X100: 5071 | Y100: Gas | Z100: 52 | AA100: 0.9230769231
A101: Central Montana Uplift | B101: 25005 | C101: Oil | D101: conventional | E101: D | F101: UNK | G101: UNK | H101: 2 | I101: 2 | J101: UNK (unknown) | K101: =VLOOKUP(VALUE(LEFT(TEXT(B101,"00000"),2)),xref!$B$3:$E$4326,4,FALSE) -> MT | L101: =VLOOKUP(TEXT(B101,"00000"),xref!$L$2:$P$3244,5,FALSE) -> Blaine | M101: Central Montana Uplift (MT) | N101: Oil | Q101: 33025Oil | R101: 33025 | S101: Oil | T101: 1586 | V101: 5071CBM | W101: 5071 | Y101: CBM | Z101: 2746 | AA101: 0.9916241806
A102: Central Montana Uplift | B102: 25005 | C102: Oil | D102: conventional | E102: H | F102: UNK | G102: UNK | H102: 20 | I102: 20 | J102: UNK (unknown) | K102: =VLOOKUP(VALUE(LEFT(TEXT(B102,"00000"),2)),xref!$B$3:$E$4326,4,FALSE) -> MT | L102: =VLOOKUP(TEXT(B102,"00000"),xref!$L$2:$P$3244,5,FALSE) -> Blaine | M102: Central Montana Uplift (MT) | N102: Oil | Q102: 33033Gas | R102: 33033 | S102: Gas | T102: 1 | V102: 30007Gas | W102: 30007 | X102: 30007 | Y102: Gas | Z102: 228 | AA102: 1
A103: Central Montana Uplift | B103: 25005 | C103: Oil | D103: conventional | E103: V | F103: UNK | G103: UNK | H103: 40 | I103: 40 | J103: UNK (unknown) | K103: =VLOOKUP(VALUE(LEFT(TEXT(B103,"00000"),2)),xref!$B$3:$E$4326,4,FALSE) -> MT | L103: =VLOOKUP(TEXT(B103,"00000"),xref!$L$2:$P$3244,5,FALSE) -> Blaine | M103: Central Montana Uplift (MT) | N103: Oil | Q103: 33033Oil | R103: 33033 | S103: Oil | T103: 89 | V103: 30007CBM | W103: 30007 | Y103: CBM | Z103: 607 | AA103: 1
A104: Central Montana Uplift | B104: 25027 | C104: Gas | D104: conventional | E104: V | F104: UNK | G104: UNK | H104: 7 | I104: 7 | J104: UNK (unknown) | K104: =VLOOKUP(VALUE(LEFT(TEXT(B104,"00000"),2)),xref!$B$3:$E$4326,4,FALSE) -> MT | L104: =VLOOKUP(TEXT(B104,"00000"),xref!$L$2:$P$3244,5,FALSE) -> Fergus | M104: Central Montana Uplift (MT) | N104: Gas | Q104: 33049Oil | R104: 33049 | S104: Oil | T104: 18 | V104: 4037Gas | W104: 4037 | X104: 4037 | Y104: Gas | Z104: 131 | AA104: 1
A105: Central Montana Uplift | B105: 25037 | C105: Gas | D105: conventional | E105: V | F105: UNK | G105: UNK | H105: 4 | I105: 4 | J105: UNK (unknown) | K105: =VLOOKUP(VALUE(LEFT(TEXT(B105,"00000"),2)),xref!$B$3:$E$4326,4,FALSE) -> MT | L105: =VLOOKUP(TEXT(B105,"00000"),xref!$L$2:$P$3244,5,FALSE) -> Golden Valley | M105: Central Montana Uplift (MT) | N105: Gas | Q105: 33053Gas | R105: 33053 | S105: Gas | T105: 30 | V105: 4037Oil | W105: 4037 | Y105: Oil | Z105: 2682 | AA105: 0.9772557793
A106: Central Montana Uplift | B106: 25065 | C106: Oil | D106: conventional | E106: H | F106: TIGHT OIL (L) | G106: HEATH SHALE | H106: 1 | I106: 1 | J106: HEATH SHALE (TIGHT OIL (L)) | K106: =VLOOKUP(VALUE(LEFT(TEXT(B106,"00000"),2)),xref!$B$3:$E$4326,4,FALSE) -> MT | L106: =VLOOKUP(TEXT(B106,"00000"),xref!$L$2:$P$3244,5,FALSE) -> Musselshell | M106: Central Montana Uplift (MT) | N106: Oil | Q106: 33053Oil | R106: 33053 | S106: Oil | T106: 3080 | V106: 4059Oil | W106: 4059 | X106: 4059 | Y106: Oil | Z106: 882 | AA106: 0.9988662132
A107: Central Montana Uplift | B107: 25065 | C107: Oil | D107: conventional | E107: H | F107: UNK | G107: UNK | H107: 1 | I107: 1 | J107: UNK (unknown) | K107: =VLOOKUP(VALUE(LEFT(TEXT(B107,"00000"),2)),xref!$B$3:$E$4326,4,FALSE) -> MT | L107: =VLOOKUP(TEXT(B107,"00000"),xref!$L$2:$P$3244,5,FALSE) -> Musselshell | M107: Central Montana Uplift (MT) | N107: Oil | Q107: 33055Oil | R107: 33055 | S107: Oil | T107: 49 | V107: 4071Oil | W107: 4071 | X107: 4071 | Y107: Oil | Z107: 27 | AA107: 1
A108: Central Montana Uplift | B108: 25065 | C108: Oil | D108: conventional | E108: V | F108: UNK | G108: UNK | H108: 72 | I108: 72 | J108: UNK (unknown) | K108: =VLOOKUP(VALUE(LEFT(TEXT(B108,"00000"),2)),xref!$B$3:$E$4326,4,FALSE) -> MT | L108: =VLOOKUP(TEXT(B108,"00000"),xref!$L$2:$P$3244,5,FALSE) -> Musselshell | M108: Central Montana Uplift (MT) | N108: Oil | Q108: 33061Gas | R108: 33061 | S108: Gas | T108: 6 | V108: 25111Oil | W108: 25111 | X108: 25111 | Y108: Oil | Z108: 27 | AA108: 1
A109: Central Montana Uplift | B109: 25069 | C109: Oil | D109: conventional | E109: V | F109: UNK | G109: UNK | H109: 37 | I109: 37 | J109: UNK (unknown) | K109: =VLOOKUP(VALUE(LEFT(TEXT(B109,"00000"),2)),xref!$B$3:$E$4326,4,FALSE) -> MT | L109: =VLOOKUP(TEXT(B109,"00000"),xref!$L$2:$P$3244,5,FALSE) -> Petroleum | M109: Central Montana Uplift (MT) | N109: Oil | Q109: 33061Oil | R109: 33061 | S109: Oil | T109: 2303 | V109: 5057Gas | W109: 5057 | X109: 5057 | Y109: Gas | Z109: 2 | AA109: 1
A110: Central Montana Uplift | B110: 25087 | C110: Gas | D110: conventional | E110: V | F110: UNK | G110: UNK | H110: 1 | I110: 1 | J110: UNK (unknown) | K110: =VLOOKUP(VALUE(LEFT(TEXT(B110,"00000"),2)),xref!$B$3:$E$4326,4,FALSE) -> MT | L110: =VLOOKUP(TEXT(B110,"00000"),xref!$L$2:$P$3244,5,FALSE) -> Rosebud | M110: Central Montana Uplift (MT) | N110: Gas | Q110: 33075Gas | R110: 33075 | S110: Gas | T110: 6 | V110: 5057Oil | W110: 5057 | Y110: Oil | Z110: 100 | AA110: 1
A111: Central Montana Uplift | B111: 25087 | C111: Oil | D111: conventional | E111: H | F111: TIGHT OIL (L) | G111: HEATH SHALE | H111: 5 | I111: 5 | J111: HEATH SHALE (TIGHT OIL (L)) | K111: =VLOOKUP(VALUE(LEFT(TEXT(B111,"00000"),2)),xref!$B$3:$E$4326,4,FALSE) -> MT | L111: =VLOOKUP(TEXT(B111,"00000"),xref!$L$2:$P$3244,5,FALSE) -> Rosebud | M111: Central Montana Uplift (MT) | N111: Oil | Q111: 33075Oil | R111: 33075 | S111: Oil | T111: 294 | V111: 4001Oil | W111: 4001 | X111: 4001 | Y111: Oil | Z111: 6 | AA111: 1
A112: Central Montana Uplift | B112: 25087 | C112: Oil | D112: conventional | E112: H | F112: UNK | G112: UNK | H112: 2 | I112: 2 | J112: UNK (unknown) | K112: =VLOOKUP(VALUE(LEFT(TEXT(B112,"00000"),2)),xref!$B$3:$E$4326,4,FALSE) -> MT | L112: =VLOOKUP(TEXT(B112,"00000"),xref!$L$2:$P$3244,5,FALSE) -> Rosebud | M112: Central Montana Uplift (MT) | N112: Oil | Q112: 33087Gas | R112: 33087 | S112: Gas | T112: 5 | V112: 4085Oil | W112: 4085 | X112: 4085 | Y112: Oil | Z112: 13 | AA112: 1
A113: Central Montana Uplift | B113: 25087 | C113: Oil | D113: conventional | E113: V | F113: UNK | G113: UNK | H113: 78 | I113: 78 | J113: UNK (unknown) | K113: =VLOOKUP(VALUE(LEFT(TEXT(B113,"00000"),2)),xref!$B$3:$E$4326,4,FALSE) -> MT | L113: =VLOOKUP(TEXT(B113,"00000"),xref!$L$2:$P$3244,5,FALSE) -> Rosebud | M113: Central Montana Uplift (MT) | N113: Oil | Q113: 33087Oil | R113: 33087 | S113: Oil | T113: 16 | V113: 30035Gas | W113: 30035 | X113: 30035 | Y113: Gas | Z113: 1 | AA113: 1
A114: Central Montana Uplift | B114: 25095 | C114: Gas | D114: conventional | E114: V | F114: UNK | G114: UNK | H114: 18 | I114: 17 | J114: UNK (unknown) | K114: =VLOOKUP(VALUE(LEFT(TEXT(B114,"00000"),2)),xref!$B$3:$E$4326,4,FALSE) -> MT | L114: =VLOOKUP(TEXT(B114,"00000"),xref!$L$2:$P$3244,5,FALSE) -> Stillwater | M114: Central Montana Uplift (MT) | N114: Gas | Q114: 33089Gas | R114: 33089 | S114: Gas | T114: 1 | V114: 30035Oil | W114: 30035 | Y114: Oil | Z114: 1 | AA114: 1
A115: Central Montana Uplift | B115: 25095 | C115: Oil | D115: conventional | E115: H | F115: UNK | G115: UNK | H115: 3 | I115: 3 | J115: UNK (unknown) | K115: =VLOOKUP(VALUE(LEFT(TEXT(B115,"00000"),2)),xref!$B$3:$E$4326,4,FALSE) -> MT | L115: =VLOOKUP(TEXT(B115,"00000"),xref!$L$2:$P$3244,5,FALSE) -> Stillwater | M115: Central Montana Uplift (MT) | N115: Oil | Q115: 33089Oil | R115: 33089 | S115: Oil | T115: 255 | V115: 43041Oil | W115: 43041 | X115: 43041 | Y115: Oil | Z115: 23 | AA115: 1
A116: Central Montana Uplift | B116: 25095 | C116: Oil | D116: conventional | E116: V | F116: UNK | G116: UNK | H116: 1 | I116: 1 | J116: UNK (unknown) | K116: =VLOOKUP(VALUE(LEFT(TEXT(B116,"00000"),2)),xref!$B$3:$E$4326,4,FALSE) -> MT | L116: =VLOOKUP(TEXT(B116,"00000"),xref!$L$2:$P$3244,5,FALSE) -> Stillwater | M116: Central Montana Uplift (MT) | N116: Oil | Q116: 33101Oil | R116: 33101 | S116: Oil | T116: 12 | V116: 5033Gas | W116: 5033 | X116: 5033 | Y116: Gas | Z116: 10 | AA116: 1
A117: Central Montana Uplift | B117: 25097 | C117: Gas | D117: conventional | F117: UNK | G117: UNK | H117: 2 | I117: 2 | J117: UNK (unknown) | K117: =VLOOKUP(VALUE(LEFT(TEXT(B117,"00000"),2)),xref!$B$3:$E$4326,4,FALSE) -> MT | L117: =VLOOKUP(TEXT(B117,"00000"),xref!$L$2:$P$3244,5,FALSE) -> Sweet Grass | M117: Central Montana Uplift (MT) | N117: Gas | Q117: 33105Gas | R117: 33105 | S117: Gas | T117: 31 | V117: 5033Oil | W117: 5033 | Y117: Oil | Z117: 13 | AA117: 0.9230769231
A118: Central Montana Uplift | B118: 25097 | C118: Gas | D118: conventional | E118: V | F118: UNK | G118: UNK | H118: 1 | I118: 1 | J118: UNK (unknown) | K118: =VLOOKUP(VALUE(LEFT(TEXT(B118,"00000"),2)),xref!$B$3:$E$4326,4,FALSE) -> MT | L118: =VLOOKUP(TEXT(B118,"00000"),xref!$L$2:$P$3244,5,FALSE) -> Sweet Grass | M118: Central Montana Uplift (MT) | N118: Gas | Q118: 33105Oil | R118: 33105 | S118: Oil | T118: 1902 | V118: 5083Gas | W118: 5083 | X118: 5083 | Y118: Gas | Z118: 6 | AA118: 1
A119: Central Western Overthrust | B119: 43043 | C119: Gas | D119: conventional | E119: D | F119: UNK | G119: UNK | H119: 14 | I119: 14 | J119: UNK (unknown) | K119: =VLOOKUP(VALUE(LEFT(TEXT(B119,"00000"),2)),xref!$B$3:$E$4326,4,FALSE) -> UT | L119: =VLOOKUP(TEXT(B119,"00000"),xref!$L$2:$P$3244,5,FALSE) -> Summit | M119: Central Western Overthrust (UT) | N119: Gas | Q119: 36009Gas | R119: 36009 | S119: Gas | T119: 16 | V119: 5083Oil | W119: 5083 | Y119: Oil | Z119: 25 | AA119: 1
A120: Central Western Overthrust | B120: 43043 | C120: Gas | D120: conventional | E120: V | F120: UNK | G120: UNK | H120: 10 | I120: 10 | J120: UNK (unknown) | K120: =VLOOKUP(VALUE(LEFT(TEXT(B120,"00000"),2)),xref!$B$3:$E$4326,4,FALSE) -> UT | L120: =VLOOKUP(TEXT(B120,"00000"),xref!$L$2:$P$3244,5,FALSE) -> Summit | M120: Central Western Overthrust (UT) | N120: Gas | Q120: 4001Oil | R120: 4001 | S120: Oil | T120: 6 | V120: 5083 | W120: 5083 | Z120: 1 | AA120: 1
A121: Central Western Overthrust | B121: 43043 | C121: Oil | D121: conventional | F121: UNK | G121: UNK | H121: 1 | I121: 1 | J121: UNK (unknown) | K121: =VLOOKUP(VALUE(LEFT(TEXT(B121,"00000"),2)),xref!$B$3:$E$4326,4,FALSE) -> UT | L121: =VLOOKUP(TEXT(B121,"00000"),xref!$L$2:$P$3244,5,FALSE) -> Summit | M121: Central Western Overthrust (UT) | N121: Oil | Q121: 40033Oil | R121: 40033 | S121: Oil | T121: 2 | V121: 5113Gas | W121: 5113 | X121: 5113 | Y121: Gas | Z121: 138 | AA121: 0.7608695652
A122: Central Western Overthrust | B122: 43043 | C122: Oil | D122: conventional | E122: D | F122: UNK | G122: UNK | H122: 2 | I122: 2 | J122: UNK (unknown) | K122: =VLOOKUP(VALUE(LEFT(TEXT(B122,"00000"),2)),xref!$B$3:$E$4326,4,FALSE) -> UT | L122: =VLOOKUP(TEXT(B122,"00000"),xref!$L$2:$P$3244,5,FALSE) -> Summit | M122: Central Western Overthrust (UT) | N122: Oil | Q122: 40047Gas | R122: 40047 | S122: Gas | T122: 1 | V122: 5113Oil | W122: 5113 | Y122: Oil | Z122: 1 | AA122: 1
A123: Central Western Overthrust | B123: 43043 | C123: Oil | D123: conventional | E123: H | F123: UNK | G123: UNK | H123: 2 | I123: 2 | J123: UNK (unknown) | K123: =VLOOKUP(VALUE(LEFT(TEXT(B123,"00000"),2)),xref!$B$3:$E$4326,4,FALSE) -> UT | L123: =VLOOKUP(TEXT(B123,"00000"),xref!$L$2:$P$3244,5,FALSE) -> Summit | M123: Central Western Overthrust (UT) | N123: Oil | Q123: 40047Oil | R123: 40047 | S123: Oil | T123: 11 | V123: 43015Gas | W123: 43015 | X123: 43015 | Y123: Gas | Z123: 63 | AA123: 1
A124: Central Western Overthrust | B124: 43043 | C124: Oil | D124: conventional | E124: V | F124: UNK | G124: UNK | H124: 8 | I124: 8 | J124: UNK (unknown) | K124: =VLOOKUP(VALUE(LEFT(TEXT(B124,"00000"),2)),xref!$B$3:$E$4326,4,FALSE) -> UT | L124: =VLOOKUP(TEXT(B124,"00000"),xref!$L$2:$P$3244,5,FALSE) -> Summit | M124: Central Western Overthrust (UT) | N124: Oil | Q124: 40063Gas | R124: 40063 | S124: Gas | T124: 66 | V124: 43015Oil | W124: 43015 | Y124: Oil | Z124: 3 | AA124: 1
A125: Green River Basin | B125: 49023 | C125: Gas | D125: conventional | F125: UNK | G125: UNK | H125: 1 | I125: 1 | J125: UNK (unknown) | K125: =VLOOKUP(VALUE(LEFT(TEXT(B125,"00000"),2)),xref!$B$3:$E$4326,4,FALSE) -> WY | L125: =VLOOKUP(TEXT(B125,"00000"),xref!$L$2:$P$3244,5,FALSE) -> Lincoln | M125: Green River Basin (WY) | N125: Gas | Q125: 40063Oil | R125: 40063 | S125: Oil | T125: 163 | V125: 43015CBM | W125: 43015 | Y125: CBM | Z125: 197 | AA125: 1
A126: Green River Basin | B126: 49023 | C126: Gas | D126: conventional | E126: D | F126: BLANK | G126: BLANK | H126: 15 | I126: 14 | J126: BLANK (unknown | K126: =VLOOKUP(VALUE(LEFT(TEXT(B126,"00000"),2)),xref!$B$3:$E$4326,4,FALSE) -> WY | L126: =VLOOKUP(TEXT(B126,"00000"),xref!$L$2:$P$3244,5,FALSE) -> Lincoln | M126: Green River Basin (WY) | N126: Gas | Q126: 4007Gas | R126: 4007 | S126: Gas | T126: 9 | V126: 43017Oil | W126: 43017 | X126: 43017 | Y126: Oil | Z126: 19 | AA126: 1
A127: Green River Basin | B127: 49023 | C127: Gas | D127: conventional | E127: D | F127: SHALE GAS (G) | G127: BAXTER/HILLIARD SHALE | H127: 14 | I127: 13 | J127: BAXTER/HILLIARD SHALE (SHALE GAS (G)) | K127: =VLOOKUP(VALUE(LEFT(TEXT(B127,"00000"),2)),xref!$B$3:$E$4326,4,FALSE) -> WY | L127: =VLOOKUP(TEXT(B127,"00000"),xref!$L$2:$P$3244,5,FALSE) -> Lincoln | M127: Green River Basin (WY) | N127: Gas | Q127: 4011Gas | R127: 4011 | S127: Gas | T127: 194 | V127: 43019Gas | W127: 43019 | X127: 43019 | Y127: Gas | Z127: 277 | AA127: 0.9927797834
A128: Green River Basin | B128: 49023 | C128: Gas | D128: conventional | E128: D | F128: UNK | G128: UNK | H128: 118 | I128: 107 | J128: UNK (unknown) | K128: =VLOOKUP(VALUE(LEFT(TEXT(B128,"00000"),2)),xref!$B$3:$E$4326,4,FALSE) -> WY | L128: =VLOOKUP(TEXT(B128,"00000"),xref!$L$2:$P$3244,5,FALSE) -> Lincoln | M128: Green River Basin (WY) | N128: Gas | Q128: 4013Gas | R128: 4013 | S128: Gas | T128: 16 | V128: 43019Oil | W128: 43019 | Y128: Oil | Z128: 62 | AA128: 1
A129: Green River Basin | B129: 49023 | C129: Gas | D129: conventional | E129: H | F129: UNK | G129: UNK | H129: 17 | I129: 15 | J129: UNK (unknown) | K129: =VLOOKUP(VALUE(LEFT(TEXT(B129,"00000"),2)),xref!$B$3:$E$4326,4,FALSE) -> WY | L129: =VLOOKUP(TEXT(B129,"00000"),xref!$L$2:$P$3244,5,FALSE) -> Lincoln | M129: Green River Basin (WY) | N129: Gas | Q129: 4019Gas | R129: 4019 | S129: Gas | T129: 1 | V129: 43037Gas | W129: 43037 | X129: 43037 | Y129: Gas | Z129: 60 | AA129: 0.9666666667
A130: Green River Basin | B130: 49023 | C130: Gas | D130: conventional | E130: V | F130: BLANK | G130: BLANK | H130: 75 | I130: 68 | J130: BLANK (unknown | K130: =VLOOKUP(VALUE(LEFT(TEXT(B130,"00000"),2)),xref!$B$3:$E$4326,4,FALSE) -> WY | L130: =VLOOKUP(TEXT(B130,"00000"),xref!$L$2:$P$3244,5,FALSE) -> Lincoln | M130: Green River Basin (WY) | N130: Gas | Q130: 4019Oil | R130: 4019 | S130: Oil | T130: 2066 | V130: 43037Oil | W130: 43037 | Y130: Oil | Z130: 597 | AA130: 0.9949748744
A131: Green River Basin | B131: 49023 | C131: Gas | D131: conventional | E131: V | F131: SHALE GAS (G) | G131: BAXTER/HILLIARD SHALE | H131: 37 | I131: 34 | J131: =G131&" ("&IF(F131="BLANK","unknown",IF(F131="UNK","unknown",F131)&")") -> BAXTER/HILLIARD SHALE (SHALE GAS (G)) | K131: =VLOOKUP(VALUE(LEFT(TEXT(B131,"00000"),2)),xref!$B$3:$E$4326,4,FALSE) -> WY | L131: =VLOOKUP(TEXT(B131,"00000"),xref!$L$2:$P$3244,5,FALSE) -> Lincoln | M131: =A131&" ("&K131&")" -> Green River Basin (WY) | N131: Gas | Q131: 4021Gas | R131: 4021 | S131: Gas | T131: 227 | V131: 43037CBM | W131: 43037 | Y131: CBM | Z131: 1 | AA131: 1
A132: Green River Basin | B132: 49023 | C132: Gas | D132: conventional | E132: V | F132: UNK | G132: UNK | H132: 1181 | I132: =IF(ISNA(VLOOKUP(B132&N132,$V$3:$AA$329,6,FALSE))=TRUE,0,ROUND(H132*VLOOKUP(B132&N132,$V$3:$AA$329,6,FALSE),0)) -> 1073 | J132: UNK (unknown) | K132: =VLOOKUP(VALUE(LEFT(TEXT(B132,"00000"),2)),xref!$B$3:$E$4326,4,FALSE) -> WY | L132: =VLOOKUP(TEXT(B132,"00000"),xref!$L$2:$P$3244,5,FALSE) -> Lincoln | M132: Green River Basin (WY) | N132: =IF(D132="coalbed methane","CBM",C132) -> Gas | Q132: =R132&S132 -> 4023Gas | R132: 4023 | S132: Gas | T132: 24 | V132: 30005Gas | W132: 30005 | X132: 30005 | Y132: Gas | Z132: 1288 | AA132: =VLOOKUP(V132,$Q$3:$T$330,4,FALSE)/Z132 -> 0.9433229814
A133: Green River Basin | B133: 49023 | C133: Oil | D133: conventional | E133: D | F133: SHALE GAS (G) | G133: BAXTER/HILLIARD SHALE | H133: 1 | I133: 1 | J133: BAXTER/HILLIARD SHALE (SHALE GAS (G)) | K133: =VLOOKUP(VALUE(LEFT(TEXT(B133,"00000"),2)),xref!$B$3:$E$4326,4,FALSE) -> WY | L133: =VLOOKUP(TEXT(B133,"00000"),xref!$L$2:$P$3244,5,FALSE) -> Lincoln | M133: Green River Basin (WY) | N133: Oil | Q133: 4029Gas | R133: 4029 | S133: Gas | T133: 96 | V133: 30005Oil | W133: 30005 | Y133: Oil | Z133: 713 | AA133: 0.9957924264
A134: Green River Basin | B134: 49023 | C134: Oil | D134: conventional | E134: D | F134: UNK | G134: UNK | H134: 4 | I134: 4 | J134: UNK (unknown) | K134: =VLOOKUP(VALUE(LEFT(TEXT(B134,"00000"),2)),xref!$B$3:$E$4326,4,FALSE) -> WY | L134: =VLOOKUP(TEXT(B134,"00000"),xref!$L$2:$P$3244,5,FALSE) -> Lincoln | M134: Green River Basin (WY) | N134: Oil | Q134: 4029Oil | R134: 4029 | S134: Oil | T134: 18001 | V134: 30015Gas | W134: 30015 | X134: 30015 | Y134: Gas | Z134: 2868 | AA134: 0.9274755927
A135: Green River Basin | B135: 49023 | C135: Oil | D135: conventional | E135: V | F135: BLANK | G135: BLANK | H135: 7 | I135: 7 | J135: BLANK (unknown | K135: =VLOOKUP(VALUE(LEFT(TEXT(B135,"00000"),2)),xref!$B$3:$E$4326,4,FALSE) -> WY | L135: =VLOOKUP(TEXT(B135,"00000"),xref!$L$2:$P$3244,5,FALSE) -> Lincoln | M135: Green River Basin (WY) | N135: Oil | Q135: 4030Gas | R135: 4030 | S135: Gas | T135: 68 | V135: 30015Oil | W135: 30015 | Y135: Oil | Z135: 11118 | AA135: 0.9714876776
A136: Green River Basin | B136: 49023 | C136: Oil | D136: conventional | E136: V | F136: UNK | G136: UNK | H136: 63 | I136: 61 | J136: UNK (unknown) | K136: =VLOOKUP(VALUE(LEFT(TEXT(B136,"00000"),2)),xref!$B$3:$E$4326,4,FALSE) -> WY | L136: =VLOOKUP(TEXT(B136,"00000"),xref!$L$2:$P$3244,5,FALSE) -> Lincoln | M136: Green River Basin (WY) | N136: Oil | Q136: 4030Oil | R136: 4030 | S136: Oil | T136: 25802 | V136: 30025Gas | W136: 30025 | X136: 30025 | Y136: Gas | Z136: 2190 | AA136: 0.9301369863
A137: Green River Basin | B137: 49041 | C137: Gas | D137: coalbed methane | E137: V | F137: TIGHT GAS (T) | G137: MOXA ARCH | H137: 1 | I137: 1 | J137: MOXA ARCH (TIGHT GAS (T)) | K137: =VLOOKUP(VALUE(LEFT(TEXT(B137,"00000"),2)),xref!$B$3:$E$4326,4,FALSE) -> WY | L137: =VLOOKUP(TEXT(B137,"00000"),xref!$L$2:$P$3244,5,FALSE) -> Uinta | M137: Green River Basin (WY) | N137: CBM | Q137: 4031Oil | R137: 4031 | S137: Oil | T137: 180 | V137: 30025Oil | W137: 30025 | Y137: Oil | Z137: 12434 | AA137: 0.8852340357
A138: Green River Basin | B138: 49041 | C138: Gas | D138: conventional | F138: UNK | G138: UNK | H138: 1 | I138: 1 | J138: UNK (unknown) | K138: =VLOOKUP(VALUE(LEFT(TEXT(B138,"00000"),2)),xref!$B$3:$E$4326,4,FALSE) -> WY | L138: =VLOOKUP(TEXT(B138,"00000"),xref!$L$2:$P$3244,5,FALSE) -> Uinta | M138: Green River Basin (WY) | N138: Gas | Q138: 4037Gas | R138: 4037 | S138: Gas | T138: 131 | V138: 30041Gas | W138: 30041 | X138: 30041 | Y138: Gas | Z138: 41 | AA138: 0.8780487805
A139: Green River Basin | B139: 49041 | C139: Gas | D139: conventional | E139: D | F139: TIGHT GAS (T) | G139: MOXA ARCH | H139: 27 | I139: 21 | J139: MOXA ARCH (TIGHT GAS (T)) | K139: =VLOOKUP(VALUE(LEFT(TEXT(B139,"00000"),2)),xref!$B$3:$E$4326,4,FALSE) -> WY | L139: =VLOOKUP(TEXT(B139,"00000"),xref!$L$2:$P$3244,5,FALSE) -> Uinta | M139: Green River Basin (WY) | N139: Gas | Q139: 4037Oil | R139: 4037 | S139: Oil | T139: 2621 | V139: 30041Oil | W139: 30041 | Y139: Oil | Z139: 149 | AA139: 0.9932885906
A140: Green River Basin | B140: 49041 | C140: Gas | D140: conventional | E140: D | F140: UNK | G140: UNK | H140: 28 | I140: 22 | J140: UNK (unknown) | K140: =VLOOKUP(VALUE(LEFT(TEXT(B140,"00000"),2)),xref!$B$3:$E$4326,4,FALSE) -> WY | L140: =VLOOKUP(TEXT(B140,"00000"),xref!$L$2:$P$3244,5,FALSE) -> Uinta | M140: Green River Basin (WY) | N140: Gas | Q140: 4039Gas | R140: 4039 | S140: Gas | T140: 7 | V140: 5029Gas | W140: 5029 | X140: 5029 | Y140: Gas | Z140: 4 | AA140: 0.75
A141: Green River Basin | B141: 49041 | C141: Gas | D141: conventional | E141: H | F141: UNK | G141: UNK | H141: 6 | I141: 5 | J141: UNK (unknown) | K141: =VLOOKUP(VALUE(LEFT(TEXT(B141,"00000"),2)),xref!$B$3:$E$4326,4,FALSE) -> WY | L141: =VLOOKUP(TEXT(B141,"00000"),xref!$L$2:$P$3244,5,FALSE) -> Uinta | M141: Green River Basin (WY) | N141: Gas | Q141: 4053Oil | R141: 4053 | S141: Oil | T141: 735 | V141: 5029CBM | W141: 5029 | Y141: CBM | Z141: 1 | AA141: 1
A142: Green River Basin | B142: 49041 | C142: Gas | D142: conventional | E142: V | F142: TIGHT GAS (T) | G142: MOXA ARCH | H142: 318 | I142: 249 | J142: MOXA ARCH (TIGHT GAS (T)) | K142: =VLOOKUP(VALUE(LEFT(TEXT(B142,"00000"),2)),xref!$B$3:$E$4326,4,FALSE) -> WY | L142: =VLOOKUP(TEXT(B142,"00000"),xref!$L$2:$P$3244,5,FALSE) -> Uinta | M142: Green River Basin (WY) | N142: Gas | Q142: 4059Oil | R142: 4059 | S142: Oil | T142: 881 | V142: 5045Gas | W142: 5045 | X142: 5045 | Y142: Gas | Z142: 12005 | AA142: 0.8643898376
A143: Green River Basin | B143: 49041 | C143: Gas | D143: conventional | E143: V | F143: UNK | G143: UNK | H143: 107 | I143: 84 | J143: =G143&" ("&IF(F143="BLANK","unknown",IF(F143="UNK","unknown",F143)&")") -> UNK (unknown) | K143: =VLOOKUP(VALUE(LEFT(TEXT(B143,"00000"),2)),xref!$B$3:$E$4326,4,FALSE) -> WY | L143: =VLOOKUP(TEXT(B143,"00000"),xref!$L$2:$P$3244,5,FALSE) -> Uinta | M143: Green River Basin (WY) | N143: Gas | Q143: 4067Gas | R143: 4067 | S143: Gas | T143: 93 | V143: 5045Oil | W143: 5045 | Y143: Oil | Z143: 1
A144: Green River Basin | B144: 49041 | C144: Oil | D144: conventional | E144: D | F144: UNK | G144: UNK | H144: 3 | I144: 3 | J144: UNK (unknown) | K144: =VLOOKUP(VALUE(LEFT(TEXT(B144,"00000"),2)),xref!$B$3:$E$4326,4,FALSE) -> WY | L144: =VLOOKUP(TEXT(B144,"00000"),xref!$L$2:$P$3244,5,FALSE) -> Uinta | M144: Green River Basin (WY) | N144: Oil | Q144: 4069Oil | R144: 4069 | S144: Oil | T144: 17 | V144: 5045CBM | W144: 5045 | Y144: CBM | Z144: 9 | AA144: 0.8888888889
A145: Green River Basin | B145: 49041 | C145: Oil | D145: conventional | E145: H | F145: UNK | G145: UNK | H145: 13 | I145: 13 | J145: UNK (unknown) | K145: =VLOOKUP(VALUE(LEFT(TEXT(B145,"00000"),2)),xref!$B$3:$E$4326,4,FALSE) -> WY | L145: =VLOOKUP(TEXT(B145,"00000"),xref!$L$2:$P$3244,5,FALSE) -> Uinta | M145: Green River Basin (WY) | N145: Oil | Q145: 4071Oil | R145: 4071 | S145: Oil | T145: 27 | V145: 5051Gas | W145: 5051 | X145: 5051 | Y145: Gas | Z145: 23 | AA145: 0.8695652174
A146: Green River Basin | B146: 49041 | C146: Oil | D146: conventional | E146: V | F146: TIGHT GAS (T) | G146: MOXA ARCH | H146: 4 | I146: 4 | J146: MOXA ARCH (TIGHT GAS (T)) | K146: =VLOOKUP(VALUE(LEFT(TEXT(B146,"00000"),2)),xref!$B$3:$E$4326,4,FALSE) -> WY | L146: =VLOOKUP(TEXT(B146,"00000"),xref!$L$2:$P$3244,5,FALSE) -> Uinta | M146: Green River Basin (WY) | N146: Oil | Q146: 4077Gas | R146: 4077 | S146: Gas | T146: 46 | V146: 5051CBM | W146: 5051 | Y146: CBM | Z146: 8 | AA146: 0.875
A147: Green River Basin | B147: 49041 | C147: Oil | D147: conventional | E147: V | F147: UNK | G147: UNK | H147: 53 | I147: 52 | J147: UNK (unknown) | K147: =VLOOKUP(VALUE(LEFT(TEXT(B147,"00000"),2)),xref!$B$3:$E$4326,4,FALSE) -> WY | L147: =VLOOKUP(TEXT(B147,"00000"),xref!$L$2:$P$3244,5,FALSE) -> Uinta | M147: Green River Basin (WY) | N147: Oil | Q147: 4079Oil | R147: 4079 | S147: Oil | T147: 230 | V147: 5077Gas | W147: 5077 | X147: 5077 | Y147: Gas | Z147: 1521 | AA147: 0.5489809336
A148: Coastal Basins | B148: 4053 | C148: Oil | D148: conventional | F148: UNK | G148: UNK | H148: 1 | I148: 1 | J148: UNK (unknown) | K148: =VLOOKUP(VALUE(LEFT(TEXT(B148,"00000"),2)),xref!$B$3:$E$4326,4,FALSE) -> CA | L148: =VLOOKUP(TEXT(B148,"00000"),xref!$L$2:$P$3244,5,FALSE) -> Monterey | M148: Coastal Basins (CA) | N148: Oil | Q148: 4081Oil | R148: 4081 | S148: Oil | T148: 10 | V148: 5077Oil | W148: 5077 | Y148: Oil | Z148: 6 | AA148: 1
A149: Coastal Basins | B149: 4053 | C149: Oil | D149: conventional | E149: D | F149: UNK | G149: UNK | H149: 288 | I149: 288 | J149: UNK (unknown) | K149: =VLOOKUP(VALUE(LEFT(TEXT(B149,"00000"),2)),xref!$B$3:$E$4326,4,FALSE) -> CA | L149: =VLOOKUP(TEXT(B149,"00000"),xref!$L$2:$P$3244,5,FALSE) -> Monterey | M149: Coastal Basins (CA) | N149: Oil | Q149: 4083Gas | R149: 4083 | S149: Gas | T149: 15 | V149: 5077CBM | W149: 5077 | Y149: CBM | Z149: 3 | AA149: 1
A150: Coastal Basins | B150: 4053 | C150: Oil | D150: conventional | E150: H | F150: UNK | G150: UNK | H150: 101 | I150: 101 | J150: UNK (unknown) | K150: =VLOOKUP(VALUE(LEFT(TEXT(B150,"00000"),2)),xref!$B$3:$E$4326,4,FALSE) -> CA | L150: =VLOOKUP(TEXT(B150,"00000"),xref!$L$2:$P$3244,5,FALSE) -> Monterey | M150: Coastal Basins (CA) | N150: Oil | Q150: 4083Oil | R150: 4083 | S150: Oil | T150: 1153 | V150: 5103Gas | W150: 5103 | X150: 5103 | Y150: Gas | Z150: 3100 | AA150: 0.5283870968
A151: Coastal Basins | B151: 4053 | C151: Oil | D151: conventional | E151: V | F151: UNK | G151: UNK | H151: 345 | I151: 345 | J151: UNK (unknown) | K151: =VLOOKUP(VALUE(LEFT(TEXT(B151,"00000"),2)),xref!$B$3:$E$4326,4,FALSE) -> CA | L151: =VLOOKUP(TEXT(B151,"00000"),xref!$L$2:$P$3244,5,FALSE) -> Monterey | M151: Coastal Basins (CA) | N151: Oil | Q151: 4085Oil | R151: 4085 | S151: Oil | T151: 13 | V151: 5103Oil | W151: 5103 | Y151: Oil | Z151: 574 | AA151: 0.9773519164
A152: Coastal Basins | B152: 4079 | C152: Oil | D152: conventional | E152: D | F152: UNK | G152: UNK | H152: 165 | I152: 165 | J152: UNK (unknown) | K152: =VLOOKUP(VALUE(LEFT(TEXT(B152,"00000"),2)),xref!$B$3:$E$4326,4,FALSE) -> CA | L152: =VLOOKUP(TEXT(B152,"00000"),xref!$L$2:$P$3244,5,FALSE) -> San Luis Obispo | M152: Coastal Basins (CA) | N152: Oil | Q152: 4095Gas | R152: 4095 | S152: Gas | T152: 84 | V152: 5103CBM | W152: 5103 | Y152: CBM | Z152: 20 | AA152: 1
A153: Coastal Basins | B153: 4079 | C153: Oil | D153: conventional | E153: H | F153: UNK | G153: UNK | H153: 1 | I153: 1 | J153: UNK (unknown) | K153: =VLOOKUP(VALUE(LEFT(TEXT(B153,"00000"),2)),xref!$B$3:$E$4326,4,FALSE) -> CA | L153: =VLOOKUP(TEXT(B153,"00000"),xref!$L$2:$P$3244,5,FALSE) -> San Luis Obispo | M153: Coastal Basins (CA) | N153: Oil | Q153: 4099Gas | R153: 4099 | S153: Gas | T153: 1 | V153: 25003Gas | W153: 25003 | X153: 25003 | Y153: Gas | Z153: 94 | AA153: 1
A154: Coastal Basins | B154: 4079 | C154: Oil | D154: conventional | E154: V | F154: UNK | G154: UNK | H154: 64 | I154: 64 | J154: UNK (unknown) | K154: =VLOOKUP(VALUE(LEFT(TEXT(B154,"00000"),2)),xref!$B$3:$E$4326,4,FALSE) -> CA | L154: =VLOOKUP(TEXT(B154,"00000"),xref!$L$2:$P$3244,5,FALSE) -> San Luis Obispo | M154: Coastal Basins (CA) | N154: Oil | Q154: 4101Gas | R154: 4101 | S154: Gas | T154: 239 | V154: 25003Oil | W154: 25003 | Y154: Oil | Z154: 39 | AA154: 1
A155: Denver Basin | B155: 5001 | C155: Gas | D155: conventional | E155: D | F155: TIGHT GAS (T) | G155: NIOBRARA - WATTENBERG | H155: 14 | I155: 11 | J155: NIOBRARA - WATTENBERG (TIGHT GAS (T)) | K155: =VLOOKUP(VALUE(LEFT(TEXT(B155,"00000"),2)),xref!$B$3:$E$4326,4,FALSE) -> CO | L155: =VLOOKUP(TEXT(B155,"00000"),xref!$L$2:$P$3244,5,FALSE) -> Adams | M155: Denver Basin (CO) | N155: Gas | Q155: 4103Gas | R155: 4103 | S155: Gas | T155: 102 | V155: 25003CBM | W155: 25003 | Y155: CBM | Z155: 80 | AA155: 0.975
A156: Denver Basin | B156: 5001 | C156: Gas | D156: conventional | E156: D | F156: TIGHT GAS (T) | G156: WATTENBERG TIGHT GAS | H156: 40 | I156: 32 | J156: WATTENBERG TIGHT GAS (TIGHT GAS (T)) | K156: =VLOOKUP(VALUE(LEFT(TEXT(B156,"00000"),2)),xref!$B$3:$E$4326,4,FALSE) -> CO | L156: =VLOOKUP(TEXT(B156,"00000"),xref!$L$2:$P$3244,5,FALSE) -> Adams | M156: Denver Basin (CO) | N156: Gas | Q156: 4107Oil | R156: 4107 | S156: Oil | T156: 78 | V156: 25011Oil | W156: 25011 | X156: 25011 | Y156: Oil | Z156: 2 | AA156: 1
A157: Denver Basin | B157: 5001 | C157: Gas | D157: conventional | E157: D | F157: TIGHT OIL (L) | G157: NIOBRARA OIL - DENVER BASIN | H157: 2 | I157: 2 | J157: NIOBRARA OIL - DENVER BASIN (TIGHT OIL (L)) | K157: =VLOOKUP(VALUE(LEFT(TEXT(B157,"00000"),2)),xref!$B$3:$E$4326,4,FALSE) -> CO | L157: =VLOOKUP(TEXT(B157,"00000"),xref!$L$2:$P$3244,5,FALSE) -> Adams | M157: Denver Basin (CO) | N157: Gas | Q157: 4111Oil | R157: 4111 | S157: Oil | T157: 1710 | V157: 25017Gas | W157: 25017 | X157: 25017 | Y157: Gas | Z157: 4 | AA157: 1
A158: Denver Basin | B158: 5001 | C158: Gas | D158: conventional | E158: D | F158: UNK | G158: UNK | H158: 2 | I158: 2 | J158: UNK (unknown) | K158: =VLOOKUP(VALUE(LEFT(TEXT(B158,"00000"),2)),xref!$B$3:$E$4326,4,FALSE) -> CO | L158: =VLOOKUP(TEXT(B158,"00000"),xref!$L$2:$P$3244,5,FALSE) -> Adams | M158: Denver Basin (CO) | N158: Gas | Q158: 4113Gas | R158: 4113 | S158: Gas | T158: 18 | V158: =W158&Y158 -> 25075Gas | W158: =IF(X158="",W157,X158) -> 25075 | X158: 25075 | Y158: Gas | Z158: 2 | AA158: 1
A159: Denver Basin | B159: 5001 | C159: Gas | D159: conventional | E159: V | F159: BLANK | G159: BLANK | H159: 2 | I159: 2 | J159: BLANK (unknown | K159: =VLOOKUP(VALUE(LEFT(TEXT(B159,"00000"),2)),xref!$B$3:$E$4326,4,FALSE) -> CO | L159: =VLOOKUP(TEXT(B159,"00000"),xref!$L$2:$P$3244,5,FALSE) -> Adams | M159: Denver Basin (CO) | N159: Gas | Q159: 4115Gas | R159: 4115 | S159: Gas | T159: 1 | V159: 25075Oil | W159: 25075 | Y159: Oil | Z159: 69 | AA159: 1
A160: Denver Basin | B160: 5001 | C160: Gas | D160: conventional | E160: V | F160: TIGHT GAS (T) | G160: NIOBRARA - WATTENBERG | H160: 15 | I160: 12 | J160: NIOBRARA - WATTENBERG (TIGHT GAS (T)) | K160: =VLOOKUP(VALUE(LEFT(TEXT(B160,"00000"),2)),xref!$B$3:$E$4326,4,FALSE) -> CO | L160: =VLOOKUP(TEXT(B160,"00000"),xref!$L$2:$P$3244,5,FALSE) -> Adams | M160: Denver Basin (CO) | N160: Gas | Q160: 4211Oil | R160: 4211 | S160: Oil | T160: 40 | V160: 40033Oil | W160: 40033 | X160: 40033 | Y160: Oil | Z160: 2 | AA160: 1
A161: Denver Basin | B161: 5001 | C161: Gas | D161: conventional | E161: V | F161: TIGHT GAS (T) | G161: WATTENBERG TIGHT GAS | H161: 345 | I161: 280 | J161: WATTENBERG TIGHT GAS (TIGHT GAS (T)) | K161: =VLOOKUP(VALUE(LEFT(TEXT(B161,"00000"),2)),xref!$B$3:$E$4326,4,FALSE) -> CO | L161: =VLOOKUP(TEXT(B161,"00000"),xref!$L$2:$P$3244,5,FALSE) -> Adams | M161: Denver Basin (CO) | N161: Gas | Q161: 4237Gas | R161: 4237 | S161: Gas | T161: 1 | V161: 40047Gas | W161: 40047 | X161: 40047 | Y161: Gas | Z161: 1 | AA161: 1
A162: Denver Basin | B162: 5001 | C162: Gas | D162: conventional | E162: V | F162: TIGHT OIL (L) | G162: NIOBRARA OIL - DENVER BASIN | H162: 3 | I162: 2 | J162: NIOBRARA OIL - DENVER BASIN (TIGHT OIL (L)) | K162: =VLOOKUP(VALUE(LEFT(TEXT(B162,"00000"),2)),xref!$B$3:$E$4326,4,FALSE) -> CO | L162: =VLOOKUP(TEXT(B162,"00000"),xref!$L$2:$P$3244,5,FALSE) -> Adams | M162: Denver Basin (CO) | N162: Gas | Q162: 4237Oil | R162: 4237 | S162: Oil | T162: 987 | V162: 40047Oil | W162: 40047 | Y162: Oil | Z162: 11 | AA162: 1
A163: Denver Basin | B163: 5001 | C163: Gas | D163: conventional | E163: V | F163: UNK | G163: UNK | H163: 34 | I163: 28 | J163: UNK (unknown) | K163: =VLOOKUP(VALUE(LEFT(TEXT(B163,"00000"),2)),xref!$B$3:$E$4326,4,FALSE) -> CO | L163: =VLOOKUP(TEXT(B163,"00000"),xref!$L$2:$P$3244,5,FALSE) -> Adams | M163: Denver Basin (CO) | N163: Gas | Q163: 4259Oil | R163: 4259 | S163: Oil | T163: 156 | V163: 49005Gas | W163: 49005 | X163: 49005 | Y163: Gas | Z163: 160 | AA163: 0.99375
A164: Denver Basin | B164: 5001 | C164: Gas | D164: tight gas | E164: D | F164: TIGHT GAS (T) | G164: WATTENBERG TIGHT GAS | H164: 2 | I164: 2 | J164: WATTENBERG TIGHT GAS (TIGHT GAS (T)) | K164: =VLOOKUP(VALUE(LEFT(TEXT(B164,"00000"),2)),xref!$B$3:$E$4326,4,FALSE) -> CO | L164: =VLOOKUP(TEXT(B164,"00000"),xref!$L$2:$P$3244,5,FALSE) -> Adams | M164: Denver Basin (CO) | N164: Gas | Q164: 4283Oil | R164: 4283 | S164: Oil | T164: 19 | V164: 49005Oil | W164: 49005 | Y164: Oil | Z164: 2100 | AA164: 0.9995238095
A165: Denver Basin | B165: 5001 | C165: Gas | D165: tight gas | E165: V | F165: TIGHT GAS (T) | G165: NIOBRARA - WATTENBERG | H165: 1 | I165: 1 | J165: NIOBRARA - WATTENBERG (TIGHT GAS (T)) | K165: =VLOOKUP(VALUE(LEFT(TEXT(B165,"00000"),2)),xref!$B$3:$E$4326,4,FALSE) -> CO | L165: =VLOOKUP(TEXT(B165,"00000"),xref!$L$2:$P$3244,5,FALSE) -> Adams | M165: Denver Basin (CO) | N165: Gas | Q165: 43007CBM | R165: 43007 | S165: CBM | T165: 663 | V165: 49005CBM | W165: 49005 | Y165: CBM | Z165: 4408 | AA165: 0.9993194192
A166: Denver Basin | B166: 5001 | C166: Gas | D166: tight gas | E166: V | F166: TIGHT GAS (T) | G166: WATTENBERG TIGHT GAS | H166: 59 | I166: 48 | J166: WATTENBERG TIGHT GAS (TIGHT GAS (T)) | K166: =VLOOKUP(VALUE(LEFT(TEXT(B166,"00000"),2)),xref!$B$3:$E$4326,4,FALSE) -> CO | L166: =VLOOKUP(TEXT(B166,"00000"),xref!$L$2:$P$3244,5,FALSE) -> Adams | M166: Denver Basin (CO) | N166: Gas | Q166: 43007Gas | R166: 43007 | S166: Gas | T166: 386 | V166: 49009Gas | W166: 49009 | X166: 49009 | Y166: Gas | Z166: 57 | AA166: 1
A167: Denver Basin | B167: 5001 | C167: Gas | D167: tight gas | E167: V | F167: UNK | G167: UNK | H167: 10 | I167: 8 | J167: UNK (unknown) | K167: =VLOOKUP(VALUE(LEFT(TEXT(B167,"00000"),2)),xref!$B$3:$E$4326,4,FALSE) -> CO | L167: =VLOOKUP(TEXT(B167,"00000"),xref!$L$2:$P$3244,5,FALSE) -> Adams | M167: Denver Basin (CO) | N167: Gas | Q167: 43007Oil | R167: 43007 | S167: Oil | T167: 3 | V167: 49009Oil | W167: 49009 | Y167: Oil | Z167: 1323 | AA167: 0.992441421
A168: Denver Basin | B168: 5001 | C168: Oil | D168: conventional | E168: D | F168: TIGHT OIL (L) | G168: NIOBRARA OIL - DENVER BASIN | H168: 2 | I168: 2 | J168: NIOBRARA OIL - DENVER BASIN (TIGHT OIL (L)) | K168: =VLOOKUP(VALUE(LEFT(TEXT(B168,"00000"),2)),xref!$B$3:$E$4326,4,FALSE) -> CO | L168: =VLOOKUP(TEXT(B168,"00000"),xref!$L$2:$P$3244,5,FALSE) -> Adams | M168: Denver Basin (CO) | N168: Oil | Q168: 43009Gas | R168: 43009 | S168: Gas | T168: 17 | V168: 49009CBM | W168: 49009 | Y168: CBM | Z168: 4 | AA168: 1
A169: Denver Basin | B169: 5001 | C169: Oil | D169: conventional | E169: D | F169: UNK | G169: UNK | H169: 12 | I169: 10 | J169: UNK (unknown) | K169: =VLOOKUP(VALUE(LEFT(TEXT(B169,"00000"),2)),xref!$B$3:$E$4326,4,FALSE) -> CO | L169: =VLOOKUP(TEXT(B169,"00000"),xref!$L$2:$P$3244,5,FALSE) -> Adams | M169: Denver Basin (CO) | N169: Oil | Q169: 43013Gas | R169: 43013 | S169: Gas | T169: 46 | V169: 49011Gas | W169: 49011 | X169: 49011 | Y169: Gas | Z169: 6 | AA169: 1
A170: Denver Basin | B170: 5001 | C170: Oil | D170: conventional | E170: H | F170: TIGHT OIL (L) | G170: NIOBRARA OIL - DENVER BASIN | H170: 10 | I170: 9 | J170: NIOBRARA OIL - DENVER BASIN (TIGHT OIL (L)) | K170: =VLOOKUP(VALUE(LEFT(TEXT(B170,"00000"),2)),xref!$B$3:$E$4326,4,FALSE) -> CO | L170: =VLOOKUP(TEXT(B170,"00000"),xref!$L$2:$P$3244,5,FALSE) -> Adams | M170: Denver Basin (CO) | N170: Oil | Q170: 43013Oil | R170: 43013 | S170: Oil | T170: 3218 | V170: 49011Oil | W170: 49011 | Y170: Oil | Z170: 586 | AA170: 1
A171: Denver Basin | B171: 5001 | C171: Oil | D171: conventional | E171: H | F171: UNK | G171: UNK | H171: 3 | I171: 3 | J171: UNK (unknown) | K171: =VLOOKUP(VALUE(LEFT(TEXT(B171,"00000"),2)),xref!$B$3:$E$4326,4,FALSE) -> CO | L171: =VLOOKUP(TEXT(B171,"00000"),xref!$L$2:$P$3244,5,FALSE) -> Adams | M171: Denver Basin (CO) | N171: Oil | Q171: 43015CBM | R171: 43015 | S171: CBM | T171: 197 | V171: 49019Gas | W171: 49019 | X171: 49019 | Y171: Gas | Z171: 66 | AA171: 1
A172: Denver Basin | B172: 5001 | C172: Oil | D172: conventional | E172: V | F172: BLANK | G172: BLANK | H172: 20 | I172: 17 | J172: BLANK (unknown | K172: =VLOOKUP(VALUE(LEFT(TEXT(B172,"00000"),2)),xref!$B$3:$E$4326,4,FALSE) -> CO | L172: =VLOOKUP(TEXT(B172,"00000"),xref!$L$2:$P$3244,5,FALSE) -> Adams | M172: Denver Basin (CO) | N172: Oil | Q172: 43015Gas | R172: 43015 | S172: Gas | T172: 63 | V172: 49019Oil | W172: 49019 | Y172: Oil | Z172: 294 | AA172: 0.9931972789
A173: Denver Basin | B173: 5001 | C173: Oil | D173: conventional | E173: V | F173: TIGHT GAS (T) | G173: WATTENBERG TIGHT GAS | H173: 29 | I173: 25 | J173: WATTENBERG TIGHT GAS (TIGHT GAS (T)) | K173: =VLOOKUP(VALUE(LEFT(TEXT(B173,"00000"),2)),xref!$B$3:$E$4326,4,FALSE) -> CO | L173: =VLOOKUP(TEXT(B173,"00000"),xref!$L$2:$P$3244,5,FALSE) -> Adams | M173: Denver Basin (CO) | N173: Oil | Q173: 43015Oil | R173: 43015 | S173: Oil | T173: 3 | V173: 49019CBM | W173: 49019 | Y173: CBM | Z173: 3725 | AA173: 0.9997315436
A174: Denver Basin | B174: 5001 | C174: Oil | D174: conventional | E174: V | F174: TIGHT OIL (L) | G174: NIOBRARA OIL - DENVER BASIN | H174: 4 | I174: 3 | J174: NIOBRARA OIL - DENVER BASIN (TIGHT OIL (L)) | K174: =VLOOKUP(VALUE(LEFT(TEXT(B174,"00000"),2)),xref!$B$3:$E$4326,4,FALSE) -> CO | L174: =VLOOKUP(TEXT(B174,"00000"),xref!$L$2:$P$3244,5,FALSE) -> Adams | M174: Denver Basin (CO) | N174: Oil | Q174: 43017Oil | R174: 43017 | S174: Oil | T174: 19 | V174: 49027Gas | W174: 49027 | X174: 49027 | Y174: Gas | Z174: 10 | AA174: 1
A175: Denver Basin | B175: 5001 | C175: Oil | D175: conventional | E175: V | F175: UNK | G175: UNK | H175: 372 | I175: 324 | J175: UNK (unknown) | K175: =VLOOKUP(VALUE(LEFT(TEXT(B175,"00000"),2)),xref!$B$3:$E$4326,4,FALSE) -> CO | L175: =VLOOKUP(TEXT(B175,"00000"),xref!$L$2:$P$3244,5,FALSE) -> Adams | M175: Denver Basin (CO) | N175: Oil | Q175: 43019Gas | R175: 43019 | S175: Gas | T175: 275 | V175: 49027Oil | W175: 49027 | Y175: Oil | Z175: 294 | AA175: 0.9965986395
A176: Denver Basin | B176: 5001 | C176: Oil | D176: tight gas | E176: V | F176: BLANK | G176: BLANK | H176: 1 | I176: 1 | J176: BLANK (unknown | K176: =VLOOKUP(VALUE(LEFT(TEXT(B176,"00000"),2)),xref!$B$3:$E$4326,4,FALSE) -> CO | L176: =VLOOKUP(TEXT(B176,"00000"),xref!$L$2:$P$3244,5,FALSE) -> Adams | M176: Denver Basin (CO) | N176: Oil | Q176: 43019Oil | R176: 43019 | S176: Oil | T176: 62 | V176: 49033Gas | W176: 49033 | X176: 49033 | Y176: Gas | Z176: 5 | AA176: 1
A177: Denver Basin | B177: 5001 | C177: Oil | D177: tight gas | E177: V | F177: TIGHT GAS (T) | G177: WATTENBERG TIGHT GAS | H177: 3 | I177: 3 | J177: WATTENBERG TIGHT GAS (TIGHT GAS (T)) | K177: =VLOOKUP(VALUE(LEFT(TEXT(B177,"00000"),2)),xref!$B$3:$E$4326,4,FALSE) -> CO | L177: =VLOOKUP(TEXT(B177,"00000"),xref!$L$2:$P$3244,5,FALSE) -> Adams | M177: Denver Basin (CO) | N177: Oil | Q177: 43037CBM | R177: 43037 | S177: CBM | T177: 1 | V177: 49033Oil | W177: 49033 | Y177: Oil | Z177: 14 | AA177: 1
A178: Denver Basin | B178: 5001 | C178: Oil | D178: tight gas | E178: V | F178: UNK | G178: UNK | H178: 35 | I178: 30 | J178: UNK (unknown) | K178: =VLOOKUP(VALUE(LEFT(TEXT(B178,"00000"),2)),xref!$B$3:$E$4326,4,FALSE) -> CO | L178: =VLOOKUP(TEXT(B178,"00000"),xref!$L$2:$P$3244,5,FALSE) -> Adams | M178: Denver Basin (CO) | N178: Oil | Q178: 43037Gas | R178: 43037 | S178: Gas | T178: 58 | V178: 49033CBM | W178: 49033 | Y178: CBM | Z178: 1081 | AA178: 0.9972247919
A179: Denver Basin | B179: 5005 | C179: Gas | D179: conventional | E179: H | F179: TIGHT OIL (L) | G179: NIOBRARA OIL - DENVER BASIN | H179: 2 | I179: 2 | J179: NIOBRARA OIL - DENVER BASIN (TIGHT OIL (L)) | K179: =VLOOKUP(VALUE(LEFT(TEXT(B179,"00000"),2)),xref!$B$3:$E$4326,4,FALSE) -> CO | L179: =VLOOKUP(TEXT(B179,"00000"),xref!$L$2:$P$3244,5,FALSE) -> Arapahoe | M179: Denver Basin (CO) | N179: Gas | Q179: 43037Oil | R179: 43037 | S179: Oil | T179: 594 | V179: 49045Gas | W179: 49045 | X179: 49045 | Y179: Gas | Z179: 11 | AA179: 1
A180: Denver Basin | B180: 5005 | C180: Gas | D180: conventional | E180: V | F180: TIGHT GAS (T) | G180: WATTENBERG TIGHT GAS | H180: 14 | I180: 13 | J180: WATTENBERG TIGHT GAS (TIGHT GAS (T)) | K180: =VLOOKUP(VALUE(LEFT(TEXT(B180,"00000"),2)),xref!$B$3:$E$4326,4,FALSE) -> CO | L180: =VLOOKUP(TEXT(B180,"00000"),xref!$L$2:$P$3244,5,FALSE) -> Arapahoe | M180: Denver Basin (CO) | N180: Gas | Q180: 43041Oil | R180: 43041 | S180: Oil | T180: 23 | V180: 49045Oil | W180: 49045 | Y180: Oil | Z180: 1287 | AA180: 0.9992229992
A181: Denver Basin | B181: 5005 | C181: Gas | D181: conventional | E181: V | F181: UNK | G181: UNK | H181: 2 | I181: 2 | J181: UNK (unknown) | K181: =VLOOKUP(VALUE(LEFT(TEXT(B181,"00000"),2)),xref!$B$3:$E$4326,4,FALSE) -> CO | L181: =VLOOKUP(TEXT(B181,"00000"),xref!$L$2:$P$3244,5,FALSE) -> Arapahoe | M181: Denver Basin (CO) | N181: Gas | Q181: 43043Gas | R181: 43043 | S181: Gas | T181: 24 | V181: 4007Gas | W181: 4007 | X181: 4007 | Y181: Gas | Z181: 9 | AA181: 1
A182: Denver Basin | B182: 5005 | C182: Gas | D182: tight gas | E182: V | F182: TIGHT GAS (T) | G182: WATTENBERG TIGHT GAS | H182: 4 | I182: 4 | J182: WATTENBERG TIGHT GAS (TIGHT GAS (T)) | K182: =VLOOKUP(VALUE(LEFT(TEXT(B182,"00000"),2)),xref!$B$3:$E$4326,4,FALSE) -> CO | L182: =VLOOKUP(TEXT(B182,"00000"),xref!$L$2:$P$3244,5,FALSE) -> Arapahoe | M182: Denver Basin (CO) | N182: Gas | Q182: 43043Oil | R182: 43043 | S182: Oil | T182: 13 | V182: 4011Gas | W182: 4011 | X182: 4011 | Y182: Gas | Z182: 195 | AA182: 0.9948717949
A183: Denver Basin | B183: 5005 | C183: Oil | D183: conventional | E183: D | F183: UNK | G183: UNK | H183: 2 | I183: 2 | J183: UNK (unknown) | K183: =VLOOKUP(VALUE(LEFT(TEXT(B183,"00000"),2)),xref!$B$3:$E$4326,4,FALSE) -> CO | L183: =VLOOKUP(TEXT(B183,"00000"),xref!$L$2:$P$3244,5,FALSE) -> Arapahoe | M183: Denver Basin (CO) | N183: Oil | Q183: 43047CBM | R183: 43047 | S183: CBM | T183: 4 | V183: 4013Gas | W183: 4013 | X183: 4013 | Y183: Gas | Z183: 17 | AA183: 0.9411764706
A184: Denver Basin | B184: 5005 | C184: Oil | D184: conventional | E184: H | F184: TIGHT OIL (L) | G184: NIOBRARA OIL - DENVER BASIN | H184: 29 | I184: 28 | J184: NIOBRARA OIL - DENVER BASIN (TIGHT OIL (L)) | K184: =VLOOKUP(VALUE(LEFT(TEXT(B184,"00000"),2)),xref!$B$3:$E$4326,4,FALSE) -> CO | L184: =VLOOKUP(TEXT(B184,"00000"),xref!$L$2:$P$3244,5,FALSE) -> Arapahoe | M184: Denver Basin (CO) | N184: Oil | Q184: 43047Gas | R184: 43047 | S184: Gas | T184: 5740 | V184: 4021Gas | W184: 4021 | X184: 4021 | Y184: Gas | Z184: 228 | AA184: 0.9956140351
A185: Denver Basin | B185: 5005 | C185: Oil | D185: conventional | E185: V | F185: BLANK | G185: BLANK | H185: 1 | I185: 1 | J185: BLANK (unknown | K185: =VLOOKUP(VALUE(LEFT(TEXT(B185,"00000"),2)),xref!$B$3:$E$4326,4,FALSE) -> CO | L185: =VLOOKUP(TEXT(B185,"00000"),xref!$L$2:$P$3244,5,FALSE) -> Arapahoe | M185: Denver Basin (CO) | N185: Oil | Q185: 43047Oil | R185: 43047 | S185: Oil | T185: 1610 | V185: 4067Gas | W185: 4067 | X185: 4067 | Y185: Gas | Z185: 94 | AA185: 0.9893617021
A186: Denver Basin | B186: 5005 | C186: Oil | D186: conventional | E186: V | F186: TIGHT GAS (T) | G186: WATTENBERG TIGHT GAS | H186: 5 | I186: 5 | J186: WATTENBERG TIGHT GAS (TIGHT GAS (T)) | K186: =VLOOKUP(VALUE(LEFT(TEXT(B186,"00000"),2)),xref!$B$3:$E$4326,4,FALSE) -> CO | L186: =VLOOKUP(TEXT(B186,"00000"),xref!$L$2:$P$3244,5,FALSE) -> Arapahoe | M186: Denver Basin (CO) | N186: Oil | Q186: 4311Gas | R186: 4311 | S186: Gas | T186: 7 | V186: 4077Gas | W186: 4077 | X186: 4077 | Y186: Gas | Z186: 46 | AA186: 1
A187: Denver Basin | B187: 5005 | C187: Oil | D187: conventional | E187: V | F187: TIGHT OIL (L) | G187: NIOBRARA OIL - DENVER BASIN | H187: 2 | I187: 2 | J187: NIOBRARA OIL - DENVER BASIN (TIGHT OIL (L)) | K187: =VLOOKUP(VALUE(LEFT(TEXT(B187,"00000"),2)),xref!$B$3:$E$4326,4,FALSE) -> CO | L187: =VLOOKUP(TEXT(B187,"00000"),xref!$L$2:$P$3244,5,FALSE) -> Arapahoe | M187: Denver Basin (CO) | N187: Oil | Q187: 4311Oil | R187: 4311 | S187: Oil | T187: 331 | V187: 4095Gas | W187: 4095 | X187: 4095 | Y187: Gas | Z187: 86 | AA187: 0.976744186
A188: Denver Basin | B188: 5005 | C188: Oil | D188: conventional | E188: V | F188: UNK | G188: UNK | H188: 74 | I188: 70 | J188: UNK (unknown) | K188: =VLOOKUP(VALUE(LEFT(TEXT(B188,"00000"),2)),xref!$B$3:$E$4326,4,FALSE) -> CO | L188: =VLOOKUP(TEXT(B188,"00000"),xref!$L$2:$P$3244,5,FALSE) -> Arapahoe | M188: Denver Basin (CO) | N188: Oil | Q188: 4312Oil | R188: 4312 | S188: Oil | T188: 72 | V188: =W188&Y188 -> 4101Gas | W188: =IF(X188="",W187,X188) -> 4101 | X188: 4101 | Y188: Gas | Z188: 239 | AA188: 1
A189: Denver Basin | B189: 5005 | C189: Oil | D189: tight gas | E189: V | F189: UNK | G189: UNK | H189: 6 | I189: 6 | J189: UNK (unknown) | K189: =VLOOKUP(VALUE(LEFT(TEXT(B189,"00000"),2)),xref!$B$3:$E$4326,4,FALSE) -> CO | L189: =VLOOKUP(TEXT(B189,"00000"),xref!$L$2:$P$3244,5,FALSE) -> Arapahoe | M189: Denver Basin (CO) | N189: Oil | Q189: 49001Gas | R189: 49001 | S189: Gas | T189: 2 | V189: 4103Gas | W189: 4103 | X189: 4103 | Y189: Gas | Z189: 103 | AA189: 0.9902912621
A190: Denver Basin | B190: 5013 | C190: Gas | D190: conventional | E190: D | F190: BLANK | G190: BLANK | H190: 2 | I190: 1 | J190: BLANK (unknown | K190: =VLOOKUP(VALUE(LEFT(TEXT(B190,"00000"),2)),xref!$B$3:$E$4326,4,FALSE) -> CO | L190: =VLOOKUP(TEXT(B190,"00000"),xref!$L$2:$P$3244,5,FALSE) -> Boulder | M190: Denver Basin (CO) | N190: Gas | Q190: 49001Oil | R190: 49001 | S190: Oil | T190: 32 | V190: 4113Gas | W190: 4113 | X190: 4113 | Y190: Gas | Z190: 19 | AA190: 0.9473684211
A191: Denver Basin | B191: 5013 | C191: Gas | D191: conventional | E191: D | F191: TIGHT GAS (T) | G191: NIOBRARA - WATTENBERG | H191: 10 | I191: 6 | J191: NIOBRARA - WATTENBERG (TIGHT GAS (T)) | K191: =VLOOKUP(VALUE(LEFT(TEXT(B191,"00000"),2)),xref!$B$3:$E$4326,4,FALSE) -> CO | L191: =VLOOKUP(TEXT(B191,"00000"),xref!$L$2:$P$3244,5,FALSE) -> Boulder | M191: Denver Basin (CO) | N191: Gas | Q191: 49003Gas | R191: 49003 | S191: Gas | T191: 61 | V191: 4019Gas | W191: 4019 | X191: 4019 | Y191: Gas | Z191: 1 | AA191: 1
A192: Denver Basin | B192: 5013 | C192: Gas | D192: conventional | E192: D | F192: TIGHT GAS (T) | G192: WATTENBERG TIGHT GAS | H192: 103 | I192: 60 | J192: WATTENBERG TIGHT GAS (TIGHT GAS (T)) | K192: =VLOOKUP(VALUE(LEFT(TEXT(B192,"00000"),2)),xref!$B$3:$E$4326,4,FALSE) -> CO | L192: =VLOOKUP(TEXT(B192,"00000"),xref!$L$2:$P$3244,5,FALSE) -> Boulder | M192: Denver Basin (CO) | N192: Gas | Q192: 49003Oil | R192: 49003 | S192: Oil | T192: 406 | V192: 4019Oil | W192: 4019 | Y192: Oil | Z192: 2067 | AA192: 0.9995162071
A193: Denver Basin | B193: 5013 | C193: Gas | D193: conventional | E193: D | F193: TIGHT OIL (L) | G193: NIOBRARA OIL - DENVER BASIN | H193: 2 | I193: 1 | J193: NIOBRARA OIL - DENVER BASIN (TIGHT OIL (L)) | K193: =VLOOKUP(VALUE(LEFT(TEXT(B193,"00000"),2)),xref!$B$3:$E$4326,4,FALSE) -> CO | L193: =VLOOKUP(TEXT(B193,"00000"),xref!$L$2:$P$3244,5,FALSE) -> Boulder | M193: Denver Basin (CO) | N193: Gas | Q193: 49005CBM | R193: 49005 | S193: CBM | T193: 4405 | V193: 4029Gas | W193: 4029 | X193: 4029 | Y193: Gas | Z193: 96 | AA193: 1
A194: Denver Basin | B194: 5013 | C194: Gas | D194: conventional | E194: V | F194: TIGHT GAS (T) | G194: NIOBRARA - WATTENBERG | H194: 65 | I194: 38 | J194: NIOBRARA - WATTENBERG (TIGHT GAS (T)) | K194: =VLOOKUP(VALUE(LEFT(TEXT(B194,"00000"),2)),xref!$B$3:$E$4326,4,FALSE) -> CO | L194: =VLOOKUP(TEXT(B194,"00000"),xref!$L$2:$P$3244,5,FALSE) -> Boulder | M194: Denver Basin (CO) | N194: Gas | Q194: 49005Gas | R194: 49005 | S194: Gas | T194: 159 | V194: 4029Oil | W194: 4029 | Y194: Oil | Z194: 18012 | AA194: 0.999389296
A195: Denver Basin | B195: 5013 | C195: Gas | D195: conventional | E195: V | F195: TIGHT GAS (T) | G195: WATTENBERG TIGHT GAS | H195: 165 | I195: 96 | J195: WATTENBERG TIGHT GAS (TIGHT GAS (T)) | K195: =VLOOKUP(VALUE(LEFT(TEXT(B195,"00000"),2)),xref!$B$3:$E$4326,4,FALSE) -> CO | L195: =VLOOKUP(TEXT(B195,"00000"),xref!$L$2:$P$3244,5,FALSE) -> Boulder | M195: =A195&" ("&K195&")" -> Denver Basin (CO) | N195: Gas | Q195: 49005Oil | R195: 49005 | S195: Oil | T195: 2099 | V195: 4031Oil | W195: 4031 | X195: 4031 | Y195: Oil | Z195: 180 | AA195: 1
A196: Denver Basin | B196: 5013 | C196: Gas | D196: conventional | E196: V | F196: TIGHT OIL (L) | G196: NIOBRARA OIL - DENVER BASIN | H196: 6 | I196: =IF(ISNA(VLOOKUP(B196&N196,$V$3:$AA$329,6,FALSE))=TRUE,0,ROUND(H196*VLOOKUP(B196&N196,$V$3:$AA$329,6,FALSE),0)) -> 4 | J196: NIOBRARA OIL - DENVER BASIN (TIGHT OIL (L)) | K196: =VLOOKUP(VALUE(LEFT(TEXT(B196,"00000"),2)),xref!$B$3:$E$4326,4,FALSE) -> CO | L196: =VLOOKUP(TEXT(B196,"00000"),xref!$L$2:$P$3244,5,FALSE) -> Boulder | M196: Denver Basin (CO) | N196: =IF(D196="coalbed methane","CBM",C196) -> Gas | Q196: =R196&S196 -> 49007CBM | R196: 49007 | S196: CBM | T196: 324 | V196: 4039Gas | W196: 4039 | X196: 4039 | Y196: Gas | Z196: 7 | AA196: =VLOOKUP(V196,$Q$3:$T$330,4,FALSE)/Z196 -> 1
A197: Denver Basin | B197: 5013 | C197: Gas | D197: conventional | E197: V | F197: UNK | G197: UNK | H197: 8 | I197: 5 | J197: UNK (unknown) | K197: =VLOOKUP(VALUE(LEFT(TEXT(B197,"00000"),2)),xref!$B$3:$E$4326,4,FALSE) -> CO | L197: =VLOOKUP(TEXT(B197,"00000"),xref!$L$2:$P$3244,5,FALSE) -> Boulder | M197: Denver Basin (CO) | N197: Gas | Q197: 49007Gas | R197: 49007 | S197: Gas | T197: 1559 | V197: 4069Oil | W197: 4069 | X197: 4069 | Y197: Oil | Z197: 17 | AA197: 1
A198: Denver Basin | B198: 5013 | C198: Gas | D198: tight gas | E198: V | F198: BLANK | G198: BLANK | H198: 1 | I198: 1 | J198: BLANK (unknown | K198: =VLOOKUP(VALUE(LEFT(TEXT(B198,"00000"),2)),xref!$B$3:$E$4326,4,FALSE) -> CO | L198: =VLOOKUP(TEXT(B198,"00000"),xref!$L$2:$P$3244,5,FALSE) -> Boulder | M198: Denver Basin (CO) | N198: Gas | Q198: 49007Oil | R198: 49007 | S198: Oil | T198: 184 | V198: 4099Gas | W198: 4099 | X198: 4099 | Y198: Gas | Z198: 1 | AA198: 1
A199: Denver Basin | B199: 5013 | C199: Gas | D199: tight gas | E199: V | F199: TIGHT GAS (T) | G199: NIOBRARA - WATTENBERG | H199: 2 | I199: 1 | J199: NIOBRARA - WATTENBERG (TIGHT GAS (T)) | K199: =VLOOKUP(VALUE(LEFT(TEXT(B199,"00000"),2)),xref!$B$3:$E$4326,4,FALSE) -> CO | L199: =VLOOKUP(TEXT(B199,"00000"),xref!$L$2:$P$3244,5,FALSE) -> Boulder | M199: Denver Basin (CO) | N199: Gas | Q199: 49009CBM | R199: 49009 | S199: CBM | T199: 4 | V199: 4107Oil | W199: 4107 | X199: 4107 | Y199: Oil | Z199: 78 | AA199: 1
A200: Denver Basin | B200: 5013 | C200: Gas | D200: tight gas | E200: V | F200: TIGHT GAS (T) | G200: WATTENBERG TIGHT GAS | H200: 102 | I200: 60 | J200: WATTENBERG TIGHT GAS (TIGHT GAS (T)) | K200: =VLOOKUP(VALUE(LEFT(TEXT(B200,"00000"),2)),xref!$B$3:$E$4326,4,FALSE) -> CO | L200: =VLOOKUP(TEXT(B200,"00000"),xref!$L$2:$P$3244,5,FALSE) -> Boulder | M200: Denver Basin (CO) | N200: Gas | Q200: 49009Gas | R200: 49009 | S200: Gas | T200: 57 | V200: 5007Gas | W200: 5007 | X200: 5007 | Y200: Gas | Z200: 3 | AA200: 1
... 1043 more rows

Sheet Spud.297 (hidden)
A1: IHS_FIPS | B1: SpudYear | C1: recompletion | D1: counted_spud | E1: directional_indicator | F1: CountOfAPI_number | G1: SumOftotal_depth | H1: State | I1: Basin | J1: =I1&" ("&H1&")" -> Basin (State)
A2: 4011 | B2: 2014 | C2: N | D2: Y | E2: D | F2: 3 | G2: 24729 | H2: =VLOOKUP(VALUE(LEFT(TEXT(A2,"00000"),2)),xref!$B$3:$E$4326,4,FALSE) -> CA | I2: =VLOOKUP(TEXT(A2,"00000"),xref!$L$2:$Q$3249,6,FALSE) -> Sacramento Basin | J2: =I2&" ("&H2&")" -> Sacramento Basin (CA)
A3: 4011 | B3: 2014 | C3: N | D3: Y | E3: V | F3: 1 | G3: 7000 | H3: =VLOOKUP(VALUE(LEFT(TEXT(A3,"00000"),2)),xref!$B$3:$E$4326,4,FALSE) -> CA | I3: =VLOOKUP(TEXT(A3,"00000"),xref!$L$2:$Q$3249,6,FALSE) -> Sacramento Basin | J3: Sacramento Basin (CA)
A4: 4019 | B4: 2014 | C4: N | D4: Y | E4: D | F4: 58 | G4: 95815 | H4: =VLOOKUP(VALUE(LEFT(TEXT(A4,"00000"),2)),xref!$B$3:$E$4326,4,FALSE) -> CA | I4: =VLOOKUP(TEXT(A4,"00000"),xref!$L$2:$Q$3249,6,FALSE) -> San Joaquin Basin | J4: San Joaquin Basin (CA)
A5: 4019 | B5: 2014 | C5: N | D5: Y | E5: H | F5: 15 | G5: 50364 | H5: =VLOOKUP(VALUE(LEFT(TEXT(A5,"00000"),2)),xref!$B$3:$E$4326,4,FALSE) -> CA | I5: =VLOOKUP(TEXT(A5,"00000"),xref!$L$2:$Q$3249,6,FALSE) -> San Joaquin Basin | J5: San Joaquin Basin (CA)
A6: 4019 | B6: 2014 | C6: N | D6: Y | E6: V | F6: 74 | G6: 162182 | H6: =VLOOKUP(VALUE(LEFT(TEXT(A6,"00000"),2)),xref!$B$3:$E$4326,4,FALSE) -> CA | I6: =VLOOKUP(TEXT(A6,"00000"),xref!$L$2:$Q$3249,6,FALSE) -> San Joaquin Basin | J6: San Joaquin Basin (CA)
A7: 4029 | B7: 2014 | C7: N | D7: Y | E7: D | F7: 1 | G7: 2230 | H7: =VLOOKUP(VALUE(LEFT(TEXT(A7,"00000"),2)),xref!$B$3:$E$4326,4,FALSE) -> CA | I7: =VLOOKUP(TEXT(A7,"00000"),xref!$L$2:$Q$3249,6,FALSE) -> San Joaquin Basin | J7: San Joaquin Basin (CA)
A8: 4029 | B8: 2014 | C8: Y | D8: N | E8: D | F8: 1 | G8: 1691 | H8: =VLOOKUP(VALUE(LEFT(TEXT(A8,"00000"),2)),xref!$B$3:$E$4326,4,FALSE) -> CA | I8: =VLOOKUP(TEXT(A8,"00000"),xref!$L$2:$Q$3249,6,FALSE) -> San Joaquin Basin | J8: San Joaquin Basin (CA)
A9: 4029 | B9: 2014 | C9: Y | D9: N | E9: V | F9: 5 | G9: 8285 | H9: =VLOOKUP(VALUE(LEFT(TEXT(A9,"00000"),2)),xref!$B$3:$E$4326,4,FALSE) -> CA | I9: =VLOOKUP(TEXT(A9,"00000"),xref!$L$2:$Q$3249,6,FALSE) -> San Joaquin Basin | J9: San Joaquin Basin (CA)
A10: 4030 | B10: 2014 | C10: N | D10: Y | F10: 10 | G10: 26350 | H10: =VLOOKUP(VALUE(LEFT(TEXT(A10,"00000"),2)),xref!$B$3:$E$4326,4,FALSE) -> CA | I10: =VLOOKUP(TEXT(A10,"00000"),xref!$L$2:$Q$3249,6,FALSE) -> San Joaquin Basin | J10: San Joaquin Basin (CA)
A11: 4030 | B11: 2014 | C11: N | D11: Y | E11: D | F11: 1280 | G11: 3422299 | H11: =VLOOKUP(VALUE(LEFT(TEXT(A11,"00000"),2)),xref!$B$3:$E$4326,4,FALSE) -> CA | I11: =VLOOKUP(TEXT(A11,"00000"),xref!$L$2:$Q$3249,6,FALSE) -> San Joaquin Basin | J11: San Joaquin Basin (CA)
A12: 4030 | B12: 2014 | C12: N | D12: Y | E12: H | F12: 256 | G12: 1046536 | H12: =VLOOKUP(VALUE(LEFT(TEXT(A12,"00000"),2)),xref!$B$3:$E$4326,4,FALSE) -> CA | I12: =VLOOKUP(TEXT(A12,"00000"),xref!$L$2:$Q$3249,6,FALSE) -> San Joaquin Basin | J12: San Joaquin Basin (CA)
A13: 4030 | B13: 2014 | C13: N | D13: Y | E13: V | F13: 1515 | G13: 2872065 | H13: =VLOOKUP(VALUE(LEFT(TEXT(A13,"00000"),2)),xref!$B$3:$E$4326,4,FALSE) -> CA | I13: =VLOOKUP(TEXT(A13,"00000"),xref!$L$2:$Q$3249,6,FALSE) -> San Joaquin Basin | J13: San Joaquin Basin (CA)
A14: 4030 | B14: 2014 | C14: Y | D14: N | E14: D | F14: 23 | G14: 35142 | H14: =VLOOKUP(VALUE(LEFT(TEXT(A14,"00000"),2)),xref!$B$3:$E$4326,4,FALSE) -> CA | I14: =VLOOKUP(TEXT(A14,"00000"),xref!$L$2:$Q$3249,6,FALSE) -> San Joaquin Basin | J14: San Joaquin Basin (CA)
A15: 4030 | B15: 2014 | C15: Y | D15: N | E15: V | F15: 10 | G15: 17879 | H15: =VLOOKUP(VALUE(LEFT(TEXT(A15,"00000"),2)),xref!$B$3:$E$4326,4,FALSE) -> CA | I15: =VLOOKUP(TEXT(A15,"00000"),xref!$L$2:$Q$3249,6,FALSE) -> San Joaquin Basin | J15: San Joaquin Basin (CA)
A16: 4031 | B16: 2014 | C16: N | D16: Y | E16: D | F16: 6 | G16: 53141 | H16: =VLOOKUP(VALUE(LEFT(TEXT(A16,"00000"),2)),xref!$B$3:$E$4326,4,FALSE) -> CA | I16: =VLOOKUP(TEXT(A16,"00000"),xref!$L$2:$Q$3249,6,FALSE) -> San Joaquin Basin | J16: San Joaquin Basin (CA)
A17: 4031 | B17: 2014 | C17: N | D17: Y | E17: V | F17: 3 | G17: 3152 | H17: =VLOOKUP(VALUE(LEFT(TEXT(A17,"00000"),2)),xref!$B$3:$E$4326,4,FALSE) -> CA | I17: =VLOOKUP(TEXT(A17,"00000"),xref!$L$2:$Q$3249,6,FALSE) -> San Joaquin Basin | J17: San Joaquin Basin (CA)
A18: 4037 | B18: 2014 | C18: N | D18: Y | E18: D | F18: 60 | G18: 267557 | H18: =VLOOKUP(VALUE(LEFT(TEXT(A18,"00000"),2)),xref!$B$3:$E$4326,4,FALSE) -> CA | I18: =VLOOKUP(TEXT(A18,"00000"),xref!$L$2:$Q$3249,6,FALSE) -> Los Angeles Basin | J18: Los Angeles Basin (CA)
A19: 4037 | B19: 2014 | C19: N | D19: Y | E19: H | F19: 39 | G19: 229371 | H19: =VLOOKUP(VALUE(LEFT(TEXT(A19,"00000"),2)),xref!$B$3:$E$4326,4,FALSE) -> CA | I19: =VLOOKUP(TEXT(A19,"00000"),xref!$L$2:$Q$3249,6,FALSE) -> Los Angeles Basin | J19: Los Angeles Basin (CA)
A20: 4037 | B20: 2014 | C20: N | D20: Y | E20: V | F20: 13 | G20: 76493 | H20: =VLOOKUP(VALUE(LEFT(TEXT(A20,"00000"),2)),xref!$B$3:$E$4326,4,FALSE) -> CA | I20: =VLOOKUP(TEXT(A20,"00000"),xref!$L$2:$Q$3249,6,FALSE) -> Los Angeles Basin | J20: Los Angeles Basin (CA)
A21: 4037 | B21: 2014 | C21: Y | D21: N | E21: V | F21: 1 | G21: 5570 | H21: =VLOOKUP(VALUE(LEFT(TEXT(A21,"00000"),2)),xref!$B$3:$E$4326,4,FALSE) -> CA | I21: =VLOOKUP(TEXT(A21,"00000"),xref!$L$2:$Q$3249,6,FALSE) -> Los Angeles Basin | J21: Los Angeles Basin (CA)
A22: 4053 | B22: 2014 | C22: N | D22: Y | F22: 1 | G22: 2459 | H22: =VLOOKUP(VALUE(LEFT(TEXT(A22,"00000"),2)),xref!$B$3:$E$4326,4,FALSE) -> CA | I22: =VLOOKUP(TEXT(A22,"00000"),xref!$L$2:$Q$3249,6,FALSE) -> Coastal Basins | J22: Coastal Basins (CA)
A23: 4053 | B23: 2014 | C23: N | D23: Y | E23: D | F23: 40 | G23: 96389 | H23: =VLOOKUP(VALUE(LEFT(TEXT(A23,"00000"),2)),xref!$B$3:$E$4326,4,FALSE) -> CA | I23: =VLOOKUP(TEXT(A23,"00000"),xref!$L$2:$Q$3249,6,FALSE) -> Coastal Basins | J23: Coastal Basins (CA)
A24: 4053 | B24: 2014 | C24: N | D24: Y | E24: H | F24: 11 | G24: 40022 | H24: =VLOOKUP(VALUE(LEFT(TEXT(A24,"00000"),2)),xref!$B$3:$E$4326,4,FALSE) -> CA | I24: =VLOOKUP(TEXT(A24,"00000"),xref!$L$2:$Q$3249,6,FALSE) -> Coastal Basins | J24: Coastal Basins (CA)
A25: 4053 | B25: 2014 | C25: N | D25: Y | E25: V | F25: 6 | G25: 16519 | H25: =VLOOKUP(VALUE(LEFT(TEXT(A25,"00000"),2)),xref!$B$3:$E$4326,4,FALSE) -> CA | I25: =VLOOKUP(TEXT(A25,"00000"),xref!$L$2:$Q$3249,6,FALSE) -> Coastal Basins | J25: Coastal Basins (CA)
A26: 4053 | B26: 2014 | C26: Y | D26: N | E26: V | F26: 1 | G26: 2385 | H26: =VLOOKUP(VALUE(LEFT(TEXT(A26,"00000"),2)),xref!$B$3:$E$4326,4,FALSE) -> CA | I26: =VLOOKUP(TEXT(A26,"00000"),xref!$L$2:$Q$3249,6,FALSE) -> Coastal Basins | J26: Coastal Basins (CA)
A27: 4059 | B27: 2014 | C27: N | D27: Y | E27: D | F27: 1 | G27: 4170 | H27: =VLOOKUP(VALUE(LEFT(TEXT(A27,"00000"),2)),xref!$B$3:$E$4326,4,FALSE) -> CA | I27: =VLOOKUP(TEXT(A27,"00000"),xref!$L$2:$Q$3249,6,FALSE) -> Los Angeles Basin | J27: Los Angeles Basin (CA)
A28: 4079 | B28: 2014 | C28: N | D28: Y | E28: D | F28: 29 | G28: 44480 | H28: =VLOOKUP(VALUE(LEFT(TEXT(A28,"00000"),2)),xref!$B$3:$E$4326,4,FALSE) -> CA | I28: =VLOOKUP(TEXT(A28,"00000"),xref!$L$2:$Q$3249,6,FALSE) -> Coastal Basins | J28: Coastal Basins (CA)
A29: 4079 | B29: 2014 | C29: N | D29: Y | E29: V | F29: 2 | G29: 3315 | H29: =VLOOKUP(VALUE(LEFT(TEXT(A29,"00000"),2)),xref!$B$3:$E$4326,4,FALSE) -> CA | I29: =VLOOKUP(TEXT(A29,"00000"),xref!$L$2:$Q$3249,6,FALSE) -> Coastal Basins | J29: Coastal Basins (CA)
A30: 4083 | B30: 2014 | C30: N | D30: Y | E30: D | F30: 12 | G30: 42669 | H30: =VLOOKUP(VALUE(LEFT(TEXT(A30,"00000"),2)),xref!$B$3:$E$4326,4,FALSE) -> CA | I30: =VLOOKUP(TEXT(A30,"00000"),xref!$L$2:$Q$3249,6,FALSE) -> Santa Maria Basin | J30: Santa Maria Basin (CA)
A31: 4083 | B31: 2014 | C31: N | D31: Y | E31: H | F31: 1 | G31: 7308 | H31: =VLOOKUP(VALUE(LEFT(TEXT(A31,"00000"),2)),xref!$B$3:$E$4326,4,FALSE) -> CA | I31: =VLOOKUP(TEXT(A31,"00000"),xref!$L$2:$Q$3249,6,FALSE) -> Santa Maria Basin | J31: Santa Maria Basin (CA)
A32: 4083 | B32: 2014 | C32: N | D32: Y | E32: V | F32: 2 | G32: 6455 | H32: =VLOOKUP(VALUE(LEFT(TEXT(A32,"00000"),2)),xref!$B$3:$E$4326,4,FALSE) -> CA | I32: =VLOOKUP(TEXT(A32,"00000"),xref!$L$2:$Q$3249,6,FALSE) -> Santa Maria Basin | J32: Santa Maria Basin (CA)
A33: 4111 | B33: 2014 | C33: N | D33: Y | F33: 2 | G33: 6300 | H33: =VLOOKUP(VALUE(LEFT(TEXT(A33,"00000"),2)),xref!$B$3:$E$4326,4,FALSE) -> CA | I33: =VLOOKUP(TEXT(A33,"00000"),xref!$L$2:$Q$3249,6,FALSE) -> Ventura Basin | J33: Ventura Basin (CA)
A34: 4111 | B34: 2014 | C34: N | D34: Y | E34: D | F34: 11 | G34: 92023 | H34: =VLOOKUP(VALUE(LEFT(TEXT(A34,"00000"),2)),xref!$B$3:$E$4326,4,FALSE) -> CA | I34: =VLOOKUP(TEXT(A34,"00000"),xref!$L$2:$Q$3249,6,FALSE) -> Ventura Basin | J34: Ventura Basin (CA)
A35: 4111 | B35: 2014 | C35: N | D35: Y | E35: H | F35: 6 | G35: 36939 | H35: =VLOOKUP(VALUE(LEFT(TEXT(A35,"00000"),2)),xref!$B$3:$E$4326,4,FALSE) -> CA | I35: =VLOOKUP(TEXT(A35,"00000"),xref!$L$2:$Q$3249,6,FALSE) -> Ventura Basin | J35: Ventura Basin (CA)
A36: 4111 | B36: 2014 | C36: N | D36: Y | E36: V | F36: 7 | G36: 55295 | H36: =VLOOKUP(VALUE(LEFT(TEXT(A36,"00000"),2)),xref!$B$3:$E$4326,4,FALSE) -> CA | I36: =VLOOKUP(TEXT(A36,"00000"),xref!$L$2:$Q$3249,6,FALSE) -> Ventura Basin | J36: Ventura Basin (CA)
A37: 4113 | B37: 2014 | C37: N | D37: Y | E37: V | F37: 1 | G37: 4800 | H37: =VLOOKUP(VALUE(LEFT(TEXT(A37,"00000"),2)),xref!$B$3:$E$4326,4,FALSE) -> CA | I37: =VLOOKUP(TEXT(A37,"00000"),xref!$L$2:$Q$3249,6,FALSE) -> Sacramento Basin | J37: Sacramento Basin (CA)
A38: 4211 | B38: 2014 | C38: N | D38: Y | E38: D | F38: 2 | G38: 32727 | H38: =VLOOKUP(VALUE(LEFT(TEXT(A38,"00000"),2)),xref!$B$3:$E$4326,4,FALSE) -> CA | I38: =VLOOKUP(TEXT(A38,"00000"),xref!$L$2:$Q$3249,6,FALSE) -> CA Off-shore | J38: CA Off-shore (CA)
A39: 4237 | B39: 2014 | C39: N | D39: Y | F39: 2 | G39: 7100 | H39: =VLOOKUP(VALUE(LEFT(TEXT(A39,"00000"),2)),xref!$B$3:$E$4326,4,FALSE) -> CA | I39: =VLOOKUP(TEXT(A39,"00000"),xref!$L$2:$Q$3249,6,FALSE) -> CA Off-shore | J39: CA Off-shore (CA)
A40: 4237 | B40: 2014 | C40: N | D40: Y | E40: D | F40: 32 | G40: 169312 | H40: =VLOOKUP(VALUE(LEFT(TEXT(A40,"00000"),2)),xref!$B$3:$E$4326,4,FALSE) -> CA | I40: =VLOOKUP(TEXT(A40,"00000"),xref!$L$2:$Q$3249,6,FALSE) -> CA Off-shore | J40: CA Off-shore (CA)
A41: 4237 | B41: 2014 | C41: N | D41: Y | E41: H | F41: 18 | G41: 91140 | H41: =VLOOKUP(VALUE(LEFT(TEXT(A41,"00000"),2)),xref!$B$3:$E$4326,4,FALSE) -> CA | I41: =VLOOKUP(TEXT(A41,"00000"),xref!$L$2:$Q$3249,6,FALSE) -> CA Off-shore | J41: CA Off-shore (CA)
A42: 4237 | B42: 2014 | C42: N | D42: Y | E42: V | F42: 8 | G42: 42625 | H42: =VLOOKUP(VALUE(LEFT(TEXT(A42,"00000"),2)),xref!$B$3:$E$4326,4,FALSE) -> CA | I42: =VLOOKUP(TEXT(A42,"00000"),xref!$L$2:$Q$3249,6,FALSE) -> CA Off-shore | J42: CA Off-shore (CA)
A43: 4259 | B43: 2014 | C43: N | D43: Y | E43: D | F43: 5 | G43: 36231 | H43: =VLOOKUP(VALUE(LEFT(TEXT(A43,"00000"),2)),xref!$B$3:$E$4326,4,FALSE) -> CA | I43: =VLOOKUP(TEXT(A43,"00000"),xref!$L$2:$Q$3249,6,FALSE) -> CA Off-shore | J43: CA Off-shore (CA)
A44: 4259 | B44: 2014 | C44: N | D44: Y | E44: H | F44: 7 | G44: 63975 | H44: =VLOOKUP(VALUE(LEFT(TEXT(A44,"00000"),2)),xref!$B$3:$E$4326,4,FALSE) -> CA | I44: =VLOOKUP(TEXT(A44,"00000"),xref!$L$2:$Q$3249,6,FALSE) -> CA Off-shore | J44: CA Off-shore (CA)
A45: 4259 | B45: 2014 | C45: N | D45: Y | E45: V | F45: 2 | G45: 14500 | H45: =VLOOKUP(VALUE(LEFT(TEXT(A45,"00000"),2)),xref!$B$3:$E$4326,4,FALSE) -> CA | I45: =VLOOKUP(TEXT(A45,"00000"),xref!$L$2:$Q$3249,6,FALSE) -> CA Off-shore | J45: CA Off-shore (CA)
A46: 4311 | B46: 2014 | C46: N | D46: Y | E46: D | F46: 1 | G46: 5950 | H46: =VLOOKUP(VALUE(LEFT(TEXT(A46,"00000"),2)),xref!$B$3:$E$4326,4,FALSE) -> CA | I46: =VLOOKUP(TEXT(A46,"00000"),xref!$L$2:$Q$3249,6,FALSE) -> CA Off-shore | J46: CA Off-shore (CA)
A47: 5001 | B47: 2014 | C47: N | D47: Y | E47: H | F47: 12 | G47: 152302 | H47: =VLOOKUP(VALUE(LEFT(TEXT(A47,"00000"),2)),xref!$B$3:$E$4326,4,FALSE) -> CO | I47: =VLOOKUP(TEXT(A47,"00000"),xref!$L$2:$Q$3249,6,FALSE) -> Denver Basin | J47: Denver Basin (CO)
A48: 5001 | B48: 2014 | C48: N | D48: Y | E48: V | F48: 1 | G48: 10790 | H48: =VLOOKUP(VALUE(LEFT(TEXT(A48,"00000"),2)),xref!$B$3:$E$4326,4,FALSE) -> CO | I48: =VLOOKUP(TEXT(A48,"00000"),xref!$L$2:$Q$3249,6,FALSE) -> Denver Basin | J48: Denver Basin (CO)
A49: 5005 | B49: 2014 | C49: N | D49: Y | E49: H | F49: 17 | G49: 243388 | H49: =VLOOKUP(VALUE(LEFT(TEXT(A49,"00000"),2)),xref!$B$3:$E$4326,4,FALSE) -> CO | I49: =VLOOKUP(TEXT(A49,"00000"),xref!$L$2:$Q$3249,6,FALSE) -> Denver Basin | J49: Denver Basin (CO)
A50: 5007 | B50: 2014 | C50: N | D50: Y | E50: D | F50: 1 | G50: 7946 | H50: =VLOOKUP(VALUE(LEFT(TEXT(A50,"00000"),2)),xref!$B$3:$E$4326,4,FALSE) -> CO | I50: =VLOOKUP(TEXT(A50,"00000"),xref!$L$2:$Q$3249,6,FALSE) -> San Juan Basin | J50: San Juan Basin (CO)
A51: 5009 | B51: 2014 | C51: Y | D51: N | E51: V | F51: 1 | G51: 4196 | H51: =VLOOKUP(VALUE(LEFT(TEXT(A51,"00000"),2)),xref!$B$3:$E$4326,4,FALSE) -> CO | I51: =VLOOKUP(TEXT(A51,"00000"),xref!$L$2:$Q$3249,6,FALSE) -> Anadarko Basin | J51: Anadarko Basin (CO)
A52: 5017 | B52: 2014 | C52: N | D52: Y | E52: H | F52: 1 | G52: 8905 | H52: =VLOOKUP(VALUE(LEFT(TEXT(A52,"00000"),2)),xref!$B$3:$E$4326,4,FALSE) -> CO | I52: =VLOOKUP(TEXT(A52,"00000"),xref!$L$2:$Q$3249,6,FALSE) -> Las Animas Arch | J52: Las Animas Arch (CO)
A53: 5017 | B53: 2014 | C53: N | D53: Y | E53: V | F53: 9 | G53: 49082 | H53: =VLOOKUP(VALUE(LEFT(TEXT(A53,"00000"),2)),xref!$B$3:$E$4326,4,FALSE) -> CO | I53: =VLOOKUP(TEXT(A53,"00000"),xref!$L$2:$Q$3249,6,FALSE) -> Las Animas Arch | J53: Las Animas Arch (CO)
A54: 5017 | B54: 2014 | C54: Y | D54: N | E54: V | F54: 6 | G54: 32678 | H54: =VLOOKUP(VALUE(LEFT(TEXT(A54,"00000"),2)),xref!$B$3:$E$4326,4,FALSE) -> CO | I54: =VLOOKUP(TEXT(A54,"00000"),xref!$L$2:$Q$3249,6,FALSE) -> Las Animas Arch | J54: Las Animas Arch (CO)
A55: 5029 | B55: 2014 | C55: N | D55: Y | E55: H | F55: 1 | G55: 12500 | H55: =VLOOKUP(VALUE(LEFT(TEXT(A55,"00000"),2)),xref!$B$3:$E$4326,4,FALSE) -> CO | I55: =VLOOKUP(TEXT(A55,"00000"),xref!$L$2:$Q$3249,6,FALSE) -> Piceance Basin | J55: Piceance Basin (CO)
A56: 5033 | B56: 2014 | C56: N | D56: Y | E56: H | F56: 1 | G56: 9966 | H56: =VLOOKUP(VALUE(LEFT(TEXT(A56,"00000"),2)),xref!$B$3:$E$4326,4,FALSE) -> CO | I56: =VLOOKUP(TEXT(A56,"00000"),xref!$L$2:$Q$3249,6,FALSE) -> Paradox Basin | J56: Paradox Basin (CO)
A57: 5043 | B57: 2014 | C57: N | D57: Y | E57: V | F57: 1 | G57: 3200 | H57: =VLOOKUP(VALUE(LEFT(TEXT(A57,"00000"),2)),xref!$B$3:$E$4326,4,FALSE) -> CO | I57: =VLOOKUP(TEXT(A57,"00000"),xref!$L$2:$Q$3249,6,FALSE) -> Denver Basin | J57: Denver Basin (CO)
A58: 5045 | B58: 2014 | C58: N | D58: Y | E58: D | F58: 319 | G58: 2494254 | H58: =VLOOKUP(VALUE(LEFT(TEXT(A58,"00000"),2)),xref!$B$3:$E$4326,4,FALSE) -> CO | I58: =VLOOKUP(TEXT(A58,"00000"),xref!$L$2:$Q$3249,6,FALSE) -> Piceance Basin | J58: Piceance Basin (CO)
A59: 5045 | B59: 2014 | C59: N | D59: Y | E59: H | F59: 11 | G59: 190883 | H59: =VLOOKUP(VALUE(LEFT(TEXT(A59,"00000"),2)),xref!$B$3:$E$4326,4,FALSE) -> CO | I59: =VLOOKUP(TEXT(A59,"00000"),xref!$L$2:$Q$3249,6,FALSE) -> Piceance Basin | J59: Piceance Basin (CO)
A60: 5045 | B60: 2014 | C60: N | D60: Y | E60: V | F60: 7 | G60: 53927 | H60: =VLOOKUP(VALUE(LEFT(TEXT(A60,"00000"),2)),xref!$B$3:$E$4326,4,FALSE) -> CO | I60: =VLOOKUP(TEXT(A60,"00000"),xref!$L$2:$Q$3249,6,FALSE) -> Piceance Basin | J60: Piceance Basin (CO)
A61: 5045 | B61: 2014 | C61: Y | D61: N | E61: D | F61: 3 | G61: 26807 | H61: =VLOOKUP(VALUE(LEFT(TEXT(A61,"00000"),2)),xref!$B$3:$E$4326,4,FALSE) -> CO | I61: =VLOOKUP(TEXT(A61,"00000"),xref!$L$2:$Q$3249,6,FALSE) -> Piceance Basin | J61: Piceance Basin (CO)
A62: 5045 | B62: 2014 | C62: Y | D62: N | E62: V | F62: 2 | G62: 24516 | H62: =VLOOKUP(VALUE(LEFT(TEXT(A62,"00000"),2)),xref!$B$3:$E$4326,4,FALSE) -> CO | I62: =VLOOKUP(TEXT(A62,"00000"),xref!$L$2:$Q$3249,6,FALSE) -> Piceance Basin | J62: Piceance Basin (CO)
A63: 5055 | B63: 2014 | C63: N | D63: Y | E63: D | F63: 2 | G63: 19333 | H63: =VLOOKUP(VALUE(LEFT(TEXT(A63,"00000"),2)),xref!$B$3:$E$4326,4,FALSE) -> CO | I63: =VLOOKUP(TEXT(A63,"00000"),xref!$L$2:$Q$3249,6,FALSE) -> Las Vegas-Raton Basin | J63: Las Vegas-Raton Basin (CO)
A64: 5057 | B64: 2014 | C64: N | D64: Y | E64: H | F64: 4 | G64: 48614 | H64: =VLOOKUP(VALUE(LEFT(TEXT(A64,"00000"),2)),xref!$B$3:$E$4326,4,FALSE) -> CO | I64: =VLOOKUP(TEXT(A64,"00000"),xref!$L$2:$Q$3249,6,FALSE) -> North Park Basin | J64: North Park Basin (CO)
A65: 5067 | B65: 2014 | C65: N | D65: Y | E65: D | F65: 14 | G65: 48822 | H65: =VLOOKUP(VALUE(LEFT(TEXT(A65,"00000"),2)),xref!$B$3:$E$4326,4,FALSE) -> CO | I65: =VLOOKUP(TEXT(A65,"00000"),xref!$L$2:$Q$3249,6,FALSE) -> San Juan Basin | J65: San Juan Basin (CO)
A66: 5067 | B66: 2014 | C66: N | D66: Y | E66: H | F66: 6 | G66: 39174 | H66: =VLOOKUP(VALUE(LEFT(TEXT(A66,"00000"),2)),xref!$B$3:$E$4326,4,FALSE) -> CO | I66: =VLOOKUP(TEXT(A66,"00000"),xref!$L$2:$Q$3249,6,FALSE) -> San Juan Basin | J66: =I66&" ("&H66&")" -> San Juan Basin (CO)
A67: 5067 | B67: 2014 | C67: N | D67: Y | E67: V | F67: 2 | G67: 6293 | H67: =VLOOKUP(VALUE(LEFT(TEXT(A67,"00000"),2)),xref!$B$3:$E$4326,4,FALSE) -> CO | I67: =VLOOKUP(TEXT(A67,"00000"),xref!$L$2:$Q$3249,6,FALSE) -> San Juan Basin | J67: San Juan Basin (CO)
A68: 5067 | B68: 2014 | C68: Y | D68: N | E68: V | F68: 1 | G68: 7874 | H68: =VLOOKUP(VALUE(LEFT(TEXT(A68,"00000"),2)),xref!$B$3:$E$4326,4,FALSE) -> CO | I68: =VLOOKUP(TEXT(A68,"00000"),xref!$L$2:$Q$3249,6,FALSE) -> San Juan Basin | J68: San Juan Basin (CO)
A69: 5069 | B69: 2014 | C69: N | D69: Y | E69: D | F69: 1 | G69: 7311 | H69: =VLOOKUP(VALUE(LEFT(TEXT(A69,"00000"),2)),xref!$B$3:$E$4326,4,FALSE) -> CO | I69: =VLOOKUP(TEXT(A69,"00000"),xref!$L$2:$Q$3249,6,FALSE) -> Denver Basin | J69: Denver Basin (CO)
A70: 5071 | B70: 2014 | C70: N | D70: Y | E70: V | F70: 1 | G70: 7215 | H70: =VLOOKUP(VALUE(LEFT(TEXT(A70,"00000"),2)),xref!$B$3:$E$4326,4,FALSE) -> CO | I70: =VLOOKUP(TEXT(A70,"00000"),xref!$L$2:$Q$3249,6,FALSE) -> Las Vegas-Raton Basin | J70: Las Vegas-Raton Basin (CO)
A71: 5071 | B71: 2014 | C71: Y | D71: N | E71: V | F71: 32 | G71: 77714 | H71: =VLOOKUP(VALUE(LEFT(TEXT(A71,"00000"),2)),xref!$B$3:$E$4326,4,FALSE) -> CO | I71: =VLOOKUP(TEXT(A71,"00000"),xref!$L$2:$Q$3249,6,FALSE) -> Las Vegas-Raton Basin | J71: Las Vegas-Raton Basin (CO)
A72: 5073 | B72: 2014 | C72: N | D72: Y | E72: H | F72: 2 | G72: 18095 | H72: =VLOOKUP(VALUE(LEFT(TEXT(A72,"00000"),2)),xref!$B$3:$E$4326,4,FALSE) -> CO | I72: =VLOOKUP(TEXT(A72,"00000"),xref!$L$2:$Q$3249,6,FALSE) -> Denver Basin | J72: Denver Basin (CO)
A73: 5073 | B73: 2014 | C73: N | D73: Y | E73: V | F73: 24 | G73: 198944 | H73: =VLOOKUP(VALUE(LEFT(TEXT(A73,"00000"),2)),xref!$B$3:$E$4326,4,FALSE) -> CO | I73: =VLOOKUP(TEXT(A73,"00000"),xref!$L$2:$Q$3249,6,FALSE) -> Denver Basin | J73: Denver Basin (CO)
A74: 5073 | B74: 2014 | C74: Y | D74: N | E74: V | F74: 15 | G74: 121433 | H74: =VLOOKUP(VALUE(LEFT(TEXT(A74,"00000"),2)),xref!$B$3:$E$4326,4,FALSE) -> CO | I74: =VLOOKUP(TEXT(A74,"00000"),xref!$L$2:$Q$3249,6,FALSE) -> Denver Basin | J74: Denver Basin (CO)
A75: 5075 | B75: 2014 | C75: N | D75: Y | E75: V | F75: 1 | G75: 4778 | H75: =VLOOKUP(VALUE(LEFT(TEXT(A75,"00000"),2)),xref!$B$3:$E$4326,4,FALSE) -> CO | I75: =VLOOKUP(TEXT(A75,"00000"),xref!$L$2:$Q$3249,6,FALSE) -> Denver Basin | J75: Denver Basin (CO)
A76: 5077 | B76: 2014 | C76: N | D76: Y | E76: D | F76: 13 | G76: 110154 | H76: =VLOOKUP(VALUE(LEFT(TEXT(A76,"00000"),2)),xref!$B$3:$E$4326,4,FALSE) -> CO | I76: =VLOOKUP(TEXT(A76,"00000"),xref!$L$2:$Q$3249,6,FALSE) -> Piceance Basin | J76: Piceance Basin (CO)
A77: 5077 | B77: 2014 | C77: N | D77: Y | E77: V | F77: 2 | G77: 11315 | H77: =VLOOKUP(VALUE(LEFT(TEXT(A77,"00000"),2)),xref!$B$3:$E$4326,4,FALSE) -> CO | I77: =VLOOKUP(TEXT(A77,"00000"),xref!$L$2:$Q$3249,6,FALSE) -> Piceance Basin | J77: Piceance Basin (CO)
A78: 5077 | B78: 2014 | C78: Y | D78: N | E78: D | F78: 1 | G78: 6615 | H78: =VLOOKUP(VALUE(LEFT(TEXT(A78,"00000"),2)),xref!$B$3:$E$4326,4,FALSE) -> CO | I78: =VLOOKUP(TEXT(A78,"00000"),xref!$L$2:$Q$3249,6,FALSE) -> Piceance Basin | J78: Piceance Basin (CO)
A79: 5081 | B79: 2014 | C79: N | D79: Y | E79: H | F79: 1 | G79: 12338 | H79: =VLOOKUP(VALUE(LEFT(TEXT(A79,"00000"),2)),xref!$B$3:$E$4326,4,FALSE) -> CO | I79: =VLOOKUP(TEXT(A79,"00000"),xref!$L$2:$Q$3249,6,FALSE) -> Green River Basin | J79: Green River Basin (CO)
A80: 5081 | B80: 2014 | C80: N | D80: Y | E80: V | F80: 2 | G80: 18610 | H80: =VLOOKUP(VALUE(LEFT(TEXT(A80,"00000"),2)),xref!$B$3:$E$4326,4,FALSE) -> CO | I80: =VLOOKUP(TEXT(A80,"00000"),xref!$L$2:$Q$3249,6,FALSE) -> Green River Basin | J80: Green River Basin (CO)
A81: 5083 | B81: 2014 | C81: N | D81: Y | E81: H | F81: 4 | G81: 37945 | H81: =VLOOKUP(VALUE(LEFT(TEXT(A81,"00000"),2)),xref!$B$3:$E$4326,4,FALSE) -> CO | I81: =VLOOKUP(TEXT(A81,"00000"),xref!$L$2:$Q$3249,6,FALSE) -> Paradox Basin | J81: Paradox Basin (CO)
A82: 5083 | B82: 2014 | C82: N | D82: Y | E82: V | F82: 4 | G82: 34545 | H82: =VLOOKUP(VALUE(LEFT(TEXT(A82,"00000"),2)),xref!$B$3:$E$4326,4,FALSE) -> CO | I82: =VLOOKUP(TEXT(A82,"00000"),xref!$L$2:$Q$3249,6,FALSE) -> Paradox Basin | J82: Paradox Basin (CO)
A83: 5083 | B83: 2014 | C83: Y | D83: N | E83: V | F83: 1 | G83: 9220 | H83: =VLOOKUP(VALUE(LEFT(TEXT(A83,"00000"),2)),xref!$B$3:$E$4326,4,FALSE) -> CO | I83: =VLOOKUP(TEXT(A83,"00000"),xref!$L$2:$Q$3249,6,FALSE) -> Paradox Basin | J83: Paradox Basin (CO)
A84: 5087 | B84: 2014 | C84: N | D84: Y | E84: D | F84: 1 | G84: 6585 | H84: =VLOOKUP(VALUE(LEFT(TEXT(A84,"00000"),2)),xref!$B$3:$E$4326,4,FALSE) -> CO | I84: =VLOOKUP(TEXT(A84,"00000"),xref!$L$2:$Q$3249,6,FALSE) -> Denver Basin | J84: Denver Basin (CO)
A85: 5087 | B85: 2014 | C85: Y | D85: N | E85: D | F85: 1 | G85: 6685 | H85: =VLOOKUP(VALUE(LEFT(TEXT(A85,"00000"),2)),xref!$B$3:$E$4326,4,FALSE) -> CO | I85: =VLOOKUP(TEXT(A85,"00000"),xref!$L$2:$Q$3249,6,FALSE) -> Denver Basin | J85: Denver Basin (CO)
A86: 5087 | B86: 2014 | C86: Y | D86: N | E86: V | F86: 1 | G86: 6255 | H86: =VLOOKUP(VALUE(LEFT(TEXT(A86,"00000"),2)),xref!$B$3:$E$4326,4,FALSE) -> CO | I86: =VLOOKUP(TEXT(A86,"00000"),xref!$L$2:$Q$3249,6,FALSE) -> Denver Basin | J86: Denver Basin (CO)
A87: 5095 | B87: 2014 | C87: N | D87: Y | E87: V | F87: 8 | G87: 21828 | H87: =VLOOKUP(VALUE(LEFT(TEXT(A87,"00000"),2)),xref!$B$3:$E$4326,4,FALSE) -> CO | I87: =VLOOKUP(TEXT(A87,"00000"),xref!$L$2:$Q$3249,6,FALSE) -> Denver Basin | J87: Denver Basin (CO)
A88: 5103 | B88: 2014 | C88: N | D88: Y | E88: D | F88: 35 | G88: 420131 | H88: =VLOOKUP(VALUE(LEFT(TEXT(A88,"00000"),2)),xref!$B$3:$E$4326,4,FALSE) -> CO | I88: =VLOOKUP(TEXT(A88,"00000"),xref!$L$2:$Q$3249,6,FALSE) -> Piceance Basin | J88: Piceance Basin (CO)
A89: 5103 | B89: 2014 | C89: N | D89: Y | E89: H | F89: 2 | G89: 25667 | H89: =VLOOKUP(VALUE(LEFT(TEXT(A89,"00000"),2)),xref!$B$3:$E$4326,4,FALSE) -> CO | I89: =VLOOKUP(TEXT(A89,"00000"),xref!$L$2:$Q$3249,6,FALSE) -> Piceance Basin | J89: Piceance Basin (CO)
A90: 5103 | B90: 2014 | C90: N | D90: Y | E90: V | F90: 5 | G90: 58268 | H90: =VLOOKUP(VALUE(LEFT(TEXT(A90,"00000"),2)),xref!$B$3:$E$4326,4,FALSE) -> CO | I90: =VLOOKUP(TEXT(A90,"00000"),xref!$L$2:$Q$3249,6,FALSE) -> Piceance Basin | J90: Piceance Basin (CO)
A91: 5103 | B91: 2014 | C91: Y | D91: N | E91: D | F91: 3 | G91: 33202 | H91: =VLOOKUP(VALUE(LEFT(TEXT(A91,"00000"),2)),xref!$B$3:$E$4326,4,FALSE) -> CO | I91: =VLOOKUP(TEXT(A91,"00000"),xref!$L$2:$Q$3249,6,FALSE) -> Piceance Basin | J91: Piceance Basin (CO)
A92: 5103 | B92: 2014 | C92: Y | D92: N | E92: V | F92: 1 | G92: 7315 | H92: =VLOOKUP(VALUE(LEFT(TEXT(A92,"00000"),2)),xref!$B$3:$E$4326,4,FALSE) -> CO | I92: =VLOOKUP(TEXT(A92,"00000"),xref!$L$2:$Q$3249,6,FALSE) -> Piceance Basin | J92: Piceance Basin (CO)
A93: 5107 | B93: 2014 | C93: N | D93: Y | E93: D | F93: 1 | G93: 10165 | H93: =VLOOKUP(VALUE(LEFT(TEXT(A93,"00000"),2)),xref!$B$3:$E$4326,4,FALSE) -> CO | I93: =VLOOKUP(TEXT(A93,"00000"),xref!$L$2:$Q$3249,6,FALSE) -> Green River Basin | J93: Green River Basin (CO)
A94: 5107 | B94: 2014 | C94: N | D94: Y | E94: V | F94: 1 | G94: 10334 | H94: =VLOOKUP(VALUE(LEFT(TEXT(A94,"00000"),2)),xref!$B$3:$E$4326,4,FALSE) -> CO | I94: =VLOOKUP(TEXT(A94,"00000"),xref!$L$2:$Q$3249,6,FALSE) -> Green River Basin | J94: Green River Basin (CO)
A95: 5113 | B95: 2014 | C95: Y | D95: N | E95: D | F95: 1 | G95: 9584 | H95: =VLOOKUP(VALUE(LEFT(TEXT(A95,"00000"),2)),xref!$B$3:$E$4326,4,FALSE) -> CO | I95: =VLOOKUP(TEXT(A95,"00000"),xref!$L$2:$Q$3249,6,FALSE) -> Paradox Basin | J95: Paradox Basin (CO)
A96: 5121 | B96: 2014 | C96: N | D96: Y | E96: V | F96: 2 | G96: 13450 | H96: =VLOOKUP(VALUE(LEFT(TEXT(A96,"00000"),2)),xref!$B$3:$E$4326,4,FALSE) -> CO | I96: =VLOOKUP(TEXT(A96,"00000"),xref!$L$2:$Q$3249,6,FALSE) -> Denver Basin | J96: Denver Basin (CO)
A97: 5123 | B97: 2014 | C97: N | D97: Y | E97: D | F97: 17 | G97: 144161 | H97: =VLOOKUP(VALUE(LEFT(TEXT(A97,"00000"),2)),xref!$B$3:$E$4326,4,FALSE) -> CO | I97: =VLOOKUP(TEXT(A97,"00000"),xref!$L$2:$Q$3249,6,FALSE) -> Denver Basin | J97: Denver Basin (CO)
A98: 5123 | B98: 2014 | C98: N | D98: Y | E98: H | F98: 1438 | G98: 18531389 | H98: =VLOOKUP(VALUE(LEFT(TEXT(A98,"00000"),2)),xref!$B$3:$E$4326,4,FALSE) -> CO | I98: =VLOOKUP(TEXT(A98,"00000"),xref!$L$2:$Q$3249,6,FALSE) -> Denver Basin | J98: Denver Basin (CO)
A99: 5123 | B99: 2014 | C99: N | D99: Y | E99: V | F99: 10 | G99: 87226 | H99: =VLOOKUP(VALUE(LEFT(TEXT(A99,"00000"),2)),xref!$B$3:$E$4326,4,FALSE) -> CO | I99: =VLOOKUP(TEXT(A99,"00000"),xref!$L$2:$Q$3249,6,FALSE) -> Denver Basin | J99: Denver Basin (CO)
A100: 5123 | B100: 2014 | C100: Y | D100: N | E100: D | F100: 46 | G100: 348680 | H100: =VLOOKUP(VALUE(LEFT(TEXT(A100,"00000"),2)),xref!$B$3:$E$4326,4,FALSE) -> CO | I100: =VLOOKUP(TEXT(A100,"00000"),xref!$L$2:$Q$3249,6,FALSE) -> Denver Basin | J100: Denver Basin (CO)
A101: 5123 | B101: 2014 | C101: Y | D101: N | E101: V | F101: 13 | G101: 99522 | H101: =VLOOKUP(VALUE(LEFT(TEXT(A101,"00000"),2)),xref!$B$3:$E$4326,4,FALSE) -> CO | I101: =VLOOKUP(TEXT(A101,"00000"),xref!$L$2:$Q$3249,6,FALSE) -> Denver Basin | J101: Denver Basin (CO)
A102: 5125 | B102: 2014 | C102: N | D102: Y | E102: V | F102: 33 | G102: 88456 | H102: =VLOOKUP(VALUE(LEFT(TEXT(A102,"00000"),2)),xref!$B$3:$E$4326,4,FALSE) -> CO | I102: =VLOOKUP(TEXT(A102,"00000"),xref!$L$2:$Q$3249,6,FALSE) -> Denver Basin | J102: Denver Basin (CO)
A103: 11075 | B103: 2014 | C103: N | D103: Y | E103: D | F103: 1 | G103: 5755 | H103: =VLOOKUP(VALUE(LEFT(TEXT(A103,"00000"),2)),xref!$B$3:$E$4326,4,FALSE) -> ID | I103: =VLOOKUP(TEXT(A103,"00000"),xref!$L$2:$Q$3249,6,FALSE) -> Snake River Basin | J103: Snake River Basin (ID)
A104: 11075 | B104: 2014 | C104: N | D104: Y | E104: V | F104: 2 | G104: 11300 | H104: =VLOOKUP(VALUE(LEFT(TEXT(A104,"00000"),2)),xref!$B$3:$E$4326,4,FALSE) -> ID | I104: =VLOOKUP(TEXT(A104,"00000"),xref!$L$2:$Q$3249,6,FALSE) -> Snake River Basin | J104: Snake River Basin (ID)
A105: 25003 | B105: 2014 | C105: N | D105: Y | E105: V | F105: 16 | G105: 16090 | H105: =VLOOKUP(VALUE(LEFT(TEXT(A105,"00000"),2)),xref!$B$3:$E$4326,4,FALSE) -> MT | I105: =VLOOKUP(TEXT(A105,"00000"),xref!$L$2:$Q$3249,6,FALSE) -> Powder River Basin | J105: Powder River Basin (MT)
A106: 25003 | B106: 2014 | C106: Y | D106: N | E106: V | F106: 1 | G106: 815 | H106: =VLOOKUP(VALUE(LEFT(TEXT(A106,"00000"),2)),xref!$B$3:$E$4326,4,FALSE) -> MT | I106: =VLOOKUP(TEXT(A106,"00000"),xref!$L$2:$Q$3249,6,FALSE) -> Powder River Basin | J106: Powder River Basin (MT)
A107: 25005 | B107: 2014 | C107: N | D107: Y | E107: H | F107: 2 | G107: 12467 | H107: =VLOOKUP(VALUE(LEFT(TEXT(A107,"00000"),2)),xref!$B$3:$E$4326,4,FALSE) -> MT | I107: =VLOOKUP(TEXT(A107,"00000"),xref!$L$2:$Q$3249,6,FALSE) -> Central Montana Uplift | J107: Central Montana Uplift (MT)
A108: 25005 | B108: 2014 | C108: N | D108: Y | E108: V | F108: 3 | G108: 13997 | H108: =VLOOKUP(VALUE(LEFT(TEXT(A108,"00000"),2)),xref!$B$3:$E$4326,4,FALSE) -> MT | I108: =VLOOKUP(TEXT(A108,"00000"),xref!$L$2:$Q$3249,6,FALSE) -> Central Montana Uplift | J108: Central Montana Uplift (MT)
A109: 25021 | B109: 2014 | C109: N | D109: Y | E109: H | F109: 1 | G109: 10140 | H109: =VLOOKUP(VALUE(LEFT(TEXT(A109,"00000"),2)),xref!$B$3:$E$4326,4,FALSE) -> MT | I109: =VLOOKUP(TEXT(A109,"00000"),xref!$L$2:$Q$3249,6,FALSE) -> Williston Basin | J109: Williston Basin (MT)
A110: 25021 | B110: 2014 | C110: N | D110: Y | E110: V | F110: 1 | G110: 10076 | H110: =VLOOKUP(VALUE(LEFT(TEXT(A110,"00000"),2)),xref!$B$3:$E$4326,4,FALSE) -> MT | I110: =VLOOKUP(TEXT(A110,"00000"),xref!$L$2:$Q$3249,6,FALSE) -> Williston Basin | J110: Williston Basin (MT)
A111: 25025 | B111: 2014 | C111: N | D111: Y | E111: H | F111: 8 | G111: 127180 | H111: =VLOOKUP(VALUE(LEFT(TEXT(A111,"00000"),2)),xref!$B$3:$E$4326,4,FALSE) -> MT | I111: =VLOOKUP(TEXT(A111,"00000"),xref!$L$2:$Q$3249,6,FALSE) -> Williston Basin | J111: Williston Basin (MT)
A112: 25025 | B112: 2014 | C112: Y | D112: N | E112: D | F112: 1 | G112: 9000 | H112: =VLOOKUP(VALUE(LEFT(TEXT(A112,"00000"),2)),xref!$B$3:$E$4326,4,FALSE) -> MT | I112: =VLOOKUP(TEXT(A112,"00000"),xref!$L$2:$Q$3249,6,FALSE) -> Williston Basin | J112: Williston Basin (MT)
A113: 25025 | B113: 2014 | C113: Y | D113: N | E113: V | F113: 3 | G113: 26454 | H113: =VLOOKUP(VALUE(LEFT(TEXT(A113,"00000"),2)),xref!$B$3:$E$4326,4,FALSE) -> MT | I113: =VLOOKUP(TEXT(A113,"00000"),xref!$L$2:$Q$3249,6,FALSE) -> Williston Basin | J113: Williston Basin (MT)
A114: 25035 | B114: 2014 | C114: N | D114: Y | E114: V | F114: 8 | G114: 25751 | H114: =VLOOKUP(VALUE(LEFT(TEXT(A114,"00000"),2)),xref!$B$3:$E$4326,4,FALSE) -> MT | I114: =VLOOKUP(TEXT(A114,"00000"),xref!$L$2:$Q$3249,6,FALSE) -> Sweetgrass Arch | J114: Sweetgrass Arch (MT)
A115: 25035 | B115: 2014 | C115: Y | D115: N | E115: V | F115: 3 | G115: 9094 | H115: =VLOOKUP(VALUE(LEFT(TEXT(A115,"00000"),2)),xref!$B$3:$E$4326,4,FALSE) -> MT | I115: =VLOOKUP(TEXT(A115,"00000"),xref!$L$2:$Q$3249,6,FALSE) -> Sweetgrass Arch | J115: Sweetgrass Arch (MT)
A116: 25073 | B116: 2014 | C116: N | D116: Y | E116: V | F116: 2 | G116: 4063 | H116: =VLOOKUP(VALUE(LEFT(TEXT(A116,"00000"),2)),xref!$B$3:$E$4326,4,FALSE) -> MT | I116: =VLOOKUP(TEXT(A116,"00000"),xref!$L$2:$Q$3249,6,FALSE) -> Sweetgrass Arch | J116: Sweetgrass Arch (MT)
A117: 25073 | B117: 2014 | C117: Y | D117: N | E117: V | F117: 1 | G117: 1837 | H117: =VLOOKUP(VALUE(LEFT(TEXT(A117,"00000"),2)),xref!$B$3:$E$4326,4,FALSE) -> MT | I117: =VLOOKUP(TEXT(A117,"00000"),xref!$L$2:$Q$3249,6,FALSE) -> Sweetgrass Arch | J117: Sweetgrass Arch (MT)
A118: 25075 | B118: 2014 | C118: N | D118: Y | E118: V | F118: 1 | G118: 7000 | H118: =VLOOKUP(VALUE(LEFT(TEXT(A118,"00000"),2)),xref!$B$3:$E$4326,4,FALSE) -> MT | I118: =VLOOKUP(TEXT(A118,"00000"),xref!$L$2:$Q$3249,6,FALSE) -> Powder River Basin | J118: Powder River Basin (MT)
A119: 25075 | B119: 2014 | C119: Y | D119: N | E119: V | F119: 7 | G119: 42134 | H119: =VLOOKUP(VALUE(LEFT(TEXT(A119,"00000"),2)),xref!$B$3:$E$4326,4,FALSE) -> MT | I119: =VLOOKUP(TEXT(A119,"00000"),xref!$L$2:$Q$3249,6,FALSE) -> Powder River Basin | J119: Powder River Basin (MT)
A120: 25083 | B120: 2014 | C120: N | D120: Y | E120: H | F120: 88 | G120: 1694061 | H120: =VLOOKUP(VALUE(LEFT(TEXT(A120,"00000"),2)),xref!$B$3:$E$4326,4,FALSE) -> MT | I120: =VLOOKUP(TEXT(A120,"00000"),xref!$L$2:$Q$3249,6,FALSE) -> Williston Basin | J120: Williston Basin (MT)
A121: 25083 | B121: 2014 | C121: N | D121: Y | E121: V | F121: 1 | G121: 12317 | H121: =VLOOKUP(VALUE(LEFT(TEXT(A121,"00000"),2)),xref!$B$3:$E$4326,4,FALSE) -> MT | I121: =VLOOKUP(TEXT(A121,"00000"),xref!$L$2:$Q$3249,6,FALSE) -> Williston Basin | J121: Williston Basin (MT)
A122: 25083 | B122: 2014 | C122: Y | D122: N | E122: V | F122: 1 | G122: 12785 | H122: =VLOOKUP(VALUE(LEFT(TEXT(A122,"00000"),2)),xref!$B$3:$E$4326,4,FALSE) -> MT | I122: =VLOOKUP(TEXT(A122,"00000"),xref!$L$2:$Q$3249,6,FALSE) -> Williston Basin | J122: Williston Basin (MT)
A123: 25085 | B123: 2014 | C123: N | D123: Y | E123: H | F123: 25 | G123: 502209 | H123: =VLOOKUP(VALUE(LEFT(TEXT(A123,"00000"),2)),xref!$B$3:$E$4326,4,FALSE) -> MT | I123: =VLOOKUP(TEXT(A123,"00000"),xref!$L$2:$Q$3249,6,FALSE) -> Williston Basin | J123: Williston Basin (MT)
A124: 25091 | B124: 2014 | C124: N | D124: Y | E124: V | F124: 1 | G124: 11713 | H124: =VLOOKUP(VALUE(LEFT(TEXT(A124,"00000"),2)),xref!$B$3:$E$4326,4,FALSE) -> MT | I124: =VLOOKUP(TEXT(A124,"00000"),xref!$L$2:$Q$3249,6,FALSE) -> Williston Basin | J124: Williston Basin (MT)
A125: 25091 | B125: 2014 | C125: Y | D125: N | E125: V | F125: 1 | G125: 10438 | H125: =VLOOKUP(VALUE(LEFT(TEXT(A125,"00000"),2)),xref!$B$3:$E$4326,4,FALSE) -> MT | I125: =VLOOKUP(TEXT(A125,"00000"),xref!$L$2:$Q$3249,6,FALSE) -> Williston Basin | J125: Williston Basin (MT)
A126: 25099 | B126: 2014 | C126: N | D126: Y | E126: V | F126: 1 | G126: 2400 | H126: =VLOOKUP(VALUE(LEFT(TEXT(A126,"00000"),2)),xref!$B$3:$E$4326,4,FALSE) -> MT | I126: =VLOOKUP(TEXT(A126,"00000"),xref!$L$2:$Q$3249,6,FALSE) -> Sweetgrass Arch | J126: Sweetgrass Arch (MT)
A127: 25101 | B127: 2014 | C127: N | D127: Y | E127: V | F127: 11 | G127: 16503 | H127: =VLOOKUP(VALUE(LEFT(TEXT(A127,"00000"),2)),xref!$B$3:$E$4326,4,FALSE) -> MT | I127: =VLOOKUP(TEXT(A127,"00000"),xref!$L$2:$Q$3249,6,FALSE) -> Sweetgrass Arch | J127: Sweetgrass Arch (MT)
A128: 25101 | B128: 2014 | C128: Y | D128: N | E128: V | F128: 2 | G128: 2935 | H128: =VLOOKUP(VALUE(LEFT(TEXT(A128,"00000"),2)),xref!$B$3:$E$4326,4,FALSE) -> MT | I128: =VLOOKUP(TEXT(A128,"00000"),xref!$L$2:$Q$3249,6,FALSE) -> Sweetgrass Arch | J128: Sweetgrass Arch (MT)
A129: 25105 | B129: 2014 | C129: N | D129: Y | E129: V | F129: 1 | G129: 7272 | H129: =VLOOKUP(VALUE(LEFT(TEXT(A129,"00000"),2)),xref!$B$3:$E$4326,4,FALSE) -> MT | I129: =VLOOKUP(TEXT(A129,"00000"),xref!$L$2:$Q$3249,6,FALSE) -> Williston Basin | J129: Williston Basin (MT)
A130: 25109 | B130: 2014 | C130: N | D130: Y | E130: V | F130: 2 | G130: 21180 | H130: =VLOOKUP(VALUE(LEFT(TEXT(A130,"00000"),2)),xref!$B$3:$E$4326,4,FALSE) -> MT | I130: =VLOOKUP(TEXT(A130,"00000"),xref!$L$2:$Q$3249,6,FALSE) -> Williston Basin | J130: =I130&" ("&H130&")" -> Williston Basin (MT)
A131: 25111 | B131: 2014 | C131: N | D131: Y | E131: V | F131: 2 | G131: 12395 | H131: =VLOOKUP(VALUE(LEFT(TEXT(A131,"00000"),2)),xref!$B$3:$E$4326,4,FALSE) -> MT | I131: =VLOOKUP(TEXT(A131,"00000"),xref!$L$2:$Q$3249,6,FALSE) -> Montana Folded Belt | J131: Montana Folded Belt (MT)
A132: 27007 | B132: 2014 | C132: N | D132: Y | E132: V | F132: 1 | G132: 10192 | H132: =VLOOKUP(VALUE(LEFT(TEXT(A132,"00000"),2)),xref!$B$3:$E$4326,4,FALSE) -> NV | I132: =VLOOKUP(TEXT(A132,"00000"),xref!$L$2:$Q$3249,6,FALSE) -> Great Basin Province | J132: Great Basin Province (NV)
A133: 27011 | B133: 2014 | C133: N | D133: Y | E133: V | F133: 1 | G133: 1200 | H133: =VLOOKUP(VALUE(LEFT(TEXT(A133,"00000"),2)),xref!$B$3:$E$4326,4,FALSE) -> NV | I133: =VLOOKUP(TEXT(A133,"00000"),xref!$L$2:$Q$3249,6,FALSE) -> Great Basin Province | J133: Great Basin Province (NV)
A134: 30005 | B134: 2014 | C134: N | D134: Y | E134: D | F134: 3 | G134: 10295 | H134: =VLOOKUP(VALUE(LEFT(TEXT(A134,"00000"),2)),xref!$B$3:$E$4326,4,FALSE) -> NM | I134: =VLOOKUP(TEXT(A134,"00000"),xref!$L$2:$Q$3249,6,FALSE) -> Permian Basin | J134: Permian Basin (NM)
A135: 30005 | B135: 2014 | C135: N | D135: Y | E135: H | F135: 1 | G135: 13038 | H135: =VLOOKUP(VALUE(LEFT(TEXT(A135,"00000"),2)),xref!$B$3:$E$4326,4,FALSE) -> NM | I135: =VLOOKUP(TEXT(A135,"00000"),xref!$L$2:$Q$3249,6,FALSE) -> Permian Basin | J135: Permian Basin (NM)
A136: 30005 | B136: 2014 | C136: N | D136: Y | E136: V | F136: 11 | G136: 45154 | H136: =VLOOKUP(VALUE(LEFT(TEXT(A136,"00000"),2)),xref!$B$3:$E$4326,4,FALSE) -> NM | I136: =VLOOKUP(TEXT(A136,"00000"),xref!$L$2:$Q$3249,6,FALSE) -> Permian Basin | J136: Permian Basin (NM)
A137: 30005 | B137: 2014 | C137: Y | D137: N | E137: V | F137: 2 | G137: 13906 | H137: =VLOOKUP(VALUE(LEFT(TEXT(A137,"00000"),2)),xref!$B$3:$E$4326,4,FALSE) -> NM | I137: =VLOOKUP(TEXT(A137,"00000"),xref!$L$2:$Q$3249,6,FALSE) -> Permian Basin | J137: Permian Basin (NM)
A138: 30015 | B138: 2014 | C138: N | D138: Y | E138: D | F138: 52 | G138: 276854 | H138: =VLOOKUP(VALUE(LEFT(TEXT(A138,"00000"),2)),xref!$B$3:$E$4326,4,FALSE) -> NM | I138: =VLOOKUP(TEXT(A138,"00000"),xref!$L$2:$Q$3249,6,FALSE) -> Permian Basin | J138: Permian Basin (NM)
A139: 30015 | B139: 2014 | C139: N | D139: Y | E139: H | F139: 415 | G139: 5346348 | H139: =VLOOKUP(VALUE(LEFT(TEXT(A139,"00000"),2)),xref!$B$3:$E$4326,4,FALSE) -> NM | I139: =VLOOKUP(TEXT(A139,"00000"),xref!$L$2:$Q$3249,6,FALSE) -> Permian Basin | J139: Permian Basin (NM)
A140: 30015 | B140: 2014 | C140: N | D140: Y | E140: V | F140: 176 | G140: 1056962 | H140: =VLOOKUP(VALUE(LEFT(TEXT(A140,"00000"),2)),xref!$B$3:$E$4326,4,FALSE) -> NM | I140: =VLOOKUP(TEXT(A140,"00000"),xref!$L$2:$Q$3249,6,FALSE) -> Permian Basin | J140: Permian Basin (NM)
A141: 30015 | B141: 2014 | C141: Y | D141: N | E141: D | F141: 6 | G141: 46198 | H141: =VLOOKUP(VALUE(LEFT(TEXT(A141,"00000"),2)),xref!$B$3:$E$4326,4,FALSE) -> NM | I141: =VLOOKUP(TEXT(A141,"00000"),xref!$L$2:$Q$3249,6,FALSE) -> Permian Basin | J141: Permian Basin (NM)
A142: 30015 | B142: 2014 | C142: Y | D142: N | E142: H | F142: 2 | G142: 23985 | H142: =VLOOKUP(VALUE(LEFT(TEXT(A142,"00000"),2)),xref!$B$3:$E$4326,4,FALSE) -> NM | I142: =VLOOKUP(TEXT(A142,"00000"),xref!$L$2:$Q$3249,6,FALSE) -> Permian Basin | J142: Permian Basin (NM)
A143: 30015 | B143: 2014 | C143: Y | D143: N | E143: V | F143: 49 | G143: 433542 | H143: =VLOOKUP(VALUE(LEFT(TEXT(A143,"00000"),2)),xref!$B$3:$E$4326,4,FALSE) -> NM | I143: =VLOOKUP(TEXT(A143,"00000"),xref!$L$2:$Q$3249,6,FALSE) -> Permian Basin | J143: Permian Basin (NM)
A144: 30021 | B144: 2014 | C144: N | D144: Y | E144: V | F144: 32 | G144: 76893 | H144: =VLOOKUP(VALUE(LEFT(TEXT(A144,"00000"),2)),xref!$B$3:$E$4326,4,FALSE) -> NM | I144: =VLOOKUP(TEXT(A144,"00000"),xref!$L$2:$Q$3249,6,FALSE) -> Sierra Grande Uplift | J144: Sierra Grande Uplift (NM)
A145: 30025 | B145: 2014 | C145: N | D145: Y | E145: D | F145: 29 | G145: 184712 | H145: =VLOOKUP(VALUE(LEFT(TEXT(A145,"00000"),2)),xref!$B$3:$E$4326,4,FALSE) -> NM | I145: =VLOOKUP(TEXT(A145,"00000"),xref!$L$2:$Q$3249,6,FALSE) -> Permian Basin | J145: Permian Basin (NM)
A146: 30025 | B146: 2014 | C146: N | D146: Y | E146: H | F146: 363 | G146: 5574868 | H146: =VLOOKUP(VALUE(LEFT(TEXT(A146,"00000"),2)),xref!$B$3:$E$4326,4,FALSE) -> NM | I146: =VLOOKUP(TEXT(A146,"00000"),xref!$L$2:$Q$3249,6,FALSE) -> Permian Basin | J146: Permian Basin (NM)
A147: 30025 | B147: 2014 | C147: N | D147: Y | E147: V | F147: 122 | G147: 845903 | H147: =VLOOKUP(VALUE(LEFT(TEXT(A147,"00000"),2)),xref!$B$3:$E$4326,4,FALSE) -> NM | I147: =VLOOKUP(TEXT(A147,"00000"),xref!$L$2:$Q$3249,6,FALSE) -> Permian Basin | J147: Permian Basin (NM)
A148: 30025 | B148: 2014 | C148: Y | D148: N | E148: D | F148: 5 | G148: 61052 | H148: =VLOOKUP(VALUE(LEFT(TEXT(A148,"00000"),2)),xref!$B$3:$E$4326,4,FALSE) -> NM | I148: =VLOOKUP(TEXT(A148,"00000"),xref!$L$2:$Q$3249,6,FALSE) -> Permian Basin | J148: Permian Basin (NM)
A149: 30025 | B149: 2014 | C149: Y | D149: N | E149: V | F149: 37 | G149: 326466 | H149: =VLOOKUP(VALUE(LEFT(TEXT(A149,"00000"),2)),xref!$B$3:$E$4326,4,FALSE) -> NM | I149: =VLOOKUP(TEXT(A149,"00000"),xref!$L$2:$Q$3249,6,FALSE) -> Permian Basin | J149: Permian Basin (NM)
A150: 30039 | B150: 2014 | C150: N | D150: Y | E150: D | F150: 2 | G150: 16577 | H150: =VLOOKUP(VALUE(LEFT(TEXT(A150,"00000"),2)),xref!$B$3:$E$4326,4,FALSE) -> NM | I150: =VLOOKUP(TEXT(A150,"00000"),xref!$L$2:$Q$3249,6,FALSE) -> San Juan Basin | J150: San Juan Basin (NM)
A151: 30039 | B151: 2014 | C151: N | D151: Y | E151: H | F151: 32 | G151: 356804 | H151: =VLOOKUP(VALUE(LEFT(TEXT(A151,"00000"),2)),xref!$B$3:$E$4326,4,FALSE) -> NM | I151: =VLOOKUP(TEXT(A151,"00000"),xref!$L$2:$Q$3249,6,FALSE) -> San Juan Basin | J151: San Juan Basin (NM)
A152: 30039 | B152: 2014 | C152: N | D152: Y | E152: V | F152: 8 | G152: 62166 | H152: =VLOOKUP(VALUE(LEFT(TEXT(A152,"00000"),2)),xref!$B$3:$E$4326,4,FALSE) -> NM | I152: =VLOOKUP(TEXT(A152,"00000"),xref!$L$2:$Q$3249,6,FALSE) -> San Juan Basin | J152: San Juan Basin (NM)
A153: 30039 | B153: 2014 | C153: Y | D153: N | E153: V | F153: 7 | G153: 46042 | H153: =VLOOKUP(VALUE(LEFT(TEXT(A153,"00000"),2)),xref!$B$3:$E$4326,4,FALSE) -> NM | I153: =VLOOKUP(TEXT(A153,"00000"),xref!$L$2:$Q$3249,6,FALSE) -> San Juan Basin | J153: San Juan Basin (NM)
A154: 30041 | B154: 2014 | C154: N | D154: Y | E154: V | F154: 6 | G154: 49014 | H154: =VLOOKUP(VALUE(LEFT(TEXT(A154,"00000"),2)),xref!$B$3:$E$4326,4,FALSE) -> NM | I154: =VLOOKUP(TEXT(A154,"00000"),xref!$L$2:$Q$3249,6,FALSE) -> Permian Basin | J154: Permian Basin (NM)
A155: 30043 | B155: 2014 | C155: N | D155: Y | E155: D | F155: 4 | G155: 31264 | H155: =VLOOKUP(VALUE(LEFT(TEXT(A155,"00000"),2)),xref!$B$3:$E$4326,4,FALSE) -> NM | I155: =VLOOKUP(TEXT(A155,"00000"),xref!$L$2:$Q$3249,6,FALSE) -> San Juan Basin | J155: San Juan Basin (NM)
A156: 30043 | B156: 2014 | C156: N | D156: Y | E156: H | F156: 34 | G156: 381895 | H156: =VLOOKUP(VALUE(LEFT(TEXT(A156,"00000"),2)),xref!$B$3:$E$4326,4,FALSE) -> NM | I156: =VLOOKUP(TEXT(A156,"00000"),xref!$L$2:$Q$3249,6,FALSE) -> San Juan Basin | J156: San Juan Basin (NM)
A157: 30045 | B157: 2014 | C157: N | D157: Y | E157: D | F157: 6 | G157: 43340 | H157: =VLOOKUP(VALUE(LEFT(TEXT(A157,"00000"),2)),xref!$B$3:$E$4326,4,FALSE) -> NM | I157: =VLOOKUP(TEXT(A157,"00000"),xref!$L$2:$Q$3249,6,FALSE) -> San Juan Basin | J157: San Juan Basin (NM)
A158: 30045 | B158: 2014 | C158: N | D158: Y | E158: H | F158: 48 | G158: 494859 | H158: =VLOOKUP(VALUE(LEFT(TEXT(A158,"00000"),2)),xref!$B$3:$E$4326,4,FALSE) -> NM | I158: =VLOOKUP(TEXT(A158,"00000"),xref!$L$2:$Q$3249,6,FALSE) -> San Juan Basin | J158: San Juan Basin (NM)
A159: 30045 | B159: 2014 | C159: N | D159: Y | E159: V | F159: 12 | G159: 59309 | H159: =VLOOKUP(VALUE(LEFT(TEXT(A159,"00000"),2)),xref!$B$3:$E$4326,4,FALSE) -> NM | I159: =VLOOKUP(TEXT(A159,"00000"),xref!$L$2:$Q$3249,6,FALSE) -> San Juan Basin | J159: San Juan Basin (NM)
A160: 30045 | B160: 2014 | C160: Y | D160: N | E160: V | F160: 17 | G160: 106011 | H160: =VLOOKUP(VALUE(LEFT(TEXT(A160,"00000"),2)),xref!$B$3:$E$4326,4,FALSE) -> NM | I160: =VLOOKUP(TEXT(A160,"00000"),xref!$L$2:$Q$3249,6,FALSE) -> San Juan Basin | J160: San Juan Basin (NM)
A161: 30059 | B161: 2014 | C161: N | D161: Y | E161: V | F161: 2 | G161: 4882 | H161: =VLOOKUP(VALUE(LEFT(TEXT(A161,"00000"),2)),xref!$B$3:$E$4326,4,FALSE) -> NM | I161: =VLOOKUP(TEXT(A161,"00000"),xref!$L$2:$Q$3249,6,FALSE) -> Sierra Grande Uplift | J161: Sierra Grande Uplift (NM)
A162: 33007 | B162: 2014 | C162: N | D162: Y | E162: H | F162: 25 | G162: 521486 | H162: =VLOOKUP(VALUE(LEFT(TEXT(A162,"00000"),2)),xref!$B$3:$E$4326,4,FALSE) -> ND | I162: =VLOOKUP(TEXT(A162,"00000"),xref!$L$2:$Q$3249,6,FALSE) -> Williston Basin | J162: Williston Basin (ND)
A163: 33009 | B163: 2014 | C163: N | D163: Y | E163: H | F163: 71 | G163: 504299 | H163: =VLOOKUP(VALUE(LEFT(TEXT(A163,"00000"),2)),xref!$B$3:$E$4326,4,FALSE) -> ND | I163: =VLOOKUP(TEXT(A163,"00000"),xref!$L$2:$Q$3249,6,FALSE) -> Williston Basin | J163: Williston Basin (ND)
A164: 33009 | B164: 2014 | C164: N | D164: Y | E164: V | F164: 3 | G164: 10550 | H164: =VLOOKUP(VALUE(LEFT(TEXT(A164,"00000"),2)),xref!$B$3:$E$4326,4,FALSE) -> ND | I164: =VLOOKUP(TEXT(A164,"00000"),xref!$L$2:$Q$3249,6,FALSE) -> Williston Basin | J164: Williston Basin (ND)
A165: 33011 | B165: 2014 | C165: N | D165: Y | E165: H | F165: 10 | G165: 155858 | H165: =VLOOKUP(VALUE(LEFT(TEXT(A165,"00000"),2)),xref!$B$3:$E$4326,4,FALSE) -> ND | I165: =VLOOKUP(TEXT(A165,"00000"),xref!$L$2:$Q$3249,6,FALSE) -> Williston Basin | J165: Williston Basin (ND)
A166: 33013 | B166: 2014 | C166: N | D166: Y | E166: H | F166: 44 | G166: 795132 | H166: =VLOOKUP(VALUE(LEFT(TEXT(A166,"00000"),2)),xref!$B$3:$E$4326,4,FALSE) -> ND | I166: =VLOOKUP(TEXT(A166,"00000"),xref!$L$2:$Q$3249,6,FALSE) -> Williston Basin | J166: Williston Basin (ND)
A167: 33013 | B167: 2014 | C167: N | D167: Y | E167: V | F167: 1 | G167: 5230 | H167: =VLOOKUP(VALUE(LEFT(TEXT(A167,"00000"),2)),xref!$B$3:$E$4326,4,FALSE) -> ND | I167: =VLOOKUP(TEXT(A167,"00000"),xref!$L$2:$Q$3249,6,FALSE) -> Williston Basin | J167: Williston Basin (ND)
A168: 33013 | B168: 2014 | C168: Y | D168: N | E168: V | F168: 1 | G168: 6316 | H168: =VLOOKUP(VALUE(LEFT(TEXT(A168,"00000"),2)),xref!$B$3:$E$4326,4,FALSE) -> ND | I168: =VLOOKUP(TEXT(A168,"00000"),xref!$L$2:$Q$3249,6,FALSE) -> Williston Basin | J168: Williston Basin (ND)
A169: 33023 | B169: 2014 | C169: N | D169: Y | E169: H | F169: 134 | G169: 2461545 | H169: =VLOOKUP(VALUE(LEFT(TEXT(A169,"00000"),2)),xref!$B$3:$E$4326,4,FALSE) -> ND | I169: =VLOOKUP(TEXT(A169,"00000"),xref!$L$2:$Q$3249,6,FALSE) -> Williston Basin | J169: Williston Basin (ND)
A170: 33025 | B170: 2014 | C170: N | D170: Y | E170: H | F170: 350 | G170: 7291337 | H170: =VLOOKUP(VALUE(LEFT(TEXT(A170,"00000"),2)),xref!$B$3:$E$4326,4,FALSE) -> ND | I170: =VLOOKUP(TEXT(A170,"00000"),xref!$L$2:$Q$3249,6,FALSE) -> Williston Basin | J170: Williston Basin (ND)
A171: 33025 | B171: 2014 | C171: N | D171: Y | E171: V | F171: 1 | G171: 6136 | H171: =VLOOKUP(VALUE(LEFT(TEXT(A171,"00000"),2)),xref!$B$3:$E$4326,4,FALSE) -> ND | I171: =VLOOKUP(TEXT(A171,"00000"),xref!$L$2:$Q$3249,6,FALSE) -> Williston Basin | J171: Williston Basin (ND)
A172: 33033 | B172: 2014 | C172: N | D172: Y | E172: H | F172: 1 | G172: 21697 | H172: =VLOOKUP(VALUE(LEFT(TEXT(A172,"00000"),2)),xref!$B$3:$E$4326,4,FALSE) -> ND | I172: =VLOOKUP(TEXT(A172,"00000"),xref!$L$2:$Q$3249,6,FALSE) -> Williston Basin | J172: Williston Basin (ND)
A173: 33049 | B173: 2014 | C173: N | D173: Y | E173: H | F173: 2 | G173: 14966 | H173: =VLOOKUP(VALUE(LEFT(TEXT(A173,"00000"),2)),xref!$B$3:$E$4326,4,FALSE) -> ND | I173: =VLOOKUP(TEXT(A173,"00000"),xref!$L$2:$Q$3249,6,FALSE) -> Williston Basin | J173: Williston Basin (ND)
A174: 33053 | B174: 2014 | C174: N | D174: Y | E174: H | F174: 900 | G174: 18552275 | H174: =VLOOKUP(VALUE(LEFT(TEXT(A174,"00000"),2)),xref!$B$3:$E$4326,4,FALSE) -> ND | I174: =VLOOKUP(TEXT(A174,"00000"),xref!$L$2:$Q$3249,6,FALSE) -> Williston Basin | J174: Williston Basin (ND)
A175: 33053 | B175: 2014 | C175: N | D175: Y | E175: V | F175: 4 | G175: 31226 | H175: =VLOOKUP(VALUE(LEFT(TEXT(A175,"00000"),2)),xref!$B$3:$E$4326,4,FALSE) -> ND | I175: =VLOOKUP(TEXT(A175,"00000"),xref!$L$2:$Q$3249,6,FALSE) -> Williston Basin | J175: Williston Basin (ND)
A176: 33053 | B176: 2014 | C176: Y | D176: N | E176: H | F176: 1 | G176: 22034 | H176: =VLOOKUP(VALUE(LEFT(TEXT(A176,"00000"),2)),xref!$B$3:$E$4326,4,FALSE) -> ND | I176: =VLOOKUP(TEXT(A176,"00000"),xref!$L$2:$Q$3249,6,FALSE) -> Williston Basin | J176: Williston Basin (ND)
A177: 33053 | B177: 2014 | C177: Y | D177: N | E177: V | F177: 2 | G177: 24347 | H177: =VLOOKUP(VALUE(LEFT(TEXT(A177,"00000"),2)),xref!$B$3:$E$4326,4,FALSE) -> ND | I177: =VLOOKUP(TEXT(A177,"00000"),xref!$L$2:$Q$3249,6,FALSE) -> Williston Basin | J177: Williston Basin (ND)
A178: 33055 | B178: 2014 | C178: N | D178: Y | E178: H | F178: 1 | G178: 27141 | H178: =VLOOKUP(VALUE(LEFT(TEXT(A178,"00000"),2)),xref!$B$3:$E$4326,4,FALSE) -> ND | I178: =VLOOKUP(TEXT(A178,"00000"),xref!$L$2:$Q$3249,6,FALSE) -> Williston Basin | J178: Williston Basin (ND)
A179: 33061 | B179: 2014 | C179: N | D179: Y | E179: H | F179: 496 | G179: 9553483 | H179: =VLOOKUP(VALUE(LEFT(TEXT(A179,"00000"),2)),xref!$B$3:$E$4326,4,FALSE) -> ND | I179: =VLOOKUP(TEXT(A179,"00000"),xref!$L$2:$Q$3249,6,FALSE) -> Williston Basin | J179: Williston Basin (ND)
A180: 33061 | B180: 2014 | C180: N | D180: Y | E180: V | F180: 2 | G180: 11536 | H180: =VLOOKUP(VALUE(LEFT(TEXT(A180,"00000"),2)),xref!$B$3:$E$4326,4,FALSE) -> ND | I180: =VLOOKUP(TEXT(A180,"00000"),xref!$L$2:$Q$3249,6,FALSE) -> Williston Basin | J180: Williston Basin (ND)
A181: 33061 | B181: 2014 | C181: Y | D181: N | E181: V | F181: 1 | G181: 10709 | H181: =VLOOKUP(VALUE(LEFT(TEXT(A181,"00000"),2)),xref!$B$3:$E$4326,4,FALSE) -> ND | I181: =VLOOKUP(TEXT(A181,"00000"),xref!$L$2:$Q$3249,6,FALSE) -> Williston Basin | J181: Williston Basin (ND)
A182: 33075 | B182: 2014 | C182: N | D182: Y | E182: H | F182: 11 | G182: 96509 | H182: =VLOOKUP(VALUE(LEFT(TEXT(A182,"00000"),2)),xref!$B$3:$E$4326,4,FALSE) -> ND | I182: =VLOOKUP(TEXT(A182,"00000"),xref!$L$2:$Q$3249,6,FALSE) -> Williston Basin | J182: Williston Basin (ND)
A183: 33075 | B183: 2014 | C183: N | D183: Y | E183: V | F183: 6 | G183: 31331 | H183: =VLOOKUP(VALUE(LEFT(TEXT(A183,"00000"),2)),xref!$B$3:$E$4326,4,FALSE) -> ND | I183: =VLOOKUP(TEXT(A183,"00000"),xref!$L$2:$Q$3249,6,FALSE) -> Williston Basin | J183: Williston Basin (ND)
A184: 33087 | B184: 2014 | C184: N | D184: Y | E184: H | F184: 1 | G184: 17425 | H184: =VLOOKUP(VALUE(LEFT(TEXT(A184,"00000"),2)),xref!$B$3:$E$4326,4,FALSE) -> ND | I184: =VLOOKUP(TEXT(A184,"00000"),xref!$L$2:$Q$3249,6,FALSE) -> Williston Basin | J184: Williston Basin (ND)
A185: 33087 | B185: 2014 | C185: N | D185: Y | E185: V | F185: 1 | G185: 11131 | H185: =VLOOKUP(VALUE(LEFT(TEXT(A185,"00000"),2)),xref!$B$3:$E$4326,4,FALSE) -> ND | I185: =VLOOKUP(TEXT(A185,"00000"),xref!$L$2:$Q$3249,6,FALSE) -> Williston Basin | J185: Williston Basin (ND)
A186: 33089 | B186: 2014 | C186: N | D186: Y | E186: H | F186: 34 | G186: 699363 | H186: =VLOOKUP(VALUE(LEFT(TEXT(A186,"00000"),2)),xref!$B$3:$E$4326,4,FALSE) -> ND | I186: =VLOOKUP(TEXT(A186,"00000"),xref!$L$2:$Q$3249,6,FALSE) -> Williston Basin | J186: Williston Basin (ND)
A187: 33105 | B187: 2014 | C187: N | D187: Y | E187: H | F187: 524 | G187: 10636822 | H187: =VLOOKUP(VALUE(LEFT(TEXT(A187,"00000"),2)),xref!$B$3:$E$4326,4,FALSE) -> ND | I187: =VLOOKUP(TEXT(A187,"00000"),xref!$L$2:$Q$3249,6,FALSE) -> Williston Basin | J187: Williston Basin (ND)
